Workbook

Sheet Instructions
B2: The noise wall design workbook consists of three main worksheets, in addition to a new worksheet that will be added through the "Generate Boring Log" macro for each boring listed in the "Foundation Design" sheet. The maximum number of borings that can be entered is 91. An example project that has a total of 18 SPT is included for guidance and informational purposes only . Each worksheet functions independently. Entries from the "Cover Sheet" will be populated to the header and footer sections of the other sheets. BEFORE PROCEEDING WITH THE ANALYSIS: This design workbook and the ODOT BDM § 800 cannot be used in the following cases: - Post Spacing greater than 24 feet. - Barrier Height greater than 20 feet. - Design N160 less than 4 for cohesive controlled design, if Post Spacing is greater than 12 feet and if Barrier Height is greater than 16 feet for any cross slope. - Design N160 less than 4 for granular controlled design, If Post Spacing is greater than 12 feet and if Barrier Height is greater than 16 feet and if Cross slope is less than 3. In these cases, ODOT OGE recommends to either revising the barrier geometry to make within the limits set in the BDM figures, or performing p-y analyses to determine the minimum drilled shaft lengths using more refined loading and soil strength estimation. Throughout all of the worksheets, the backfill of the fields are color coded as follows:
B3: - | C3: Light tan | K3: User entry field.
B4: - | C4: White | K4: Calculated field.
B5: - | C5: Gray or blue | K5: Table heading.
B6: - | C6: Light or dark green | K6: End result.
B7: - | C7: Red | K7: Indicate a problem/issue.
B9: IMPORTANT:
B10: Each worksheet functions independently.
B11: Entries from the "Cover Sheet" will be populated to the header and footer sections of the other sheets.
B12: All worksheets have a macro code that will run in the background every time the sheet is activated and will make the sheet unresponsive for less than a minute.
B13: Since the background macro will run everytime a sheet is selected, any copying done prior to selecting the sheet will be lost (unable to paste). Thus, its best to select the sheet that the designer wants to work on first and then copy/paste from other workbooks, if available.
B14: The sequence of filling out the data needs to be followed as outlined below:
B16: 1. | C16: Cover Sheet: | I16: designed for the purpose of entering the general project information. The table below summarizes the required input information:
C18: A. | D18: County-Route-Section | L18: The project's locale; the transportation route number for the project's primary roadway segment; and the primary roadway segment's begin log point assigned to the project.
C19: B. | J19: PID | L19: Project Identification Number
C20: C. | J20: Project Description | L20: General description of the project.
C21: D. | J21: Company | L21: The Company performing the analysis.
C22: E. | J22: Prepared By | L22: The preparer of the Noise Wall Design Sheet.
C23: F. | J23: Date prepared | L23: The date the design is performed.
C24: G. | J24: Checked By | L24: The name of the person whom checked the design of the Noise Wall.
C25: H. | J25: Date checked | L25: The date the design is checked.
C26: I. | J26: No. of Borings: | L26: Enter the total number of borings to be analyzed. Maximum 91 borings.
C27: Fields A and B are populated to the header of all of the other worksheets.
C28: Fields D, E and F are populated to the footer of all of the other worksheets.
B30: 2. | C30: Design Data: | H30: designed for the purpose of entering the noise wall geometry information. All fields are user input and are populated to the "Foundation Design" worksheet. The print area will be set based on column “A” last used row. Below is a summary of the fields:
C31: a. | D31: STA.: | I31: The stationing of each post in feet. This is a numerical field, do not include the "+" sign in the station. The field is formatted to automatically add the "+" sign. This field must be in ascending order for the dependent fields to work properly.
C32: b. | D32: Post No.: | I32: The post number associated with the station number entered in the previous field. This field will be used for the design recommendations under the beginning and ending post numbers.
C33: c. | D33: Barrier Height: | I33: The height of the barrier wall measured from the bottom of the panel to the top of the cap in feet.
C34: d. | D34: Post Spacing: | I34: The barrier post to post spacing in feet.
C35: e. | D35: Drilled Shaft Elev.: | I35: The top of drilled shaft elevation in msl feet.
B37: 3. | C37: Foundation Design: | J37: This worksheet is used for entering the boring information. Below is a summary of the fields:
C38: a. | D38: Boring ID: | I38: Enter the boring ID in this field. CPT boring ID's must start with the letter "C" and SPT boring ID's must start with the letter "B". The "Generate Boring Log" code will create a new worksheet for each boring listed in this column. Duplicate boring IDs are not permitted and will be highlighted with red. An empty row (blank cell between two boring IDs) is not permitted and will be highlighted in red).
C39: b. | D39: Boring STA.: | I39: Enter the boring station number using the noise wall alignment stationing. This is a numerical field, do not include the "+" sign. The field is formatted, for ease of reading/viewing, to add the "+" sign. This column must be in ascending order for the dependent fields to work properly.
C40: c. | D40: Mid-Boring STA.: | J40: Calculated field, lists the borings mid point station number by using the average function.
C41: d. | D41: Boring Elev.: | J41: Enter the boring surface elevation in msl feet.
C42: e. | D42: Shaft Elev.: | J42: Calculated field in msl feet, the formula will lookup the nearest drilled shaft to the boring station entered in the "Design Data" worksheet.
C43: f. | E43: Ex. Ground Elev.: | J43: Enter the existing ground surface elevation in msl feet along the sound barrier basline.
C44: g. | D44: Rock Elev.: | J44: Enter the top of rock elevation in msl feet, if encountered through drilling or otherwise known. This is not a required field. The top of rock elevation cannot be higher than boring surface elevation; an error message will ask the user to revise entry if incorrectly entered.
C45: h. | D45: Rock UCS: | J45: Enter the Unconfined Compressive Strength Value in pounds per square inches, if tested. This is not a required field.
C46: i. | D46: Post Spacing: | J46: Calculated field in feet, the formula will lookup the maximum post spacing for all posts that fall between the beginning or ending barrier stations or mid-borings station from the "Design Data" worksheet.
C47: j. | D47: Barrier Height: | J47: Calculated field, using the boring station, computes the maximum wall height in feet from the "Design Data" worksheet.
C48: k. | D48: Cross Slope: | J48: Enter the most critical Cross Slope in feet for the station limits being evaluated. An illustration is provided below to show how to calculate the cross slope.
C49: l. | D49: Cross Slope: | J49: Calculated in H:V, used to convert the inputted cross slope value into a slope format that is used. Per ODOT BDM Figures 802-1 & 2, any slope ≥ 8.0 will be considered "Level" for the calculation purposes.
C50: m. | D50: From DS STA.: | J50: Calculated field in feet, the beginning station for the calculated drilled shaft length.
C51: n. | D51: To DS STA.: | J51: Calculated field in feet, the ending station for the calculated drilled shaft length.
C52: o. | D52: From Post No.: | J52: Calculated field, the beginning post number for the respective drilled shaft station numbers in the previous column.
C53: p. | D53: To Post No.: | J53: Calculated field, the ending post number for the respective drilled shaft station numbers in the previous column.
C54: q. | D54: Foundation Depth: | J54: Calculated field in feet, transcribed from the corresponding boring sheet.
C55: r. | D55: Bottom of DS Elev.: | J55: Calculated field in msl feet, computed by subtracting the drilled shaft length from the top of drilled shaft elevation.
B57: Cross (Transverse) slope Illustration
B79: Generate Boring Log code: | G79: The macro code will create a new worksheet for each boring listed in the Boring ID column. This macro will sometimes take more than a minute to complete, depending on the number of borings entered. The code will perform the following tasks: - Check for the total number of borings entered in the "Foundation Design" sheet against the "Cover Sheet" and an error message will ask the user to revise the entry if inconsistencies exist. - Creates a new worksheet for each boring ID that a sheet does not currently exist for. - If a sheet already exists for the Boring, the code will keep the existing worksheet. - Deletes the worksheets, without warning, for boring ID's that are not in the Foundation Design. Make sure all the required fields are inputted and the workbook is saved, prior to clicking on "Generate Boring Log" button.
B82: SPT Log sheets:
B83: The maximum number of rows in the SPT log is 25.
B84: Most of the fields in this worksheet are either calculated or read from the other sheets, except:
B85: - Layer Depth: enter the sample layer depth in feet.
B86: - Soil Class: enter the ODOT Soil Classification, add "NP" to the end of Non-Plastic Silts and "P" to the end of Plastic Silts. The user can pick from the drop down menu instead of manually entering values.
B87: - N60: enter the blow counts corrected to hammer energy.
B90: CPT Log sheets:
B91: The maximum number of rows in the CPT log is 788. Most of the fields in this worksheet are either calculated or read from the other sheets, except: - Layer Depth: enter the sample layer depth in meters. - Tip qc: cone tip resistance in MPa. - Sleeve fs: skin friction resistance in kPa. - Pore u2: pore water pressure in kPa. In the CPT log sheets, the correlated N60 values are color scaled from low (red) to high (green) to draw the user's attention to extreme values. NOTES: Both SPT and CPT design sheets will highlight in red and/or include “N/A” value for the following cases: - Boring does not extend below the proposed drilled shaft elevation. - Results are outside the ranges provided in the ODOT BDM § 800 and outlined above.
B92: Evaluation of Cut/Fill/Level Cases: Existing ground and Top of Drilled shaft elevations are along the noise barrier alignment. Boring elevation is either at the existing ground elevation, higher elevation, or at lower than existing ground elevation. The following figures summarize these cases, based on the case being evaluated, the design sheets will assume a Fill, Cut, or Level Case:

Sheet Cover Sheet
A1: OHIO DEPARTMENT OF TRANSPORTATION OFFICE OF GEOTECHNICAL ENGINEERING Noise Wall Design
A2: =IF(ISNONTEXT(G11),"","Instructions: " & CHAR(10) & " Enter data in the highlighted cells only, all highlighted field information" & CHAR(10) & " will be transferred to all other sheets. " & CHAR(10) & CHAR(10) & " These instruction lines will disappear once the prepared date is filled out.") -> 
G3: LOR-90-10.76 Third Lane Widening
G4: 107714
A5: Structure Foundation Exploration - Noise Barrier Walls
A6: Noise Wall E I 90 Eastbound From Gulf Road to SR 254
A8: S&ME, Inc.
A10: Prepared By: | G10: Shawn H. Smith, P.E.
A11: Date prepared: | G11: 2023-08-23
A13: Checked By: | G13: Brian K. Sears, P.E.
A14: Date Checked: | G14: 2023-08-29
A20: No. of Borings: | G20: 14

Sheet Design Data
A1: STA. (FT) | B1: Post No. | C1: Barrier Height (FT) | D1: Post Spacing (FT) | E1: Top of Shaft Elev. (MSL FT) | F1: =SUMPRODUCT(MAX(($A2:$A500<>"")*(ROW(A2:A500)))) -> 0

Sheet Foundation Depth Table (hidden)
A1: Granular Soil Foundation Depth Table | H1: Cohesive Soil Foundation Depth Table | O1: Case Lookup Table | AA1: Granular | AB1: Cohesive
A4: Case | B4: Transverse Ground Slope | C4: N160 (bpf) | E4: Foundation Depth [ft] | H4: Case | I4: Transverse Ground Slope | J4: N160 (bpf) | L4: Foundation Depth [ft] | O4: Post Spacing (PS) [ft] | P4: Barrier Height (H) [ft] | Q4: Combined | R4: Case | Z4: Case-Slope | AA4: Foundation Depth [ft] | AB4: Foundation Depth [ft]
A5: 1 | B5: 0 | C5: 0 | D5: =A5&"-"&B5&"-"&C5 -> 1-0-0 | E5: 100 | F5: =A5&"-"&B5 -> 1-0 | G5: 0 | H5: 1 | I5: 0 | J5: 0 | K5: =H5&"-"&I5&"-"&J5 -> 1-0-0 | L5: 13.5 | O5: 1 | P5: 1 | Q5: =O5&"-"&P5 -> 1-1 | R5: 1 | Z5: 1-0 | AA5: 4.5 | AB5: 3.5
A6: 1 | B6: 0 | C6: 1 | D6: =A6&"-"&B6&"-"&C6 -> 1-0-1 | E6: 100 | F6: =A6&"-"&B6 -> 1-0 | G6: 1 | H6: 1 | I6: 0 | J6: 1 | K6: =H6&"-"&I6&"-"&J6 -> 1-0-1 | L6: 13.5 | O6: 1 | P6: 2 | Q6: 1-2 | R6: 1 | Z6: 1-5 | AA6: 5 | AB6: 3.5
A7: 1 | B7: 0 | C7: 2 | D7: 1-0-2 | E7: 9 | F7: 1-0 | G7: 2 | H7: 1 | I7: 0 | J7: 2 | K7: 1-0-2 | L7: 10 | O7: 1 | P7: 3 | Q7: 1-3 | R7: 1 | Z7: 1-4 | AA7: 5 | AB7: 3.5
A8: 1 | B8: 0 | C8: 3 | D8: 1-0-3 | E8: 9 | F8: 1-0 | G8: 3 | H8: 1 | I8: 0 | J8: 3 | K8: 1-0-3 | L8: 10 | O8: 1 | P8: 4 | Q8: 1-4 | R8: 1 | Z8: 1-3 | AA8: 5 | AB8: 4
A9: 1 | B9: 0 | C9: 4 | D9: 1-0-4 | E9: 7.5 | F9: 1-0 | G9: 4 | H9: 1 | I9: 0 | J9: 4 | K9: 1-0-4 | L9: 7 | O9: 1 | P9: 5 | Q9: 1-5 | R9: 1 | Z9: 1-2 | AA9: 5.5 | AB9: 3.5
A10: 1 | B10: 0 | C10: 5 | D10: 1-0-5 | E10: 7.5 | F10: 1-0 | G10: 5 | H10: 1 | I10: 0 | J10: 5 | K10: 1-0-5 | L10: 7 | O10: 1 | P10: 6 | Q10: 1-6 | R10: 1 | Z10: 2-0 | AA10: 4.5 | AB10: 3.5
A11: 1 | B11: 0 | C11: 6 | D11: 1-0-6 | E11: 7.5 | F11: 1-0 | G11: 6 | H11: 1 | I11: 0 | J11: 6 | K11: 1-0-6 | L11: 7 | O11: 1 | P11: 7 | Q11: 1-7 | R11: 1 | Z11: 2-5 | AA11: 5 | AB11: 3.5
A12: 1 | B12: 0 | C12: 7 | D12: 1-0-7 | E12: 7.5 | F12: 1-0 | G12: 7 | H12: 1 | I12: 0 | J12: 7 | K12: 1-0-7 | L12: 7 | O12: 1 | P12: 8 | Q12: 1-8 | R12: 1 | Z12: 2-4 | AA12: 5 | AB12: 3.5
A13: 1 | B13: 0 | C13: 8 | D13: 1-0-8 | E13: 7.5 | F13: 1-0 | G13: 8 | H13: 1 | I13: 0 | J13: 8 | K13: 1-0-8 | L13: 7 | O13: 1 | P13: 9 | Q13: 1-9 | R13: 1 | Z13: 2-3 | AA13: 5 | AB13: 4
A14: 1 | B14: 0 | C14: 9 | D14: 1-0-9 | E14: 7.5 | F14: 1-0 | G14: 9 | H14: 1 | I14: 0 | J14: 9 | K14: 1-0-9 | L14: 4 | O14: 1 | P14: 10 | Q14: 1-10 | R14: 1 | Z14: 2-2 | AA14: 5.5 | AB14: 3.5
A15: 1 | B15: 0 | C15: 10 | D15: 1-0-10 | E15: 6 | F15: 1-0 | G15: 10 | H15: 1 | I15: 0 | J15: 10 | K15: 1-0-10 | L15: 4 | O15: 1 | P15: 11 | Q15: 1-11 | R15: 1 | Z15: 3-0 | AA15: 4.5 | AB15: 3.5
A16: 1 | B16: 0 | C16: 11 | D16: 1-0-11 | E16: 6 | F16: 1-0 | G16: 11 | H16: 1 | I16: 0 | J16: 11 | K16: 1-0-11 | L16: 4 | O16: 1 | P16: 12 | Q16: 1-12 | R16: 1 | Z16: 3-5 | AA16: 5 | AB16: 3.5
A17: 1 | B17: 0 | C17: 12 | D17: 1-0-12 | E17: 6 | F17: 1-0 | G17: 12 | H17: 1 | I17: 0 | J17: 12 | K17: 1-0-12 | L17: 4 | O17: 1 | P17: 13 | Q17: 1-13 | R17: 5 | Z17: 3-4 | AA17: 5 | AB17: 3.5
A18: 1 | B18: 0 | C18: 13 | D18: 1-0-13 | E18: 6 | F18: 1-0 | G18: 13 | H18: 1 | I18: 0 | J18: 13 | K18: 1-0-13 | L18: 4 | O18: 1 | P18: 14 | Q18: 1-14 | R18: 5 | Z18: 3-3 | AA18: 5 | AB18: 4
A19: 1 | B19: 0 | C19: 14 | D19: 1-0-14 | E19: 6 | F19: 1-0 | G19: 14 | H19: 1 | I19: 0 | J19: 14 | K19: 1-0-14 | L19: 4 | O19: 1 | P19: 15 | Q19: 1-15 | R19: 5 | Z19: 3-2 | AA19: 5.5 | AB19: 3.5
A20: 1 | B20: 0 | C20: 15 | D20: 1-0-15 | E20: 6 | F20: 1-0 | G20: 15 | H20: 1 | I20: 0 | J20: 15 | K20: 1-0-15 | L20: 4 | O20: 1 | P20: 16 | Q20: 1-16 | R20: 5 | Z20: 4-0 | AA20: 4.5 | AB20: 3.5
A21: 1 | B21: 0 | C21: 16 | D21: 1-0-16 | E21: 6 | F21: 1-0 | G21: 16 | H21: 1 | I21: 0 | J21: 16 | K21: 1-0-16 | L21: 3.5 | O21: 1 | P21: 17 | Q21: 1-17 | R21: 9 | Z21: 4-5 | AA21: 5 | AB21: 3.5
A22: 1 | B22: 0 | C22: 17 | D22: 1-0-17 | E22: 6 | F22: 1-0 | G22: 17 | H22: 1 | I22: 0 | J22: 17 | K22: 1-0-17 | L22: 3.5 | O22: 1 | P22: 18 | Q22: 1-18 | R22: 9 | Z22: 4-4 | AA22: 5 | AB22: 3.5
A23: 1 | B23: 0 | C23: 18 | D23: 1-0-18 | E23: 6 | F23: 1-0 | G23: 18 | H23: 1 | I23: 0 | J23: 18 | K23: 1-0-18 | L23: 3.5 | O23: 1 | P23: 19 | Q23: 1-19 | R23: 9 | Z23: 4-3 | AA23: 5 | AB23: 4
A24: 1 | B24: 0 | C24: 19 | D24: 1-0-19 | E24: 6 | F24: 1-0 | G24: 19 | H24: 1 | I24: 0 | J24: 19 | K24: 1-0-19 | L24: 3.5 | O24: 1 | P24: 20 | Q24: 1-20 | R24: 9 | Z24: 4-2 | AA24: 5.5 | AB24: 3.5
A25: 1 | B25: 0 | C25: 20 | D25: 1-0-20 | E25: 5.5 | F25: 1-0 | G25: 20 | H25: 1 | I25: 0 | J25: 20 | K25: 1-0-20 | L25: 3.5 | O25: 2 | P25: 1 | Q25: =O25&"-"&P25 -> 2-1 | R25: 1 | Z25: 5-0 | AA25: 6 | AB25: 4.5
A26: 1 | B26: 0 | C26: 21 | D26: 1-0-21 | E26: 5.5 | F26: 1-0 | G26: 21 | H26: 1 | I26: 0 | J26: 21 | K26: 1-0-21 | L26: 3.5 | O26: 2 | P26: 2 | Q26: 2-2 | R26: 1 | Z26: 5-5 | AA26: 6 | AB26: 5
A27: 1 | B27: 0 | C27: 22 | D27: 1-0-22 | E27: 5.5 | F27: 1-0 | G27: 22 | H27: 1 | I27: 0 | J27: 22 | K27: 1-0-22 | L27: 3.5 | O27: 2 | P27: 3 | Q27: 2-3 | R27: 1 | Z27: 5-4 | AA27: 6.5 | AB27: 5
A28: 1 | B28: 0 | C28: 23 | D28: 1-0-23 | E28: 5.5 | F28: 1-0 | G28: 23 | H28: 1 | I28: 0 | J28: 23 | K28: 1-0-23 | L28: 3.5 | O28: 2 | P28: 4 | Q28: 2-4 | R28: 1 | Z28: 5-3 | AA28: 6.5 | AB28: 5
A29: 1 | B29: 0 | C29: 24 | D29: 1-0-24 | E29: 5.5 | F29: 1-0 | G29: 24 | H29: 1 | I29: 0 | J29: 24 | K29: 1-0-24 | L29: 3.5 | O29: 2 | P29: 5 | Q29: 2-5 | R29: 1 | Z29: 5-2 | AA29: 7.5 | AB29: 5
A30: 1 | B30: 0 | C30: 25 | D30: 1-0-25 | E30: 5.5 | F30: 1-0 | G30: 25 | H30: 1 | I30: 0 | J30: 25 | K30: 1-0-25 | L30: 3.5 | O30: 2 | P30: 6 | Q30: 2-6 | R30: 1 | Z30: 6-0 | AA30: 6 | AB30: 4.5
A31: 1 | B31: 0 | C31: 26 | D31: 1-0-26 | E31: 5.5 | F31: 1-0 | G31: 26 | H31: 1 | I31: 0 | J31: 26 | K31: 1-0-26 | L31: 3.5 | O31: 2 | P31: 7 | Q31: 2-7 | R31: 1 | Z31: 6-5 | AA31: 6 | AB31: 5
A32: 1 | B32: 0 | C32: 27 | D32: 1-0-27 | E32: 5.5 | F32: 1-0 | G32: 27 | H32: 1 | I32: 0 | J32: 27 | K32: 1-0-27 | L32: 3.5 | O32: 2 | P32: 8 | Q32: 2-8 | R32: 1 | Z32: 6-4 | AA32: 6.5 | AB32: 5
A33: 1 | B33: 0 | C33: 28 | D33: 1-0-28 | E33: 5.5 | F33: 1-0 | G33: 28 | H33: 1 | I33: 0 | J33: 28 | K33: 1-0-28 | L33: 3.5 | O33: 2 | P33: 9 | Q33: 2-9 | R33: 1 | Z33: 6-3 | AA33: 6.5 | AB33: 5
A34: 1 | B34: 0 | C34: 29 | D34: 1-0-29 | E34: 5.5 | F34: 1-0 | G34: 29 | H34: 1 | I34: 0 | J34: 29 | K34: 1-0-29 | L34: 3.5 | O34: 2 | P34: 10 | Q34: 2-10 | R34: 1 | Z34: 6-2 | AA34: 7.5 | AB34: 5
A35: 1 | B35: 0 | C35: 30 | D35: 1-0-30 | E35: 5 | F35: 1-0 | G35: 30 | H35: 1 | I35: 0 | J35: 30 | K35: 1-0-30 | L35: 3.5 | O35: 2 | P35: 11 | Q35: 2-11 | R35: 1 | Z35: 7-0 | AA35: 6 | AB35: 4.5
A36: 1 | B36: 0 | C36: 31 | D36: 1-0-31 | E36: 5 | F36: 1-0 | G36: 31 | H36: 1 | I36: 0 | J36: 31 | K36: 1-0-31 | L36: 3.5 | O36: 2 | P36: 12 | Q36: 2-12 | R36: 1 | Z36: 7-5 | AA36: 6 | AB36: 5
A37: 1 | B37: 0 | C37: 32 | D37: 1-0-32 | E37: 5 | F37: 1-0 | G37: 32 | H37: 1 | I37: 0 | J37: 32 | K37: 1-0-32 | L37: 3.5 | O37: 2 | P37: 13 | Q37: 2-13 | R37: 5 | Z37: 7-4 | AA37: 6.5 | AB37: 5
A38: 1 | B38: 0 | C38: 33 | D38: 1-0-33 | E38: 5 | F38: 1-0 | G38: 33 | H38: 1 | I38: 5 | J38: 0 | K38: 1-5-0 | L38: 14.5 | O38: 2 | P38: 14 | Q38: 2-14 | R38: 5 | Z38: 7-3 | AA38: 6.5 | AB38: 5
A39: 1 | B39: 0 | C39: 34 | D39: 1-0-34 | E39: 5 | F39: 1-0 | G39: 34 | H39: 1 | I39: 5 | J39: 1 | K39: 1-5-1 | L39: 14.5 | O39: 2 | P39: 15 | Q39: 2-15 | R39: 5 | Z39: 7-2 | AA39: 7.5 | AB39: 5
A40: 1 | B40: 0 | C40: 35 | D40: 1-0-35 | E40: 5 | F40: 1-0 | G40: 35 | H40: 1 | I40: 5 | J40: 2 | K40: 1-5-2 | L40: 10.5 | O40: 2 | P40: 16 | Q40: 2-16 | R40: 5 | Z40: 8-0 | AA40: 6 | AB40: 4.5
A41: 1 | B41: 0 | C41: 36 | D41: 1-0-36 | E41: 5 | F41: 1-0 | G41: 36 | H41: 1 | I41: 5 | J41: 3 | K41: 1-5-3 | L41: 10.5 | O41: 2 | P41: 17 | Q41: 2-17 | R41: 9 | Z41: 8-5 | AA41: 6 | AB41: 5
A42: 1 | B42: 0 | C42: 37 | D42: 1-0-37 | E42: 5 | F42: 1-0 | G42: 37 | H42: 1 | I42: 5 | J42: 4 | K42: 1-5-4 | L42: 7 | O42: 2 | P42: 18 | Q42: 2-18 | R42: 9 | Z42: 8-4 | AA42: 6.5 | AB42: 5
A43: 1 | B43: 0 | C43: 38 | D43: 1-0-38 | E43: 5 | F43: 1-0 | G43: 38 | H43: 1 | I43: 5 | J43: 5 | K43: 1-5-5 | L43: 7 | O43: 2 | P43: 19 | Q43: 2-19 | R43: 9 | Z43: 8-3 | AA43: 6.5 | AB43: 5
A44: 1 | B44: 0 | C44: 39 | D44: 1-0-39 | E44: 5 | F44: 1-0 | G44: 39 | H44: 1 | I44: 5 | J44: 6 | K44: 1-5-6 | L44: 7 | O44: 2 | P44: 20 | Q44: 2-20 | R44: 9 | Z44: 8-2 | AA44: 7.5 | AB44: 5
A45: 1 | B45: 0 | C45: 40 | D45: 1-0-40 | E45: 5 | F45: 1-0 | G45: 40 | H45: 1 | I45: 5 | J45: 7 | K45: 1-5-7 | L45: 7 | O45: 3 | P45: 1 | Q45: =O45&"-"&P45 -> 3-1 | R45: 1 | Z45: 9-0 | AA45: 7 | AB45: 6
A46: 1 | B46: 0 | C46: 41 | D46: 1-0-41 | E46: 5 | F46: 1-0 | G46: 41 | H46: 1 | I46: 5 | J46: 8 | K46: 1-5-8 | L46: 7 | O46: 3 | P46: 2 | Q46: 3-2 | R46: 1 | Z46: 9-5 | AA46: 7.5 | AB46: 6.5
A47: 1 | B47: 0 | C47: 42 | D47: 1-0-42 | E47: 5 | F47: 1-0 | G47: 42 | H47: 1 | I47: 5 | J47: 9 | K47: 1-5-9 | L47: 4.5 | O47: 3 | P47: 3 | Q47: 3-3 | R47: 1 | Z47: 9-4 | AA47: 8 | AB47: 6.5
A48: 1 | B48: 0 | C48: 43 | D48: 1-0-43 | E48: 5 | F48: 1-0 | G48: 43 | H48: 1 | I48: 5 | J48: 10 | K48: 1-5-10 | L48: 4.5 | O48: 3 | P48: 4 | Q48: 3-4 | R48: 1 | Z48: 9-3 | AA48: 8 | AB48: 6.5
A49: 1 | B49: 0 | C49: 44 | D49: 1-0-44 | E49: 5 | F49: 1-0 | G49: 44 | H49: 1 | I49: 5 | J49: 11 | K49: 1-5-11 | L49: 4.5 | O49: 3 | P49: 5 | Q49: 3-5 | R49: 1 | Z49: 9-2 | AA49: 9 | AB49: 6.5
A50: 1 | B50: 0 | C50: 45 | D50: 1-0-45 | E50: 5 | F50: 1-0 | G50: 45 | H50: 1 | I50: 5 | J50: 12 | K50: 1-5-12 | L50: 4.5 | O50: 3 | P50: 6 | Q50: 3-6 | R50: 1 | Z50: 10-0 | AA50: 7 | AB50: 6
A51: 1 | B51: 0 | C51: 46 | D51: 1-0-46 | E51: 5 | F51: 1-0 | G51: 46 | H51: 1 | I51: 5 | J51: 13 | K51: 1-5-13 | L51: 4.5 | O51: 3 | P51: 7 | Q51: 3-7 | R51: 1 | Z51: 10-5 | AA51: 7.5 | AB51: 6.5
A52: 1 | B52: 0 | C52: 47 | D52: 1-0-47 | E52: 5 | F52: 1-0 | G52: 47 | H52: 1 | I52: 5 | J52: 14 | K52: 1-5-14 | L52: 4.5 | O52: 3 | P52: 8 | Q52: 3-8 | R52: 1 | Z52: 10-4 | AA52: 8 | AB52: 6.5
A53: 1 | B53: 0 | C53: 48 | D53: 1-0-48 | E53: 5 | F53: 1-0 | G53: 48 | H53: 1 | I53: 5 | J53: 15 | K53: 1-5-15 | L53: 4.5 | O53: 3 | P53: 9 | Q53: 3-9 | R53: 1 | Z53: 10-3 | AA53: 8 | AB53: 6.5
A54: 1 | B54: 0 | C54: 49 | D54: 1-0-49 | E54: 5 | F54: 1-0 | G54: 49 | H54: 1 | I54: 5 | J54: 16 | K54: 1-5-16 | L54: 3.5 | O54: 3 | P54: 10 | Q54: 3-10 | R54: 1 | Z54: 10-2 | AA54: 9 | AB54: 6.5
A55: 1 | B55: 0 | C55: 50 | D55: 1-0-50 | E55: 4.5 | F55: 1-0 | G55: 50 | H55: 1 | I55: 5 | J55: 17 | K55: 1-5-17 | L55: 3.5 | O55: 3 | P55: 11 | Q55: 3-11 | R55: 1 | Z55: 11-0 | AA55: 7 | AB55: 6
A56: 1 | B56: 0 | C56: 51 | D56: 1-0-51 | E56: 4.5 | F56: 1-0 | G56: 51 | H56: 1 | I56: 5 | J56: 18 | K56: 1-5-18 | L56: 3.5 | O56: 3 | P56: 12 | Q56: 3-12 | R56: 1 | Z56: 11-5 | AA56: 7.5 | AB56: 6.5
A57: 1 | B57: 0 | C57: 52 | D57: 1-0-52 | E57: 4.5 | F57: 1-0 | G57: 52 | H57: 1 | I57: 5 | J57: 19 | K57: 1-5-19 | L57: 3.5 | O57: 3 | P57: 13 | Q57: 3-13 | R57: 5 | Z57: 11-4 | AA57: 8 | AB57: 6.5
A58: 1 | B58: 0 | C58: 53 | D58: 1-0-53 | E58: 4.5 | F58: 1-0 | G58: 53 | H58: 1 | I58: 5 | J58: 20 | K58: 1-5-20 | L58: 3.5 | O58: 3 | P58: 14 | Q58: 3-14 | R58: 5 | Z58: 11-3 | AA58: 8 | AB58: 6.5
A59: 1 | B59: 0 | C59: 54 | D59: 1-0-54 | E59: 4.5 | F59: 1-0 | G59: 54 | H59: 1 | I59: 5 | J59: 21 | K59: 1-5-21 | L59: 3.5 | O59: 3 | P59: 15 | Q59: 3-15 | R59: 5 | Z59: 11-2 | AA59: 9 | AB59: 6.5
A60: 1 | B60: 0 | C60: 55 | D60: 1-0-55 | E60: 4.5 | F60: 1-0 | G60: 55 | H60: 1 | I60: 5 | J60: 22 | K60: 1-5-22 | L60: 3.5 | O60: 3 | P60: 16 | Q60: 3-16 | R60: 5 | Z60: 12-0 | AA60: 7 | AB60: 6
A61: 1 | B61: 0 | C61: 56 | D61: 1-0-56 | E61: 4.5 | F61: 1-0 | G61: 56 | H61: 1 | I61: 5 | J61: 23 | K61: 1-5-23 | L61: 3.5 | O61: 3 | P61: 17 | Q61: 3-17 | R61: 9 | Z61: 12-5 | AA61: 7.5 | AB61: 6.5
A62: 1 | B62: 0 | C62: 57 | D62: 1-0-57 | E62: 4.5 | F62: 1-0 | G62: 57 | H62: 1 | I62: 5 | J62: 24 | K62: 1-5-24 | L62: 3.5 | O62: 3 | P62: 18 | Q62: 3-18 | R62: 9 | Z62: 12-4 | AA62: 8 | AB62: 6.5
A63: 1 | B63: 0 | C63: 58 | D63: 1-0-58 | E63: 4.5 | F63: 1-0 | G63: 58 | H63: 1 | I63: 5 | J63: 25 | K63: 1-5-25 | L63: 3.5 | O63: 3 | P63: 19 | Q63: 3-19 | R63: 9 | Z63: 12-3 | AA63: 8 | AB63: 6.5
A64: 1 | B64: 0 | C64: 59 | D64: 1-0-59 | E64: 4.5 | F64: 1-0 | G64: 59 | H64: 1 | I64: 5 | J64: 26 | K64: 1-5-26 | L64: 3.5 | O64: 3 | P64: 20 | Q64: 3-20 | R64: 9 | Z64: 12-2 | AA64: 9 | AB64: 6.5
A65: 1 | B65: 0 | C65: 60 | D65: 1-0-60 | E65: 4.5 | F65: 1-0 | G65: 60 | H65: 1 | I65: 5 | J65: 27 | K65: 1-5-27 | L65: 3.5 | O65: 4 | P65: 1 | Q65: =O65&"-"&P65 -> 4-1 | R65: 1 | Z65: 13-0 | AA65: 9 | AB65: 6
A66: 1 | B66: 5 | C66: 0 | D66: 1-5-0 | E66: 100 | F66: 1-5 | G66: 0 | H66: 1 | I66: 5 | J66: 28 | K66: 1-5-28 | L66: 3.5 | O66: 4 | P66: 2 | Q66: 4-2 | R66: 1 | Z66: 13-5 | AA66: 9.5 | AB66: 7.5
A67: 1 | B67: 5 | C67: 1 | D67: 1-5-1 | E67: 100 | F67: 1-5 | G67: 1 | H67: 1 | I67: 5 | J67: 29 | K67: 1-5-29 | L67: 3.5 | O67: 4 | P67: 3 | Q67: 4-3 | R67: 1 | Z67: 13-4 | AA67: 10 | AB67: 8
A68: 1 | B68: 5 | C68: 2 | D68: 1-5-2 | E68: 9 | F68: 1-5 | G68: 2 | H68: 1 | I68: 5 | J68: 30 | K68: 1-5-30 | L68: 3.5 | O68: 4 | P68: 4 | Q68: 4-4 | R68: 1 | Z68: 13-3 | AA68: 10.5 | AB68: 8.5
A69: 1 | B69: 5 | C69: 3 | D69: 1-5-3 | E69: 9 | F69: 1-5 | G69: 3 | H69: 1 | I69: 5 | J69: 31 | K69: 1-5-31 | L69: 3.5 | O69: 4 | P69: 5 | Q69: 4-5 | R69: 1 | Z69: 13-2 | AA69: 11.5 | AB69: 8.5
A70: 1 | B70: 5 | C70: 4 | D70: =A70&"-"&B70&"-"&C70 -> 1-5-4 | E70: 7.5 | F70: =A70&"-"&B70 -> 1-5 | G70: 4 | H70: 1 | I70: 5 | J70: 32 | K70: =H70&"-"&I70&"-"&J70 -> 1-5-32 | L70: 3.5 | O70: 4 | P70: 6 | Q70: 4-6 | R70: 1 | Z70: 14-0 | AA70: 9 | AB70: 6
A71: 1 | B71: 5 | C71: 5 | D71: 1-5-5 | E71: 7.5 | F71: 1-5 | G71: 5 | H71: 1 | I71: 4 | J71: 0 | K71: 1-4-0 | L71: 15 | O71: 4 | P71: 7 | Q71: 4-7 | R71: 1 | Z71: 14-5 | AA71: 9.5 | AB71: 7.5
A72: 1 | B72: 5 | C72: 6 | D72: 1-5-6 | E72: 7.5 | F72: 1-5 | G72: 6 | H72: 1 | I72: 4 | J72: 1 | K72: 1-4-1 | L72: 15 | O72: 4 | P72: 8 | Q72: 4-8 | R72: 1 | Z72: 14-4 | AA72: 10 | AB72: 8
A73: 1 | B73: 5 | C73: 7 | D73: 1-5-7 | E73: 7.5 | F73: 1-5 | G73: 7 | H73: 1 | I73: 4 | J73: 2 | K73: 1-4-2 | L73: 10.5 | O73: 4 | P73: 9 | Q73: 4-9 | R73: 1 | Z73: 14-3 | AA73: 10.5 | AB73: 8.5
A74: 1 | B74: 5 | C74: 8 | D74: 1-5-8 | E74: 7.5 | F74: 1-5 | G74: 8 | H74: 1 | I74: 4 | J74: 3 | K74: 1-4-3 | L74: 10.5 | O74: 4 | P74: 10 | Q74: 4-10 | R74: 1 | Z74: 14-2 | AA74: 11.5 | AB74: 8.5
A75: 1 | B75: 5 | C75: 9 | D75: 1-5-9 | E75: 7.5 | F75: 1-5 | G75: 9 | H75: 1 | I75: 4 | J75: 4 | K75: 1-4-4 | L75: 7 | O75: 4 | P75: 11 | Q75: 4-11 | R75: 1
A76: 1 | B76: 5 | C76: 10 | D76: 1-5-10 | E76: 6 | F76: 1-5 | G76: 10 | H76: 1 | I76: 4 | J76: 5 | K76: 1-4-5 | L76: 7 | O76: 4 | P76: 12 | Q76: 4-12 | R76: 1
A77: 1 | B77: 5 | C77: 11 | D77: 1-5-11 | E77: 6 | F77: 1-5 | G77: 11 | H77: 1 | I77: 4 | J77: 6 | K77: 1-4-6 | L77: 7 | O77: 4 | P77: 13 | Q77: 4-13 | R77: 5
A78: 1 | B78: 5 | C78: 12 | D78: 1-5-12 | E78: 6 | F78: 1-5 | G78: 12 | H78: 1 | I78: 4 | J78: 7 | K78: 1-4-7 | L78: 7 | O78: 4 | P78: 14 | Q78: 4-14 | R78: 5
A79: 1 | B79: 5 | C79: 13 | D79: 1-5-13 | E79: 6 | F79: 1-5 | G79: 13 | H79: 1 | I79: 4 | J79: 8 | K79: 1-4-8 | L79: 7 | O79: 4 | P79: 15 | Q79: 4-15 | R79: 5
A80: 1 | B80: 5 | C80: 14 | D80: 1-5-14 | E80: 6 | F80: 1-5 | G80: 14 | H80: 1 | I80: 4 | J80: 9 | K80: 1-4-9 | L80: 4.5 | O80: 4 | P80: 16 | Q80: 4-16 | R80: 5
A81: 1 | B81: 5 | C81: 15 | D81: 1-5-15 | E81: 6 | F81: 1-5 | G81: 15 | H81: 1 | I81: 4 | J81: 10 | K81: 1-4-10 | L81: 4.5 | O81: 4 | P81: 17 | Q81: 4-17 | R81: 9
A82: 1 | B82: 5 | C82: 16 | D82: 1-5-16 | E82: 6 | F82: 1-5 | G82: 16 | H82: 1 | I82: 4 | J82: 11 | K82: 1-4-11 | L82: 4.5 | O82: 4 | P82: 18 | Q82: 4-18 | R82: 9
A83: 1 | B83: 5 | C83: 17 | D83: 1-5-17 | E83: 6 | F83: 1-5 | G83: 17 | H83: 1 | I83: 4 | J83: 12 | K83: 1-4-12 | L83: 4.5 | O83: 4 | P83: 19 | Q83: 4-19 | R83: 9
A84: 1 | B84: 5 | C84: 18 | D84: 1-5-18 | E84: 6 | F84: 1-5 | G84: 18 | H84: 1 | I84: 4 | J84: 13 | K84: 1-4-13 | L84: 4.5 | O84: 4 | P84: 20 | Q84: 4-20 | R84: 9
A85: 1 | B85: 5 | C85: 19 | D85: 1-5-19 | E85: 6 | F85: 1-5 | G85: 19 | H85: 1 | I85: 4 | J85: 14 | K85: 1-4-14 | L85: 4.5 | O85: 5 | P85: 1 | Q85: =O85&"-"&P85 -> 5-1 | R85: 1
A86: 1 | B86: 5 | C86: 20 | D86: 1-5-20 | E86: 6 | F86: 1-5 | G86: 20 | H86: 1 | I86: 4 | J86: 15 | K86: 1-4-15 | L86: 4.5 | O86: 5 | P86: 2 | Q86: 5-2 | R86: 1
A87: 1 | B87: 5 | C87: 21 | D87: 1-5-21 | E87: 6 | F87: 1-5 | G87: 21 | H87: 1 | I87: 4 | J87: 16 | K87: 1-4-16 | L87: 3.5 | O87: 5 | P87: 3 | Q87: 5-3 | R87: 1
A88: 1 | B88: 5 | C88: 22 | D88: 1-5-22 | E88: 6 | F88: 1-5 | G88: 22 | H88: 1 | I88: 4 | J88: 17 | K88: 1-4-17 | L88: 3.5 | O88: 5 | P88: 4 | Q88: 5-4 | R88: 1
A89: 1 | B89: 5 | C89: 23 | D89: 1-5-23 | E89: 6 | F89: 1-5 | G89: 23 | H89: 1 | I89: 4 | J89: 18 | K89: 1-4-18 | L89: 3.5 | O89: 5 | P89: 5 | Q89: 5-5 | R89: 1
A90: 1 | B90: 5 | C90: 24 | D90: 1-5-24 | E90: 6 | F90: 1-5 | G90: 24 | H90: 1 | I90: 4 | J90: 19 | K90: 1-4-19 | L90: 3.5 | O90: 5 | P90: 6 | Q90: 5-6 | R90: 1
A91: 1 | B91: 5 | C91: 25 | D91: 1-5-25 | E91: 6 | F91: 1-5 | G91: 25 | H91: 1 | I91: 4 | J91: 20 | K91: 1-4-20 | L91: 3.5 | O91: 5 | P91: 7 | Q91: 5-7 | R91: 1
A92: 1 | B92: 5 | C92: 26 | D92: 1-5-26 | E92: 6 | F92: 1-5 | G92: 26 | H92: 1 | I92: 4 | J92: 21 | K92: 1-4-21 | L92: 3.5 | O92: 5 | P92: 8 | Q92: 5-8 | R92: 1
A93: 1 | B93: 5 | C93: 27 | D93: 1-5-27 | E93: 6 | F93: 1-5 | G93: 27 | H93: 1 | I93: 4 | J93: 22 | K93: 1-4-22 | L93: 3.5 | O93: 5 | P93: 9 | Q93: 5-9 | R93: 1
A94: 1 | B94: 5 | C94: 28 | D94: 1-5-28 | E94: 6 | F94: 1-5 | G94: 28 | H94: 1 | I94: 4 | J94: 23 | K94: 1-4-23 | L94: 3.5 | O94: 5 | P94: 10 | Q94: 5-10 | R94: 1
A95: 1 | B95: 5 | C95: 29 | D95: 1-5-29 | E95: 6 | F95: 1-5 | G95: 29 | H95: 1 | I95: 4 | J95: 24 | K95: 1-4-24 | L95: 3.5 | O95: 5 | P95: 11 | Q95: 5-11 | R95: 1
A96: 1 | B96: 5 | C96: 30 | D96: 1-5-30 | E96: 5.5 | F96: 1-5 | G96: 30 | H96: 1 | I96: 4 | J96: 25 | K96: 1-4-25 | L96: 3.5 | O96: 5 | P96: 12 | Q96: 5-12 | R96: 1
A97: 1 | B97: 5 | C97: 31 | D97: 1-5-31 | E97: 5.5 | F97: 1-5 | G97: 31 | H97: 1 | I97: 4 | J97: 26 | K97: 1-4-26 | L97: 3.5 | O97: 5 | P97: 13 | Q97: 5-13 | R97: 5
A98: 1 | B98: 5 | C98: 32 | D98: 1-5-32 | E98: 5.5 | F98: 1-5 | G98: 32 | H98: 1 | I98: 4 | J98: 27 | K98: 1-4-27 | L98: 3.5 | O98: 5 | P98: 14 | Q98: 5-14 | R98: 5
A99: 1 | B99: 5 | C99: 33 | D99: 1-5-33 | E99: 5.5 | F99: 1-5 | G99: 33 | H99: 1 | I99: 4 | J99: 28 | K99: 1-4-28 | L99: 3.5 | O99: 5 | P99: 15 | Q99: 5-15 | R99: 5
A100: 1 | B100: 5 | C100: 34 | D100: 1-5-34 | E100: 5.5 | F100: 1-5 | G100: 34 | H100: 1 | I100: 4 | J100: 29 | K100: 1-4-29 | L100: 3.5 | O100: 5 | P100: 16 | Q100: 5-16 | R100: 5
A101: 1 | B101: 5 | C101: 35 | D101: 1-5-35 | E101: 5.5 | F101: 1-5 | G101: 35 | H101: 1 | I101: 4 | J101: 30 | K101: 1-4-30 | L101: 3.5 | O101: 5 | P101: 17 | Q101: 5-17 | R101: 9
A102: 1 | B102: 5 | C102: 36 | D102: 1-5-36 | E102: 5.5 | F102: 1-5 | G102: 36 | H102: 1 | I102: 4 | J102: 31 | K102: 1-4-31 | L102: 3.5 | O102: 5 | P102: 18 | Q102: 5-18 | R102: 9
A103: 1 | B103: 5 | C103: 37 | D103: 1-5-37 | E103: 5.5 | F103: 1-5 | G103: 37 | H103: 1 | I103: 4 | J103: 32 | K103: 1-4-32 | L103: 3.5 | O103: 5 | P103: 19 | Q103: 5-19 | R103: 9
A104: 1 | B104: 5 | C104: 38 | D104: 1-5-38 | E104: 5.5 | F104: 1-5 | G104: 38 | H104: 1 | I104: 3 | J104: 0 | K104: 1-3-0 | L104: 15 | O104: 5 | P104: 20 | Q104: 5-20 | R104: 9
A105: 1 | B105: 5 | C105: 39 | D105: 1-5-39 | E105: 5.5 | F105: 1-5 | G105: 39 | H105: 1 | I105: 3 | J105: 1 | K105: 1-3-1 | L105: 15 | O105: 6 | P105: 1 | Q105: =O105&"-"&P105 -> 6-1 | R105: 1
A106: 1 | B106: 5 | C106: 40 | D106: 1-5-40 | E106: 5.5 | F106: 1-5 | G106: 40 | H106: 1 | I106: 3 | J106: 2 | K106: 1-3-2 | L106: 11 | O106: 6 | P106: 2 | Q106: 6-2 | R106: 1
A107: 1 | B107: 5 | C107: 41 | D107: 1-5-41 | E107: 5.5 | F107: 1-5 | G107: 41 | H107: 1 | I107: 3 | J107: 3 | K107: 1-3-3 | L107: 11 | O107: 6 | P107: 3 | Q107: 6-3 | R107: 1
A108: 1 | B108: 5 | C108: 42 | D108: 1-5-42 | E108: 5.5 | F108: 1-5 | G108: 42 | H108: 1 | I108: 3 | J108: 4 | K108: 1-3-4 | L108: 7 | O108: 6 | P108: 4 | Q108: 6-4 | R108: 1
A109: 1 | B109: 5 | C109: 43 | D109: 1-5-43 | E109: 5.5 | F109: 1-5 | G109: 43 | H109: 1 | I109: 3 | J109: 5 | K109: 1-3-5 | L109: 7 | O109: 6 | P109: 5 | Q109: 6-5 | R109: 1
A110: 1 | B110: 5 | C110: 44 | D110: 1-5-44 | E110: 5.5 | F110: 1-5 | G110: 44 | H110: 1 | I110: 3 | J110: 6 | K110: 1-3-6 | L110: 7 | O110: 6 | P110: 6 | Q110: 6-6 | R110: 1
A111: 1 | B111: 5 | C111: 45 | D111: 1-5-45 | E111: 5.5 | F111: 1-5 | G111: 45 | H111: 1 | I111: 3 | J111: 7 | K111: 1-3-7 | L111: 7 | O111: 6 | P111: 7 | Q111: 6-7 | R111: 1
A112: 1 | B112: 5 | C112: 46 | D112: 1-5-46 | E112: 5.5 | F112: 1-5 | G112: 46 | H112: 1 | I112: 3 | J112: 8 | K112: 1-3-8 | L112: 7 | O112: 6 | P112: 8 | Q112: 6-8 | R112: 1
A113: 1 | B113: 5 | C113: 47 | D113: 1-5-47 | E113: 5.5 | F113: 1-5 | G113: 47 | H113: 1 | I113: 3 | J113: 9 | K113: 1-3-9 | L113: 4.5 | O113: 6 | P113: 9 | Q113: 6-9 | R113: 1
A114: 1 | B114: 5 | C114: 48 | D114: 1-5-48 | E114: 5.5 | F114: 1-5 | G114: 48 | H114: 1 | I114: 3 | J114: 10 | K114: 1-3-10 | L114: 4.5 | O114: 6 | P114: 10 | Q114: 6-10 | R114: 1
A115: 1 | B115: 5 | C115: 49 | D115: 1-5-49 | E115: 5.5 | F115: 1-5 | G115: 49 | H115: 1 | I115: 3 | J115: 11 | K115: 1-3-11 | L115: 4.5 | O115: 6 | P115: 11 | Q115: 6-11 | R115: 1
A116: 1 | B116: 5 | C116: 50 | D116: 1-5-50 | E116: 5 | F116: 1-5 | G116: 50 | H116: 1 | I116: 3 | J116: 12 | K116: 1-3-12 | L116: 4.5 | O116: 6 | P116: 12 | Q116: 6-12 | R116: 1
A117: 1 | B117: 5 | C117: 51 | D117: 1-5-51 | E117: 5 | F117: 1-5 | G117: 51 | H117: 1 | I117: 3 | J117: 13 | K117: 1-3-13 | L117: 4.5 | O117: 6 | P117: 13 | Q117: 6-13 | R117: 5
A118: 1 | B118: 5 | C118: 52 | D118: 1-5-52 | E118: 5 | F118: 1-5 | G118: 52 | H118: 1 | I118: 3 | J118: 14 | K118: 1-3-14 | L118: 4.5 | O118: 6 | P118: 14 | Q118: 6-14 | R118: 5
A119: 1 | B119: 5 | C119: 53 | D119: 1-5-53 | E119: 5 | F119: 1-5 | G119: 53 | H119: 1 | I119: 3 | J119: 15 | K119: 1-3-15 | L119: 4.5 | O119: 6 | P119: 15 | Q119: 6-15 | R119: 5
A120: 1 | B120: 5 | C120: 54 | D120: 1-5-54 | E120: 5 | F120: 1-5 | G120: 54 | H120: 1 | I120: 3 | J120: 16 | K120: 1-3-16 | L120: 4 | O120: 6 | P120: 16 | Q120: 6-16 | R120: 5
A121: 1 | B121: 5 | C121: 55 | D121: 1-5-55 | E121: 5 | F121: 1-5 | G121: 55 | H121: 1 | I121: 3 | J121: 17 | K121: 1-3-17 | L121: 4 | O121: 6 | P121: 17 | Q121: 6-17 | R121: 9
A122: 1 | B122: 5 | C122: 56 | D122: 1-5-56 | E122: 5 | F122: 1-5 | G122: 56 | H122: 1 | I122: 3 | J122: 18 | K122: 1-3-18 | L122: 4 | O122: 6 | P122: 18 | Q122: 6-18 | R122: 9
A123: 1 | B123: 5 | C123: 57 | D123: 1-5-57 | E123: 5 | F123: 1-5 | G123: 57 | H123: 1 | I123: 3 | J123: 19 | K123: 1-3-19 | L123: 4 | O123: 6 | P123: 19 | Q123: 6-19 | R123: 9
A124: 1 | B124: 5 | C124: 58 | D124: 1-5-58 | E124: 5 | F124: 1-5 | G124: 58 | H124: 1 | I124: 3 | J124: 20 | K124: 1-3-20 | L124: 4 | O124: 6 | P124: 20 | Q124: 6-20 | R124: 9
A125: 1 | B125: 5 | C125: 59 | D125: 1-5-59 | E125: 5 | F125: 1-5 | G125: 59 | H125: 1 | I125: 3 | J125: 21 | K125: 1-3-21 | L125: 4 | O125: 7 | P125: 1 | Q125: =O125&"-"&P125 -> 7-1 | R125: 1
A126: 1 | B126: 5 | C126: 60 | D126: 1-5-60 | E126: 5 | F126: 1-5 | G126: 60 | H126: 1 | I126: 3 | J126: 22 | K126: 1-3-22 | L126: 4 | O126: 7 | P126: 2 | Q126: 7-2 | R126: 1
A127: 1 | B127: 4 | C127: 0 | D127: 1-4-0 | E127: 100 | F127: 1-4 | G127: 0 | H127: 1 | I127: 3 | J127: 23 | K127: 1-3-23 | L127: 4 | O127: 7 | P127: 3 | Q127: 7-3 | R127: 1
A128: 1 | B128: 4 | C128: 1 | D128: 1-4-1 | E128: 100 | F128: 1-4 | G128: 1 | H128: 1 | I128: 3 | J128: 24 | K128: 1-3-24 | L128: 4 | O128: 7 | P128: 4 | Q128: 7-4 | R128: 1
A129: 1 | B129: 4 | C129: 2 | D129: 1-4-2 | E129: 9 | F129: 1-4 | G129: 2 | H129: 1 | I129: 3 | J129: 25 | K129: 1-3-25 | L129: 4 | O129: 7 | P129: 5 | Q129: 7-5 | R129: 1
A130: 1 | B130: 4 | C130: 3 | D130: 1-4-3 | E130: 9 | F130: 1-4 | G130: 3 | H130: 1 | I130: 3 | J130: 26 | K130: 1-3-26 | L130: 4 | O130: 7 | P130: 6 | Q130: 7-6 | R130: 1
A131: 1 | B131: 4 | C131: 4 | D131: 1-4-4 | E131: 7.5 | F131: 1-4 | G131: 4 | H131: 1 | I131: 3 | J131: 27 | K131: 1-3-27 | L131: 4 | O131: 7 | P131: 7 | Q131: 7-7 | R131: 1
A132: 1 | B132: 4 | C132: 5 | D132: 1-4-5 | E132: 7.5 | F132: 1-4 | G132: 5 | H132: 1 | I132: 3 | J132: 28 | K132: 1-3-28 | L132: 4 | O132: 7 | P132: 8 | Q132: 7-8 | R132: 1
A133: 1 | B133: 4 | C133: 6 | D133: 1-4-6 | E133: 7.5 | F133: 1-4 | G133: 6 | H133: 1 | I133: 3 | J133: 29 | K133: 1-3-29 | L133: 4 | O133: 7 | P133: 9 | Q133: 7-9 | R133: 1
A134: 1 | B134: 4 | C134: 7 | D134: =A134&"-"&B134&"-"&C134 -> 1-4-7 | E134: 7.5 | F134: =A134&"-"&B134 -> 1-4 | G134: 7 | H134: 1 | I134: 3 | J134: 30 | K134: =H134&"-"&I134&"-"&J134 -> 1-3-30 | L134: 4 | O134: 7 | P134: 10 | Q134: 7-10 | R134: 1
A135: 1 | B135: 4 | C135: 8 | D135: 1-4-8 | E135: 7.5 | F135: 1-4 | G135: 8 | H135: 1 | I135: 3 | J135: 31 | K135: 1-3-31 | L135: 4 | O135: 7 | P135: 11 | Q135: 7-11 | R135: 1
A136: 1 | B136: 4 | C136: 9 | D136: 1-4-9 | E136: 7.5 | F136: 1-4 | G136: 9 | H136: 1 | I136: 3 | J136: 32 | K136: 1-3-32 | L136: 4 | O136: 7 | P136: 12 | Q136: 7-12 | R136: 1
A137: 1 | B137: 4 | C137: 10 | D137: 1-4-10 | E137: 6.5 | F137: 1-4 | G137: 10 | H137: 1 | I137: 2 | J137: 0 | K137: 1-2-0 | L137: 16 | O137: 7 | P137: 13 | Q137: 7-13 | R137: 5
A138: 1 | B138: 4 | C138: 11 | D138: 1-4-11 | E138: 6.5 | F138: 1-4 | G138: 11 | H138: 1 | I138: 2 | J138: 1 | K138: 1-2-1 | L138: 16 | O138: 7 | P138: 14 | Q138: 7-14 | R138: 5
A139: 1 | B139: 4 | C139: 12 | D139: 1-4-12 | E139: 6.5 | F139: 1-4 | G139: 12 | H139: 1 | I139: 2 | J139: 2 | K139: 1-2-2 | L139: 11.5 | O139: 7 | P139: 15 | Q139: 7-15 | R139: 5
A140: 1 | B140: 4 | C140: 13 | D140: 1-4-13 | E140: 6.5 | F140: 1-4 | G140: 13 | H140: 1 | I140: 2 | J140: 3 | K140: 1-2-3 | L140: 11.5 | O140: 7 | P140: 16 | Q140: 7-16 | R140: 5
A141: 1 | B141: 4 | C141: 14 | D141: 1-4-14 | E141: 6.5 | F141: 1-4 | G141: 14 | H141: 1 | I141: 2 | J141: 4 | K141: 1-2-4 | L141: 7.5 | O141: 7 | P141: 17 | Q141: 7-17 | R141: 9
A142: 1 | B142: 4 | C142: 15 | D142: 1-4-15 | E142: 6.5 | F142: 1-4 | G142: 15 | H142: 1 | I142: 2 | J142: 5 | K142: 1-2-5 | L142: 7.5 | O142: 7 | P142: 18 | Q142: 7-18 | R142: 9
A143: 1 | B143: 4 | C143: 16 | D143: 1-4-16 | E143: 6.5 | F143: 1-4 | G143: 16 | H143: 1 | I143: 2 | J143: 6 | K143: 1-2-6 | L143: 7.5 | O143: 7 | P143: 19 | Q143: 7-19 | R143: 9
A144: 1 | B144: 4 | C144: 17 | D144: 1-4-17 | E144: 6.5 | F144: 1-4 | G144: 17 | H144: 1 | I144: 2 | J144: 7 | K144: 1-2-7 | L144: 7.5 | O144: 7 | P144: 20 | Q144: 7-20 | R144: 9
A145: 1 | B145: 4 | C145: 18 | D145: 1-4-18 | E145: 6.5 | F145: 1-4 | G145: 18 | H145: 1 | I145: 2 | J145: 8 | K145: 1-2-8 | L145: 7.5 | O145: 8 | P145: 1 | Q145: =O145&"-"&P145 -> 8-1 | R145: 1
A146: 1 | B146: 4 | C146: 19 | D146: 1-4-19 | E146: 6.5 | F146: 1-4 | G146: 19 | H146: 1 | I146: 2 | J146: 9 | K146: 1-2-9 | L146: 5 | O146: 8 | P146: 2 | Q146: 8-2 | R146: 1
A147: 1 | B147: 4 | C147: 20 | D147: 1-4-20 | E147: 6 | F147: 1-4 | G147: 20 | H147: 1 | I147: 2 | J147: 10 | K147: 1-2-10 | L147: 5 | O147: 8 | P147: 3 | Q147: 8-3 | R147: 1
A148: 1 | B148: 4 | C148: 21 | D148: 1-4-21 | E148: 6 | F148: 1-4 | G148: 21 | H148: 1 | I148: 2 | J148: 11 | K148: 1-2-11 | L148: 5 | O148: 8 | P148: 4 | Q148: 8-4 | R148: 1
A149: 1 | B149: 4 | C149: 22 | D149: 1-4-22 | E149: 6 | F149: 1-4 | G149: 22 | H149: 1 | I149: 2 | J149: 12 | K149: 1-2-12 | L149: 5 | O149: 8 | P149: 5 | Q149: 8-5 | R149: 1
A150: 1 | B150: 4 | C150: 23 | D150: 1-4-23 | E150: 6 | F150: 1-4 | G150: 23 | H150: 1 | I150: 2 | J150: 13 | K150: 1-2-13 | L150: 5 | O150: 8 | P150: 6 | Q150: 8-6 | R150: 1
A151: 1 | B151: 4 | C151: 24 | D151: 1-4-24 | E151: 6 | F151: 1-4 | G151: 24 | H151: 1 | I151: 2 | J151: 14 | K151: 1-2-14 | L151: 5 | O151: 8 | P151: 7 | Q151: 8-7 | R151: 1
A152: 1 | B152: 4 | C152: 25 | D152: 1-4-25 | E152: 6 | F152: 1-4 | G152: 25 | H152: 1 | I152: 2 | J152: 15 | K152: 1-2-15 | L152: 5 | O152: 8 | P152: 8 | Q152: 8-8 | R152: 1
A153: 1 | B153: 4 | C153: 26 | D153: 1-4-26 | E153: 6 | F153: 1-4 | G153: 26 | H153: 1 | I153: 2 | J153: 16 | K153: 1-2-16 | L153: 3.5 | O153: 8 | P153: 9 | Q153: 8-9 | R153: 1
A154: 1 | B154: 4 | C154: 27 | D154: 1-4-27 | E154: 6 | F154: 1-4 | G154: 27 | H154: 1 | I154: 2 | J154: 17 | K154: 1-2-17 | L154: 3.5 | O154: 8 | P154: 10 | Q154: 8-10 | R154: 1
A155: 1 | B155: 4 | C155: 28 | D155: 1-4-28 | E155: 6 | F155: 1-4 | G155: 28 | H155: 1 | I155: 2 | J155: 18 | K155: 1-2-18 | L155: 3.5 | O155: 8 | P155: 11 | Q155: 8-11 | R155: 1
A156: 1 | B156: 4 | C156: 29 | D156: 1-4-29 | E156: 6 | F156: 1-4 | G156: 29 | H156: 1 | I156: 2 | J156: 19 | K156: 1-2-19 | L156: 3.5 | O156: 8 | P156: 12 | Q156: 8-12 | R156: 1
A157: 1 | B157: 4 | C157: 30 | D157: 1-4-30 | E157: 5.5 | F157: 1-4 | G157: 30 | H157: 1 | I157: 2 | J157: 20 | K157: 1-2-20 | L157: 3.5 | O157: 8 | P157: 13 | Q157: 8-13 | R157: 5
A158: 1 | B158: 4 | C158: 31 | D158: 1-4-31 | E158: 5.5 | F158: 1-4 | G158: 31 | H158: 1 | I158: 2 | J158: 21 | K158: 1-2-21 | L158: 3.5 | O158: 8 | P158: 14 | Q158: 8-14 | R158: 5
A159: 1 | B159: 4 | C159: 32 | D159: 1-4-32 | E159: 5.5 | F159: 1-4 | G159: 32 | H159: 1 | I159: 2 | J159: 22 | K159: 1-2-22 | L159: 3.5 | O159: 8 | P159: 15 | Q159: 8-15 | R159: 5
A160: 1 | B160: 4 | C160: 33 | D160: 1-4-33 | E160: 5.5 | F160: 1-4 | G160: 33 | H160: 1 | I160: 2 | J160: 23 | K160: 1-2-23 | L160: 3.5 | O160: 8 | P160: 16 | Q160: 8-16 | R160: 5
A161: 1 | B161: 4 | C161: 34 | D161: 1-4-34 | E161: 5.5 | F161: 1-4 | G161: 34 | H161: 1 | I161: 2 | J161: 24 | K161: 1-2-24 | L161: 3.5 | O161: 8 | P161: 17 | Q161: 8-17 | R161: 9
A162: 1 | B162: 4 | C162: 35 | D162: 1-4-35 | E162: 5.5 | F162: 1-4 | G162: 35 | H162: 1 | I162: 2 | J162: 25 | K162: 1-2-25 | L162: 3.5 | O162: 8 | P162: 18 | Q162: 8-18 | R162: 9
A163: 1 | B163: 4 | C163: 36 | D163: 1-4-36 | E163: 5.5 | F163: 1-4 | G163: 36 | H163: 1 | I163: 2 | J163: 26 | K163: 1-2-26 | L163: 3.5 | O163: 8 | P163: 19 | Q163: 8-19 | R163: 9
A164: 1 | B164: 4 | C164: 37 | D164: 1-4-37 | E164: 5.5 | F164: 1-4 | G164: 37 | H164: 1 | I164: 2 | J164: 27 | K164: 1-2-27 | L164: 3.5 | O164: 8 | P164: 20 | Q164: 8-20 | R164: 9
A165: 1 | B165: 4 | C165: 38 | D165: 1-4-38 | E165: 5.5 | F165: 1-4 | G165: 38 | H165: 1 | I165: 2 | J165: 28 | K165: 1-2-28 | L165: 3.5 | O165: 9 | P165: 1 | Q165: 9-1 | R165: 2
A166: 1 | B166: 4 | C166: 39 | D166: 1-4-39 | E166: 5.5 | F166: 1-4 | G166: 39 | H166: 1 | I166: 2 | J166: 29 | K166: 1-2-29 | L166: 3.5 | O166: 9 | P166: 2 | Q166: 9-2 | R166: 2
A167: 1 | B167: 4 | C167: 40 | D167: 1-4-40 | E167: 5.5 | F167: 1-4 | G167: 40 | H167: 1 | I167: 2 | J167: 30 | K167: 1-2-30 | L167: 3.5 | O167: 9 | P167: 3 | Q167: 9-3 | R167: 2
A168: 1 | B168: 4 | C168: 41 | D168: 1-4-41 | E168: 5.5 | F168: 1-4 | G168: 41 | H168: 1 | I168: 2 | J168: 31 | K168: 1-2-31 | L168: 3.5 | O168: 9 | P168: 4 | Q168: 9-4 | R168: 2
A169: 1 | B169: 4 | C169: 42 | D169: 1-4-42 | E169: 5.5 | F169: 1-4 | G169: 42 | H169: 1 | I169: 2 | J169: 32 | K169: 1-2-32 | L169: 3.5 | O169: 9 | P169: 5 | Q169: 9-5 | R169: 2
A170: 1 | B170: 4 | C170: 43 | D170: 1-4-43 | E170: 5.5 | F170: 1-4 | G170: 43 | H170: 2 | I170: 0 | J170: 0 | K170: 2-0-0 | L170: 13.5 | O170: 9 | P170: 6 | Q170: 9-6 | R170: 2
A171: 1 | B171: 4 | C171: 44 | D171: 1-4-44 | E171: 5.5 | F171: 1-4 | G171: 44 | H171: 2 | I171: 0 | J171: 1 | K171: 2-0-1 | L171: 13.5 | O171: 9 | P171: 7 | Q171: 9-7 | R171: 2
A172: 1 | B172: 4 | C172: 45 | D172: 1-4-45 | E172: 5.5 | F172: 1-4 | G172: 45 | H172: 2 | I172: 0 | J172: 2 | K172: 2-0-2 | L172: 10 | O172: 9 | P172: 8 | Q172: 9-8 | R172: 2
A173: 1 | B173: 4 | C173: 46 | D173: 1-4-46 | E173: 5.5 | F173: 1-4 | G173: 46 | H173: 2 | I173: 0 | J173: 3 | K173: 2-0-3 | L173: 10 | O173: 9 | P173: 9 | Q173: 9-9 | R173: 2
A174: 1 | B174: 4 | C174: 47 | D174: 1-4-47 | E174: 5.5 | F174: 1-4 | G174: 47 | H174: 2 | I174: 0 | J174: 4 | K174: 2-0-4 | L174: 7 | O174: 9 | P174: 10 | Q174: 9-10 | R174: 2
A175: 1 | B175: 4 | C175: 48 | D175: 1-4-48 | E175: 5.5 | F175: 1-4 | G175: 48 | H175: 2 | I175: 0 | J175: 5 | K175: 2-0-5 | L175: 7 | O175: 9 | P175: 11 | Q175: 9-11 | R175: 6
A176: 1 | B176: 4 | C176: 49 | D176: 1-4-49 | E176: 5.5 | F176: 1-4 | G176: 49 | H176: 2 | I176: 0 | J176: 6 | K176: 2-0-6 | L176: 7 | O176: 9 | P176: 12 | Q176: 9-12 | R176: 6
A177: 1 | B177: 4 | C177: 50 | D177: 1-4-50 | E177: 5 | F177: 1-4 | G177: 50 | H177: 2 | I177: 0 | J177: 7 | K177: 2-0-7 | L177: 7 | O177: 9 | P177: 13 | Q177: 9-13 | R177: 6
A178: 1 | B178: 4 | C178: 51 | D178: 1-4-51 | E178: 5 | F178: 1-4 | G178: 51 | H178: 2 | I178: 0 | J178: 8 | K178: 2-0-8 | L178: 7 | O178: 9 | P178: 14 | Q178: 9-14 | R178: 6
A179: 1 | B179: 4 | C179: 52 | D179: 1-4-52 | E179: 5 | F179: 1-4 | G179: 52 | H179: 2 | I179: 0 | J179: 9 | K179: 2-0-9 | L179: 4 | O179: 9 | P179: 15 | Q179: 9-15 | R179: 10
A180: 1 | B180: 4 | C180: 53 | D180: 1-4-53 | E180: 5 | F180: 1-4 | G180: 53 | H180: 2 | I180: 0 | J180: 10 | K180: 2-0-10 | L180: 4 | O180: 9 | P180: 16 | Q180: 9-16 | R180: 10
A181: 1 | B181: 4 | C181: 54 | D181: 1-4-54 | E181: 5 | F181: 1-4 | G181: 54 | H181: 2 | I181: 0 | J181: 11 | K181: 2-0-11 | L181: 4 | O181: 9 | P181: 17 | Q181: 9-17 | R181: 10
A182: 1 | B182: 4 | C182: 55 | D182: 1-4-55 | E182: 5 | F182: 1-4 | G182: 55 | H182: 2 | I182: 0 | J182: 12 | K182: 2-0-12 | L182: 4 | O182: 9 | P182: 18 | Q182: 9-18 | R182: 10
A183: 1 | B183: 4 | C183: 56 | D183: 1-4-56 | E183: 5 | F183: 1-4 | G183: 56 | H183: 2 | I183: 0 | J183: 13 | K183: 2-0-13 | L183: 4 | O183: 9 | P183: 19 | Q183: 9-19 | R183: 10
A184: 1 | B184: 4 | C184: 57 | D184: 1-4-57 | E184: 5 | F184: 1-4 | G184: 57 | H184: 2 | I184: 0 | J184: 14 | K184: 2-0-14 | L184: 4 | O184: 9 | P184: 20 | Q184: 9-20 | R184: 10
A185: 1 | B185: 4 | C185: 58 | D185: 1-4-58 | E185: 5 | F185: 1-4 | G185: 58 | H185: 2 | I185: 0 | J185: 15 | K185: 2-0-15 | L185: 4 | O185: 10 | P185: 1 | Q185: 10-1 | R185: 2
A186: 1 | B186: 4 | C186: 59 | D186: 1-4-59 | E186: 5 | F186: 1-4 | G186: 59 | H186: 2 | I186: 0 | J186: 16 | K186: 2-0-16 | L186: 3.5 | O186: 10 | P186: 2 | Q186: 10-2 | R186: 2
A187: 1 | B187: 4 | C187: 60 | D187: 1-4-60 | E187: 5 | F187: 1-4 | G187: 60 | H187: 2 | I187: 0 | J187: 17 | K187: 2-0-17 | L187: 3.5 | O187: 10 | P187: 3 | Q187: 10-3 | R187: 2
A188: 1 | B188: 3 | C188: 0 | D188: 1-3-0 | E188: 100 | F188: 1-3 | G188: 0 | H188: 2 | I188: 0 | J188: 18 | K188: 2-0-18 | L188: 3.5 | O188: 10 | P188: 4 | Q188: 10-4 | R188: 2
A189: 1 | B189: 3 | C189: 1 | D189: 1-3-1 | E189: 100 | F189: 1-3 | G189: 1 | H189: 2 | I189: 0 | J189: 19 | K189: 2-0-19 | L189: 3.5 | O189: 10 | P189: 5 | Q189: 10-5 | R189: 2
A190: 1 | B190: 3 | C190: 2 | D190: 1-3-2 | E190: 9 | F190: 1-3 | G190: 2 | H190: 2 | I190: 0 | J190: 20 | K190: 2-0-20 | L190: 3.5 | O190: 10 | P190: 6 | Q190: 10-6 | R190: 2
A191: 1 | B191: 3 | C191: 3 | D191: 1-3-3 | E191: 9 | F191: 1-3 | G191: 3 | H191: 2 | I191: 0 | J191: 21 | K191: 2-0-21 | L191: 3.5 | O191: 10 | P191: 7 | Q191: 10-7 | R191: 2
A192: 1 | B192: 3 | C192: 4 | D192: 1-3-4 | E192: 8 | F192: 1-3 | G192: 4 | H192: 2 | I192: 0 | J192: 22 | K192: 2-0-22 | L192: 3.5 | O192: 10 | P192: 8 | Q192: 10-8 | R192: 2
A193: 1 | B193: 3 | C193: 5 | D193: 1-3-5 | E193: 8 | F193: 1-3 | G193: 5 | H193: 2 | I193: 0 | J193: 23 | K193: 2-0-23 | L193: 3.5 | O193: 10 | P193: 9 | Q193: 10-9 | R193: 2
A194: 1 | B194: 3 | C194: 6 | D194: 1-3-6 | E194: 8 | F194: 1-3 | G194: 6 | H194: 2 | I194: 0 | J194: 24 | K194: 2-0-24 | L194: 3.5 | O194: 10 | P194: 10 | Q194: 10-10 | R194: 2
A195: 1 | B195: 3 | C195: 7 | D195: 1-3-7 | E195: 8 | F195: 1-3 | G195: 7 | H195: 2 | I195: 0 | J195: 25 | K195: 2-0-25 | L195: 3.5 | O195: 10 | P195: 11 | Q195: 10-11 | R195: 6
A196: 1 | B196: 3 | C196: 8 | D196: 1-3-8 | E196: 8 | F196: 1-3 | G196: 8 | H196: 2 | I196: 0 | J196: 26 | K196: 2-0-26 | L196: 3.5 | O196: 10 | P196: 12 | Q196: 10-12 | R196: 6
A197: 1 | B197: 3 | C197: 9 | D197: 1-3-9 | E197: 8 | F197: 1-3 | G197: 9 | H197: 2 | I197: 0 | J197: 27 | K197: 2-0-27 | L197: 3.5 | O197: 10 | P197: 13 | Q197: 10-13 | R197: 6
A198: 1 | B198: 3 | C198: 10 | D198: =A198&"-"&B198&"-"&C198 -> 1-3-10 | E198: 6.5 | F198: =A198&"-"&B198 -> 1-3 | G198: 10 | H198: 2 | I198: 0 | J198: 28 | K198: =H198&"-"&I198&"-"&J198 -> 2-0-28 | L198: 3.5 | O198: 10 | P198: 14 | Q198: 10-14 | R198: 6
A199: 1 | B199: 3 | C199: 11 | D199: 1-3-11 | E199: 6.5 | F199: 1-3 | G199: 11 | H199: 2 | I199: 0 | J199: 29 | K199: 2-0-29 | L199: 3.5 | O199: 10 | P199: 15 | Q199: 10-15 | R199: 10
A200: 1 | B200: 3 | C200: 12 | D200: 1-3-12 | E200: 6.5 | F200: 1-3 | G200: 12 | H200: 2 | I200: 0 | J200: 30 | K200: 2-0-30 | L200: 3.5 | O200: 10 | P200: 16 | Q200: 10-16 | R200: 10
A201: 1 | B201: 3 | C201: 13 | D201: 1-3-13 | E201: 6.5 | F201: 1-3 | G201: 13 | H201: 2 | I201: 0 | J201: 31 | K201: 2-0-31 | L201: 3.5 | O201: 10 | P201: 17 | Q201: 10-17 | R201: 10
A202: 1 | B202: 3 | C202: 14 | D202: 1-3-14 | E202: 6.5 | F202: 1-3 | G202: 14 | H202: 2 | I202: 0 | J202: 32 | K202: 2-0-32 | L202: 3.5 | O202: 10 | P202: 18 | Q202: 10-18 | R202: 10
... 4072 more rows

Sheet Foundation Design
A1: ="Noise Wall ID: " & 'Cover Sheet'!A6:AA6 -> Noise Wall ID: Noise Wall E I 90 Eastbound From Gulf Road to SR 254 | S1: Mid-Point Borings Row No. | T1: =SUMPRODUCT(MAX(($A3:$A93<>"")*(ROW(A3:A93)))) -> 16 | U1: ='Cover Sheet'!G20+2 -> 16 | Z1: =INDIRECT("'Design Data'!A"&'Design Data'!F1) ->  | AA1: B STA>= | AB1: MB STA>= | AC1: MB STA>= | AE1: Mid-Point Borings Row No. | AF1: ='Design Data'!F1 -> 0
A2: Boring ID | B2: Boring STA. (ft) | C2: Mid-Boring STA. (ft) | D2: Boring Elev. (ft) | E2: Shaft Elev. (ft) | F2: Ex. Ground Elev. (ft) | G2: Rock Elev. (ft) | H2: Rock UCS (psi) | I2: Post Spacing (ft) | J2: Barrier Height (ft) | K2: Cross Slope | M2: From DS STA. | N2: To DS STA. | O2: From Post No. | P2: To Post No. | Q2: DS Length (ft) | R2: Bottom of DS Elev. (ft) | S2: 2 | T2: =INDEX('Design Data'!A2:A2000,'Design Data'!F1-1) ->  | Z2: ='Design Data'!A2 -> 0 | AA2: Wend=1,2 | AB2: Wbeg=1,2 | AC2: Wend=1,2 | AE2: 2
A3: B-047-1-23 | B3: 78036 | C3: =IF(A3="","",AVERAGE(B3,B4)) -> 78130.5 | D3: 674.7 | E3: =IF(S3="","",INDIRECT("'Design Data'!E"&AE3)) ->  | G3: 655.7 | I3: =IF(S3="","",MAX(INDIRECT("'Design Data'!D"&S2&":D"&S3))) ->  | J3: =IF(S3="","",MAX(INDIRECT("'Design Data'!C"&S2&":C"&S3))) ->  | L3: =IF(K3="","",IF(OR(K3=0, K3="Level",K3>=8,K3<0.01),"Level",IF(AND(K3<10,K3>5),5,ROUND(K3,0)))) ->  | M3: =U3 ->  | N3: =IF(M3="","",V3) ->  | O3: =IF(A3="","",'Design Data'!B2) -> 0 | P3: =IF(OR(A3="",S3=""),"",INDIRECT("'Design Data'!B"& S3)) ->  | Q3: =IFERROR(IF(A3="","",LOOKUP(2,1/(INDIRECT("'"&A3&"'!A12:J12")<>""),INDIRECT("'"&A3&"'!A12:J12"))),"N/A") -> N/A | R3: =IFERROR(IF(Q3="N/A","",E3-Q3),"") ->  | S3: =IF(A3="","",MATCH(IF(ROW()=$T$8, $Z$1,IF(AC3=1, C3, $Z$1)),'Design Data'!A$2:A$500)+1) ->  | T3: =IF(A3="","",COUNTIF($A$3:$A$85,A3)) -> 1 | U3: =IFERROR(INDEX('Design Data'!$A$2:$A$1000,MATCH(O3,'Design Data'!$B$2:$B$1000,0)),"") ->  | V3: =IFERROR(INDEX('Design Data'!$A$2:$A$1000,MATCH(P3,'Design Data'!$B$2:$B$1000,0)),"") ->  | Z3: =IF(A3="","",IF(B3>=$Z$2,2,1)) -> 2 | AA3: =IF(A3="","",IF(B3>=$Z$1,2,1)) ->  | AB3: =IF(A3="","",IF(C3>=$Z$2,2,1)) -> 2 | AC3: =IF(A3="","",IF(C3>=$Z$1,2,1)) ->  | AE3: =IF(A3="","",IFERROR(MATCH(B3,'Design Data'!A$2:A$500),1)+1) -> 2
A4: B-048-1-23 | B4: 78225 | C4: =IF(A4="","",AVERAGE(B4,B5)) -> 78327 | D4: 676 | E4: =IF(S4="","",INDIRECT("'Design Data'!E"&AE4)) ->  | G4: 654.5 | I4: =IF(S4="","",MAX(INDIRECT("'Design Data'!D"&S3&":D"&S4))) ->  | J4: =IF(S4="","",MAX(INDIRECT("'Design Data'!C"&S3&":C"&S4))) ->  | M4: =U4 ->  | N4: =IF(M4="","",V4) ->  | O4: =IF(A4="","",IF(S4="","",IF(INDIRECT("'Design Data'!B"&S3+1)=0,"",INDIRECT("'Design Data'!B"&S3+1)))) ->  | P4: =IF(OR(A4="",S4="",O4=""),"",IF(A5="",INDIRECT("'Design Data'!B"&$AF$1),INDIRECT("'Design Data'!B"&S4))) ->  | Q4: N/A | R4: =IFERROR(IF(Q4="N/A","",E4-Q4),"") ->  | S4: =IF(A4="","",MATCH(IF(ROW()=$T$8, $Z$1,IF(AC4=1, C4, $Z$1)),'Design Data'!A$2:A$500)+1) ->  | T4: 1 | U4: =IFERROR(INDEX('Design Data'!$A$2:$A$1000,MATCH(O4,'Design Data'!$B$2:$B$1000,0)),"") ->  | V4: =IFERROR(INDEX('Design Data'!$A$2:$A$1000,MATCH(P4,'Design Data'!$B$2:$B$1000,0)),"") ->  | Z4: 2 | AA4: =IF(A4="","",IF(B4>=$Z$1,2,1)) ->  | AB4: 2 | AC4: =IF(A4="","",IF(C4>=$Z$1,2,1)) ->  | AE4: =IF(A4="","",IFERROR(MATCH(B4,'Design Data'!A$2:A$500),1)+1) -> 2
A5: B-048-2-23 | B5: 78429 | C5: 78527 | D5: 678 | O5: =IF(A5="","",IF(S5="","",IF(INDIRECT("'Design Data'!B"&S4+1)=0,"",INDIRECT("'Design Data'!B"&S4+1)))) ->  | P5: =IF(OR(A5="",S5="",O5=""),"",IF(A6="",INDIRECT("'Design Data'!B"&$AF$1),INDIRECT("'Design Data'!B"&S5))) ->  | Q5: N/A | R5: =IFERROR(IF(Q5="N/A","",E5-Q5),"") ->  | S5: =IF(A5="","",MATCH(IF(ROW()=$T$8, $Z$1,IF(AC5=1, C5, $Z$1)),'Design Data'!A$2:A$500)+1) ->  | T5: 1 | U5: =IFERROR(INDEX('Design Data'!$A$2:$A$1000,MATCH(O5,'Design Data'!$B$2:$B$1000,0)),"") ->  | V5: =IFERROR(INDEX('Design Data'!$A$2:$A$1000,MATCH(P5,'Design Data'!$B$2:$B$1000,0)),"") ->  | Z5: 2 | AB5: 2 | AE5: =IF(A5="","",IFERROR(MATCH(B5,'Design Data'!A$2:A$500),1)+1) -> 2
A6: B-049-1-23 | B6: 78625 | C6: 78724.5 | D6: 679.9 | L6: =IF(K6="","",IF(OR(K6=0, K6="Level",K6>=8,K6<0.01),"Level",IF(AND(K6<10,K6>5),5,ROUND(K6,0)))) ->  | Q6: N/A | S6: =IF(A6="","",MATCH(IF(ROW()=$T$8, $Z$1,IF(AC6=1, C6, $Z$1)),'Design Data'!A$2:A$500)+1) ->  | T6: 1 | U6: =IFERROR(INDEX('Design Data'!$A$2:$A$1000,MATCH(O6,'Design Data'!$B$2:$B$1000,0)),"") ->  | V6: =IFERROR(INDEX('Design Data'!$A$2:$A$1000,MATCH(P6,'Design Data'!$B$2:$B$1000,0)),"") ->  | Z6: 2 | AB6: 2 | AE6: =IF(A6="","",IFERROR(MATCH(B6,'Design Data'!A$2:A$500),1)+1) -> 2
A7: B-049-2-23 | B7: 78824 | C7: 78927.5 | D7: 681.7 | L7: =IF(K7="","",IF(OR(K7=0, K7="Level",K7>=8,K7<0.01),"Level",IF(AND(K7<10,K7>5),5,ROUND(K7,0)))) ->  | Q7: N/A | S7: =IF(A7="","",MATCH(IF(ROW()=$T$8, $Z$1,IF(AC7=1, C7, $Z$1)),'Design Data'!A$2:A$500)+1) ->  | T7: 1 | U7: =IFERROR(INDEX('Design Data'!$A$2:$A$1000,MATCH(O7,'Design Data'!$B$2:$B$1000,0)),"") ->  | V7: =IFERROR(INDEX('Design Data'!$A$2:$A$1000,MATCH(P7,'Design Data'!$B$2:$B$1000,0)),"") ->  | Z7: 2 | AB7: 2 | AE7: =IF(A7="","",IFERROR(MATCH(B7,'Design Data'!A$2:A$500),1)+1) -> 2
A8: B-050-1-23 | B8: 79031 | C8: 79129 | D8: 683.6 | Q8: N/A | S8: =IF(A8="","",MATCH(IF(ROW()=$T$8, $Z$1,IF(AC8=1, C8, $Z$1)),'Design Data'!A$2:A$500)+1) ->  | T8: 1 | U8: =IFERROR(INDEX('Design Data'!$A$2:$A$1000,MATCH(O8,'Design Data'!$B$2:$B$1000,0)),"") ->  | V8: =IFERROR(INDEX('Design Data'!$A$2:$A$1000,MATCH(P8,'Design Data'!$B$2:$B$1000,0)),"") ->  | Z8: 2 | AB8: 2 | AE8: =IF(A8="","",IFERROR(MATCH(B8,'Design Data'!A$2:A$500),1)+1) -> 2
A9: B-050-2-23 | B9: 79227 | C9: 79328 | D9: 685.3 | Q9: N/A | S9: =IF(A9="","",MATCH(IF(ROW()=$T$8, $Z$1,IF(AC9=1, C9, $Z$1)),'Design Data'!A$2:A$500)+1) ->  | T9: 1 | U9: =IFERROR(INDEX('Design Data'!$A$2:$A$1000,MATCH(O9,'Design Data'!$B$2:$B$1000,0)),"") ->  | V9: =IFERROR(INDEX('Design Data'!$A$2:$A$1000,MATCH(P9,'Design Data'!$B$2:$B$1000,0)),"") ->  | Z9: 2 | AB9: 2 | AE9: =IF(A9="","",IFERROR(MATCH(B9,'Design Data'!A$2:A$500),1)+1) -> 2
A10: B-051-1-23 | B10: 79429 | C10: 79530.5 | D10: 686.7 | Q10: N/A | S10: =IF(A10="","",MATCH(IF(ROW()=$T$8, $Z$1,IF(AC10=1, C10, $Z$1)),'Design Data'!A$2:A$500)+1) ->  | T10: 1 | U10: =IFERROR(INDEX('Design Data'!$A$2:$A$1000,MATCH(O10,'Design Data'!$B$2:$B$1000,0)),"") ->  | V10: =IFERROR(INDEX('Design Data'!$A$2:$A$1000,MATCH(P10,'Design Data'!$B$2:$B$1000,0)),"") ->  | Z10: 2 | AB10: 2 | AE10: =IF(A10="","",IFERROR(MATCH(B10,'Design Data'!A$2:A$500),1)+1) -> 2
A11: B-051-2-23 | B11: 79632 | C11: 79729.5 | D11: 687.6 | Q11: N/A | S11: =IF(A11="","",MATCH(IF(ROW()=$T$8, $Z$1,IF(AC11=1, C11, $Z$1)),'Design Data'!A$2:A$500)+1) ->  | T11: 1 | U11: =IFERROR(INDEX('Design Data'!$A$2:$A$1000,MATCH(O11,'Design Data'!$B$2:$B$1000,0)),"") ->  | V11: =IFERROR(INDEX('Design Data'!$A$2:$A$1000,MATCH(P11,'Design Data'!$B$2:$B$1000,0)),"") ->  | Z11: 2 | AB11: 2 | AE11: =IF(A11="","",IFERROR(MATCH(B11,'Design Data'!A$2:A$500),1)+1) -> 2
A12: B-052-1-23 | B12: 79827 | C12: 79927.5 | D12: 688.4 | Q12: N/A | S12: =IF(A12="","",MATCH(IF(ROW()=$T$8, $Z$1,IF(AC12=1, C12, $Z$1)),'Design Data'!A$2:A$500)+1) ->  | T12: 1 | U12: =IFERROR(INDEX('Design Data'!$A$2:$A$1000,MATCH(O12,'Design Data'!$B$2:$B$1000,0)),"") ->  | V12: =IFERROR(INDEX('Design Data'!$A$2:$A$1000,MATCH(P12,'Design Data'!$B$2:$B$1000,0)),"") ->  | Z12: 2 | AB12: 2 | AE12: =IF(A12="","",IFERROR(MATCH(B12,'Design Data'!A$2:A$500),1)+1) -> 2
A13: B-052-2-23 | B13: 80028 | C13: 80125.5 | D13: 687.8 | Q13: N/A | S13: =IF(A13="","",MATCH(IF(ROW()=$T$8, $Z$1,IF(AC13=1, C13, $Z$1)),'Design Data'!A$2:A$500)+1) ->  | T13: 1 | U13: =IFERROR(INDEX('Design Data'!$A$2:$A$1000,MATCH(O13,'Design Data'!$B$2:$B$1000,0)),"") ->  | V13: =IFERROR(INDEX('Design Data'!$A$2:$A$1000,MATCH(P13,'Design Data'!$B$2:$B$1000,0)),"") ->  | Z13: 2 | AB13: 2 | AE13: =IF(A13="","",IFERROR(MATCH(B13,'Design Data'!A$2:A$500),1)+1) -> 2
A14: B-053-1-23 | B14: 80223 | C14: 80319 | D14: 686 | Q14: N/A | S14: =IF(A14="","",MATCH(IF(ROW()=$T$8, $Z$1,IF(AC14=1, C14, $Z$1)),'Design Data'!A$2:A$500)+1) ->  | T14: 1 | U14: =IFERROR(INDEX('Design Data'!$A$2:$A$1000,MATCH(O14,'Design Data'!$B$2:$B$1000,0)),"") ->  | V14: =IFERROR(INDEX('Design Data'!$A$2:$A$1000,MATCH(P14,'Design Data'!$B$2:$B$1000,0)),"") ->  | Z14: 2 | AB14: 2 | AE14: =IF(A14="","",IFERROR(MATCH(B14,'Design Data'!A$2:A$500),1)+1) -> 2
A15: B-053-2-23 | B15: 80415 | C15: 80506 | D15: 683.8 | Q15: N/A | S15: =IF(A15="","",MATCH(IF(ROW()=$T$8, $Z$1,IF(AC15=1, C15, $Z$1)),'Design Data'!A$2:A$500)+1) ->  | T15: 1 | U15: =IFERROR(INDEX('Design Data'!$A$2:$A$1000,MATCH(O15,'Design Data'!$B$2:$B$1000,0)),"") ->  | V15: =IFERROR(INDEX('Design Data'!$A$2:$A$1000,MATCH(P15,'Design Data'!$B$2:$B$1000,0)),"") ->  | Z15: 2 | AB15: 2 | AE15: =IF(A15="","",IFERROR(MATCH(B15,'Design Data'!A$2:A$500),1)+1) -> 2
A16: B-054-1-23 | B16: 80597 | C16: 80597 | D16: 681.6 | Q16: N/A | S16: =IF(A16="","",MATCH(IF(ROW()=$T$8, $Z$1,IF(AC16=1, C16, $Z$1)),'Design Data'!A$2:A$500)+1) ->  | T16: 1 | U16: =IFERROR(INDEX('Design Data'!$A$2:$A$1000,MATCH(O16,'Design Data'!$B$2:$B$1000,0)),"") ->  | V16: =IFERROR(INDEX('Design Data'!$A$2:$A$1000,MATCH(P16,'Design Data'!$B$2:$B$1000,0)),"") ->  | Z16: 2 | AB16: 2 | AE16: =IF(A16="","",IFERROR(MATCH(B16,'Design Data'!A$2:A$500),1)+1) -> 2
C17: =IF(A17="","",AVERAGE(B17,B18)) ->  | S17: =IF(A17="","",MATCH(IF(ROW()=$T$8, $Z$1,IF(AC17=1, C17, $Z$1)),'Design Data'!A$2:A$500)+1) ->  | U17: =IFERROR(INDEX('Design Data'!$A$2:$A$1000,MATCH(O17,'Design Data'!$B$2:$B$1000,0)),"") ->  | V17: =IFERROR(INDEX('Design Data'!$A$2:$A$1000,MATCH(P17,'Design Data'!$B$2:$B$1000,0)),"") ->  | AE17: =IF(A17="","",IFERROR(MATCH(B17,'Design Data'!A$2:A$500),1)+1) -> 
Q18: =IFERROR(IF(A18="","",LOOKUP(2,1/(INDIRECT("'"&A18&"'!A12:J12")<>""),INDIRECT("'"&A18&"'!A12:J12"))),"N/A") ->  | S18: =IF(A18="","",MATCH(IF(ROW()=$T$8, $Z$1,IF(AC18=1, C18, $Z$1)),'Design Data'!A$2:A$500)+1) ->  | U18: =IFERROR(INDEX('Design Data'!$A$2:$A$1000,MATCH(O18,'Design Data'!$B$2:$B$1000,0)),"") ->  | V18: =IFERROR(INDEX('Design Data'!$A$2:$A$1000,MATCH(P18,'Design Data'!$B$2:$B$1000,0)),"") ->  | AE18: =IF(A18="","",IFERROR(MATCH(B18,'Design Data'!A$2:A$500),1)+1) -> 
Q19: =IFERROR(IF(A19="","",LOOKUP(2,1/(INDIRECT("'"&A19&"'!A12:J12")<>""),INDIRECT("'"&A19&"'!A12:J12"))),"N/A") ->  | S19: =IF(A19="","",MATCH(IF(ROW()=$T$8, $Z$1,IF(AC19=1, C19, $Z$1)),'Design Data'!A$2:A$500)+1) ->  | U19: =IFERROR(INDEX('Design Data'!$A$2:$A$1000,MATCH(O19,'Design Data'!$B$2:$B$1000,0)),"") ->  | V19: =IFERROR(INDEX('Design Data'!$A$2:$A$1000,MATCH(P19,'Design Data'!$B$2:$B$1000,0)),"") ->  | AE19: =IF(A19="","",IFERROR(MATCH(B19,'Design Data'!A$2:A$500),1)+1) -> 
S20: =IF(A20="","",MATCH(IF(ROW()=$T$8, $Z$1,IF(AC20=1, C20, $Z$1)),'Design Data'!A$2:A$500)+1) ->  | U20: =IFERROR(INDEX('Design Data'!$A$2:$A$1000,MATCH(O20,'Design Data'!$B$2:$B$1000,0)),"") ->  | V20: =IFERROR(INDEX('Design Data'!$A$2:$A$1000,MATCH(P20,'Design Data'!$B$2:$B$1000,0)),"") ->  | AE20: =IF(A20="","",IFERROR(MATCH(B20,'Design Data'!A$2:A$500),1)+1) -> 
S21: =IF(A21="","",MATCH(IF(ROW()=$T$8, $Z$1,IF(AC21=1, C21, $Z$1)),'Design Data'!A$2:A$500)+1) ->  | U21: =IFERROR(INDEX('Design Data'!$A$2:$A$1000,MATCH(O21,'Design Data'!$B$2:$B$1000,0)),"") ->  | V21: =IFERROR(INDEX('Design Data'!$A$2:$A$1000,MATCH(P21,'Design Data'!$B$2:$B$1000,0)),"") ->  | AE21: =IF(A21="","",IFERROR(MATCH(B21,'Design Data'!A$2:A$500),1)+1) -> 
S22: =IF(A22="","",MATCH(IF(ROW()=$T$8, $Z$1,IF(AC22=1, C22, $Z$1)),'Design Data'!A$2:A$500)+1) ->  | U22: =IFERROR(INDEX('Design Data'!$A$2:$A$1000,MATCH(O22,'Design Data'!$B$2:$B$1000,0)),"") ->  | V22: =IFERROR(INDEX('Design Data'!$A$2:$A$1000,MATCH(P22,'Design Data'!$B$2:$B$1000,0)),"") ->  | AE22: =IF(A22="","",IFERROR(MATCH(B22,'Design Data'!A$2:A$500),1)+1) -> 
S23: =IF(A23="","",MATCH(IF(ROW()=$T$8, $Z$1,IF(AC23=1, C23, $Z$1)),'Design Data'!A$2:A$500)+1) ->  | U23: =IFERROR(INDEX('Design Data'!$A$2:$A$1000,MATCH(O23,'Design Data'!$B$2:$B$1000,0)),"") ->  | V23: =IFERROR(INDEX('Design Data'!$A$2:$A$1000,MATCH(P23,'Design Data'!$B$2:$B$1000,0)),"") ->  | AE23: =IF(A23="","",IFERROR(MATCH(B23,'Design Data'!A$2:A$500),1)+1) -> 
S24: =IF(A24="","",MATCH(IF(ROW()=$T$8, $Z$1,IF(AC24=1, C24, $Z$1)),'Design Data'!A$2:A$500)+1) ->  | U24: =IFERROR(INDEX('Design Data'!$A$2:$A$1000,MATCH(O24,'Design Data'!$B$2:$B$1000,0)),"") ->  | V24: =IFERROR(INDEX('Design Data'!$A$2:$A$1000,MATCH(P24,'Design Data'!$B$2:$B$1000,0)),"") ->  | AE24: =IF(A24="","",IFERROR(MATCH(B24,'Design Data'!A$2:A$500),1)+1) -> 
S25: =IF(A25="","",MATCH(IF(ROW()=$T$8, $Z$1,IF(AC25=1, C25, $Z$1)),'Design Data'!A$2:A$500)+1) ->  | U25: =IFERROR(INDEX('Design Data'!$A$2:$A$1000,MATCH(O25,'Design Data'!$B$2:$B$1000,0)),"") ->  | V25: =IFERROR(INDEX('Design Data'!$A$2:$A$1000,MATCH(P25,'Design Data'!$B$2:$B$1000,0)),"") ->  | AE25: =IF(A25="","",IFERROR(MATCH(B25,'Design Data'!A$2:A$500),1)+1) -> 
S26: =IF(A26="","",MATCH(IF(ROW()=$T$8, $Z$1,IF(AC26=1, C26, $Z$1)),'Design Data'!A$2:A$500)+1) ->  | U26: =IFERROR(INDEX('Design Data'!$A$2:$A$1000,MATCH(O26,'Design Data'!$B$2:$B$1000,0)),"") ->  | V26: =IFERROR(INDEX('Design Data'!$A$2:$A$1000,MATCH(P26,'Design Data'!$B$2:$B$1000,0)),"") ->  | AE26: =IF(A26="","",IFERROR(MATCH(B26,'Design Data'!A$2:A$500),1)+1) -> 
S27: =IF(A27="","",MATCH(IF(ROW()=$T$8, $Z$1,IF(AC27=1, C27, $Z$1)),'Design Data'!A$2:A$500)+1) ->  | U27: =IFERROR(INDEX('Design Data'!$A$2:$A$1000,MATCH(O27,'Design Data'!$B$2:$B$1000,0)),"") ->  | V27: =IFERROR(INDEX('Design Data'!$A$2:$A$1000,MATCH(P27,'Design Data'!$B$2:$B$1000,0)),"") ->  | AE27: =IF(A27="","",IFERROR(MATCH(B27,'Design Data'!A$2:A$500),1)+1) -> 
S28: =IF(A28="","",MATCH(IF(ROW()=$T$8, $Z$1,IF(AC28=1, C28, $Z$1)),'Design Data'!A$2:A$500)+1) ->  | U28: =IFERROR(INDEX('Design Data'!$A$2:$A$1000,MATCH(O28,'Design Data'!$B$2:$B$1000,0)),"") ->  | V28: =IFERROR(INDEX('Design Data'!$A$2:$A$1000,MATCH(P28,'Design Data'!$B$2:$B$1000,0)),"") ->  | AE28: =IF(A28="","",IFERROR(MATCH(B28,'Design Data'!A$2:A$500),1)+1) -> 
S29: =IF(A29="","",MATCH(IF(ROW()=$T$8, $Z$1,IF(AC29=1, C29, $Z$1)),'Design Data'!A$2:A$500)+1) ->  | U29: =IFERROR(INDEX('Design Data'!$A$2:$A$1000,MATCH(O29,'Design Data'!$B$2:$B$1000,0)),"") ->  | V29: =IFERROR(INDEX('Design Data'!$A$2:$A$1000,MATCH(P29,'Design Data'!$B$2:$B$1000,0)),"") ->  | AE29: =IF(A29="","",IFERROR(MATCH(B29,'Design Data'!A$2:A$500),1)+1) -> 
S30: =IF(A30="","",MATCH(IF(ROW()=$T$8, $Z$1,IF(AC30=1, C30, $Z$1)),'Design Data'!A$2:A$500)+1) ->  | U30: =IFERROR(INDEX('Design Data'!$A$2:$A$1000,MATCH(O30,'Design Data'!$B$2:$B$1000,0)),"") ->  | V30: =IFERROR(INDEX('Design Data'!$A$2:$A$1000,MATCH(P30,'Design Data'!$B$2:$B$1000,0)),"") ->  | AE30: =IF(A30="","",IFERROR(MATCH(B30,'Design Data'!A$2:A$500),1)+1) -> 
S31: =IF(A31="","",MATCH(IF(ROW()=$T$8, $Z$1,IF(AC31=1, C31, $Z$1)),'Design Data'!A$2:A$500)+1) ->  | U31: =IFERROR(INDEX('Design Data'!$A$2:$A$1000,MATCH(O31,'Design Data'!$B$2:$B$1000,0)),"") ->  | V31: =IFERROR(INDEX('Design Data'!$A$2:$A$1000,MATCH(P31,'Design Data'!$B$2:$B$1000,0)),"") ->  | AE31: =IF(A31="","",IFERROR(MATCH(B31,'Design Data'!A$2:A$500),1)+1) -> 
S32: =IF(A32="","",MATCH(IF(ROW()=$T$8, $Z$1,IF(AC32=1, C32, $Z$1)),'Design Data'!A$2:A$500)+1) ->  | U32: =IFERROR(INDEX('Design Data'!$A$2:$A$1000,MATCH(O32,'Design Data'!$B$2:$B$1000,0)),"") ->  | V32: =IFERROR(INDEX('Design Data'!$A$2:$A$1000,MATCH(P32,'Design Data'!$B$2:$B$1000,0)),"") ->  | AE32: =IF(A32="","",IFERROR(MATCH(B32,'Design Data'!A$2:A$500),1)+1) -> 
S33: =IF(A33="","",MATCH(IF(ROW()=$T$8, $Z$1,IF(AC33=1, C33, $Z$1)),'Design Data'!A$2:A$500)+1) ->  | U33: =IFERROR(INDEX('Design Data'!$A$2:$A$1000,MATCH(O33,'Design Data'!$B$2:$B$1000,0)),"") ->  | V33: =IFERROR(INDEX('Design Data'!$A$2:$A$1000,MATCH(P33,'Design Data'!$B$2:$B$1000,0)),"") ->  | AE33: =IF(A33="","",IFERROR(MATCH(B33,'Design Data'!A$2:A$500),1)+1) -> 
S34: =IF(A34="","",MATCH(IF(ROW()=$T$8, $Z$1,IF(AC34=1, C34, $Z$1)),'Design Data'!A$2:A$500)+1) ->  | U34: =IFERROR(INDEX('Design Data'!$A$2:$A$1000,MATCH(O34,'Design Data'!$B$2:$B$1000,0)),"") ->  | V34: =IFERROR(INDEX('Design Data'!$A$2:$A$1000,MATCH(P34,'Design Data'!$B$2:$B$1000,0)),"") ->  | AE34: =IF(A34="","",IFERROR(MATCH(B34,'Design Data'!A$2:A$500),1)+1) -> 
S35: =IF(A35="","",MATCH(IF(ROW()=$T$8, $Z$1,IF(AC35=1, C35, $Z$1)),'Design Data'!A$2:A$500)+1) ->  | T35: =IF(A35="","",COUNTIF($A$3:$A$85,A35)) ->  | U35: =IFERROR(INDEX('Design Data'!$A$2:$A$1000,MATCH(O35,'Design Data'!$B$2:$B$1000,0)),"") ->  | V35: =IFERROR(INDEX('Design Data'!$A$2:$A$1000,MATCH(P35,'Design Data'!$B$2:$B$1000,0)),"") ->  | Z35: =IF(A35="","",IF(B35>=$Z$2,2,1)) ->  | AB35: =IF(A35="","",IF(C35>=$Z$2,2,1)) ->  | AE35: =IF(A35="","",IFERROR(MATCH(B35,'Design Data'!A$2:A$500),1)+1) -> 
S36: =IF(A36="","",MATCH(IF(ROW()=$T$8, $Z$1,IF(AC36=1, C36, $Z$1)),'Design Data'!A$2:A$500)+1) ->  | U36: =IFERROR(INDEX('Design Data'!$A$2:$A$1000,MATCH(O36,'Design Data'!$B$2:$B$1000,0)),"") ->  | V36: =IFERROR(INDEX('Design Data'!$A$2:$A$1000,MATCH(P36,'Design Data'!$B$2:$B$1000,0)),"") ->  | AE36: =IF(A36="","",IFERROR(MATCH(B36,'Design Data'!A$2:A$500),1)+1) -> 
S37: =IF(A37="","",MATCH(IF(ROW()=$T$8, $Z$1,IF(AC37=1, C37, $Z$1)),'Design Data'!A$2:A$500)+1) ->  | U37: =IFERROR(INDEX('Design Data'!$A$2:$A$1000,MATCH(O37,'Design Data'!$B$2:$B$1000,0)),"") ->  | V37: =IFERROR(INDEX('Design Data'!$A$2:$A$1000,MATCH(P37,'Design Data'!$B$2:$B$1000,0)),"") ->  | AE37: =IF(A37="","",IFERROR(MATCH(B37,'Design Data'!A$2:A$500),1)+1) -> 
S38: =IF(A38="","",MATCH(IF(ROW()=$T$8, $Z$1,IF(AC38=1, C38, $Z$1)),'Design Data'!A$2:A$500)+1) ->  | U38: =IFERROR(INDEX('Design Data'!$A$2:$A$1000,MATCH(O38,'Design Data'!$B$2:$B$1000,0)),"") ->  | V38: =IFERROR(INDEX('Design Data'!$A$2:$A$1000,MATCH(P38,'Design Data'!$B$2:$B$1000,0)),"") ->  | AE38: =IF(A38="","",IFERROR(MATCH(B38,'Design Data'!A$2:A$500),1)+1) -> 
S39: =IF(A39="","",MATCH(IF(ROW()=$T$8, $Z$1,IF(AC39=1, C39, $Z$1)),'Design Data'!A$2:A$500)+1) ->  | U39: =IFERROR(INDEX('Design Data'!$A$2:$A$1000,MATCH(O39,'Design Data'!$B$2:$B$1000,0)),"") ->  | V39: =IFERROR(INDEX('Design Data'!$A$2:$A$1000,MATCH(P39,'Design Data'!$B$2:$B$1000,0)),"") ->  | AE39: =IF(A39="","",IFERROR(MATCH(B39,'Design Data'!A$2:A$500),1)+1) -> 
S40: =IF(A40="","",MATCH(IF(ROW()=$T$8, $Z$1,IF(AC40=1, C40, $Z$1)),'Design Data'!A$2:A$500)+1) ->  | U40: =IFERROR(INDEX('Design Data'!$A$2:$A$1000,MATCH(O40,'Design Data'!$B$2:$B$1000,0)),"") ->  | V40: =IFERROR(INDEX('Design Data'!$A$2:$A$1000,MATCH(P40,'Design Data'!$B$2:$B$1000,0)),"") ->  | AE40: =IF(A40="","",IFERROR(MATCH(B40,'Design Data'!A$2:A$500),1)+1) -> 
S41: =IF(A41="","",MATCH(IF(ROW()=$T$8, $Z$1,IF(AC41=1, C41, $Z$1)),'Design Data'!A$2:A$500)+1) ->  | U41: =IFERROR(INDEX('Design Data'!$A$2:$A$1000,MATCH(O41,'Design Data'!$B$2:$B$1000,0)),"") ->  | V41: =IFERROR(INDEX('Design Data'!$A$2:$A$1000,MATCH(P41,'Design Data'!$B$2:$B$1000,0)),"") ->  | AE41: =IF(A41="","",IFERROR(MATCH(B41,'Design Data'!A$2:A$500),1)+1) -> 
S42: =IF(A42="","",MATCH(IF(ROW()=$T$8, $Z$1,IF(AC42=1, C42, $Z$1)),'Design Data'!A$2:A$500)+1) ->  | U42: =IFERROR(INDEX('Design Data'!$A$2:$A$1000,MATCH(O42,'Design Data'!$B$2:$B$1000,0)),"") ->  | V42: =IFERROR(INDEX('Design Data'!$A$2:$A$1000,MATCH(P42,'Design Data'!$B$2:$B$1000,0)),"") ->  | AE42: =IF(A42="","",IFERROR(MATCH(B42,'Design Data'!A$2:A$500),1)+1) -> 
S43: =IF(A43="","",MATCH(IF(ROW()=$T$8, $Z$1,IF(AC43=1, C43, $Z$1)),'Design Data'!A$2:A$500)+1) ->  | U43: =IFERROR(INDEX('Design Data'!$A$2:$A$1000,MATCH(O43,'Design Data'!$B$2:$B$1000,0)),"") ->  | V43: =IFERROR(INDEX('Design Data'!$A$2:$A$1000,MATCH(P43,'Design Data'!$B$2:$B$1000,0)),"") ->  | AE43: =IF(A43="","",IFERROR(MATCH(B43,'Design Data'!A$2:A$500),1)+1) -> 
S44: =IF(A44="","",MATCH(IF(ROW()=$T$8, $Z$1,IF(AC44=1, C44, $Z$1)),'Design Data'!A$2:A$500)+1) ->  | U44: =IFERROR(INDEX('Design Data'!$A$2:$A$1000,MATCH(O44,'Design Data'!$B$2:$B$1000,0)),"") ->  | V44: =IFERROR(INDEX('Design Data'!$A$2:$A$1000,MATCH(P44,'Design Data'!$B$2:$B$1000,0)),"") ->  | AE44: =IF(A44="","",IFERROR(MATCH(B44,'Design Data'!A$2:A$500),1)+1) -> 
S45: =IF(A45="","",MATCH(IF(ROW()=$T$8, $Z$1,IF(AC45=1, C45, $Z$1)),'Design Data'!A$2:A$500)+1) ->  | U45: =IFERROR(INDEX('Design Data'!$A$2:$A$1000,MATCH(O45,'Design Data'!$B$2:$B$1000,0)),"") ->  | V45: =IFERROR(INDEX('Design Data'!$A$2:$A$1000,MATCH(P45,'Design Data'!$B$2:$B$1000,0)),"") ->  | AE45: =IF(A45="","",IFERROR(MATCH(B45,'Design Data'!A$2:A$500),1)+1) -> 
S46: =IF(A46="","",MATCH(IF(ROW()=$T$8, $Z$1,IF(AC46=1, C46, $Z$1)),'Design Data'!A$2:A$500)+1) ->  | U46: =IFERROR(INDEX('Design Data'!$A$2:$A$1000,MATCH(O46,'Design Data'!$B$2:$B$1000,0)),"") ->  | V46: =IFERROR(INDEX('Design Data'!$A$2:$A$1000,MATCH(P46,'Design Data'!$B$2:$B$1000,0)),"") ->  | AE46: =IF(A46="","",IFERROR(MATCH(B46,'Design Data'!A$2:A$500),1)+1) -> 
S47: =IF(A47="","",MATCH(IF(ROW()=$T$8, $Z$1,IF(AC47=1, C47, $Z$1)),'Design Data'!A$2:A$500)+1) ->  | U47: =IFERROR(INDEX('Design Data'!$A$2:$A$1000,MATCH(O47,'Design Data'!$B$2:$B$1000,0)),"") ->  | V47: =IFERROR(INDEX('Design Data'!$A$2:$A$1000,MATCH(P47,'Design Data'!$B$2:$B$1000,0)),"") ->  | AE47: =IF(A47="","",IFERROR(MATCH(B47,'Design Data'!A$2:A$500),1)+1) -> 
S48: =IF(A48="","",MATCH(IF(ROW()=$T$8, $Z$1,IF(AC48=1, C48, $Z$1)),'Design Data'!A$2:A$500)+1) ->  | U48: =IFERROR(INDEX('Design Data'!$A$2:$A$1000,MATCH(O48,'Design Data'!$B$2:$B$1000,0)),"") ->  | V48: =IFERROR(INDEX('Design Data'!$A$2:$A$1000,MATCH(P48,'Design Data'!$B$2:$B$1000,0)),"") ->  | AE48: =IF(A48="","",IFERROR(MATCH(B48,'Design Data'!A$2:A$500),1)+1) -> 
S49: =IF(A49="","",MATCH(IF(ROW()=$T$8, $Z$1,IF(AC49=1, C49, $Z$1)),'Design Data'!A$2:A$500)+1) ->  | U49: =IFERROR(INDEX('Design Data'!$A$2:$A$1000,MATCH(O49,'Design Data'!$B$2:$B$1000,0)),"") ->  | V49: =IFERROR(INDEX('Design Data'!$A$2:$A$1000,MATCH(P49,'Design Data'!$B$2:$B$1000,0)),"") ->  | AE49: =IF(A49="","",IFERROR(MATCH(B49,'Design Data'!A$2:A$500),1)+1) -> 
S50: =IF(A50="","",MATCH(IF(ROW()=$T$8, $Z$1,IF(AC50=1, C50, $Z$1)),'Design Data'!A$2:A$500)+1) ->  | U50: =IFERROR(INDEX('Design Data'!$A$2:$A$1000,MATCH(O50,'Design Data'!$B$2:$B$1000,0)),"") ->  | V50: =IFERROR(INDEX('Design Data'!$A$2:$A$1000,MATCH(P50,'Design Data'!$B$2:$B$1000,0)),"") ->  | AE50: =IF(A50="","",IFERROR(MATCH(B50,'Design Data'!A$2:A$500),1)+1) -> 
S51: =IF(A51="","",MATCH(IF(ROW()=$T$8, $Z$1,IF(AC51=1, C51, $Z$1)),'Design Data'!A$2:A$500)+1) ->  | U51: =IFERROR(INDEX('Design Data'!$A$2:$A$1000,MATCH(O51,'Design Data'!$B$2:$B$1000,0)),"") ->  | V51: =IFERROR(INDEX('Design Data'!$A$2:$A$1000,MATCH(P51,'Design Data'!$B$2:$B$1000,0)),"") ->  | AE51: =IF(A51="","",IFERROR(MATCH(B51,'Design Data'!A$2:A$500),1)+1) -> 
S52: =IF(A52="","",MATCH(IF(ROW()=$T$8, $Z$1,IF(AC52=1, C52, $Z$1)),'Design Data'!A$2:A$500)+1) ->  | U52: =IFERROR(INDEX('Design Data'!$A$2:$A$1000,MATCH(O52,'Design Data'!$B$2:$B$1000,0)),"") ->  | V52: =IFERROR(INDEX('Design Data'!$A$2:$A$1000,MATCH(P52,'Design Data'!$B$2:$B$1000,0)),"") ->  | AE52: =IF(A52="","",IFERROR(MATCH(B52,'Design Data'!A$2:A$500),1)+1) -> 
S53: =IF(A53="","",MATCH(IF(ROW()=$T$8, $Z$1,IF(AC53=1, C53, $Z$1)),'Design Data'!A$2:A$500)+1) ->  | U53: =IFERROR(INDEX('Design Data'!$A$2:$A$1000,MATCH(O53,'Design Data'!$B$2:$B$1000,0)),"") ->  | V53: =IFERROR(INDEX('Design Data'!$A$2:$A$1000,MATCH(P53,'Design Data'!$B$2:$B$1000,0)),"") ->  | AE53: =IF(A53="","",IFERROR(MATCH(B53,'Design Data'!A$2:A$500),1)+1) -> 
S54: =IF(A54="","",MATCH(IF(ROW()=$T$8, $Z$1,IF(AC54=1, C54, $Z$1)),'Design Data'!A$2:A$500)+1) ->  | U54: =IFERROR(INDEX('Design Data'!$A$2:$A$1000,MATCH(O54,'Design Data'!$B$2:$B$1000,0)),"") ->  | V54: =IFERROR(INDEX('Design Data'!$A$2:$A$1000,MATCH(P54,'Design Data'!$B$2:$B$1000,0)),"") ->  | AE54: =IF(A54="","",IFERROR(MATCH(B54,'Design Data'!A$2:A$500),1)+1) -> 
S55: =IF(A55="","",MATCH(IF(ROW()=$T$8, $Z$1,IF(AC55=1, C55, $Z$1)),'Design Data'!A$2:A$500)+1) ->  | U55: =IFERROR(INDEX('Design Data'!$A$2:$A$1000,MATCH(O55,'Design Data'!$B$2:$B$1000,0)),"") ->  | V55: =IFERROR(INDEX('Design Data'!$A$2:$A$1000,MATCH(P55,'Design Data'!$B$2:$B$1000,0)),"") ->  | AE55: =IF(A55="","",IFERROR(MATCH(B55,'Design Data'!A$2:A$500),1)+1) -> 
S56: =IF(A56="","",MATCH(IF(ROW()=$T$8, $Z$1,IF(AC56=1, C56, $Z$1)),'Design Data'!A$2:A$500)+1) ->  | U56: =IFERROR(INDEX('Design Data'!$A$2:$A$1000,MATCH(O56,'Design Data'!$B$2:$B$1000,0)),"") ->  | V56: =IFERROR(INDEX('Design Data'!$A$2:$A$1000,MATCH(P56,'Design Data'!$B$2:$B$1000,0)),"") ->  | AE56: =IF(A56="","",IFERROR(MATCH(B56,'Design Data'!A$2:A$500),1)+1) -> 
S57: =IF(A57="","",MATCH(IF(ROW()=$T$8, $Z$1,IF(AC57=1, C57, $Z$1)),'Design Data'!A$2:A$500)+1) ->  | U57: =IFERROR(INDEX('Design Data'!$A$2:$A$1000,MATCH(O57,'Design Data'!$B$2:$B$1000,0)),"") ->  | V57: =IFERROR(INDEX('Design Data'!$A$2:$A$1000,MATCH(P57,'Design Data'!$B$2:$B$1000,0)),"") ->  | AE57: =IF(A57="","",IFERROR(MATCH(B57,'Design Data'!A$2:A$500),1)+1) -> 
S58: =IF(A58="","",MATCH(IF(ROW()=$T$8, $Z$1,IF(AC58=1, C58, $Z$1)),'Design Data'!A$2:A$500)+1) ->  | U58: =IFERROR(INDEX('Design Data'!$A$2:$A$1000,MATCH(O58,'Design Data'!$B$2:$B$1000,0)),"") ->  | V58: =IFERROR(INDEX('Design Data'!$A$2:$A$1000,MATCH(P58,'Design Data'!$B$2:$B$1000,0)),"") ->  | AE58: =IF(A58="","",IFERROR(MATCH(B58,'Design Data'!A$2:A$500),1)+1) -> 
S59: =IF(A59="","",MATCH(IF(ROW()=$T$8, $Z$1,IF(AC59=1, C59, $Z$1)),'Design Data'!A$2:A$500)+1) ->  | U59: =IFERROR(INDEX('Design Data'!$A$2:$A$1000,MATCH(O59,'Design Data'!$B$2:$B$1000,0)),"") ->  | V59: =IFERROR(INDEX('Design Data'!$A$2:$A$1000,MATCH(P59,'Design Data'!$B$2:$B$1000,0)),"") ->  | AE59: =IF(A59="","",IFERROR(MATCH(B59,'Design Data'!A$2:A$500),1)+1) -> 
S60: =IF(A60="","",MATCH(IF(ROW()=$T$8, $Z$1,IF(AC60=1, C60, $Z$1)),'Design Data'!A$2:A$500)+1) ->  | U60: =IFERROR(INDEX('Design Data'!$A$2:$A$1000,MATCH(O60,'Design Data'!$B$2:$B$1000,0)),"") ->  | V60: =IFERROR(INDEX('Design Data'!$A$2:$A$1000,MATCH(P60,'Design Data'!$B$2:$B$1000,0)),"") ->  | AE60: =IF(A60="","",IFERROR(MATCH(B60,'Design Data'!A$2:A$500),1)+1) -> 
S61: =IF(A61="","",MATCH(IF(ROW()=$T$8, $Z$1,IF(AC61=1, C61, $Z$1)),'Design Data'!A$2:A$500)+1) ->  | U61: =IFERROR(INDEX('Design Data'!$A$2:$A$1000,MATCH(O61,'Design Data'!$B$2:$B$1000,0)),"") ->  | V61: =IFERROR(INDEX('Design Data'!$A$2:$A$1000,MATCH(P61,'Design Data'!$B$2:$B$1000,0)),"") ->  | AE61: =IF(A61="","",IFERROR(MATCH(B61,'Design Data'!A$2:A$500),1)+1) -> 
S62: =IF(A62="","",MATCH(IF(ROW()=$T$8, $Z$1,IF(AC62=1, C62, $Z$1)),'Design Data'!A$2:A$500)+1) ->  | U62: =IFERROR(INDEX('Design Data'!$A$2:$A$1000,MATCH(O62,'Design Data'!$B$2:$B$1000,0)),"") ->  | V62: =IFERROR(INDEX('Design Data'!$A$2:$A$1000,MATCH(P62,'Design Data'!$B$2:$B$1000,0)),"") ->  | AE62: =IF(A62="","",IFERROR(MATCH(B62,'Design Data'!A$2:A$500),1)+1) -> 
S63: =IF(A63="","",MATCH(IF(ROW()=$T$8, $Z$1,IF(AC63=1, C63, $Z$1)),'Design Data'!A$2:A$500)+1) ->  | U63: =IFERROR(INDEX('Design Data'!$A$2:$A$1000,MATCH(O63,'Design Data'!$B$2:$B$1000,0)),"") ->  | V63: =IFERROR(INDEX('Design Data'!$A$2:$A$1000,MATCH(P63,'Design Data'!$B$2:$B$1000,0)),"") ->  | AE63: =IF(A63="","",IFERROR(MATCH(B63,'Design Data'!A$2:A$500),1)+1) -> 
S64: =IF(A64="","",MATCH(IF(ROW()=$T$8, $Z$1,IF(AC64=1, C64, $Z$1)),'Design Data'!A$2:A$500)+1) ->  | U64: =IFERROR(INDEX('Design Data'!$A$2:$A$1000,MATCH(O64,'Design Data'!$B$2:$B$1000,0)),"") ->  | V64: =IFERROR(INDEX('Design Data'!$A$2:$A$1000,MATCH(P64,'Design Data'!$B$2:$B$1000,0)),"") ->  | AE64: =IF(A64="","",IFERROR(MATCH(B64,'Design Data'!A$2:A$500),1)+1) -> 
S65: =IF(A65="","",MATCH(IF(ROW()=$T$8, $Z$1,IF(AC65=1, C65, $Z$1)),'Design Data'!A$2:A$500)+1) ->  | U65: =IFERROR(INDEX('Design Data'!$A$2:$A$1000,MATCH(O65,'Design Data'!$B$2:$B$1000,0)),"") ->  | V65: =IFERROR(INDEX('Design Data'!$A$2:$A$1000,MATCH(P65,'Design Data'!$B$2:$B$1000,0)),"") ->  | AE65: =IF(A65="","",IFERROR(MATCH(B65,'Design Data'!A$2:A$500),1)+1) -> 
S66: =IF(A66="","",MATCH(IF(ROW()=$T$8, $Z$1,IF(AC66=1, C66, $Z$1)),'Design Data'!A$2:A$500)+1) ->  | U66: =IFERROR(INDEX('Design Data'!$A$2:$A$1000,MATCH(O66,'Design Data'!$B$2:$B$1000,0)),"") ->  | V66: =IFERROR(INDEX('Design Data'!$A$2:$A$1000,MATCH(P66,'Design Data'!$B$2:$B$1000,0)),"") ->  | AE66: =IF(A66="","",IFERROR(MATCH(B66,'Design Data'!A$2:A$500),1)+1) -> 
C67: =IF(A67="","",AVERAGE(B67,B68)) ->  | I67: =IF(S67="","",MAX(INDIRECT("'Design Data'!D"&S66&":D"&S67))) ->  | J67: =IF(S67="","",MAX(INDIRECT("'Design Data'!C"&S66&":C"&S67))) ->  | R67: =IFERROR(IF(Q67="N/A","",E67-Q67),"") ->  | S67: =IF(A67="","",MATCH(IF(ROW()=$T$8, $Z$1,IF(AC67=1, C67, $Z$1)),'Design Data'!A$2:A$500)+1) ->  | T67: =IF(A67="","",COUNTIF($A$3:$A$85,A67)) ->  | U67: =IFERROR(INDEX('Design Data'!$A$2:$A$1000,MATCH(O67,'Design Data'!$B$2:$B$1000,0)),"") ->  | V67: =IFERROR(INDEX('Design Data'!$A$2:$A$1000,MATCH(P67,'Design Data'!$B$2:$B$1000,0)),"") ->  | Z67: =IF(A67="","",IF(B67>=$Z$2,2,1)) ->  | AB67: =IF(A67="","",IF(C67>=$Z$2,2,1)) ->  | AE67: =IF(A67="","",IFERROR(MATCH(B67,'Design Data'!A$2:A$500),1)+1) -> 
E68: =IF(S68="","",INDIRECT("'Design Data'!E"&AE68)) ->  | M68: =U68 ->  | N68: =IF(M68="","",V68) ->  | S68: =IF(A68="","",MATCH(IF(ROW()=$T$8, $Z$1,IF(AC68=1, C68, $Z$1)),'Design Data'!A$2:A$500)+1) ->  | U68: =IFERROR(INDEX('Design Data'!$A$2:$A$1000,MATCH(O68,'Design Data'!$B$2:$B$1000,0)),"") ->  | V68: =IFERROR(INDEX('Design Data'!$A$2:$A$1000,MATCH(P68,'Design Data'!$B$2:$B$1000,0)),"") ->  | AA68: =IF(A68="","",IF(B68>=$Z$1,2,1)) ->  | AC68: =IF(A68="","",IF(C68>=$Z$1,2,1)) ->  | AE68: =IF(A68="","",IFERROR(MATCH(B68,'Design Data'!A$2:A$500),1)+1) -> 
O69: =IF(A69="","",IF(S69="","",IF(INDIRECT("'Design Data'!B"&S68+1)=0,"",INDIRECT("'Design Data'!B"&S68+1)))) ->  | P69: =IF(OR(A69="",S69="",O69=""),"",IF(A70="",INDIRECT("'Design Data'!B"&$AF$1),INDIRECT("'Design Data'!B"&S69))) ->  | S69: =IF(A69="","",MATCH(IF(ROW()=$T$8, $Z$1,IF(AC69=1, C69, $Z$1)),'Design Data'!A$2:A$500)+1) ->  | U69: =IFERROR(INDEX('Design Data'!$A$2:$A$1000,MATCH(O69,'Design Data'!$B$2:$B$1000,0)),"") ->  | V69: =IFERROR(INDEX('Design Data'!$A$2:$A$1000,MATCH(P69,'Design Data'!$B$2:$B$1000,0)),"") ->  | AE69: =IF(A69="","",IFERROR(MATCH(B69,'Design Data'!A$2:A$500),1)+1) -> 
S70: =IF(A70="","",MATCH(IF(ROW()=$T$8, $Z$1,IF(AC70=1, C70, $Z$1)),'Design Data'!A$2:A$500)+1) ->  | U70: =IFERROR(INDEX('Design Data'!$A$2:$A$1000,MATCH(O70,'Design Data'!$B$2:$B$1000,0)),"") ->  | V70: =IFERROR(INDEX('Design Data'!$A$2:$A$1000,MATCH(P70,'Design Data'!$B$2:$B$1000,0)),"") ->  | AE70: =IF(A70="","",IFERROR(MATCH(B70,'Design Data'!A$2:A$500),1)+1) -> 
L71: =IF(K71="","",IF(OR(K71=0, K71="Level",K71>=8,K71<0.01),"Level",IF(AND(K71<10,K71>5),5,ROUND(K71,0)))) ->  | S71: =IF(A71="","",MATCH(IF(ROW()=$T$8, $Z$1,IF(AC71=1, C71, $Z$1)),'Design Data'!A$2:A$500)+1) ->  | U71: =IFERROR(INDEX('Design Data'!$A$2:$A$1000,MATCH(O71,'Design Data'!$B$2:$B$1000,0)),"") ->  | V71: =IFERROR(INDEX('Design Data'!$A$2:$A$1000,MATCH(P71,'Design Data'!$B$2:$B$1000,0)),"") ->  | AE71: =IF(A71="","",IFERROR(MATCH(B71,'Design Data'!A$2:A$500),1)+1) -> 
S72: =IF(A72="","",MATCH(IF(ROW()=$T$8, $Z$1,IF(AC72=1, C72, $Z$1)),'Design Data'!A$2:A$500)+1) ->  | U72: =IFERROR(INDEX('Design Data'!$A$2:$A$1000,MATCH(O72,'Design Data'!$B$2:$B$1000,0)),"") ->  | V72: =IFERROR(INDEX('Design Data'!$A$2:$A$1000,MATCH(P72,'Design Data'!$B$2:$B$1000,0)),"") ->  | AE72: =IF(A72="","",IFERROR(MATCH(B72,'Design Data'!A$2:A$500),1)+1) -> 
S73: =IF(A73="","",MATCH(IF(ROW()=$T$8, $Z$1,IF(AC73=1, C73, $Z$1)),'Design Data'!A$2:A$500)+1) ->  | U73: =IFERROR(INDEX('Design Data'!$A$2:$A$1000,MATCH(O73,'Design Data'!$B$2:$B$1000,0)),"") ->  | V73: =IFERROR(INDEX('Design Data'!$A$2:$A$1000,MATCH(P73,'Design Data'!$B$2:$B$1000,0)),"") ->  | AE73: =IF(A73="","",IFERROR(MATCH(B73,'Design Data'!A$2:A$500),1)+1) -> 
S74: =IF(A74="","",MATCH(IF(ROW()=$T$8, $Z$1,IF(AC74=1, C74, $Z$1)),'Design Data'!A$2:A$500)+1) ->  | U74: =IFERROR(INDEX('Design Data'!$A$2:$A$1000,MATCH(O74,'Design Data'!$B$2:$B$1000,0)),"") ->  | V74: =IFERROR(INDEX('Design Data'!$A$2:$A$1000,MATCH(P74,'Design Data'!$B$2:$B$1000,0)),"") ->  | AE74: =IF(A74="","",IFERROR(MATCH(B74,'Design Data'!A$2:A$500),1)+1) -> 
S75: =IF(A75="","",MATCH(IF(ROW()=$T$8, $Z$1,IF(AC75=1, C75, $Z$1)),'Design Data'!A$2:A$500)+1) ->  | U75: =IFERROR(INDEX('Design Data'!$A$2:$A$1000,MATCH(O75,'Design Data'!$B$2:$B$1000,0)),"") ->  | V75: =IFERROR(INDEX('Design Data'!$A$2:$A$1000,MATCH(P75,'Design Data'!$B$2:$B$1000,0)),"") ->  | AE75: =IF(A75="","",IFERROR(MATCH(B75,'Design Data'!A$2:A$500),1)+1) -> 
S76: =IF(A76="","",MATCH(IF(ROW()=$T$8, $Z$1,IF(AC76=1, C76, $Z$1)),'Design Data'!A$2:A$500)+1) ->  | U76: =IFERROR(INDEX('Design Data'!$A$2:$A$1000,MATCH(O76,'Design Data'!$B$2:$B$1000,0)),"") ->  | V76: =IFERROR(INDEX('Design Data'!$A$2:$A$1000,MATCH(P76,'Design Data'!$B$2:$B$1000,0)),"") ->  | AE76: =IF(A76="","",IFERROR(MATCH(B76,'Design Data'!A$2:A$500),1)+1) -> 
S77: =IF(A77="","",MATCH(IF(ROW()=$T$8, $Z$1,IF(AC77=1, C77, $Z$1)),'Design Data'!A$2:A$500)+1) ->  | U77: =IFERROR(INDEX('Design Data'!$A$2:$A$1000,MATCH(O77,'Design Data'!$B$2:$B$1000,0)),"") ->  | V77: =IFERROR(INDEX('Design Data'!$A$2:$A$1000,MATCH(P77,'Design Data'!$B$2:$B$1000,0)),"") ->  | AE77: =IF(A77="","",IFERROR(MATCH(B77,'Design Data'!A$2:A$500),1)+1) -> 
S78: =IF(A78="","",MATCH(IF(ROW()=$T$8, $Z$1,IF(AC78=1, C78, $Z$1)),'Design Data'!A$2:A$500)+1) ->  | U78: =IFERROR(INDEX('Design Data'!$A$2:$A$1000,MATCH(O78,'Design Data'!$B$2:$B$1000,0)),"") ->  | V78: =IFERROR(INDEX('Design Data'!$A$2:$A$1000,MATCH(P78,'Design Data'!$B$2:$B$1000,0)),"") ->  | AE78: =IF(A78="","",IFERROR(MATCH(B78,'Design Data'!A$2:A$500),1)+1) -> 
S79: =IF(A79="","",MATCH(IF(ROW()=$T$8, $Z$1,IF(AC79=1, C79, $Z$1)),'Design Data'!A$2:A$500)+1) ->  | U79: =IFERROR(INDEX('Design Data'!$A$2:$A$1000,MATCH(O79,'Design Data'!$B$2:$B$1000,0)),"") ->  | V79: =IFERROR(INDEX('Design Data'!$A$2:$A$1000,MATCH(P79,'Design Data'!$B$2:$B$1000,0)),"") ->  | AE79: =IF(A79="","",IFERROR(MATCH(B79,'Design Data'!A$2:A$500),1)+1) -> 
S80: =IF(A80="","",MATCH(IF(ROW()=$T$8, $Z$1,IF(AC80=1, C80, $Z$1)),'Design Data'!A$2:A$500)+1) ->  | U80: =IFERROR(INDEX('Design Data'!$A$2:$A$1000,MATCH(O80,'Design Data'!$B$2:$B$1000,0)),"") ->  | V80: =IFERROR(INDEX('Design Data'!$A$2:$A$1000,MATCH(P80,'Design Data'!$B$2:$B$1000,0)),"") ->  | AE80: =IF(A80="","",IFERROR(MATCH(B80,'Design Data'!A$2:A$500),1)+1) -> 
S81: =IF(A81="","",MATCH(IF(ROW()=$T$8, $Z$1,IF(AC81=1, C81, $Z$1)),'Design Data'!A$2:A$500)+1) ->  | U81: =IFERROR(INDEX('Design Data'!$A$2:$A$1000,MATCH(O81,'Design Data'!$B$2:$B$1000,0)),"") ->  | V81: =IFERROR(INDEX('Design Data'!$A$2:$A$1000,MATCH(P81,'Design Data'!$B$2:$B$1000,0)),"") ->  | AE81: =IF(A81="","",IFERROR(MATCH(B81,'Design Data'!A$2:A$500),1)+1) -> 
S82: =IF(A82="","",MATCH(IF(ROW()=$T$8, $Z$1,IF(AC82=1, C82, $Z$1)),'Design Data'!A$2:A$500)+1) ->  | U82: =IFERROR(INDEX('Design Data'!$A$2:$A$1000,MATCH(O82,'Design Data'!$B$2:$B$1000,0)),"") ->  | V82: =IFERROR(INDEX('Design Data'!$A$2:$A$1000,MATCH(P82,'Design Data'!$B$2:$B$1000,0)),"") ->  | AE82: =IF(A82="","",IFERROR(MATCH(B82,'Design Data'!A$2:A$500),1)+1) -> 
Q83: =IFERROR(IF(A83="","",LOOKUP(2,1/(INDIRECT("'"&A83&"'!A12:J12")<>""),INDIRECT("'"&A83&"'!A12:J12"))),"N/A") ->  | S83: =IF(A83="","",MATCH(IF(ROW()=$T$8, $Z$1,IF(AC83=1, C83, $Z$1)),'Design Data'!A$2:A$500)+1) ->  | U83: =IFERROR(INDEX('Design Data'!$A$2:$A$1000,MATCH(O83,'Design Data'!$B$2:$B$1000,0)),"") ->  | V83: =IFERROR(INDEX('Design Data'!$A$2:$A$1000,MATCH(P83,'Design Data'!$B$2:$B$1000,0)),"") ->  | AE83: =IF(A83="","",IFERROR(MATCH(B83,'Design Data'!A$2:A$500),1)+1) -> 
S84: =IF(A84="","",MATCH(IF(ROW()=$T$8, $Z$1,IF(AC84=1, C84, $Z$1)),'Design Data'!A$2:A$500)+1) ->  | U84: =IFERROR(INDEX('Design Data'!$A$2:$A$1000,MATCH(O84,'Design Data'!$B$2:$B$1000,0)),"") ->  | V84: =IFERROR(INDEX('Design Data'!$A$2:$A$1000,MATCH(P84,'Design Data'!$B$2:$B$1000,0)),"") ->  | AE84: =IF(A84="","",IFERROR(MATCH(B84,'Design Data'!A$2:A$500),1)+1) -> 
S85: =IF(A85="","",MATCH(IF(ROW()=$T$8, $Z$1,IF(AC85=1, C85, $Z$1)),'Design Data'!A$2:A$500)+1) ->  | U85: =IFERROR(INDEX('Design Data'!$A$2:$A$1000,MATCH(O85,'Design Data'!$B$2:$B$1000,0)),"") ->  | V85: =IFERROR(INDEX('Design Data'!$A$2:$A$1000,MATCH(P85,'Design Data'!$B$2:$B$1000,0)),"") ->  | AE85: =IF(A85="","",IFERROR(MATCH(B85,'Design Data'!A$2:A$500),1)+1) -> 
S86: =IF(A86="","",MATCH(IF(ROW()=$T$8, $Z$1,IF(AC86=1, C86, $Z$1)),'Design Data'!A$2:A$500)+1) ->  | U86: =IFERROR(INDEX('Design Data'!$A$2:$A$1000,MATCH(O86,'Design Data'!$B$2:$B$1000,0)),"") ->  | V86: =IFERROR(INDEX('Design Data'!$A$2:$A$1000,MATCH(P86,'Design Data'!$B$2:$B$1000,0)),"") ->  | AA86: =IF(A86="","",IF(B86>=$Z$1,2,1)) ->  | AC86: =IF(A86="","",IF(C86>=$Z$1,2,1)) ->  | AE86: =IF(A86="","",IFERROR(MATCH(B86,'Design Data'!A$2:A$500),1)+1) -> 
S87: =IF(A87="","",MATCH(IF(ROW()=$T$8, $Z$1,IF(AC87=1, C87, $Z$1)),'Design Data'!A$2:A$500)+1) ->  | U87: =IFERROR(INDEX('Design Data'!$A$2:$A$1000,MATCH(O87,'Design Data'!$B$2:$B$1000,0)),"") ->  | V87: =IFERROR(INDEX('Design Data'!$A$2:$A$1000,MATCH(P87,'Design Data'!$B$2:$B$1000,0)),"") ->  | AE87: =IF(A87="","",IFERROR(MATCH(B87,'Design Data'!A$2:A$500),1)+1) -> 
S88: =IF(A88="","",MATCH(IF(ROW()=$T$8, $Z$1,IF(AC88=1, C88, $Z$1)),'Design Data'!A$2:A$500)+1) ->  | U88: =IFERROR(INDEX('Design Data'!$A$2:$A$1000,MATCH(O88,'Design Data'!$B$2:$B$1000,0)),"") ->  | V88: =IFERROR(INDEX('Design Data'!$A$2:$A$1000,MATCH(P88,'Design Data'!$B$2:$B$1000,0)),"") ->  | AE88: =IF(A88="","",IFERROR(MATCH(B88,'Design Data'!A$2:A$500),1)+1) -> 
S89: =IF(A89="","",MATCH(IF(ROW()=$T$8, $Z$1,IF(AC89=1, C89, $Z$1)),'Design Data'!A$2:A$500)+1) ->  | U89: =IFERROR(INDEX('Design Data'!$A$2:$A$1000,MATCH(O89,'Design Data'!$B$2:$B$1000,0)),"") ->  | V89: =IFERROR(INDEX('Design Data'!$A$2:$A$1000,MATCH(P89,'Design Data'!$B$2:$B$1000,0)),"") ->  | AA89: =IF(A89="","",IF(B89>=$Z$1,2,1)) ->  | AC89: =IF(A89="","",IF(C89>=$Z$1,2,1)) ->  | AE89: =IF(A89="","",IFERROR(MATCH(B89,'Design Data'!A$2:A$500),1)+1) -> 
S90: =IF(A90="","",MATCH(IF(ROW()=$T$8, $Z$1,IF(AC90=1, C90, $Z$1)),'Design Data'!A$2:A$500)+1) ->  | T90: =IF(A90="","",COUNTIF($A$3:$A$85,A90)) ->  | U90: =IFERROR(INDEX('Design Data'!$A$2:$A$1000,MATCH(O90,'Design Data'!$B$2:$B$1000,0)),"") ->  | V90: =IFERROR(INDEX('Design Data'!$A$2:$A$1000,MATCH(P90,'Design Data'!$B$2:$B$1000,0)),"") ->  | AA90: =IF(A90="","",IF(B90>=$Z$1,2,1)) ->  | AC90: =IF(A90="","",IF(C90>=$Z$1,2,1)) ->  | AE90: =IF(A90="","",IFERROR(MATCH(B90,'Design Data'!A$2:A$500),1)+1) -> 
S91: =IF(A91="","",MATCH(IF(ROW()=$T$8, $Z$1,IF(AC91=1, C91, $Z$1)),'Design Data'!A$2:A$500)+1) ->  | U91: =IFERROR(INDEX('Design Data'!$A$2:$A$1000,MATCH(O91,'Design Data'!$B$2:$B$1000,0)),"") ->  | V91: =IFERROR(INDEX('Design Data'!$A$2:$A$1000,MATCH(P91,'Design Data'!$B$2:$B$1000,0)),"") ->  | AE91: =IF(A91="","",IFERROR(MATCH(B91,'Design Data'!A$2:A$500),1)+1) -> 
S92: =IF(A92="","",MATCH(IF(ROW()=$T$8, $Z$1,IF(AC92=1, C92, $Z$1)),'Design Data'!A$2:A$500)+1) ->  | U92: =IFERROR(INDEX('Design Data'!$A$2:$A$1000,MATCH(O92,'Design Data'!$B$2:$B$1000,0)),"") ->  | V92: =IFERROR(INDEX('Design Data'!$A$2:$A$1000,MATCH(P92,'Design Data'!$B$2:$B$1000,0)),"") ->  | AE92: =IF(A92="","",IFERROR(MATCH(B92,'Design Data'!A$2:A$500),1)+1) -> 
C93: =IF(A93="","",AVERAGE(B93,B94)) ->  | E93: =IF(S93="","",INDIRECT("'Design Data'!E"&AE93)) ->  | I93: =IF(S93="","",MAX(INDIRECT("'Design Data'!D"&S92&":D"&S93))) ->  | J93: =IF(S93="","",MAX(INDIRECT("'Design Data'!C"&S92&":C"&S93))) ->  | Q93: =IFERROR(IF(A93="","",LOOKUP(2,1/(INDIRECT("'"&A93&"'!A12:J12")<>""),INDIRECT("'"&A93&"'!A12:J12"))),"N/A") ->  | S93: =IF(A93="","",MATCH(IF(ROW()=$T$8, $Z$1,IF(AC93=1, C93, $Z$1)),'Design Data'!A$2:A$500)+1) ->  | T93: =IF(A93="","",COUNTIF($A$3:$A$85,A93)) ->  | U93: =IFERROR(INDEX('Design Data'!$A$2:$A$1000,MATCH(O93,'Design Data'!$B$2:$B$1000,0)),"") ->  | V93: =IFERROR(INDEX('Design Data'!$A$2:$A$1000,MATCH(P93,'Design Data'!$B$2:$B$1000,0)),"") ->  | Z93: =IF(A93="","",IF(B93>=$Z$2,2,1)) ->  | AA93: =IF(A93="","",IF(B93>=$Z$1,2,1)) ->  | AB93: =IF(A93="","",IF(C93>=$Z$2,2,1)) ->  | AC93: =IF(A93="","",IF(C93>=$Z$1,2,1)) ->  | AE93: =IF(A93="","",IFERROR(MATCH(B93,'Design Data'!A$2:A$500),1)+1) -> 

Sheet B-047-1-23
A1: =MID(CELL("filename",A1),FIND("]",CELL("filename", A1))+1,20) -> B-047-1-23 | Q1: 7 | R1: 8 | S1: 9 | T1: 10 | Y1: Properties for Granular Soils | AL1: =ROUNDUP(($F$3-$F$4)/2.5,0) ->  | AM1: =ROUNDUP(($F$3-$F$4)/2.5,0) ->  | AO1: =F2 ->  | AV1: A-1-a | AW1: Granular | AX1: =INDEX('Foundation Depth Table'!AB5:AB119,MATCH(A9,'Foundation Depth Table'!Z5:Z74,0)) ->  | AY1: =IF(B9="","",INDEX('Foundation Depth Table'!$L$5:$L$2314,MATCH(B9,'Foundation Depth Table'!$K$5:$K$2314,0))) ->  | AZ1: =IF(C9="","",INDEX('Foundation Depth Table'!$L$5:$L$2314,MATCH(C9,'Foundation Depth Table'!$K$5:$K$2314,0))) ->  | BA1: =IF(D9="","",INDEX('Foundation Depth Table'!$L$5:$L$2314,MATCH(D9,'Foundation Depth Table'!$K$5:$K$2314,0))) ->  | BB1: =IF(E9="","",INDEX('Foundation Depth Table'!$L$5:$L$2314,MATCH(E9,'Foundation Depth Table'!$K$5:$K$2314,0))) ->  | BC1: =IF(F9="","",INDEX('Foundation Depth Table'!$L$5:$L$2314,MATCH(F9,'Foundation Depth Table'!$K$5:$K$2314,0))) ->  | BD1: =IF(G9="","",INDEX('Foundation Depth Table'!$L$5:$L$2314,MATCH(G9,'Foundation Depth Table'!$K$5:$K$2314,0))) ->  | BE1: =IF(H9="","",INDEX('Foundation Depth Table'!$L$5:$L$2314,MATCH(H9,'Foundation Depth Table'!$K$5:$K$2314,0))) ->  | BF1: =IF(I9="","",INDEX('Foundation Depth Table'!$L$5:$L$2314,MATCH(I9,'Foundation Depth Table'!$K$5:$K$2314,0))) ->  | BG1: =IF(J9="","",INDEX('Foundation Depth Table'!$L$5:$L$2314,MATCH(J9,'Foundation Depth Table'!$K$5:$K$2314,0))) -> 
A2: =MID(CELL("filename",A2),FIND("]",CELL("filename", A2))+1,20) -> B-047-1-23 | C2: =SUMPRODUCT(MAX(($A18:$A42<>"")*(ROW(A18:A42)))) -> 27 | D2: =INDIRECT("C"&C2) -> 651 | E2: =IF(F2=0,"At Grade =",IF(F2>0, "Fill (ft) =", "Cut (ft) =")) -> Fill (ft) = | F2: =IFERROR(ROUND((G5), 2),"") ->  | G2: =IF(H2="","","Rock Elev. (ft)=") -> Rock Elev. (ft)= | H2: =IF(OR(I2=0,I2="",NOT(ISNUMBER(I2))),"",I2) -> 655.7 | I2: =IFERROR(ROUND(INDEX('Foundation Design'!G3:G100,MATCH(A2,'Foundation Design'!A3:A100,0)),2),"") -> 655.7 | S2: Consistency | T2: Properties for Cohesive Soils N60 Range (bpf) | W2: γwet (pcf) | Z2: N60 Range | AC2: γwet | AL2: =IF(AL1=0,"",($F$3-$F$4)-(AL1-1)*2.5) ->  | AM2: =IF(OR(AM1=0,AM1=1),"",($F$3-$F$4)-(AM1-1)*2.5) ->  | AO2: =AO1/2.5 ->  | AV2: A-1-b | AW2: Granular | AX2: =INDEX('Foundation Depth Table'!AA5:AA74,MATCH(A9,'Foundation Depth Table'!Z5:Z74,0)) ->  | AY2: =IF(B9="","",INDEX('Foundation Depth Table'!$E$5:$E$4274,MATCH(B9,'Foundation Depth Table'!$D$5:$D$4274,0))) ->  | AZ2: =IF(C9="","",INDEX('Foundation Depth Table'!$E$5:$E$4274,MATCH(C9,'Foundation Depth Table'!$D$5:$D$4274,0))) ->  | BA2: =IF(D9="","",INDEX('Foundation Depth Table'!$E$5:$E$4274,MATCH(D9,'Foundation Depth Table'!$D$5:$D$4274,0))) ->  | BB2: =IF(E9="","",INDEX('Foundation Depth Table'!$E$5:$E$4274,MATCH(E9,'Foundation Depth Table'!$D$5:$D$4274,0))) ->  | BC2: =IF(F9="","",INDEX('Foundation Depth Table'!$E$5:$E$4274,MATCH(F9,'Foundation Depth Table'!$D$5:$D$4274,0))) ->  | BD2: =IF(G9="","",INDEX('Foundation Depth Table'!$E$5:$E$4274,MATCH(G9,'Foundation Depth Table'!$D$5:$D$4274,0))) ->  | BE2: =IF(H9="","",INDEX('Foundation Depth Table'!$E$5:$E$4274,MATCH(H9,'Foundation Depth Table'!$D$5:$D$4274,0))) ->  | BF2: =IF(I9="","",INDEX('Foundation Depth Table'!$E$5:$E$4274,MATCH(I9,'Foundation Depth Table'!$D$5:$D$4274,0))) ->  | BG2: =IF(J9="","",INDEX('Foundation Depth Table'!$E$5:$E$4274,MATCH(J9,'Foundation Depth Table'!$D$5:$D$4274,0))) -> 
A3: =MATCH(TRUE,INDEX((Q18:Q42<>0),0),0)+17 -> 18 | C3: =F3+ROUNDUP(INDIRECT("C"&C2)/2.5,0) ->  | E3: Shaft Top Elev. (ft) = | F3: =IFERROR(ROUND(INDEX('Foundation Design'!E3:E100,MATCH(A2,'Foundation Design'!A3:A100,0)),2),"") ->  | G3: =IF(H2="","","Rock UCS (psi)=") -> Rock UCS (psi)= | H3: =IF(H2="","",IFERROR(INDEX('Foundation Design'!H3:H100,MATCH(A2,'Foundation Design'!A3:A100,0)),"")) -> 0 | S3: Pudding | T3: 0 | U3: - | V3: 0 | W3: 100 | Y3: Density | Z3: bpf | AC3: pcf | AO3: =ROUNDDOWN(AO2,0) ->  | AV3: A-2-4 | AW3: Granular | AX3: =IFERROR($F$3-AX1,"") ->  | BA3: =IFERROR($F$3-BA1,"") ->  | BB3: =IFERROR($F$3-BB1,"") -> 
A4: =ROUNDUP(G5/2.5,0) ->  | C4: =ROUNDUP((F3-INDIRECT("C"&C2))/2.5,0) ->  | E4: Boring Top Elev. (ft) = | F4: =IFERROR(ROUND(INDEX('Foundation Design'!D3:D100,MATCH(A2,'Foundation Design'!A3:A100,0)),2),"") -> 674.7 | G4: Ex. Ground Elev.= | H4: =IFERROR(ROUND(INDEX('Foundation Design'!F3:F100,MATCH(A2,'Foundation Design'!A3:A100,0)),2),"") -> 0 | S4: Very Soft | T4: 1 | U4: - | V4: 1 | W4: 105 | Y4: Undensified | Z4: 0 | AA4: - | AC4: 110 | AO4: =AO1-2.5*AO3 ->  | AV4: A-2-5 | AW4: Granular | AX4: =$F$3-AX2 ->  | AY4: =$F$3-AY2 -> 
A5: =IF(MOD(F2,2.5)=0,2.5,F2-(A4-1)*2.5) ->  | E5: Post Spacing (ft) = | F5: =IFERROR(ROUND(INDEX('Foundation Design'!I3:I100,MATCH(A1,'Foundation Design'!A3:A100,0)),0),"") ->  | G5: =F3-H4 ->  | H5: =IFERROR(IF(INDIRECT("B"&MATCH(H4,INDIRECT("B18:B"&$C$2),-1))>H4,MATCH(H4,INDIRECT("B18:B"&$C$2),-1)+1,MATCH(H4,INDIRECT("B18:B"&$C$2),-1))+17,"") -> 27 | S5: V.Soft-Soft | T5: 2 | U5: - | V5: 2 | W5: 108 | Y5: Very Loose | Z5: 1 | AA5: - | AB5: 2 | AC5: 115 | AV5: A-2-6 | AW5: Granular | AX5: =IFERROR(MATCH(AX3,INDIRECT("B18:B"&$C$2),-1)+17,"") -> 
A6: =H5-17 -> 10 | E6: Barrier Height (ft) = | F6: =IFERROR(ROUND(INDEX('Foundation Design'!J3:J100,MATCH(A2,'Foundation Design'!A3:A100,0)),0),"") ->  | G6: =F4-H4 -> 674.7 | H6: =IFERROR(IF(INDIRECT("B"&MATCH(F3,INDIRECT("B18:B"&$C$2),-1))>F3,MATCH(F3,INDIRECT("B18:B"&$C$2),-1)+1,MATCH(F3,INDIRECT("B18:B"&$C$2),-1))+17,"") ->  | S6: Soft | T6: 3 | U6: - | V6: 3 | W6: 110 | Y6: V.Loose-Loose | Z6: 3 | AA6: - | AB6: 5 | AC6: 118 | AV6: A-2-7 | AW6: Granular
E7: Transverse Slope = | F7: =IFERROR(INDEX('Foundation Design'!L3:L100,MATCH(A2,'Foundation Design'!A3:A100,0)),"") ->  | G7: =VLOOKUP(H7,'Foundation Depth Table'!Q5:R484,2,) ->  | H7: =F5&"-"&F6 -> - | S7: Soft-M.Stiff | T7: 4 | U7: - | V7: 4 | W7: 112 | Y7: Loose | Z7: 6 | AA7: - | AB7: 8 | AC7: 120 | AV7: A-3 | AW7: Granular | AX7: =IFERROR(COUNTIF(INDIRECT("S18:S"&AX6),"Cohesive"),"") -> 
A8: =IF($H$2="",AX16,AX26) ->  | K8: 2.116216624 | S8: Medium Stiff | T8: 5 | U8: - | V8: 6 | W8: 115 | Y8: Loose-M.Dense | Z8: 9 | AA8: - | AB8: 14 | AC8: 122 | AV8: A-3a | AW8: Granular | AX8: =IFERROR(COUNTIF(INDIRECT("S"&$A$3&":S"&AX6),"Granular"),"") -> 
A9: =IFERROR($G$7&"-"&IF($F$7="Level",0,$F$7),"") ->  | B9: =IFERROR(IF(A16="","",$G$7&"-"&IF($F$7="Level",0,$F$7)&"-"&A$16),"") ->  | C9: =IFERROR(IF(B16="","",$G$7&"-"&IF($F$7="Level",0,$F$7)&"-"&B$16),"") ->  | S9: M.Stiff-Stiff | T9: 7 | U9: - | V9: 9 | W9: 118 | Y9: Medium Dense | Z9: 15 | AA9: - | AB9: 24 | AC9: 125 | AV9: A-4a P | AW9: Cohesive | AX9: =IFERROR(COUNTIF(INDIRECT("S18:S"&AX5),"Cohesive"),"") -> 
A10: Foundation Depth (ft) | S10: Stiff | T10: 10 | U10: - | V10: 13 | W10: 120 | Y10: M.Dense-Dense | Z10: 25 | AA10: - | AB10: 34 | AC10: 128 | AV10: A-4a NP | AW10: Granular | AX10: =IFERROR(COUNTIF(INDIRECT("S18:S"&AX5),"Granular"),"") -> 
A11: Trial 01 | B11: Trial 02 | C11: Trial 03 | D11: Trial 04 | E11: Trial 05 | F11: Trial 06 | G11: Trial 07 | H11: Trial 08 | I11: Trial 09 | J11: Trial 10 | S11: Stiff-V.Stiff | T11: 14 | U11: - | V11: 19 | W11: 122 | Y11: Dense | Z11: 35 | AA11: - | AB11: 44 | AC11: 130 | AV11: A-4b P | AW11: Cohesive | AX11: =IF(AX9>AX10,"C","G") -> G | AY11: =IF(AY9>AY10,"C","G") -> G | AZ11: G | BA11: G | BB11: G | BC11: G | BD11: G | BE11: G | BF11: G | BG11: G
A12: =IFERROR(IF(OR(A8="",A8=100),"N/A",A8),"N/A") -> N/A | B12: =IFERROR(IF(B8="","",IF(B8=100,"N/A",B8)),"N/A") ->  | C12: =IFERROR(IF(C8="","",IF(C8=100,"N/A",C8)),"N/A") ->  | S12: Very Stiff | T12: 20 | U12: - | V12: 27 | W12: 125 | Y12: Dense-V.Dense | Z12: 45 | AA12: - | AB12: 54 | AC12: 132 | AV12: A-4b NP | AW12: Granular | AX12: =IF(AX11="C",AX1,AX2) ->  | AY12: =IF(AY11="C",AY1,AY2) -> 
A13: =IFERROR($F$3-A12,"") ->  | B13: =IFERROR($F$3-B12,"") ->  | S13: V.Stiff-Hard | T13: 28 | U13: - | V13: 35 | W13: 128 | Y13: Very Dense | Z13: 55 | AA13: - | AB13: 64 | AC13: 135 | AV13: A-5 | AW13: Cohesive | AX13: =IF(AX11="C",AX9,AX7) ->  | AY13: =IF(COUNTIF($AX12:AY12,AY12)>1,"",IF(AY11="C",AY9,AY7)) ->  | AZ13: =IF(COUNTIF($AX12:AZ12,AZ12)>1,"",IF(AZ11="C",AZ9,AZ7)) ->  | BA13: =IF(COUNTIF($AX12:BA12,BA12)>1,"",IF(BA11="C",BA9,BA7)) ->  | BB13: =IF(COUNTIF($AX12:BB12,BB12)>1,"",IF(BB11="C",BB9,BB7)) ->  | BC13: =IF(COUNTIF($AX12:BC12,BC12)>1,"",IF(BC11="C",BC9,BC7)) ->  | BD13: =IF(COUNTIF($AX12:BD12,BD12)>1,"",IF(BD11="C",BD9,BD7)) ->  | BE13: =IF(COUNTIF($AX12:BE12,BE12)>1,"",IF(BE11="C",BE9,BE7)) ->  | BF13: =IF(COUNTIF($AX12:BF12,BF12)>1,"",IF(BF11="C",BF9,BF7)) ->  | BG13: =IF(COUNTIF($AX12:BG12,BG12)>1,"",IF(BG11="C",BG9,BG7)) -> 
A14: =AX13 ->  | B14: =AY13 ->  | S14: Hard | T14: 36 | U14: - | V14: 43 | W14: 130 | Y14: Fully Dense | Z14: 65 | AA14: + | AC14: 140 | AV14: A-6a | AW14: Cohesive | AX14: =IF(AX11="C",AX10,AX8) ->  | AY14: =IF(COUNTIF($AX12:AY12,AY12)>1,"",IF(AY11="C",AY10,AY8)) ->  | AZ14: =IF(COUNTIF($AX12:AZ12,AZ12)>1,"",IF(AZ11="C",AZ10,AZ8)) ->  | BA14: =IF(COUNTIF($AX12:BA12,BA12)>1,"",IF(BA11="C",BA10,BA8)) ->  | BB14: =IF(COUNTIF($AX12:BB12,BB12)>1,"",IF(BB11="C",BB10,BB8)) ->  | BC14: =IF(COUNTIF($AX12:BC12,BC12)>1,"",IF(BC11="C",BC10,BC8)) ->  | BD14: =IF(COUNTIF($AX12:BD12,BD12)>1,"",IF(BD11="C",BD10,BD8)) ->  | BE14: =IF(COUNTIF($AX12:BE12,BE12)>1,"",IF(BE11="C",BE10,BE8)) ->  | BF14: =IF(COUNTIF($AX12:BF12,BF12)>1,"",IF(BF11="C",BF10,BF8)) ->  | BG14: =IF(COUNTIF($AX12:BG12,BG12)>1,"",IF(BG11="C",BG10,BG8)) -> 
A15: =AX14 ->  | S15: Hard-V.Hard | T15: 44 | U15: - | V15: 51 | W15: 135 | AV15: A-6b | AW15: Cohesive | AX15: =IFERROR(IF(AX11="C",CORREL(INDIRECT("Q" & $A$3 &":Q"&AX5),INDIRECT("R" & $A$3 &":R"&AX5)),CORREL(INDIRECT("Q" & $A$3 &":Q"&AX6),INDIRECT("R" & $A$3 &":R"&AX6))),0) -> 0 | AY15: =IF(AY14="","",IFERROR(IF(AY11="C",CORREL(INDIRECT("Q" & $A$3 &":Q"&AY5),INDIRECT("R" & $A$3 &":R"&AY5)),CORREL(INDIRECT("Q" & $A$3 &":Q"&AY6),INDIRECT("R" & $A$3 &":R"&AY6))),0)) ->  | AZ15: =IF(AZ14="","",IFERROR(IF(AZ11="C",CORREL(INDIRECT("Q" & $A$3 &":Q"&AZ5),INDIRECT("R" & $A$3 &":R"&AZ5)),CORREL(INDIRECT("Q" & $A$3 &":Q"&AZ6),INDIRECT("R" & $A$3 &":R"&AZ6))),0)) -> 
A16: =IF(A15="","",ROUND(IF(AX15<0.75,MIN(INDIRECT("R18:R"&AX17)),AVERAGE(INDIRECT("R18:R"&AX17))),0)) ->  | S16: Very Hard | T16: 52 | U16: + | W16: 140 | AV16: A-7-5 | AW16: Cohesive | AX16: =AX12 ->  | AY16: =IF(COUNTIF($AX12:AY12,AY12)>1,"",AY12) ->  | AZ16: =IF(COUNTIF($AX12:AZ12,AZ12)>1,"",AZ12) ->  | BA16: =IF(COUNTIF($AX12:BA12,BA12)>1,"",BA12) ->  | BB16: =IF(COUNTIF($AX12:BB12,BB12)>1,"",BB12) ->  | BC16: =IF(COUNTIF($AX12:BC12,BC12)>1,"",BC12) ->  | BD16: =IF(COUNTIF($AX12:BD12,BD12)>1,"",BD12) ->  | BE16: =IF(COUNTIF($AX12:BE12,BE12)>1,"",BE12) ->  | BF16: =IF(COUNTIF($AX12:BF12,BF12)>1,"",BF12) ->  | BG16: =IF(COUNTIF($AX12:BG12,BG12)>1,"",BG12) -> 
A17: Layer No. | B17: Top Elev. (ft) | C17: Bottom Elev. (ft) | D17: Layer Depth (ft) | E17: Soil Class | F17: Soil Type | G17: N60 (bpf) | H17: CN | I17: N160 (bpf) | J17: Adj. N160 (bpf) | L17: γtot. (pcf) | M17: γsat. (pcf) | N17: γ′ (eff.) (pcf) | O17: σv (psf) | P17: σ′v (psf) | Q17: Depth Cut Fill (ft) | R17: N60 Cut Fill (bpf) | S17: Soil Class | T17: B=Ex G Depth Level | U17: B=Ex G N60 Level | V17: Soil Type | W17: B=Ex G Depth Fill | X17: B=Ex G N60 Fill | Y17: Soil Type | Z17: B=Ex G Depth Cut | AA17: B=Ex G N60 Cut | AB17: Soil Type | AC17: B>Ex G Depth Level | AD17: B>Ex G N60 Level | AE17: Soil Type | AF17: B>Ex G Depth Fill | AG17: B>Ex G N60 Fill | AH17: Soil Type | AI17: B>Ex G Depth Cut | AJ17: B>Ex G N60 Cut | AK17: Soil Type | AL17: B<Ex G Depth Level | AM17: B<Ex G N60 Level | AN17: Soil Type | AO17: B<Ex G Depth Fill | AP17: B<Ex G N60 Fill | AQ17: Soil Type | AR17: B<Ex G Depth Cut | AS17: B<Ex G N60 Cut | AT17: Soil Type | AV17: A-7-6 | AW17: Cohesive | AX17: =IF(AX16<>"",IF(AX11="C",AX5,AX6),"") ->  | AY17: =IF(AY16<>"",IF(AY11="C",AY5,AY6),"") -> 
A18: =IF(D18="","",ROW()-17) -> 1 | B18: =IF(A18="","",$F$4) -> 674.7 | C18: =IFERROR(IF(D18="","",$B$18-D18),"") -> 671.7 | D18: 3 | E18: A-6a | F18: =_xlfn.IFNA(INDEX($AW$1:$AW$21,MATCH($E18,$AV$1:$AV$21,0)),"") -> Cohesive | G18: 14 | H18: =IFERROR(IF($E18="","",IF(0.77*LOG(40/(P18/1000))>2,2,(0.77*LOG(40/(P18/1000))))),"") -> 2 | I18: =IF(OR($E18="",H18="",E18="Rock"),"",IF(F18="Cohesive",G18,G18*H18)) -> 14 | J18: =IF(OR(F18="",I18=""),"",IF(F18="Cohesive",IF(G18>32,32,ROUND(G18,0)),IF(F18="Granular",IF(I18>60,60,ROUND(I18,0))))) -> 14 | L18: =IF(OR($E18="Rock",$E18=""),"",IF(F18="Cohesive",INDIRECT("W"&MATCH(G18,$T$3:$T$16)+2),INDIRECT("AC"&MATCH(G18,$Z$4:$Z$14)+3))) -> 122 | M18: =IF(OR($E18="Rock",$E18=""),"",IF(L18>0,L18-62.4,"")) -> 59.6 | N18: =IFERROR(IF($E18="","",IF($F$4<C18,L18,IF(B18<$F$4,M18,(((B18-$F$4)*L18)+(($F$4-C18)*M18))/(B18-C18)))),"") -> 59.6 | O18: =IFERROR(IF($E18="","",((B18-C18))*N18),"") -> 178.8 | P18: =IFERROR(IF($E18="","",O18/2),"") -> 89.4 | Q18: =IFERROR(IF(AND(T18="",W18="",Z18="",AC18="",AF18="",AI18="",AL18="",AO18="",AR18=""),"",MAX(T18,W18,Z18,AC18,AF18,AI18,AL18,AO18,AR18)),"") ->  | R18: 20 | S18: =IFERROR(V18&Y18&AB18&AE18&AH18&AK18&AN18&AQ18&AT18,"") -> Cohesive | T18: =IF($G$6=0,IF(AND(A18<>"",$F$2=0),D18, ""),"") ->  | U18: =IF(T18="","",J18) ->  | V18: =IF(T18="","",F18) ->  | W18: =IF($G$6=0,IF(AND(A18<>"",$F$2>0),A5, ""),"") ->  | X18: =IF(W18="","",IF(ROW()<$H$5+$A$4,20,INDIRECT("J"&ROW()-$A$4))) ->  | Y18: =IF(W18="","",IF(ROW()<$H$5+$A$4,"Cohesive",INDIRECT("F"&ROW()-$A$4))) ->  | Z18: =IF($G$6=0,IF(AND(A18<>"",$F$2<0),IF($F$3-C18<=0,"",$F$3-C18), ""),"") ->  | AA18: =IF($G$6=0,IF(AND(A18<>"",$F$2<0),IF($F$3-C18<=0,"",J18), ""),"") ->  | AB18: =IF($G$6=0,IF(AND(A18<>"",$F$2<0),IF($F$3-C18<=0,"",F18), ""),"") ->  | AC18: =IF($G$6>0,IF(AND(A18<>"",$F$2=0),IF($F$3-C18<=0,"",$F$3-C18), ""),"") ->  | AD18: =IF(AC18="","",J18) ->  | AE18: =IF(AC18="","",F18) ->  | AF18: =IF($G$6>0,IF(AND(A18<>"",$F$2>0),A5, ""),"") ->  | AG18: =IF($G$6>0,IF(AND(A18<>"",$F$2>0),20, ""),"") -> 20 | AH18: =IF($G$6>0,IF(AND(A18<>"",$F$2>0),"Cohesive", ""),"") -> Cohesive | AI18: =IF($G$6>0,IF(AND(A18<>"",$F$2<0),IF($F$3-C18<=0,"",$F$3-C18), ""),"") ->  | AJ18: =IF(AI18="","",J18) ->  | AK18: =IF(AI18="","",F18) ->  | AL18: =IF($G$6<0,IF($F$2=0,AL2, ""),"") ->  | AM18: =IF(AL18<>"",J18,"") ->  | AN18: =IF(AM18<>"",F18,"") ->  | AO18: =IF($G$6<0,IF($F$2>0,A5, ""),"") ->  | AP18: =IF(AO18="", "",20) ->  | AQ18: =IF(AO18="", "","Cohesive") ->  | AR18: =IF(AND($F$2<0,$G$6<0),IF($F$2<0,IF(ROW()<$H$6,IF($F$3-C18<=0,"",$F$3-C18),IF(ROW()=$H$6,$F$3-INDIRECT("C"&$H$6)))),"") ->  | AS18: =IF($G$6<0,IF($F$2<0,IF(ROW()<$H$6,IF($F$3-C18<=0,"",J18),IF(ROW()=$H$6,INDIRECT("J"&$H$6))),""),"") ->  | AT18: =IF($G$6<0,IF($F$2<0,IF(ROW()<$H$6,IF($F$3-C18<=0,"",F18),IF(ROW()=$H$6,INDIRECT("F"&$H$6))),""),"") ->  | AV18: A-8a NP | AW18: Granular | AX18: =IF(AX16<>"",IF(AX11="C",AX3,AX4),"") ->  | AY18: =IF(AY16<>"",IF(AY11="C",AY3,AY4),"") -> 
A19: =IF(D19="","",ROW()-17) -> 2 | B19: =IF(D19="","",C18) -> 671.7 | C19: =IFERROR(IF(D19="","",$B$18-D19),"") -> 669.2 | D19: 5.5 | E19: A-6a | F19: Cohesive | G19: 11 | H19: =IFERROR(IF($E19="","",IF((0.77*LOG(40/(P19/1000)))>2,2,(0.77*LOG(40/(P19/1000))))),"") -> 1.696103994 | I19: =IF(OR($E19="",H19="",E19="Rock"),"",IF(F19="Cohesive",G19,G19*H19)) -> 11 | J19: =IF(OR(F19="",I19=""),"",IF(F19="Cohesive",IF(G19>32,32,ROUND(G19,0)),IF(F19="Granular",IF(I19>60,60,ROUND(I19,0))))) -> 11 | L19: =IF(OR($E19="Rock",$E19=""),"",IF(F19="Cohesive",INDIRECT("W"&MATCH(G19,$T$3:$T$16)+2),INDIRECT("AC"&MATCH(G19,$Z$4:$Z$14)+3))) -> 120 | M19: =IF(OR($E19="Rock",$E19=""),"",IF(L19>0,L19-62.4,"")) -> 57.6 | N19: =IFERROR(IF($E19="","",IF($F$4<C19,L19,IF(B19<$F$4,M19,(((B19-$F$4)*L19)+(($F$4-C19)*M19))/(B19-C19)))),"") -> 57.6 | O19: =IFERROR(IF($E19="","",((B19-C19))*N19),"") -> 144 | P19: =IFERROR(IF($E19="","",SUM($O$17:O18)+O19/2),"") -> 250.8 | T19: =IF($G$6=0,IF(AND(A19<>"",$F$2=0),D19, ""),"") ->  | U19: =IF(T19="","",J19) ->  | V19: =IF(T19="","",F19) ->  | W19: =IFERROR(IF($G$6=0,IF($F$2>0,IF(ROW()<$H$5+$A$4,2.5+W18,$F$3-INDIRECT("C"&ROW()-$A$4)),""),""),"") ->  | X19: =IF(W19="","",IF(ROW()<$H$5+$A$4,20,INDIRECT("J"&ROW()-$A$4))) ->  | Y19: =IF(W19="","",IF(ROW()<$H$5+$A$4,"Cohesive",INDIRECT("F"&ROW()-$A$4))) ->  | Z19: =IF($G$6=0,IF(AND(A19<>"",$F$2<0),IF($F$3-C19<=0,"",$F$3-C19), ""),"") ->  | AA19: =IF($G$6=0,IF(AND(A19<>"",$F$2<0),IF($F$3-C19<=0,"",J19), ""),"") ->  | AB19: =IF($G$6=0,IF(AND(A19<>"",$F$2<0),IF($F$3-C19<=0,"",F19), ""),"") ->  | AC19: =IF($G$6>0,IF(AND(A19<>"",$F$2=0),IF($F$3-C19<=0,"",$F$3-C19), ""),"") ->  | AD19: =IF(AC19="","",J19) ->  | AE19: =IF(AC19="","",F19) ->  | AF19: =IF($G$6>0,IF($F$2>0,IF(ROW()<=$H$5+$A$4,2.5+AF18,IF(ROW()>$A$4+$C$2,"",$F$3-INDIRECT("C"&ROW()-$A$4))), ""),"") ->  | AG19: =IF(AF19="","",IF(ROW()<$H$5+$A$4,20,INDIRECT("J"&ROW()-$H$5-$A$4+19))) ->  | AH19: =IF(AF19="","",IF(ROW()<=$H$5+$A$4,"Cohesive",INDIRECT("F"&ROW()-$H$5-$A$4+17))) ->  | AI19: =IF($G$6>0,IF(AND(A19<>"",$F$2<0),IF($F$3-C19<=0,"",$F$3-C19), ""),"") ->  | AJ19: =IF(AI19="","",J19) ->  | AK19: =IF(AI19="","",F19) ->  | AL19: =IF($G$6<0,IF($F$2=0,IF(ROW()<=18+$AL$1,2.5+AL18,IF(ROW()>$AL$1+$C$2,"",INDIRECT("D"&ROW()-$AL$1))), ""),"") ->  | AM19: =IF($G$6<0,IF($F$2=0,IF(ROW()<=18+$AL$1,AM18,IF(ROW()>$AL$1+$C$2,"",INDIRECT("J"&ROW()-$AL$1))), ""),"") ->  | AN19: =IF($G$6<0,IF($F$2=0,IF(ROW()<=18+$AL$1,AN18,IF(ROW()>$AL$1+$C$2,"",INDIRECT("F"&ROW()-$AL$1))), ""),"") ->  | AO19: =IF(AO18="","",IF(ROW()<=18+$A$4,AO18+2.5,IF(ROW()>=$C$2+$A$4,"",AO18+INDIRECT("D"&ROW()-$A$4+1)-INDIRECT("D"&ROW()-$A$4)))) ->  | AP19: =IF(AO18="","",IF(ROW()<=18+$A$4,20,IF(ROW()>=$C$2+$A$4,"",INDIRECT("J"&ROW()-$A$4-1)))) ->  | AQ19: =IF(AO18="","",IF(ROW()<=18+$A$4,"Cohesive",IF(ROW()>=$C$2+$A$4,"",INDIRECT("F"&ROW()-$A$4-1)))) ->  | AR19: =IFERROR(IF(AND($F$2<0,$G$6<0),IF(ROW()<=$C$2,$F$3-INDIRECT("C"&IF($H$6="",18,$H$6)+ROW()-18),""),""),"") ->  | AS19: =IF(AND($F$2<0,$G$6<0),IF(ROW()<=$C$2,INDIRECT("J"&IF($H$6="",18,$H$6)+ROW()-18),""),"") ->  | AT19: =IF(AND($F$2<0,$G$6<0),IF(ROW()<=$C$2,INDIRECT("F"&IF($H$6="",18,$H$6)+ROW()-18),""),"") ->  | AV19: A-8a P | AW19: Cohesive | AX19: =H2 -> 655.7 | AY19: =$AX$19 -> 655.7 | AZ19: =$AX$19 -> 655.7 | BA19: 655.7 | BB19: 655.7 | BC19: 655.7 | BD19: 655.7 | BE19: 655.7 | BF19: 655.7 | BG19: 655.7
A20: 3 | B20: =IF(D20="","",C19) -> 669.2 | C20: 666.7 | D20: 8 | E20: A-6a | F20: Cohesive | G20: 14 | H20: 1.542264898 | I20: 14 | J20: 14 | L20: =IF(OR($E20="Rock",$E20=""),"",IF(F20="Cohesive",INDIRECT("W"&MATCH(G20,$T$3:$T$16)+2),INDIRECT("AC"&MATCH(G20,$Z$4:$Z$14)+3))) -> 122 | M20: =IF(OR($E20="Rock",$E20=""),"",IF(L20>0,L20-62.4,"")) -> 59.6 | N20: =IFERROR(IF($E20="","",IF($F$4<C20,L20,IF(B20<$F$4,M20,(((B20-$F$4)*L20)+(($F$4-C20)*M20))/(B20-C20)))),"") -> 59.6 | O20: =IFERROR(IF($E20="","",((B20-C20))*N20),"") -> 149 | P20: =IFERROR(IF($E20="","",SUM($O$17:O19)+O20/2),"") -> 397.3 | AL20: =IF($G$6<0,IF($F$2=0,IF(ROW()<=18+$AL$1,2.5+AL19,IF(ROW()>$AL$1+$C$2,"",INDIRECT("D"&ROW()-$AL$1))), ""),"") ->  | AM20: =IF($G$6<0,IF($F$2=0,IF(ROW()<=18+$AL$1,AM19,IF(ROW()>$AL$1+$C$2,"",INDIRECT("J"&ROW()-$AL$1))), ""),"") ->  | AN20: =IF($G$6<0,IF($F$2=0,IF(ROW()<=18+$AL$1,AN19,IF(ROW()>$AL$1+$C$2,"",INDIRECT("F"&ROW()-$AL$1))), ""),"") ->  | AP20: =IF(AO19="","",IF(ROW()<=18+$A$4,20,IF(ROW()>=$C$2+$A$4,"",INDIRECT("J"&ROW()-$A$4-1)))) ->  | AQ20: =IF(AO19="","",IF(ROW()<=18+$A$4,"Cohesive",IF(ROW()>=$C$2+$A$4,"",INDIRECT("F"&ROW()-$A$4-1)))) ->  | AR20: =IFERROR(IF(AND($F$2<0,$G$6<0),IF(ROW()<=$C$2,$F$3-INDIRECT("C"&IF($H$6="",18,$H$6)+ROW()-18),""),""),"") ->  | AS20: =IF(AND($F$2<0,$G$6<0),IF(ROW()<=$C$2,INDIRECT("J"&IF($H$6="",18,$H$6)+ROW()-18),""),"") ->  | AT20: =IF(AND($F$2<0,$G$6<0),IF(ROW()<=$C$2,INDIRECT("F"&IF($H$6="",18,$H$6)+ROW()-18),""),"") ->  | AV20: A-8b NP | AW20: Granular | AX20: =IF(H3>=7500,3,5) -> 5 | AY20: =$AX$20 -> 5 | AZ20: =$AX$20 -> 5 | BA20: 5 | BB20: 5 | BC20: 5 | BD20: 5 | BE20: 5 | BF20: 5 | BG20: 5
A21: 4 | B21: 666.7 | C21: 664.2 | D21: 10.5 | E21: A-6a | F21: Cohesive | G21: 17 | H21: 1.435764169 | I21: 17 | J21: 17 | L21: 122 | M21: 59.6 | N21: 59.6 | O21: 149 | P21: =IFERROR(IF($E21="","",SUM($O$17:O20)+O21/2),"") -> 546.3 | AV21: A-8b P | AW21: Cohesive | AX21: =IFERROR(AX19-AX20,"") -> 650.7 | AY21: =AY19-AY20 -> 650.7 | AZ21: 650.7 | BA21: 650.7 | BB21: 650.7 | BC21: 650.7 | BD21: 650.7 | BE21: 650.7 | BF21: 650.7 | BG21: 650.7
A22: 5 | B22: 664.2 | C22: 661.7 | D22: 13 | E22: A-4a P | F22: Cohesive | G22: 24 | H22: 1.353314848 | I22: 24 | J22: 24 | L22: 125 | M22: 62.6 | N22: 62.6 | O22: 156.5 | P22: =IFERROR(IF($E22="","",SUM($O$17:O21)+O22/2),"") -> 699.05 | AV22: Rock | AW22: Rock | AX22: =IF(AX18="","",IF(AX19>AX18,IF(AX18<AX21,AX21,AX18),AX18)) ->  | AY22: =IF(AY18="","",IF(AY19>AY18,IF(AY18<AY21,AY21,AY18),AY18)) -> 
A23: 6 | B23: 661.7 | C23: 659.2 | D23: 15.5 | E23: A-4a P | F23: Cohesive | G23: 46 | H23: 1.280906742 | I23: 46 | J23: 32 | L23: 135 | M23: 72.6 | N23: 72.6 | O23: 181.5 | P23: =IFERROR(IF($E23="","",SUM($O$17:O22)+O23/2),"") -> 868.05 | AX23: =IF(AX22="","",$F$3-AX22) ->  | AY23: =IF(AY22="","",$F$3-AY22) -> 
A24: 7 | B24: 659.2 | C24: 656.7 | D24: 18 | E24: A-4a P | F24: Cohesive | G24: 57 | H24: 1.215428317 | I24: 57 | J24: 32 | L24: 140 | M24: 77.6 | N24: 77.6 | O24: 194 | P24: =IFERROR(IF($E24="","",SUM($O$17:O23)+O24/2),"") -> 1055.8 | AF24: =IF($G$6>0,IF($F$2>0,IF(ROW()<=$H$5+$A$4,2.5+AF23,IF(ROW()>$A$4+$C$2,"",$F$3-INDIRECT("C"&ROW()-$A$4))), ""),"") ->  | AH24: =IF(AF24="","",IF(ROW()<=$H$5+$A$4,"Cohesive",INDIRECT("F"&ROW()-$H$5-$A$4+17))) ->  | AX24: =IFERROR(AX23/0.5,"") ->  | AY24: =IFERROR(AY23/0.5,"") ->  | AZ24: =IFERROR(AZ23/0.5,"") -> 
A25: 8 | B25: 656.7 | C25: 655.7 | D25: 19 | E25: A-4a P | F25: Cohesive | G25: 100 | H25: 1.174965713 | I25: 100 | J25: 32 | L25: 140 | M25: 77.6 | N25: 77.6 | O25: 77.6 | P25: =IFERROR(IF($E25="","",SUM($O$17:O24)+O25/2),"") -> 1191.6 | AF25: =IF($G$6>0,IF($F$2>0,IF(ROW()<=$H$5+$A$4,2.5+AF24,IF(ROW()>$A$4+$C$2,"",$F$3-INDIRECT("C"&ROW()-$A$4))), ""),"") ->  | AH25: =IF(AF25="","",IF(ROW()<=$H$5+$A$4,"Cohesive",INDIRECT("F"&ROW()-$H$5-$A$4+17))) ->  | AX25: =IFERROR(ROUNDUP(AX24,0),"") ->  | AY25: =IFERROR(ROUNDUP(AY24,0),"") ->  | AZ25: =IFERROR(ROUNDUP(AZ24,0),"") -> 
A26: 9 | B26: 655.7 | C26: 652.7 | D26: 22 | E26: Rock | G26: 100 | P26: =IFERROR(IF($E26="","",SUM($O$17:O25)+O26/2),"") ->  | AX26: =IFERROR(IF(AX18="","",AX25*0.5),"") ->  | AY26: =IFERROR(IF(AY18="","",AY25*0.5),"") -> 
A27: 10 | B27: 652.7 | C27: 651 | D27: 23.7 | E27: Rock | G27: 100 | J27: =IF(OR(F27="",I27=""),"",IF(F27="Cohesive",IF(G27>32,32,ROUND(G27,0)),IF(F27="Granular",IF(I27>60,60,ROUND(I27,0))))) ->  | P27: =IFERROR(IF($E27="","",SUM($O$17:O26)+O27/2),"") -> 
J28: =IF(OR(F28="",I28=""),"",IF(F28="Cohesive",IF(G28>32,32,ROUND(G28,0)),IF(F28="Granular",IF(I28>60,60,ROUND(I28,0))))) ->  | P28: =IFERROR(IF($E28="","",SUM($O$17:O27)+O28/2),"") -> 
P29: =IFERROR(IF($E29="","",SUM($O$17:O28)+O29/2),"") -> 
P30: =IFERROR(IF($E30="","",SUM($O$17:O29)+O30/2),"") ->  | W30: =IFERROR(IF($G$6=0,IF($F$2>0,IF(ROW()<$H$5+$A$4,2.5+W29,$F$3-INDIRECT("C"&ROW()-$A$4)),""),""),"") -> 
P31: =IFERROR(IF($E31="","",SUM($O$17:O30)+O31/2),"") ->  | W31: =IFERROR(IF($G$6=0,IF($F$2>0,IF(ROW()<$H$5+$A$4,2.5+W30,$F$3-INDIRECT("C"&ROW()-$A$4)),""),""),"") ->  | AO31: =IF(AO30="","",IF(ROW()<=18+$A$4,AO30+2.5,IF(ROW()>=$C$2+$A$4,"",AO30+INDIRECT("D"&ROW()-$A$4+1)-INDIRECT("D"&ROW()-$A$4)))) -> 
P32: =IFERROR(IF($E32="","",SUM($O$17:O31)+O32/2),"") ->  | AO32: =IF(AO31="","",IF(ROW()<=18+$A$4,AO31+2.5,IF(ROW()>=$C$2+$A$4,"",AO31+INDIRECT("D"&ROW()-$A$4+1)-INDIRECT("D"&ROW()-$A$4)))) -> 
P33: =IFERROR(IF($E33="","",SUM($O$17:O32)+O33/2),"") ->  | AG33: =IF(AF33="","",IF(ROW()<$H$5+$A$4,20,INDIRECT("J"&ROW()-$H$5-$A$4+19))) -> 
P34: =IFERROR(IF($E34="","",SUM($O$17:O33)+O34/2),"") ->  | AG34: =IF(AF34="","",IF(ROW()<$H$5+$A$4,20,INDIRECT("J"&ROW()-$H$5-$A$4+19))) -> 
P35: =IFERROR(IF($E35="","",SUM($O$17:O34)+O35/2),"") -> 
P36: =IFERROR(IF($E36="","",SUM($O$17:O35)+O36/2),"") -> 
P37: =IFERROR(IF($E37="","",SUM($O$17:O36)+O37/2),"") -> 
P38: =IFERROR(IF($E38="","",SUM($O$17:O37)+O38/2),"") -> 
P39: =IFERROR(IF($E39="","",SUM($O$17:O38)+O39/2),"") -> 
P40: =IFERROR(IF($E40="","",SUM($O$17:O39)+O40/2),"") -> 
P41: =IFERROR(IF($E41="","",SUM($O$17:O40)+O41/2),"") -> 
P42: =IFERROR(IF($E42="","",SUM($O$17:O41)+O42/2),"") -> 
AR43: =IFERROR(IF(ROW()<=$C$2,$F$3-INDIRECT("C"&IF($H$6="",18,$H$6)+ROW()-18),""),"") ->  | AS43: =IF(AR42="","",IF(ROW()<=$C$2,INDIRECT("J"&IF($H$6="",18,$H$6)+ROW()-18),"")) ->  | AT43: =IF(AR42="","",IF(ROW()<=$C$2,INDIRECT("F"&IF($H$6="",18,$H$6)+ROW()-18),"")) -> 
S195: =V195&Y195&AB195&AE195&AH195&AK195&AN195&AQ195&AT195 -> 

Sheet B-048-1-23
A1: =MID(CELL("filename",A1),FIND("]",CELL("filename", A1))+1,20) -> B-048-1-23 | Q1: 7 | R1: 8 | S1: 9 | T1: 10 | Y1: Properties for Granular Soils | AL1: =ROUNDUP(($F$3-$F$4)/2.5,0) ->  | AM1: =ROUNDUP(($F$3-$F$4)/2.5,0) ->  | AO1: =F2 ->  | AV1: A-1-a | AW1: Granular | AX1: =INDEX('Foundation Depth Table'!AB5:AB119,MATCH(A9,'Foundation Depth Table'!Z5:Z74,0)) ->  | AY1: =IF(B9="","",INDEX('Foundation Depth Table'!$L$5:$L$2314,MATCH(B9,'Foundation Depth Table'!$K$5:$K$2314,0))) ->  | AZ1: =IF(C9="","",INDEX('Foundation Depth Table'!$L$5:$L$2314,MATCH(C9,'Foundation Depth Table'!$K$5:$K$2314,0))) ->  | BA1: =IF(D9="","",INDEX('Foundation Depth Table'!$L$5:$L$2314,MATCH(D9,'Foundation Depth Table'!$K$5:$K$2314,0))) ->  | BB1: =IF(E9="","",INDEX('Foundation Depth Table'!$L$5:$L$2314,MATCH(E9,'Foundation Depth Table'!$K$5:$K$2314,0))) ->  | BC1: =IF(F9="","",INDEX('Foundation Depth Table'!$L$5:$L$2314,MATCH(F9,'Foundation Depth Table'!$K$5:$K$2314,0))) ->  | BD1: =IF(G9="","",INDEX('Foundation Depth Table'!$L$5:$L$2314,MATCH(G9,'Foundation Depth Table'!$K$5:$K$2314,0))) ->  | BE1: =IF(H9="","",INDEX('Foundation Depth Table'!$L$5:$L$2314,MATCH(H9,'Foundation Depth Table'!$K$5:$K$2314,0))) ->  | BF1: =IF(I9="","",INDEX('Foundation Depth Table'!$L$5:$L$2314,MATCH(I9,'Foundation Depth Table'!$K$5:$K$2314,0))) ->  | BG1: =IF(J9="","",INDEX('Foundation Depth Table'!$L$5:$L$2314,MATCH(J9,'Foundation Depth Table'!$K$5:$K$2314,0))) -> 
A2: =MID(CELL("filename",A2),FIND("]",CELL("filename", A2))+1,20) -> B-048-1-23 | C2: =SUMPRODUCT(MAX(($A18:$A42<>"")*(ROW(A18:A42)))) -> 27 | D2: =INDIRECT("C"&C2) -> 652.2 | E2: =IF(F2=0,"At Grade =",IF(F2>0, "Fill (ft) =", "Cut (ft) =")) -> Fill (ft) = | F2: =IFERROR(ROUND((G5), 2),"") ->  | G2: =IF(H2="","","Rock Elev. (ft)=") -> Rock Elev. (ft)= | H2: =IF(OR(I2=0,I2="",NOT(ISNUMBER(I2))),"",I2) -> 654.5 | I2: =IFERROR(ROUND(INDEX('Foundation Design'!G3:G100,MATCH(A2,'Foundation Design'!A3:A100,0)),2),"") -> 654.5 | S2: Consistency | T2: Properties for Cohesive Soils N60 Range (bpf) | W2: γwet (pcf) | Z2: N60 Range | AC2: γwet | AL2: =IF(AL1=0,"",($F$3-$F$4)-(AL1-1)*2.5) ->  | AM2: =IF(OR(AM1=0,AM1=1),"",($F$3-$F$4)-(AM1-1)*2.5) ->  | AO2: =AO1/2.5 ->  | AV2: A-1-b | AW2: Granular | AX2: =INDEX('Foundation Depth Table'!AA5:AA74,MATCH(A9,'Foundation Depth Table'!Z5:Z74,0)) ->  | AY2: =IF(B9="","",INDEX('Foundation Depth Table'!$E$5:$E$4274,MATCH(B9,'Foundation Depth Table'!$D$5:$D$4274,0))) ->  | AZ2: =IF(C9="","",INDEX('Foundation Depth Table'!$E$5:$E$4274,MATCH(C9,'Foundation Depth Table'!$D$5:$D$4274,0))) ->  | BA2: =IF(D9="","",INDEX('Foundation Depth Table'!$E$5:$E$4274,MATCH(D9,'Foundation Depth Table'!$D$5:$D$4274,0))) ->  | BB2: =IF(E9="","",INDEX('Foundation Depth Table'!$E$5:$E$4274,MATCH(E9,'Foundation Depth Table'!$D$5:$D$4274,0))) ->  | BC2: =IF(F9="","",INDEX('Foundation Depth Table'!$E$5:$E$4274,MATCH(F9,'Foundation Depth Table'!$D$5:$D$4274,0))) ->  | BD2: =IF(G9="","",INDEX('Foundation Depth Table'!$E$5:$E$4274,MATCH(G9,'Foundation Depth Table'!$D$5:$D$4274,0))) ->  | BE2: =IF(H9="","",INDEX('Foundation Depth Table'!$E$5:$E$4274,MATCH(H9,'Foundation Depth Table'!$D$5:$D$4274,0))) ->  | BF2: =IF(I9="","",INDEX('Foundation Depth Table'!$E$5:$E$4274,MATCH(I9,'Foundation Depth Table'!$D$5:$D$4274,0))) ->  | BG2: =IF(J9="","",INDEX('Foundation Depth Table'!$E$5:$E$4274,MATCH(J9,'Foundation Depth Table'!$D$5:$D$4274,0))) -> 
A3: =MATCH(TRUE,INDEX((Q18:Q42<>0),0),0)+17 -> 18 | C3: =F3+ROUNDUP(INDIRECT("C"&C2)/2.5,0) ->  | E3: Shaft Top Elev. (ft) = | F3: =IFERROR(ROUND(INDEX('Foundation Design'!E3:E100,MATCH(A2,'Foundation Design'!A3:A100,0)),2),"") ->  | G3: =IF(H2="","","Rock UCS (psi)=") -> Rock UCS (psi)= | H3: =IF(H2="","",IFERROR(INDEX('Foundation Design'!H3:H100,MATCH(A2,'Foundation Design'!A3:A100,0)),"")) -> 0 | S3: Pudding | T3: 0 | U3: - | V3: 0 | W3: 100 | Y3: Density | Z3: bpf | AC3: pcf | AO3: =ROUNDDOWN(AO2,0) ->  | AV3: A-2-4 | AW3: Granular | AX3: =IFERROR($F$3-AX1,"") ->  | BA3: =IFERROR($F$3-BA1,"") ->  | BB3: =IFERROR($F$3-BB1,"") -> 
A4: =ROUNDUP(G5/2.5,0) ->  | C4: =ROUNDUP((F3-INDIRECT("C"&C2))/2.5,0) ->  | E4: Boring Top Elev. (ft) = | F4: =IFERROR(ROUND(INDEX('Foundation Design'!D3:D100,MATCH(A2,'Foundation Design'!A3:A100,0)),2),"") -> 676 | G4: Ex. Ground Elev.= | H4: =IFERROR(ROUND(INDEX('Foundation Design'!F3:F100,MATCH(A2,'Foundation Design'!A3:A100,0)),2),"") -> 0 | S4: Very Soft | T4: 1 | U4: - | V4: 1 | W4: 105 | Y4: Undensified | Z4: 0 | AA4: - | AC4: 110 | AO4: =AO1-2.5*AO3 ->  | AV4: A-2-5 | AW4: Granular | AX4: =$F$3-AX2 ->  | AY4: =$F$3-AY2 -> 
A5: =IF(MOD(F2,2.5)=0,2.5,F2-(A4-1)*2.5) ->  | E5: Post Spacing (ft) = | F5: =IFERROR(ROUND(INDEX('Foundation Design'!I3:I100,MATCH(A1,'Foundation Design'!A3:A100,0)),0),"") ->  | G5: =F3-H4 ->  | H5: =IFERROR(IF(INDIRECT("B"&MATCH(H4,INDIRECT("B18:B"&$C$2),-1))>H4,MATCH(H4,INDIRECT("B18:B"&$C$2),-1)+1,MATCH(H4,INDIRECT("B18:B"&$C$2),-1))+17,"") -> 27 | S5: V.Soft-Soft | T5: 2 | U5: - | V5: 2 | W5: 108 | Y5: Very Loose | Z5: 1 | AA5: - | AB5: 2 | AC5: 115 | AV5: A-2-6 | AW5: Granular | AX5: =IFERROR(MATCH(AX3,INDIRECT("B18:B"&$C$2),-1)+17,"") -> 
A6: =H5-17 -> 10 | E6: Barrier Height (ft) = | F6: =IFERROR(ROUND(INDEX('Foundation Design'!J3:J100,MATCH(A2,'Foundation Design'!A3:A100,0)),0),"") ->  | G6: =F4-H4 -> 676 | H6: =IFERROR(IF(INDIRECT("B"&MATCH(F3,INDIRECT("B18:B"&$C$2),-1))>F3,MATCH(F3,INDIRECT("B18:B"&$C$2),-1)+1,MATCH(F3,INDIRECT("B18:B"&$C$2),-1))+17,"") ->  | S6: Soft | T6: 3 | U6: - | V6: 3 | W6: 110 | Y6: V.Loose-Loose | Z6: 3 | AA6: - | AB6: 5 | AC6: 118 | AV6: A-2-7 | AW6: Granular
E7: Transverse Slope = | F7: =IFERROR(INDEX('Foundation Design'!L3:L100,MATCH(A2,'Foundation Design'!A3:A100,0)),"") ->  | G7: =VLOOKUP(H7,'Foundation Depth Table'!Q5:R484,2,) ->  | H7: =F5&"-"&F6 -> - | S7: Soft-M.Stiff | T7: 4 | U7: - | V7: 4 | W7: 112 | Y7: Loose | Z7: 6 | AA7: - | AB7: 8 | AC7: 120 | AV7: A-3 | AW7: Granular | AX7: =IFERROR(COUNTIF(INDIRECT("S18:S"&AX6),"Cohesive"),"") -> 
A8: =IF($H$2="",AX16,AX26) ->  | K8: 2.116216624 | S8: Medium Stiff | T8: 5 | U8: - | V8: 6 | W8: 115 | Y8: Loose-M.Dense | Z8: 9 | AA8: - | AB8: 14 | AC8: 122 | AV8: A-3a | AW8: Granular | AX8: =IFERROR(COUNTIF(INDIRECT("S"&$A$3&":S"&AX6),"Granular"),"") -> 
A9: =IFERROR($G$7&"-"&IF($F$7="Level",0,$F$7),"") ->  | B9: =IFERROR(IF(A16="","",$G$7&"-"&IF($F$7="Level",0,$F$7)&"-"&A$16),"") ->  | C9: =IFERROR(IF(B16="","",$G$7&"-"&IF($F$7="Level",0,$F$7)&"-"&B$16),"") ->  | S9: M.Stiff-Stiff | T9: 7 | U9: - | V9: 9 | W9: 118 | Y9: Medium Dense | Z9: 15 | AA9: - | AB9: 24 | AC9: 125 | AV9: A-4a P | AW9: Cohesive | AX9: =IFERROR(COUNTIF(INDIRECT("S18:S"&AX5),"Cohesive"),"") -> 
A10: Foundation Depth (ft) | S10: Stiff | T10: 10 | U10: - | V10: 13 | W10: 120 | Y10: M.Dense-Dense | Z10: 25 | AA10: - | AB10: 34 | AC10: 128 | AV10: A-4a NP | AW10: Granular | AX10: =IFERROR(COUNTIF(INDIRECT("S18:S"&AX5),"Granular"),"") -> 
A11: Trial 01 | B11: Trial 02 | C11: Trial 03 | D11: Trial 04 | E11: Trial 05 | F11: Trial 06 | G11: Trial 07 | H11: Trial 08 | I11: Trial 09 | J11: Trial 10 | S11: Stiff-V.Stiff | T11: 14 | U11: - | V11: 19 | W11: 122 | Y11: Dense | Z11: 35 | AA11: - | AB11: 44 | AC11: 130 | AV11: A-4b P | AW11: Cohesive | AX11: =IF(AX9>AX10,"C","G") -> G | AY11: =IF(AY9>AY10,"C","G") -> G | AZ11: G | BA11: G | BB11: G | BC11: G | BD11: G | BE11: G | BF11: G | BG11: G
A12: =IFERROR(IF(OR(A8="",A8=100),"N/A",A8),"N/A") -> N/A | B12: =IFERROR(IF(B8="","",IF(B8=100,"N/A",B8)),"N/A") ->  | C12: =IFERROR(IF(C8="","",IF(C8=100,"N/A",C8)),"N/A") ->  | S12: Very Stiff | T12: 20 | U12: - | V12: 27 | W12: 125 | Y12: Dense-V.Dense | Z12: 45 | AA12: - | AB12: 54 | AC12: 132 | AV12: A-4b NP | AW12: Granular | AX12: =IF(AX11="C",AX1,AX2) ->  | AY12: =IF(AY11="C",AY1,AY2) -> 
A13: =IFERROR($F$3-A12,"") ->  | B13: =IFERROR($F$3-B12,"") ->  | S13: V.Stiff-Hard | T13: 28 | U13: - | V13: 35 | W13: 128 | Y13: Very Dense | Z13: 55 | AA13: - | AB13: 64 | AC13: 135 | AV13: A-5 | AW13: Cohesive | AX13: =IF(AX11="C",AX9,AX7) ->  | AY13: =IF(COUNTIF($AX12:AY12,AY12)>1,"",IF(AY11="C",AY9,AY7)) ->  | AZ13: =IF(COUNTIF($AX12:AZ12,AZ12)>1,"",IF(AZ11="C",AZ9,AZ7)) ->  | BA13: =IF(COUNTIF($AX12:BA12,BA12)>1,"",IF(BA11="C",BA9,BA7)) ->  | BB13: =IF(COUNTIF($AX12:BB12,BB12)>1,"",IF(BB11="C",BB9,BB7)) ->  | BC13: =IF(COUNTIF($AX12:BC12,BC12)>1,"",IF(BC11="C",BC9,BC7)) ->  | BD13: =IF(COUNTIF($AX12:BD12,BD12)>1,"",IF(BD11="C",BD9,BD7)) ->  | BE13: =IF(COUNTIF($AX12:BE12,BE12)>1,"",IF(BE11="C",BE9,BE7)) ->  | BF13: =IF(COUNTIF($AX12:BF12,BF12)>1,"",IF(BF11="C",BF9,BF7)) ->  | BG13: =IF(COUNTIF($AX12:BG12,BG12)>1,"",IF(BG11="C",BG9,BG7)) -> 
A14: =AX13 ->  | B14: =AY13 ->  | S14: Hard | T14: 36 | U14: - | V14: 43 | W14: 130 | Y14: Fully Dense | Z14: 65 | AA14: + | AC14: 140 | AV14: A-6a | AW14: Cohesive | AX14: =IF(AX11="C",AX10,AX8) ->  | AY14: =IF(COUNTIF($AX12:AY12,AY12)>1,"",IF(AY11="C",AY10,AY8)) ->  | AZ14: =IF(COUNTIF($AX12:AZ12,AZ12)>1,"",IF(AZ11="C",AZ10,AZ8)) ->  | BA14: =IF(COUNTIF($AX12:BA12,BA12)>1,"",IF(BA11="C",BA10,BA8)) ->  | BB14: =IF(COUNTIF($AX12:BB12,BB12)>1,"",IF(BB11="C",BB10,BB8)) ->  | BC14: =IF(COUNTIF($AX12:BC12,BC12)>1,"",IF(BC11="C",BC10,BC8)) ->  | BD14: =IF(COUNTIF($AX12:BD12,BD12)>1,"",IF(BD11="C",BD10,BD8)) ->  | BE14: =IF(COUNTIF($AX12:BE12,BE12)>1,"",IF(BE11="C",BE10,BE8)) ->  | BF14: =IF(COUNTIF($AX12:BF12,BF12)>1,"",IF(BF11="C",BF10,BF8)) ->  | BG14: =IF(COUNTIF($AX12:BG12,BG12)>1,"",IF(BG11="C",BG10,BG8)) -> 
A15: =AX14 ->  | S15: Hard-V.Hard | T15: 44 | U15: - | V15: 51 | W15: 135 | AV15: A-6b | AW15: Cohesive | AX15: =IFERROR(IF(AX11="C",CORREL(INDIRECT("Q" & $A$3 &":Q"&AX5),INDIRECT("R" & $A$3 &":R"&AX5)),CORREL(INDIRECT("Q" & $A$3 &":Q"&AX6),INDIRECT("R" & $A$3 &":R"&AX6))),0) -> 0 | AY15: =IF(AY14="","",IFERROR(IF(AY11="C",CORREL(INDIRECT("Q" & $A$3 &":Q"&AY5),INDIRECT("R" & $A$3 &":R"&AY5)),CORREL(INDIRECT("Q" & $A$3 &":Q"&AY6),INDIRECT("R" & $A$3 &":R"&AY6))),0)) ->  | AZ15: =IF(AZ14="","",IFERROR(IF(AZ11="C",CORREL(INDIRECT("Q" & $A$3 &":Q"&AZ5),INDIRECT("R" & $A$3 &":R"&AZ5)),CORREL(INDIRECT("Q" & $A$3 &":Q"&AZ6),INDIRECT("R" & $A$3 &":R"&AZ6))),0)) -> 
A16: =IF(A15="","",ROUND(IF(AX15<0.75,MIN(INDIRECT("R18:R"&AX17)),AVERAGE(INDIRECT("R18:R"&AX17))),0)) ->  | S16: Very Hard | T16: 52 | U16: + | W16: 140 | AV16: A-7-5 | AW16: Cohesive | AX16: =AX12 ->  | AY16: =IF(COUNTIF($AX12:AY12,AY12)>1,"",AY12) ->  | AZ16: =IF(COUNTIF($AX12:AZ12,AZ12)>1,"",AZ12) ->  | BA16: =IF(COUNTIF($AX12:BA12,BA12)>1,"",BA12) ->  | BB16: =IF(COUNTIF($AX12:BB12,BB12)>1,"",BB12) ->  | BC16: =IF(COUNTIF($AX12:BC12,BC12)>1,"",BC12) ->  | BD16: =IF(COUNTIF($AX12:BD12,BD12)>1,"",BD12) ->  | BE16: =IF(COUNTIF($AX12:BE12,BE12)>1,"",BE12) ->  | BF16: =IF(COUNTIF($AX12:BF12,BF12)>1,"",BF12) ->  | BG16: =IF(COUNTIF($AX12:BG12,BG12)>1,"",BG12) -> 
A17: Layer No. | B17: Top Elev. (ft) | C17: Bottom Elev. (ft) | D17: Layer Depth (ft) | E17: Soil Class | F17: Soil Type | G17: N60 (bpf) | H17: CN | I17: N160 (bpf) | J17: Adj. N160 (bpf) | L17: γtot. (pcf) | M17: γsat. (pcf) | N17: γ′ (eff.) (pcf) | O17: σv (psf) | P17: σ′v (psf) | Q17: Depth Cut Fill (ft) | R17: N60 Cut Fill (bpf) | S17: Soil Class | T17: B=Ex G Depth Level | U17: B=Ex G N60 Level | V17: Soil Type | W17: B=Ex G Depth Fill | X17: B=Ex G N60 Fill | Y17: Soil Type | Z17: B=Ex G Depth Cut | AA17: B=Ex G N60 Cut | AB17: Soil Type | AC17: B>Ex G Depth Level | AD17: B>Ex G N60 Level | AE17: Soil Type | AF17: B>Ex G Depth Fill | AG17: B>Ex G N60 Fill | AH17: Soil Type | AI17: B>Ex G Depth Cut | AJ17: B>Ex G N60 Cut | AK17: Soil Type | AL17: B<Ex G Depth Level | AM17: B<Ex G N60 Level | AN17: Soil Type | AO17: B<Ex G Depth Fill | AP17: B<Ex G N60 Fill | AQ17: Soil Type | AR17: B<Ex G Depth Cut | AS17: B<Ex G N60 Cut | AT17: Soil Type | AV17: A-7-6 | AW17: Cohesive | AX17: =IF(AX16<>"",IF(AX11="C",AX5,AX6),"") ->  | AY17: =IF(AY16<>"",IF(AY11="C",AY5,AY6),"") -> 
A18: =IF(D18="","",ROW()-17) -> 1 | B18: =IF(A18="","",$F$4) -> 676 | C18: =IFERROR(IF(D18="","",$B$18-D18),"") -> 673 | D18: 3 | E18: A-6b | F18: =_xlfn.IFNA(INDEX($AW$1:$AW$21,MATCH($E18,$AV$1:$AV$21,0)),"") -> Cohesive | G18: 15 | H18: =IFERROR(IF($E18="","",IF(0.77*LOG(40/(P18/1000))>2,2,(0.77*LOG(40/(P18/1000))))),"") -> 2 | I18: =IF(OR($E18="",H18="",E18="Rock"),"",IF(F18="Cohesive",G18,G18*H18)) -> 15 | J18: =IF(OR(F18="",I18=""),"",IF(F18="Cohesive",IF(G18>32,32,ROUND(G18,0)),IF(F18="Granular",IF(I18>60,60,ROUND(I18,0))))) -> 15 | L18: =IF(OR($E18="Rock",$E18=""),"",IF(F18="Cohesive",INDIRECT("W"&MATCH(G18,$T$3:$T$16)+2),INDIRECT("AC"&MATCH(G18,$Z$4:$Z$14)+3))) -> 122 | M18: =IF(OR($E18="Rock",$E18=""),"",IF(L18>0,L18-62.4,"")) -> 59.6 | N18: =IFERROR(IF($E18="","",IF($F$4<C18,L18,IF(B18<$F$4,M18,(((B18-$F$4)*L18)+(($F$4-C18)*M18))/(B18-C18)))),"") -> 59.6 | O18: =IFERROR(IF($E18="","",((B18-C18))*N18),"") -> 178.8 | P18: =IFERROR(IF($E18="","",O18/2),"") -> 89.4 | Q18: =IFERROR(IF(AND(T18="",W18="",Z18="",AC18="",AF18="",AI18="",AL18="",AO18="",AR18=""),"",MAX(T18,W18,Z18,AC18,AF18,AI18,AL18,AO18,AR18)),"") ->  | R18: 20 | S18: =IFERROR(V18&Y18&AB18&AE18&AH18&AK18&AN18&AQ18&AT18,"") -> Cohesive | T18: =IF($G$6=0,IF(AND(A18<>"",$F$2=0),D18, ""),"") ->  | U18: =IF(T18="","",J18) ->  | V18: =IF(T18="","",F18) ->  | W18: =IF($G$6=0,IF(AND(A18<>"",$F$2>0),A5, ""),"") ->  | X18: =IF(W18="","",IF(ROW()<$H$5+$A$4,20,INDIRECT("J"&ROW()-$A$4))) ->  | Y18: =IF(W18="","",IF(ROW()<$H$5+$A$4,"Cohesive",INDIRECT("F"&ROW()-$A$4))) ->  | Z18: =IF($G$6=0,IF(AND(A18<>"",$F$2<0),IF($F$3-C18<=0,"",$F$3-C18), ""),"") ->  | AA18: =IF($G$6=0,IF(AND(A18<>"",$F$2<0),IF($F$3-C18<=0,"",J18), ""),"") ->  | AB18: =IF($G$6=0,IF(AND(A18<>"",$F$2<0),IF($F$3-C18<=0,"",F18), ""),"") ->  | AC18: =IF($G$6>0,IF(AND(A18<>"",$F$2=0),IF($F$3-C18<=0,"",$F$3-C18), ""),"") ->  | AD18: =IF(AC18="","",J18) ->  | AE18: =IF(AC18="","",F18) ->  | AF18: =IF($G$6>0,IF(AND(A18<>"",$F$2>0),A5, ""),"") ->  | AG18: =IF($G$6>0,IF(AND(A18<>"",$F$2>0),20, ""),"") -> 20 | AH18: =IF($G$6>0,IF(AND(A18<>"",$F$2>0),"Cohesive", ""),"") -> Cohesive | AI18: =IF($G$6>0,IF(AND(A18<>"",$F$2<0),IF($F$3-C18<=0,"",$F$3-C18), ""),"") ->  | AJ18: =IF(AI18="","",J18) ->  | AK18: =IF(AI18="","",F18) ->  | AL18: =IF($G$6<0,IF($F$2=0,AL2, ""),"") ->  | AM18: =IF(AL18<>"",J18,"") ->  | AN18: =IF(AM18<>"",F18,"") ->  | AO18: =IF($G$6<0,IF($F$2>0,A5, ""),"") ->  | AP18: =IF(AO18="", "",20) ->  | AQ18: =IF(AO18="", "","Cohesive") ->  | AR18: =IF(AND($F$2<0,$G$6<0),IF($F$2<0,IF(ROW()<$H$6,IF($F$3-C18<=0,"",$F$3-C18),IF(ROW()=$H$6,$F$3-INDIRECT("C"&$H$6)))),"") ->  | AS18: =IF($G$6<0,IF($F$2<0,IF(ROW()<$H$6,IF($F$3-C18<=0,"",J18),IF(ROW()=$H$6,INDIRECT("J"&$H$6))),""),"") ->  | AT18: =IF($G$6<0,IF($F$2<0,IF(ROW()<$H$6,IF($F$3-C18<=0,"",F18),IF(ROW()=$H$6,INDIRECT("F"&$H$6))),""),"") ->  | AV18: A-8a NP | AW18: Granular | AX18: =IF(AX16<>"",IF(AX11="C",AX3,AX4),"") ->  | AY18: =IF(AY16<>"",IF(AY11="C",AY3,AY4),"") -> 
A19: =IF(D19="","",ROW()-17) -> 2 | B19: =IF(D19="","",C18) -> 673 | C19: =IFERROR(IF(D19="","",$B$18-D19),"") -> 669.6 | D19: 6.4 | E19: A-6b | F19: Cohesive | G19: 17 | H19: =IFERROR(IF($E19="","",IF((0.77*LOG(40/(P19/1000)))>2,2,(0.77*LOG(40/(P19/1000))))),"") -> 1.659131223 | I19: =IF(OR($E19="",H19="",E19="Rock"),"",IF(F19="Cohesive",G19,G19*H19)) -> 17 | J19: =IF(OR(F19="",I19=""),"",IF(F19="Cohesive",IF(G19>32,32,ROUND(G19,0)),IF(F19="Granular",IF(I19>60,60,ROUND(I19,0))))) -> 17 | L19: =IF(OR($E19="Rock",$E19=""),"",IF(F19="Cohesive",INDIRECT("W"&MATCH(G19,$T$3:$T$16)+2),INDIRECT("AC"&MATCH(G19,$Z$4:$Z$14)+3))) -> 122 | M19: =IF(OR($E19="Rock",$E19=""),"",IF(L19>0,L19-62.4,"")) -> 59.6 | N19: =IFERROR(IF($E19="","",IF($F$4<C19,L19,IF(B19<$F$4,M19,(((B19-$F$4)*L19)+(($F$4-C19)*M19))/(B19-C19)))),"") -> 59.6 | O19: =IFERROR(IF($E19="","",((B19-C19))*N19),"") -> 202.64 | P19: =IFERROR(IF($E19="","",SUM($O$17:O18)+O19/2),"") -> 280.12 | T19: =IF($G$6=0,IF(AND(A19<>"",$F$2=0),D19, ""),"") ->  | U19: =IF(T19="","",J19) ->  | V19: =IF(T19="","",F19) ->  | W19: =IFERROR(IF($G$6=0,IF($F$2>0,IF(ROW()<$H$5+$A$4,2.5+W18,$F$3-INDIRECT("C"&ROW()-$A$4)),""),""),"") ->  | X19: =IF(W19="","",IF(ROW()<$H$5+$A$4,20,INDIRECT("J"&ROW()-$A$4))) ->  | Y19: =IF(W19="","",IF(ROW()<$H$5+$A$4,"Cohesive",INDIRECT("F"&ROW()-$A$4))) ->  | Z19: =IF($G$6=0,IF(AND(A19<>"",$F$2<0),IF($F$3-C19<=0,"",$F$3-C19), ""),"") ->  | AA19: =IF($G$6=0,IF(AND(A19<>"",$F$2<0),IF($F$3-C19<=0,"",J19), ""),"") ->  | AB19: =IF($G$6=0,IF(AND(A19<>"",$F$2<0),IF($F$3-C19<=0,"",F19), ""),"") ->  | AC19: =IF($G$6>0,IF(AND(A19<>"",$F$2=0),IF($F$3-C19<=0,"",$F$3-C19), ""),"") ->  | AD19: =IF(AC19="","",J19) ->  | AE19: =IF(AC19="","",F19) ->  | AF19: =IF($G$6>0,IF($F$2>0,IF(ROW()<=$H$5+$A$4,2.5+AF18,IF(ROW()>$A$4+$C$2,"",$F$3-INDIRECT("C"&ROW()-$A$4))), ""),"") ->  | AG19: =IF(AF19="","",IF(ROW()<$H$5+$A$4,20,INDIRECT("J"&ROW()-$H$5-$A$4+19))) ->  | AH19: =IF(AF19="","",IF(ROW()<=$H$5+$A$4,"Cohesive",INDIRECT("F"&ROW()-$H$5-$A$4+17))) ->  | AI19: =IF($G$6>0,IF(AND(A19<>"",$F$2<0),IF($F$3-C19<=0,"",$F$3-C19), ""),"") ->  | AJ19: =IF(AI19="","",J19) ->  | AK19: =IF(AI19="","",F19) ->  | AL19: =IF($G$6<0,IF($F$2=0,IF(ROW()<=18+$AL$1,2.5+AL18,IF(ROW()>$AL$1+$C$2,"",INDIRECT("D"&ROW()-$AL$1))), ""),"") ->  | AM19: =IF($G$6<0,IF($F$2=0,IF(ROW()<=18+$AL$1,AM18,IF(ROW()>$AL$1+$C$2,"",INDIRECT("J"&ROW()-$AL$1))), ""),"") ->  | AN19: =IF($G$6<0,IF($F$2=0,IF(ROW()<=18+$AL$1,AN18,IF(ROW()>$AL$1+$C$2,"",INDIRECT("F"&ROW()-$AL$1))), ""),"") ->  | AO19: =IF(AO18="","",IF(ROW()<=18+$A$4,AO18+2.5,IF(ROW()>=$C$2+$A$4,"",AO18+INDIRECT("D"&ROW()-$A$4+1)-INDIRECT("D"&ROW()-$A$4)))) ->  | AP19: =IF(AO18="","",IF(ROW()<=18+$A$4,20,IF(ROW()>=$C$2+$A$4,"",INDIRECT("J"&ROW()-$A$4-1)))) ->  | AQ19: =IF(AO18="","",IF(ROW()<=18+$A$4,"Cohesive",IF(ROW()>=$C$2+$A$4,"",INDIRECT("F"&ROW()-$A$4-1)))) ->  | AR19: =IFERROR(IF(AND($F$2<0,$G$6<0),IF(ROW()<=$C$2,$F$3-INDIRECT("C"&IF($H$6="",18,$H$6)+ROW()-18),""),""),"") ->  | AS19: =IF(AND($F$2<0,$G$6<0),IF(ROW()<=$C$2,INDIRECT("J"&IF($H$6="",18,$H$6)+ROW()-18),""),"") ->  | AT19: =IF(AND($F$2<0,$G$6<0),IF(ROW()<=$C$2,INDIRECT("F"&IF($H$6="",18,$H$6)+ROW()-18),""),"") ->  | AV19: A-8a P | AW19: Cohesive | AX19: =H2 -> 654.5 | AY19: =$AX$19 -> 654.5 | AZ19: =$AX$19 -> 654.5 | BA19: 654.5 | BB19: 654.5 | BC19: 654.5 | BD19: 654.5 | BE19: 654.5 | BF19: 654.5 | BG19: 654.5
A20: 3 | B20: =IF(D20="","",C19) -> 669.6 | C20: 668 | D20: 8 | E20: A-6a | F20: Cohesive | G20: 15 | H20: 1.516500551 | I20: 15 | J20: 15 | L20: =IF(OR($E20="Rock",$E20=""),"",IF(F20="Cohesive",INDIRECT("W"&MATCH(G20,$T$3:$T$16)+2),INDIRECT("AC"&MATCH(G20,$Z$4:$Z$14)+3))) -> 122 | M20: =IF(OR($E20="Rock",$E20=""),"",IF(L20>0,L20-62.4,"")) -> 59.6 | N20: =IFERROR(IF($E20="","",IF($F$4<C20,L20,IF(B20<$F$4,M20,(((B20-$F$4)*L20)+(($F$4-C20)*M20))/(B20-C20)))),"") -> 59.6 | O20: =IFERROR(IF($E20="","",((B20-C20))*N20),"") -> 95.36 | P20: =IFERROR(IF($E20="","",SUM($O$17:O19)+O20/2),"") -> 429.12 | AL20: =IF($G$6<0,IF($F$2=0,IF(ROW()<=18+$AL$1,2.5+AL19,IF(ROW()>$AL$1+$C$2,"",INDIRECT("D"&ROW()-$AL$1))), ""),"") ->  | AM20: =IF($G$6<0,IF($F$2=0,IF(ROW()<=18+$AL$1,AM19,IF(ROW()>$AL$1+$C$2,"",INDIRECT("J"&ROW()-$AL$1))), ""),"") ->  | AN20: =IF($G$6<0,IF($F$2=0,IF(ROW()<=18+$AL$1,AN19,IF(ROW()>$AL$1+$C$2,"",INDIRECT("F"&ROW()-$AL$1))), ""),"") ->  | AP20: =IF(AO19="","",IF(ROW()<=18+$A$4,20,IF(ROW()>=$C$2+$A$4,"",INDIRECT("J"&ROW()-$A$4-1)))) ->  | AQ20: =IF(AO19="","",IF(ROW()<=18+$A$4,"Cohesive",IF(ROW()>=$C$2+$A$4,"",INDIRECT("F"&ROW()-$A$4-1)))) ->  | AR20: =IFERROR(IF(AND($F$2<0,$G$6<0),IF(ROW()<=$C$2,$F$3-INDIRECT("C"&IF($H$6="",18,$H$6)+ROW()-18),""),""),"") ->  | AS20: =IF(AND($F$2<0,$G$6<0),IF(ROW()<=$C$2,INDIRECT("J"&IF($H$6="",18,$H$6)+ROW()-18),""),"") ->  | AT20: =IF(AND($F$2<0,$G$6<0),IF(ROW()<=$C$2,INDIRECT("F"&IF($H$6="",18,$H$6)+ROW()-18),""),"") ->  | AV20: A-8b NP | AW20: Granular | AX20: =IF(H3>=7500,3,5) -> 5 | AY20: =$AX$20 -> 5 | AZ20: =$AX$20 -> 5 | BA20: 5 | BB20: 5 | BC20: 5 | BD20: 5 | BE20: 5 | BF20: 5 | BG20: 5
A21: 4 | B21: 668 | C21: 665.5 | D21: 10.5 | E21: A-6a | F21: Cohesive | G21: 17 | H21: 1.432717439 | I21: 17 | J21: 17 | L21: 122 | M21: 59.6 | N21: 59.6 | O21: 149 | P21: =IFERROR(IF($E21="","",SUM($O$17:O20)+O21/2),"") -> 551.3 | AV21: A-8b P | AW21: Cohesive | AX21: =IFERROR(AX19-AX20,"") -> 649.5 | AY21: =AY19-AY20 -> 649.5 | AZ21: 649.5 | BA21: 649.5 | BB21: 649.5 | BC21: 649.5 | BD21: 649.5 | BE21: 649.5 | BF21: 649.5 | BG21: 649.5
A22: 5 | B22: 665.5 | C22: 663 | D22: 13 | E22: A-6a | F22: Cohesive | G22: 26 | H22: 1.350931496 | I22: 26 | J22: 26 | L22: 125 | M22: 62.6 | N22: 62.6 | O22: 156.5 | P22: =IFERROR(IF($E22="","",SUM($O$17:O21)+O22/2),"") -> 704.05 | AV22: Rock | AW22: Rock | AX22: =IF(AX18="","",IF(AX19>AX18,IF(AX18<AX21,AX21,AX18),AX18)) ->  | AY22: =IF(AY18="","",IF(AY19>AY18,IF(AY18<AY21,AY21,AY18),AY18)) -> 
A23: 6 | B23: 663 | C23: 660.5 | D23: 15.5 | E23: A-6a | F23: Cohesive | G23: 31 | H23: 1.282354518 | I23: 31 | J23: 31 | L23: 128 | M23: 65.6 | N23: 65.6 | O23: 164 | P23: =IFERROR(IF($E23="","",SUM($O$17:O22)+O23/2),"") -> 864.3 | AX23: =IF(AX22="","",$F$3-AX22) ->  | AY23: =IF(AY22="","",$F$3-AY22) -> 
A24: 7 | B24: 660.5 | C24: 658 | D24: 18 | E24: A-6a | F24: Cohesive | G24: 44 | H24: 1.221420428 | I24: 44 | J24: 32 | L24: 135 | M24: 72.6 | N24: 72.6 | O24: 181.5 | P24: =IFERROR(IF($E24="","",SUM($O$17:O23)+O24/2),"") -> 1037.05 | AF24: =IF($G$6>0,IF($F$2>0,IF(ROW()<=$H$5+$A$4,2.5+AF23,IF(ROW()>$A$4+$C$2,"",$F$3-INDIRECT("C"&ROW()-$A$4))), ""),"") ->  | AH24: =IF(AF24="","",IF(ROW()<=$H$5+$A$4,"Cohesive",INDIRECT("F"&ROW()-$H$5-$A$4+17))) ->  | AX24: =IFERROR(AX23/0.5,"") ->  | AY24: =IFERROR(AY23/0.5,"") ->  | AZ24: =IFERROR(AZ23/0.5,"") -> 
A25: 8 | B25: 658 | C25: 654.5 | D25: 21.5 | E25: A-6a | F25: Cohesive | G25: 100 | H25: 1.155346788 | I25: 100 | J25: 32 | L25: 140 | M25: 77.6 | N25: 77.6 | O25: 271.6 | P25: =IFERROR(IF($E25="","",SUM($O$17:O24)+O25/2),"") -> 1263.6 | AF25: =IF($G$6>0,IF($F$2>0,IF(ROW()<=$H$5+$A$4,2.5+AF24,IF(ROW()>$A$4+$C$2,"",$F$3-INDIRECT("C"&ROW()-$A$4))), ""),"") ->  | AH25: =IF(AF25="","",IF(ROW()<=$H$5+$A$4,"Cohesive",INDIRECT("F"&ROW()-$H$5-$A$4+17))) ->  | AX25: =IFERROR(ROUNDUP(AX24,0),"") ->  | AY25: =IFERROR(ROUNDUP(AY24,0),"") ->  | AZ25: =IFERROR(ROUNDUP(AZ24,0),"") -> 
A26: 9 | B26: 654.5 | C26: 653.5 | D26: 22.5 | E26: Rock | G26: 100 | P26: =IFERROR(IF($E26="","",SUM($O$17:O25)+O26/2),"") ->  | AX26: =IFERROR(IF(AX18="","",AX25*0.5),"") ->  | AY26: =IFERROR(IF(AY18="","",AY25*0.5),"") -> 
A27: 10 | B27: 653.5 | C27: 652.2 | D27: 23.8 | E27: Rock | G27: 100 | J27: =IF(OR(F27="",I27=""),"",IF(F27="Cohesive",IF(G27>32,32,ROUND(G27,0)),IF(F27="Granular",IF(I27>60,60,ROUND(I27,0))))) ->  | P27: =IFERROR(IF($E27="","",SUM($O$17:O26)+O27/2),"") -> 
J28: =IF(OR(F28="",I28=""),"",IF(F28="Cohesive",IF(G28>32,32,ROUND(G28,0)),IF(F28="Granular",IF(I28>60,60,ROUND(I28,0))))) ->  | P28: =IFERROR(IF($E28="","",SUM($O$17:O27)+O28/2),"") -> 
P29: =IFERROR(IF($E29="","",SUM($O$17:O28)+O29/2),"") -> 
P30: =IFERROR(IF($E30="","",SUM($O$17:O29)+O30/2),"") ->  | W30: =IFERROR(IF($G$6=0,IF($F$2>0,IF(ROW()<$H$5+$A$4,2.5+W29,$F$3-INDIRECT("C"&ROW()-$A$4)),""),""),"") -> 
P31: =IFERROR(IF($E31="","",SUM($O$17:O30)+O31/2),"") ->  | W31: =IFERROR(IF($G$6=0,IF($F$2>0,IF(ROW()<$H$5+$A$4,2.5+W30,$F$3-INDIRECT("C"&ROW()-$A$4)),""),""),"") ->  | AO31: =IF(AO30="","",IF(ROW()<=18+$A$4,AO30+2.5,IF(ROW()>=$C$2+$A$4,"",AO30+INDIRECT("D"&ROW()-$A$4+1)-INDIRECT("D"&ROW()-$A$4)))) -> 
P32: =IFERROR(IF($E32="","",SUM($O$17:O31)+O32/2),"") ->  | AO32: =IF(AO31="","",IF(ROW()<=18+$A$4,AO31+2.5,IF(ROW()>=$C$2+$A$4,"",AO31+INDIRECT("D"&ROW()-$A$4+1)-INDIRECT("D"&ROW()-$A$4)))) -> 
P33: =IFERROR(IF($E33="","",SUM($O$17:O32)+O33/2),"") ->  | AG33: =IF(AF33="","",IF(ROW()<$H$5+$A$4,20,INDIRECT("J"&ROW()-$H$5-$A$4+19))) -> 
P34: =IFERROR(IF($E34="","",SUM($O$17:O33)+O34/2),"") ->  | AG34: =IF(AF34="","",IF(ROW()<$H$5+$A$4,20,INDIRECT("J"&ROW()-$H$5-$A$4+19))) -> 
P35: =IFERROR(IF($E35="","",SUM($O$17:O34)+O35/2),"") -> 
P36: =IFERROR(IF($E36="","",SUM($O$17:O35)+O36/2),"") -> 
P37: =IFERROR(IF($E37="","",SUM($O$17:O36)+O37/2),"") -> 
P38: =IFERROR(IF($E38="","",SUM($O$17:O37)+O38/2),"") -> 
P39: =IFERROR(IF($E39="","",SUM($O$17:O38)+O39/2),"") -> 
P40: =IFERROR(IF($E40="","",SUM($O$17:O39)+O40/2),"") -> 
P41: =IFERROR(IF($E41="","",SUM($O$17:O40)+O41/2),"") -> 
P42: =IFERROR(IF($E42="","",SUM($O$17:O41)+O42/2),"") -> 
AR43: =IFERROR(IF(ROW()<=$C$2,$F$3-INDIRECT("C"&IF($H$6="",18,$H$6)+ROW()-18),""),"") ->  | AS43: =IF(AR42="","",IF(ROW()<=$C$2,INDIRECT("J"&IF($H$6="",18,$H$6)+ROW()-18),"")) ->  | AT43: =IF(AR42="","",IF(ROW()<=$C$2,INDIRECT("F"&IF($H$6="",18,$H$6)+ROW()-18),"")) -> 
S195: =V195&Y195&AB195&AE195&AH195&AK195&AN195&AQ195&AT195 -> 

Sheet B-048-2-23
A1: =MID(CELL("filename",A1),FIND("]",CELL("filename", A1))+1,20) -> B-048-2-23 | Q1: 7 | R1: 8 | S1: 9 | T1: 10 | Y1: Properties for Granular Soils | AL1: =ROUNDUP(($F$3-$F$4)/2.5,0) ->  | AM1: =ROUNDUP(($F$3-$F$4)/2.5,0) ->  | AO1: =F2 ->  | AV1: A-1-a | AW1: Granular | AX1: =INDEX('Foundation Depth Table'!AB5:AB119,MATCH(A9,'Foundation Depth Table'!Z5:Z74,0)) ->  | AY1: =IF(B9="","",INDEX('Foundation Depth Table'!$L$5:$L$2314,MATCH(B9,'Foundation Depth Table'!$K$5:$K$2314,0))) ->  | AZ1: =IF(C9="","",INDEX('Foundation Depth Table'!$L$5:$L$2314,MATCH(C9,'Foundation Depth Table'!$K$5:$K$2314,0))) ->  | BA1: =IF(D9="","",INDEX('Foundation Depth Table'!$L$5:$L$2314,MATCH(D9,'Foundation Depth Table'!$K$5:$K$2314,0))) ->  | BB1: =IF(E9="","",INDEX('Foundation Depth Table'!$L$5:$L$2314,MATCH(E9,'Foundation Depth Table'!$K$5:$K$2314,0))) ->  | BC1: =IF(F9="","",INDEX('Foundation Depth Table'!$L$5:$L$2314,MATCH(F9,'Foundation Depth Table'!$K$5:$K$2314,0))) ->  | BD1: =IF(G9="","",INDEX('Foundation Depth Table'!$L$5:$L$2314,MATCH(G9,'Foundation Depth Table'!$K$5:$K$2314,0))) ->  | BE1: =IF(H9="","",INDEX('Foundation Depth Table'!$L$5:$L$2314,MATCH(H9,'Foundation Depth Table'!$K$5:$K$2314,0))) ->  | BF1: =IF(I9="","",INDEX('Foundation Depth Table'!$L$5:$L$2314,MATCH(I9,'Foundation Depth Table'!$K$5:$K$2314,0))) ->  | BG1: =IF(J9="","",INDEX('Foundation Depth Table'!$L$5:$L$2314,MATCH(J9,'Foundation Depth Table'!$K$5:$K$2314,0))) -> 
A2: =MID(CELL("filename",A2),FIND("]",CELL("filename", A2))+1,20) -> B-048-2-23 | C2: =SUMPRODUCT(MAX(($A18:$A42<>"")*(ROW(A18:A42)))) -> 27 | D2: =INDIRECT("C"&C2) -> 653.7 | E2: =IF(F2=0,"At Grade =",IF(F2>0, "Fill (ft) =", "Cut (ft) =")) -> Fill (ft) = | F2: =IFERROR(ROUND((G5), 2),"") ->  | G2: =IF(H2="","","Rock Elev. (ft)=") ->  | H2: =IF(OR(I2=0,I2="",NOT(ISNUMBER(I2))),"",I2) ->  | I2: =IFERROR(ROUND(INDEX('Foundation Design'!G3:G100,MATCH(A2,'Foundation Design'!A3:A100,0)),2),"") -> 0 | S2: Consistency | T2: Properties for Cohesive Soils N60 Range (bpf) | W2: γwet (pcf) | Z2: N60 Range | AC2: γwet | AL2: =IF(AL1=0,"",($F$3-$F$4)-(AL1-1)*2.5) ->  | AM2: =IF(OR(AM1=0,AM1=1),"",($F$3-$F$4)-(AM1-1)*2.5) ->  | AO2: =AO1/2.5 ->  | AV2: A-1-b | AW2: Granular | AX2: =INDEX('Foundation Depth Table'!AA5:AA74,MATCH(A9,'Foundation Depth Table'!Z5:Z74,0)) ->  | AY2: =IF(B9="","",INDEX('Foundation Depth Table'!$E$5:$E$4274,MATCH(B9,'Foundation Depth Table'!$D$5:$D$4274,0))) ->  | AZ2: =IF(C9="","",INDEX('Foundation Depth Table'!$E$5:$E$4274,MATCH(C9,'Foundation Depth Table'!$D$5:$D$4274,0))) ->  | BA2: =IF(D9="","",INDEX('Foundation Depth Table'!$E$5:$E$4274,MATCH(D9,'Foundation Depth Table'!$D$5:$D$4274,0))) ->  | BB2: =IF(E9="","",INDEX('Foundation Depth Table'!$E$5:$E$4274,MATCH(E9,'Foundation Depth Table'!$D$5:$D$4274,0))) ->  | BC2: =IF(F9="","",INDEX('Foundation Depth Table'!$E$5:$E$4274,MATCH(F9,'Foundation Depth Table'!$D$5:$D$4274,0))) ->  | BD2: =IF(G9="","",INDEX('Foundation Depth Table'!$E$5:$E$4274,MATCH(G9,'Foundation Depth Table'!$D$5:$D$4274,0))) ->  | BE2: =IF(H9="","",INDEX('Foundation Depth Table'!$E$5:$E$4274,MATCH(H9,'Foundation Depth Table'!$D$5:$D$4274,0))) ->  | BF2: =IF(I9="","",INDEX('Foundation Depth Table'!$E$5:$E$4274,MATCH(I9,'Foundation Depth Table'!$D$5:$D$4274,0))) ->  | BG2: =IF(J9="","",INDEX('Foundation Depth Table'!$E$5:$E$4274,MATCH(J9,'Foundation Depth Table'!$D$5:$D$4274,0))) -> 
A3: =MATCH(TRUE,INDEX((Q18:Q42<>0),0),0)+17 -> 18 | C3: =F3+ROUNDUP(INDIRECT("C"&C2)/2.5,0) ->  | E3: Shaft Top Elev. (ft) = | F3: =IFERROR(ROUND(INDEX('Foundation Design'!E3:E100,MATCH(A2,'Foundation Design'!A3:A100,0)),2),"") ->  | G3: =IF(H2="","","Rock UCS (psi)=") ->  | H3: =IF(H2="","",IFERROR(INDEX('Foundation Design'!H3:H100,MATCH(A2,'Foundation Design'!A3:A100,0)),"")) ->  | S3: Pudding | T3: 0 | U3: - | V3: 0 | W3: 100 | Y3: Density | Z3: bpf | AC3: pcf | AO3: =ROUNDDOWN(AO2,0) ->  | AV3: A-2-4 | AW3: Granular | AX3: =IFERROR($F$3-AX1,"") ->  | BA3: =IFERROR($F$3-BA1,"") ->  | BB3: =IFERROR($F$3-BB1,"") -> 
A4: =ROUNDUP(G5/2.5,0) ->  | C4: =ROUNDUP((F3-INDIRECT("C"&C2))/2.5,0) ->  | E4: Boring Top Elev. (ft) = | F4: =IFERROR(ROUND(INDEX('Foundation Design'!D3:D100,MATCH(A2,'Foundation Design'!A3:A100,0)),2),"") -> 678 | G4: Ex. Ground Elev.= | H4: =IFERROR(ROUND(INDEX('Foundation Design'!F3:F100,MATCH(A2,'Foundation Design'!A3:A100,0)),2),"") -> 0 | S4: Very Soft | T4: 1 | U4: - | V4: 1 | W4: 105 | Y4: Undensified | Z4: 0 | AA4: - | AC4: 110 | AO4: =AO1-2.5*AO3 ->  | AV4: A-2-5 | AW4: Granular | AX4: =$F$3-AX2 ->  | AY4: =$F$3-AY2 -> 
A5: =IF(MOD(F2,2.5)=0,2.5,F2-(A4-1)*2.5) ->  | E5: Post Spacing (ft) = | F5: =IFERROR(ROUND(INDEX('Foundation Design'!I3:I100,MATCH(A1,'Foundation Design'!A3:A100,0)),0),"") ->  | G5: =F3-H4 ->  | H5: =IFERROR(IF(INDIRECT("B"&MATCH(H4,INDIRECT("B18:B"&$C$2),-1))>H4,MATCH(H4,INDIRECT("B18:B"&$C$2),-1)+1,MATCH(H4,INDIRECT("B18:B"&$C$2),-1))+17,"") -> 27 | S5: V.Soft-Soft | T5: 2 | U5: - | V5: 2 | W5: 108 | Y5: Very Loose | Z5: 1 | AA5: - | AB5: 2 | AC5: 115 | AV5: A-2-6 | AW5: Granular | AX5: =IFERROR(MATCH(AX3,INDIRECT("B18:B"&$C$2),-1)+17,"") -> 
A6: =H5-17 -> 10 | E6: Barrier Height (ft) = | F6: =IFERROR(ROUND(INDEX('Foundation Design'!J3:J100,MATCH(A2,'Foundation Design'!A3:A100,0)),0),"") ->  | G6: =F4-H4 -> 678 | H6: =IFERROR(IF(INDIRECT("B"&MATCH(F3,INDIRECT("B18:B"&$C$2),-1))>F3,MATCH(F3,INDIRECT("B18:B"&$C$2),-1)+1,MATCH(F3,INDIRECT("B18:B"&$C$2),-1))+17,"") ->  | S6: Soft | T6: 3 | U6: - | V6: 3 | W6: 110 | Y6: V.Loose-Loose | Z6: 3 | AA6: - | AB6: 5 | AC6: 118 | AV6: A-2-7 | AW6: Granular
E7: Transverse Slope = | F7: =IFERROR(INDEX('Foundation Design'!L3:L100,MATCH(A2,'Foundation Design'!A3:A100,0)),"") ->  | G7: =VLOOKUP(H7,'Foundation Depth Table'!Q5:R484,2,) ->  | H7: =F5&"-"&F6 -> - | S7: Soft-M.Stiff | T7: 4 | U7: - | V7: 4 | W7: 112 | Y7: Loose | Z7: 6 | AA7: - | AB7: 8 | AC7: 120 | AV7: A-3 | AW7: Granular | AX7: =IFERROR(COUNTIF(INDIRECT("S18:S"&AX6),"Cohesive"),"") -> 
A8: =IF($H$2="",AX16,AX26) ->  | K8: 2.116216624 | S8: Medium Stiff | T8: 5 | U8: - | V8: 6 | W8: 115 | Y8: Loose-M.Dense | Z8: 9 | AA8: - | AB8: 14 | AC8: 122 | AV8: A-3a | AW8: Granular | AX8: =IFERROR(COUNTIF(INDIRECT("S"&$A$3&":S"&AX6),"Granular"),"") -> 
A9: =IFERROR($G$7&"-"&IF($F$7="Level",0,$F$7),"") ->  | B9: =IFERROR(IF(A16="","",$G$7&"-"&IF($F$7="Level",0,$F$7)&"-"&A$16),"") ->  | C9: =IFERROR(IF(B16="","",$G$7&"-"&IF($F$7="Level",0,$F$7)&"-"&B$16),"") ->  | S9: M.Stiff-Stiff | T9: 7 | U9: - | V9: 9 | W9: 118 | Y9: Medium Dense | Z9: 15 | AA9: - | AB9: 24 | AC9: 125 | AV9: A-4a P | AW9: Cohesive | AX9: =IFERROR(COUNTIF(INDIRECT("S18:S"&AX5),"Cohesive"),"") -> 
A10: Foundation Depth (ft) | S10: Stiff | T10: 10 | U10: - | V10: 13 | W10: 120 | Y10: M.Dense-Dense | Z10: 25 | AA10: - | AB10: 34 | AC10: 128 | AV10: A-4a NP | AW10: Granular | AX10: =IFERROR(COUNTIF(INDIRECT("S18:S"&AX5),"Granular"),"") -> 
A11: Trial 01 | B11: Trial 02 | C11: Trial 03 | D11: Trial 04 | E11: Trial 05 | F11: Trial 06 | G11: Trial 07 | H11: Trial 08 | I11: Trial 09 | J11: Trial 10 | S11: Stiff-V.Stiff | T11: 14 | U11: - | V11: 19 | W11: 122 | Y11: Dense | Z11: 35 | AA11: - | AB11: 44 | AC11: 130 | AV11: A-4b P | AW11: Cohesive | AX11: =IF(AX9>AX10,"C","G") -> G | AY11: =IF(AY9>AY10,"C","G") -> G | AZ11: G | BA11: G | BB11: G | BC11: G | BD11: G | BE11: G | BF11: G | BG11: G
A12: =IFERROR(IF(OR(A8="",A8=100),"N/A",A8),"N/A") -> N/A | B12: =IFERROR(IF(B8="","",IF(B8=100,"N/A",B8)),"N/A") ->  | C12: =IFERROR(IF(C8="","",IF(C8=100,"N/A",C8)),"N/A") ->  | S12: Very Stiff | T12: 20 | U12: - | V12: 27 | W12: 125 | Y12: Dense-V.Dense | Z12: 45 | AA12: - | AB12: 54 | AC12: 132 | AV12: A-4b NP | AW12: Granular | AX12: =IF(AX11="C",AX1,AX2) ->  | AY12: =IF(AY11="C",AY1,AY2) -> 
A13: =IFERROR($F$3-A12,"") ->  | B13: =IFERROR($F$3-B12,"") ->  | S13: V.Stiff-Hard | T13: 28 | U13: - | V13: 35 | W13: 128 | Y13: Very Dense | Z13: 55 | AA13: - | AB13: 64 | AC13: 135 | AV13: A-5 | AW13: Cohesive | AX13: =IF(AX11="C",AX9,AX7) ->  | AY13: =IF(COUNTIF($AX12:AY12,AY12)>1,"",IF(AY11="C",AY9,AY7)) ->  | AZ13: =IF(COUNTIF($AX12:AZ12,AZ12)>1,"",IF(AZ11="C",AZ9,AZ7)) ->  | BA13: =IF(COUNTIF($AX12:BA12,BA12)>1,"",IF(BA11="C",BA9,BA7)) ->  | BB13: =IF(COUNTIF($AX12:BB12,BB12)>1,"",IF(BB11="C",BB9,BB7)) ->  | BC13: =IF(COUNTIF($AX12:BC12,BC12)>1,"",IF(BC11="C",BC9,BC7)) ->  | BD13: =IF(COUNTIF($AX12:BD12,BD12)>1,"",IF(BD11="C",BD9,BD7)) ->  | BE13: =IF(COUNTIF($AX12:BE12,BE12)>1,"",IF(BE11="C",BE9,BE7)) ->  | BF13: =IF(COUNTIF($AX12:BF12,BF12)>1,"",IF(BF11="C",BF9,BF7)) ->  | BG13: =IF(COUNTIF($AX12:BG12,BG12)>1,"",IF(BG11="C",BG9,BG7)) -> 
A14: =AX13 ->  | B14: =AY13 ->  | S14: Hard | T14: 36 | U14: - | V14: 43 | W14: 130 | Y14: Fully Dense | Z14: 65 | AA14: + | AC14: 140 | AV14: A-6a | AW14: Cohesive | AX14: =IF(AX11="C",AX10,AX8) ->  | AY14: =IF(COUNTIF($AX12:AY12,AY12)>1,"",IF(AY11="C",AY10,AY8)) ->  | AZ14: =IF(COUNTIF($AX12:AZ12,AZ12)>1,"",IF(AZ11="C",AZ10,AZ8)) ->  | BA14: =IF(COUNTIF($AX12:BA12,BA12)>1,"",IF(BA11="C",BA10,BA8)) ->  | BB14: =IF(COUNTIF($AX12:BB12,BB12)>1,"",IF(BB11="C",BB10,BB8)) ->  | BC14: =IF(COUNTIF($AX12:BC12,BC12)>1,"",IF(BC11="C",BC10,BC8)) ->  | BD14: =IF(COUNTIF($AX12:BD12,BD12)>1,"",IF(BD11="C",BD10,BD8)) ->  | BE14: =IF(COUNTIF($AX12:BE12,BE12)>1,"",IF(BE11="C",BE10,BE8)) ->  | BF14: =IF(COUNTIF($AX12:BF12,BF12)>1,"",IF(BF11="C",BF10,BF8)) ->  | BG14: =IF(COUNTIF($AX12:BG12,BG12)>1,"",IF(BG11="C",BG10,BG8)) -> 
A15: =AX14 ->  | S15: Hard-V.Hard | T15: 44 | U15: - | V15: 51 | W15: 135 | AV15: A-6b | AW15: Cohesive | AX15: =IFERROR(IF(AX11="C",CORREL(INDIRECT("Q" & $A$3 &":Q"&AX5),INDIRECT("R" & $A$3 &":R"&AX5)),CORREL(INDIRECT("Q" & $A$3 &":Q"&AX6),INDIRECT("R" & $A$3 &":R"&AX6))),0) -> 0 | AY15: =IF(AY14="","",IFERROR(IF(AY11="C",CORREL(INDIRECT("Q" & $A$3 &":Q"&AY5),INDIRECT("R" & $A$3 &":R"&AY5)),CORREL(INDIRECT("Q" & $A$3 &":Q"&AY6),INDIRECT("R" & $A$3 &":R"&AY6))),0)) ->  | AZ15: =IF(AZ14="","",IFERROR(IF(AZ11="C",CORREL(INDIRECT("Q" & $A$3 &":Q"&AZ5),INDIRECT("R" & $A$3 &":R"&AZ5)),CORREL(INDIRECT("Q" & $A$3 &":Q"&AZ6),INDIRECT("R" & $A$3 &":R"&AZ6))),0)) -> 
A16: =IF(A15="","",ROUND(IF(AX15<0.75,MIN(INDIRECT("R18:R"&AX17)),AVERAGE(INDIRECT("R18:R"&AX17))),0)) ->  | S16: Very Hard | T16: 52 | U16: + | W16: 140 | AV16: A-7-5 | AW16: Cohesive | AX16: =AX12 ->  | AY16: =IF(COUNTIF($AX12:AY12,AY12)>1,"",AY12) ->  | AZ16: =IF(COUNTIF($AX12:AZ12,AZ12)>1,"",AZ12) ->  | BA16: =IF(COUNTIF($AX12:BA12,BA12)>1,"",BA12) ->  | BB16: =IF(COUNTIF($AX12:BB12,BB12)>1,"",BB12) ->  | BC16: =IF(COUNTIF($AX12:BC12,BC12)>1,"",BC12) ->  | BD16: =IF(COUNTIF($AX12:BD12,BD12)>1,"",BD12) ->  | BE16: =IF(COUNTIF($AX12:BE12,BE12)>1,"",BE12) ->  | BF16: =IF(COUNTIF($AX12:BF12,BF12)>1,"",BF12) ->  | BG16: =IF(COUNTIF($AX12:BG12,BG12)>1,"",BG12) -> 
A17: Layer No. | B17: Top Elev. (ft) | C17: Bottom Elev. (ft) | D17: Layer Depth (ft) | E17: Soil Class | F17: Soil Type | G17: N60 (bpf) | H17: CN | I17: N160 (bpf) | J17: Adj. N160 (bpf) | L17: γtot. (pcf) | M17: γsat. (pcf) | N17: γ′ (eff.) (pcf) | O17: σv (psf) | P17: σ′v (psf) | Q17: Depth Cut Fill (ft) | R17: N60 Cut Fill (bpf) | S17: Soil Class | T17: B=Ex G Depth Level | U17: B=Ex G N60 Level | V17: Soil Type | W17: B=Ex G Depth Fill | X17: B=Ex G N60 Fill | Y17: Soil Type | Z17: B=Ex G Depth Cut | AA17: B=Ex G N60 Cut | AB17: Soil Type | AC17: B>Ex G Depth Level | AD17: B>Ex G N60 Level | AE17: Soil Type | AF17: B>Ex G Depth Fill | AG17: B>Ex G N60 Fill | AH17: Soil Type | AI17: B>Ex G Depth Cut | AJ17: B>Ex G N60 Cut | AK17: Soil Type | AL17: B<Ex G Depth Level | AM17: B<Ex G N60 Level | AN17: Soil Type | AO17: B<Ex G Depth Fill | AP17: B<Ex G N60 Fill | AQ17: Soil Type | AR17: B<Ex G Depth Cut | AS17: B<Ex G N60 Cut | AT17: Soil Type | AV17: A-7-6 | AW17: Cohesive | AX17: =IF(AX16<>"",IF(AX11="C",AX5,AX6),"") ->  | AY17: =IF(AY16<>"",IF(AY11="C",AY5,AY6),"") -> 
A18: =IF(D18="","",ROW()-17) -> 1 | B18: =IF(A18="","",$F$4) -> 678 | C18: =IFERROR(IF(D18="","",$B$18-D18),"") -> 675 | D18: 3 | E18: A-6b | F18: =_xlfn.IFNA(INDEX($AW$1:$AW$21,MATCH($E18,$AV$1:$AV$21,0)),"") -> Cohesive | G18: 15 | H18: =IFERROR(IF($E18="","",IF(0.77*LOG(40/(P18/1000))>2,2,(0.77*LOG(40/(P18/1000))))),"") -> 2 | I18: =IF(OR($E18="",H18="",E18="Rock"),"",IF(F18="Cohesive",G18,G18*H18)) -> 15 | J18: =IF(OR(F18="",I18=""),"",IF(F18="Cohesive",IF(G18>32,32,ROUND(G18,0)),IF(F18="Granular",IF(I18>60,60,ROUND(I18,0))))) -> 15 | L18: =IF(OR($E18="Rock",$E18=""),"",IF(F18="Cohesive",INDIRECT("W"&MATCH(G18,$T$3:$T$16)+2),INDIRECT("AC"&MATCH(G18,$Z$4:$Z$14)+3))) -> 122 | M18: =IF(OR($E18="Rock",$E18=""),"",IF(L18>0,L18-62.4,"")) -> 59.6 | N18: =IFERROR(IF($E18="","",IF($F$4<C18,L18,IF(B18<$F$4,M18,(((B18-$F$4)*L18)+(($F$4-C18)*M18))/(B18-C18)))),"") -> 59.6 | O18: =IFERROR(IF($E18="","",((B18-C18))*N18),"") -> 178.8 | P18: =IFERROR(IF($E18="","",O18/2),"") -> 89.4 | Q18: =IFERROR(IF(AND(T18="",W18="",Z18="",AC18="",AF18="",AI18="",AL18="",AO18="",AR18=""),"",MAX(T18,W18,Z18,AC18,AF18,AI18,AL18,AO18,AR18)),"") ->  | R18: 20 | S18: =IFERROR(V18&Y18&AB18&AE18&AH18&AK18&AN18&AQ18&AT18,"") -> Cohesive | T18: =IF($G$6=0,IF(AND(A18<>"",$F$2=0),D18, ""),"") ->  | U18: =IF(T18="","",J18) ->  | V18: =IF(T18="","",F18) ->  | W18: =IF($G$6=0,IF(AND(A18<>"",$F$2>0),A5, ""),"") ->  | X18: =IF(W18="","",IF(ROW()<$H$5+$A$4,20,INDIRECT("J"&ROW()-$A$4))) ->  | Y18: =IF(W18="","",IF(ROW()<$H$5+$A$4,"Cohesive",INDIRECT("F"&ROW()-$A$4))) ->  | Z18: =IF($G$6=0,IF(AND(A18<>"",$F$2<0),IF($F$3-C18<=0,"",$F$3-C18), ""),"") ->  | AA18: =IF($G$6=0,IF(AND(A18<>"",$F$2<0),IF($F$3-C18<=0,"",J18), ""),"") ->  | AB18: =IF($G$6=0,IF(AND(A18<>"",$F$2<0),IF($F$3-C18<=0,"",F18), ""),"") ->  | AC18: =IF($G$6>0,IF(AND(A18<>"",$F$2=0),IF($F$3-C18<=0,"",$F$3-C18), ""),"") ->  | AD18: =IF(AC18="","",J18) ->  | AE18: =IF(AC18="","",F18) ->  | AF18: =IF($G$6>0,IF(AND(A18<>"",$F$2>0),A5, ""),"") ->  | AG18: =IF($G$6>0,IF(AND(A18<>"",$F$2>0),20, ""),"") -> 20 | AH18: =IF($G$6>0,IF(AND(A18<>"",$F$2>0),"Cohesive", ""),"") -> Cohesive | AI18: =IF($G$6>0,IF(AND(A18<>"",$F$2<0),IF($F$3-C18<=0,"",$F$3-C18), ""),"") ->  | AJ18: =IF(AI18="","",J18) ->  | AK18: =IF(AI18="","",F18) ->  | AL18: =IF($G$6<0,IF($F$2=0,AL2, ""),"") ->  | AM18: =IF(AL18<>"",J18,"") ->  | AN18: =IF(AM18<>"",F18,"") ->  | AO18: =IF($G$6<0,IF($F$2>0,A5, ""),"") ->  | AP18: =IF(AO18="", "",20) ->  | AQ18: =IF(AO18="", "","Cohesive") ->  | AR18: =IF(AND($F$2<0,$G$6<0),IF($F$2<0,IF(ROW()<$H$6,IF($F$3-C18<=0,"",$F$3-C18),IF(ROW()=$H$6,$F$3-INDIRECT("C"&$H$6)))),"") ->  | AS18: =IF($G$6<0,IF($F$2<0,IF(ROW()<$H$6,IF($F$3-C18<=0,"",J18),IF(ROW()=$H$6,INDIRECT("J"&$H$6))),""),"") ->  | AT18: =IF($G$6<0,IF($F$2<0,IF(ROW()<$H$6,IF($F$3-C18<=0,"",F18),IF(ROW()=$H$6,INDIRECT("F"&$H$6))),""),"") ->  | AV18: A-8a NP | AW18: Granular | AX18: =IF(AX16<>"",IF(AX11="C",AX3,AX4),"") ->  | AY18: =IF(AY16<>"",IF(AY11="C",AY3,AY4),"") -> 
A19: =IF(D19="","",ROW()-17) -> 2 | B19: =IF(D19="","",C18) -> 675 | C19: =IFERROR(IF(D19="","",$B$18-D19),"") -> 672.5 | D19: 5.5 | E19: A-6b | F19: Cohesive | G19: 19 | H19: =IFERROR(IF($E19="","",IF((0.77*LOG(40/(P19/1000)))>2,2,(0.77*LOG(40/(P19/1000))))),"") -> 1.692787097 | I19: =IF(OR($E19="",H19="",E19="Rock"),"",IF(F19="Cohesive",G19,G19*H19)) -> 19 | J19: =IF(OR(F19="",I19=""),"",IF(F19="Cohesive",IF(G19>32,32,ROUND(G19,0)),IF(F19="Granular",IF(I19>60,60,ROUND(I19,0))))) -> 19 | L19: =IF(OR($E19="Rock",$E19=""),"",IF(F19="Cohesive",INDIRECT("W"&MATCH(G19,$T$3:$T$16)+2),INDIRECT("AC"&MATCH(G19,$Z$4:$Z$14)+3))) -> 122 | M19: =IF(OR($E19="Rock",$E19=""),"",IF(L19>0,L19-62.4,"")) -> 59.6 | N19: =IFERROR(IF($E19="","",IF($F$4<C19,L19,IF(B19<$F$4,M19,(((B19-$F$4)*L19)+(($F$4-C19)*M19))/(B19-C19)))),"") -> 59.6 | O19: =IFERROR(IF($E19="","",((B19-C19))*N19),"") -> 149 | P19: =IFERROR(IF($E19="","",SUM($O$17:O18)+O19/2),"") -> 253.3 | T19: =IF($G$6=0,IF(AND(A19<>"",$F$2=0),D19, ""),"") ->  | U19: =IF(T19="","",J19) ->  | V19: =IF(T19="","",F19) ->  | W19: =IFERROR(IF($G$6=0,IF($F$2>0,IF(ROW()<$H$5+$A$4,2.5+W18,$F$3-INDIRECT("C"&ROW()-$A$4)),""),""),"") ->  | X19: =IF(W19="","",IF(ROW()<$H$5+$A$4,20,INDIRECT("J"&ROW()-$A$4))) ->  | Y19: =IF(W19="","",IF(ROW()<$H$5+$A$4,"Cohesive",INDIRECT("F"&ROW()-$A$4))) ->  | Z19: =IF($G$6=0,IF(AND(A19<>"",$F$2<0),IF($F$3-C19<=0,"",$F$3-C19), ""),"") ->  | AA19: =IF($G$6=0,IF(AND(A19<>"",$F$2<0),IF($F$3-C19<=0,"",J19), ""),"") ->  | AB19: =IF($G$6=0,IF(AND(A19<>"",$F$2<0),IF($F$3-C19<=0,"",F19), ""),"") ->  | AC19: =IF($G$6>0,IF(AND(A19<>"",$F$2=0),IF($F$3-C19<=0,"",$F$3-C19), ""),"") ->  | AD19: =IF(AC19="","",J19) ->  | AE19: =IF(AC19="","",F19) ->  | AF19: =IF($G$6>0,IF($F$2>0,IF(ROW()<=$H$5+$A$4,2.5+AF18,IF(ROW()>$A$4+$C$2,"",$F$3-INDIRECT("C"&ROW()-$A$4))), ""),"") ->  | AG19: =IF(AF19="","",IF(ROW()<$H$5+$A$4,20,INDIRECT("J"&ROW()-$H$5-$A$4+19))) ->  | AH19: =IF(AF19="","",IF(ROW()<=$H$5+$A$4,"Cohesive",INDIRECT("F"&ROW()-$H$5-$A$4+17))) ->  | AI19: =IF($G$6>0,IF(AND(A19<>"",$F$2<0),IF($F$3-C19<=0,"",$F$3-C19), ""),"") ->  | AJ19: =IF(AI19="","",J19) ->  | AK19: =IF(AI19="","",F19) ->  | AL19: =IF($G$6<0,IF($F$2=0,IF(ROW()<=18+$AL$1,2.5+AL18,IF(ROW()>$AL$1+$C$2,"",INDIRECT("D"&ROW()-$AL$1))), ""),"") ->  | AM19: =IF($G$6<0,IF($F$2=0,IF(ROW()<=18+$AL$1,AM18,IF(ROW()>$AL$1+$C$2,"",INDIRECT("J"&ROW()-$AL$1))), ""),"") ->  | AN19: =IF($G$6<0,IF($F$2=0,IF(ROW()<=18+$AL$1,AN18,IF(ROW()>$AL$1+$C$2,"",INDIRECT("F"&ROW()-$AL$1))), ""),"") ->  | AO19: =IF(AO18="","",IF(ROW()<=18+$A$4,AO18+2.5,IF(ROW()>=$C$2+$A$4,"",AO18+INDIRECT("D"&ROW()-$A$4+1)-INDIRECT("D"&ROW()-$A$4)))) ->  | AP19: =IF(AO18="","",IF(ROW()<=18+$A$4,20,IF(ROW()>=$C$2+$A$4,"",INDIRECT("J"&ROW()-$A$4-1)))) ->  | AQ19: =IF(AO18="","",IF(ROW()<=18+$A$4,"Cohesive",IF(ROW()>=$C$2+$A$4,"",INDIRECT("F"&ROW()-$A$4-1)))) ->  | AR19: =IFERROR(IF(AND($F$2<0,$G$6<0),IF(ROW()<=$C$2,$F$3-INDIRECT("C"&IF($H$6="",18,$H$6)+ROW()-18),""),""),"") ->  | AS19: =IF(AND($F$2<0,$G$6<0),IF(ROW()<=$C$2,INDIRECT("J"&IF($H$6="",18,$H$6)+ROW()-18),""),"") ->  | AT19: =IF(AND($F$2<0,$G$6<0),IF(ROW()<=$C$2,INDIRECT("F"&IF($H$6="",18,$H$6)+ROW()-18),""),"") ->  | AV19: A-8a P | AW19: Cohesive | AX19: =H2 ->  | AY19: =$AX$19 ->  | AZ19: =$AX$19 -> 
A20: 3 | B20: =IF(D20="","",C19) -> 672.5 | C20: 670 | D20: 8 | E20: A-6b | F20: Cohesive | G20: 18 | H20: 1.538082668 | I20: 18 | J20: 18 | L20: =IF(OR($E20="Rock",$E20=""),"",IF(F20="Cohesive",INDIRECT("W"&MATCH(G20,$T$3:$T$16)+2),INDIRECT("AC"&MATCH(G20,$Z$4:$Z$14)+3))) -> 122 | M20: =IF(OR($E20="Rock",$E20=""),"",IF(L20>0,L20-62.4,"")) -> 59.6 | N20: =IFERROR(IF($E20="","",IF($F$4<C20,L20,IF(B20<$F$4,M20,(((B20-$F$4)*L20)+(($F$4-C20)*M20))/(B20-C20)))),"") -> 59.6 | O20: =IFERROR(IF($E20="","",((B20-C20))*N20),"") -> 149 | P20: =IFERROR(IF($E20="","",SUM($O$17:O19)+O20/2),"") -> 402.3 | AL20: =IF($G$6<0,IF($F$2=0,IF(ROW()<=18+$AL$1,2.5+AL19,IF(ROW()>$AL$1+$C$2,"",INDIRECT("D"&ROW()-$AL$1))), ""),"") ->  | AM20: =IF($G$6<0,IF($F$2=0,IF(ROW()<=18+$AL$1,AM19,IF(ROW()>$AL$1+$C$2,"",INDIRECT("J"&ROW()-$AL$1))), ""),"") ->  | AN20: =IF($G$6<0,IF($F$2=0,IF(ROW()<=18+$AL$1,AN19,IF(ROW()>$AL$1+$C$2,"",INDIRECT("F"&ROW()-$AL$1))), ""),"") ->  | AP20: =IF(AO19="","",IF(ROW()<=18+$A$4,20,IF(ROW()>=$C$2+$A$4,"",INDIRECT("J"&ROW()-$A$4-1)))) ->  | AQ20: =IF(AO19="","",IF(ROW()<=18+$A$4,"Cohesive",IF(ROW()>=$C$2+$A$4,"",INDIRECT("F"&ROW()-$A$4-1)))) ->  | AR20: =IFERROR(IF(AND($F$2<0,$G$6<0),IF(ROW()<=$C$2,$F$3-INDIRECT("C"&IF($H$6="",18,$H$6)+ROW()-18),""),""),"") ->  | AS20: =IF(AND($F$2<0,$G$6<0),IF(ROW()<=$C$2,INDIRECT("J"&IF($H$6="",18,$H$6)+ROW()-18),""),"") ->  | AT20: =IF(AND($F$2<0,$G$6<0),IF(ROW()<=$C$2,INDIRECT("F"&IF($H$6="",18,$H$6)+ROW()-18),""),"") ->  | AV20: A-8b NP | AW20: Granular | AX20: =IF(H3>=7500,3,5) -> 3 | AY20: =$AX$20 -> 3 | AZ20: =$AX$20 -> 3 | BA20: 3 | BB20: 3 | BC20: 3 | BD20: 3 | BE20: 3 | BF20: 3 | BG20: 3
A21: 4 | B21: 670 | C21: 667.5 | D21: 10.5 | E21: A-6b | F21: Cohesive | G21: 10 | H21: 1.434237334 | I21: 10 | J21: 10 | L21: 120 | M21: 57.6 | N21: 57.6 | O21: 144 | P21: =IFERROR(IF($E21="","",SUM($O$17:O20)+O21/2),"") -> 548.8 | AV21: A-8b P | AW21: Cohesive | AX21: =IFERROR(AX19-AX20,"") ->  | AY21: =AY19-AY20 -> 
A22: 5 | B22: 667.5 | C22: 665 | D22: 13 | E22: A-6a | F22: Cohesive | G22: 17 | H22: 1.355113577 | I22: 17 | J22: 17 | L22: 122 | M22: 59.6 | N22: 59.6 | O22: 149 | P22: =IFERROR(IF($E22="","",SUM($O$17:O21)+O22/2),"") -> 695.3 | AV22: Rock | AW22: Rock | AX22: =IF(AX18="","",IF(AX19>AX18,IF(AX18<AX21,AX21,AX18),AX18)) ->  | AY22: =IF(AY18="","",IF(AY19>AY18,IF(AY18<AY21,AY21,AY18),AY18)) -> 
A23: 6 | B23: 665 | C23: 662.5 | D23: 15.5 | E23: A-6a | F23: Cohesive | G23: 19 | H23: 1.290183666 | I23: 19 | J23: 19 | L23: 122 | M23: 59.6 | N23: 59.6 | O23: 149 | P23: =IFERROR(IF($E23="","",SUM($O$17:O22)+O23/2),"") -> 844.3 | AX23: =IF(AX22="","",$F$3-AX22) ->  | AY23: =IF(AY22="","",$F$3-AY22) -> 
A24: 7 | B24: 662.5 | C24: 660 | D24: 18 | E24: A-6a | F24: Cohesive | G24: 40 | H24: 1.232484468 | I24: 40 | J24: 32 | L24: 130 | M24: 67.6 | N24: 67.6 | O24: 169 | P24: =IFERROR(IF($E24="","",SUM($O$17:O23)+O24/2),"") -> 1003.3 | AF24: =IF($G$6>0,IF($F$2>0,IF(ROW()<=$H$5+$A$4,2.5+AF23,IF(ROW()>$A$4+$C$2,"",$F$3-INDIRECT("C"&ROW()-$A$4))), ""),"") ->  | AH24: =IF(AF24="","",IF(ROW()<=$H$5+$A$4,"Cohesive",INDIRECT("F"&ROW()-$H$5-$A$4+17))) ->  | AX24: =IFERROR(AX23/0.5,"") ->  | AY24: =IFERROR(AY23/0.5,"") ->  | AZ24: =IFERROR(AZ23/0.5,"") -> 
A25: 8 | B25: 660 | C25: 657.5 | D25: 20.5 | E25: A-6a | F25: Cohesive | G25: 100 | H25: 1.176879508 | I25: 100 | J25: 32 | L25: 140 | M25: 77.6 | N25: 77.6 | O25: 194 | P25: =IFERROR(IF($E25="","",SUM($O$17:O24)+O25/2),"") -> 1184.8 | AF25: =IF($G$6>0,IF($F$2>0,IF(ROW()<=$H$5+$A$4,2.5+AF24,IF(ROW()>$A$4+$C$2,"",$F$3-INDIRECT("C"&ROW()-$A$4))), ""),"") ->  | AH25: =IF(AF25="","",IF(ROW()<=$H$5+$A$4,"Cohesive",INDIRECT("F"&ROW()-$H$5-$A$4+17))) ->  | AX25: =IFERROR(ROUNDUP(AX24,0),"") ->  | AY25: =IFERROR(ROUNDUP(AY24,0),"") ->  | AZ25: =IFERROR(ROUNDUP(AZ24,0),"") -> 
A26: 9 | B26: 657.5 | C26: 655 | D26: 23 | E26: A-6a | F26: Cohesive | G26: 73 | H26: 1.126170212 | I26: 73 | J26: 32 | L26: 140 | M26: 77.6 | N26: 77.6 | O26: 194 | P26: =IFERROR(IF($E26="","",SUM($O$17:O25)+O26/2),"") -> 1378.8 | AX26: =IFERROR(IF(AX18="","",AX25*0.5),"") ->  | AY26: =IFERROR(IF(AY18="","",AY25*0.5),"") -> 
A27: 10 | B27: 655 | C27: 653.7 | D27: 24.3 | E27: A-6a | F27: Cohesive | G27: 100 | H27: 1.092196613 | I27: 100 | J27: =IF(OR(F27="",I27=""),"",IF(F27="Cohesive",IF(G27>32,32,ROUND(G27,0)),IF(F27="Granular",IF(I27>60,60,ROUND(I27,0))))) -> 32 | L27: 140 | M27: 77.6 | N27: 77.6 | O27: 100.88 | P27: =IFERROR(IF($E27="","",SUM($O$17:O26)+O27/2),"") -> 1526.24
J28: =IF(OR(F28="",I28=""),"",IF(F28="Cohesive",IF(G28>32,32,ROUND(G28,0)),IF(F28="Granular",IF(I28>60,60,ROUND(I28,0))))) ->  | P28: =IFERROR(IF($E28="","",SUM($O$17:O27)+O28/2),"") -> 
P29: =IFERROR(IF($E29="","",SUM($O$17:O28)+O29/2),"") -> 
P30: =IFERROR(IF($E30="","",SUM($O$17:O29)+O30/2),"") ->  | W30: =IFERROR(IF($G$6=0,IF($F$2>0,IF(ROW()<$H$5+$A$4,2.5+W29,$F$3-INDIRECT("C"&ROW()-$A$4)),""),""),"") -> 
P31: =IFERROR(IF($E31="","",SUM($O$17:O30)+O31/2),"") ->  | W31: =IFERROR(IF($G$6=0,IF($F$2>0,IF(ROW()<$H$5+$A$4,2.5+W30,$F$3-INDIRECT("C"&ROW()-$A$4)),""),""),"") ->  | AO31: =IF(AO30="","",IF(ROW()<=18+$A$4,AO30+2.5,IF(ROW()>=$C$2+$A$4,"",AO30+INDIRECT("D"&ROW()-$A$4+1)-INDIRECT("D"&ROW()-$A$4)))) -> 
P32: =IFERROR(IF($E32="","",SUM($O$17:O31)+O32/2),"") ->  | AO32: =IF(AO31="","",IF(ROW()<=18+$A$4,AO31+2.5,IF(ROW()>=$C$2+$A$4,"",AO31+INDIRECT("D"&ROW()-$A$4+1)-INDIRECT("D"&ROW()-$A$4)))) -> 
P33: =IFERROR(IF($E33="","",SUM($O$17:O32)+O33/2),"") ->  | AG33: =IF(AF33="","",IF(ROW()<$H$5+$A$4,20,INDIRECT("J"&ROW()-$H$5-$A$4+19))) -> 
P34: =IFERROR(IF($E34="","",SUM($O$17:O33)+O34/2),"") ->  | AG34: =IF(AF34="","",IF(ROW()<$H$5+$A$4,20,INDIRECT("J"&ROW()-$H$5-$A$4+19))) -> 
P35: =IFERROR(IF($E35="","",SUM($O$17:O34)+O35/2),"") -> 
P36: =IFERROR(IF($E36="","",SUM($O$17:O35)+O36/2),"") -> 
P37: =IFERROR(IF($E37="","",SUM($O$17:O36)+O37/2),"") -> 
P38: =IFERROR(IF($E38="","",SUM($O$17:O37)+O38/2),"") -> 
P39: =IFERROR(IF($E39="","",SUM($O$17:O38)+O39/2),"") -> 
P40: =IFERROR(IF($E40="","",SUM($O$17:O39)+O40/2),"") -> 
P41: =IFERROR(IF($E41="","",SUM($O$17:O40)+O41/2),"") -> 
P42: =IFERROR(IF($E42="","",SUM($O$17:O41)+O42/2),"") -> 
AR43: =IFERROR(IF(ROW()<=$C$2,$F$3-INDIRECT("C"&IF($H$6="",18,$H$6)+ROW()-18),""),"") ->  | AS43: =IF(AR42="","",IF(ROW()<=$C$2,INDIRECT("J"&IF($H$6="",18,$H$6)+ROW()-18),"")) ->  | AT43: =IF(AR42="","",IF(ROW()<=$C$2,INDIRECT("F"&IF($H$6="",18,$H$6)+ROW()-18),"")) -> 
S195: =V195&Y195&AB195&AE195&AH195&AK195&AN195&AQ195&AT195 -> 

Sheet B-049-1-23
A1: =MID(CELL("filename",A1),FIND("]",CELL("filename", A1))+1,20) -> B-049-1-23 | Q1: 7 | R1: 8 | S1: 9 | T1: 10 | Y1: Properties for Granular Soils | AL1: =ROUNDUP(($F$3-$F$4)/2.5,0) ->  | AM1: =ROUNDUP(($F$3-$F$4)/2.5,0) ->  | AO1: =F2 ->  | AV1: A-1-a | AW1: Granular | AX1: =INDEX('Foundation Depth Table'!AB5:AB119,MATCH(A9,'Foundation Depth Table'!Z5:Z74,0)) ->  | AY1: =IF(B9="","",INDEX('Foundation Depth Table'!$L$5:$L$2314,MATCH(B9,'Foundation Depth Table'!$K$5:$K$2314,0))) ->  | AZ1: =IF(C9="","",INDEX('Foundation Depth Table'!$L$5:$L$2314,MATCH(C9,'Foundation Depth Table'!$K$5:$K$2314,0))) ->  | BA1: =IF(D9="","",INDEX('Foundation Depth Table'!$L$5:$L$2314,MATCH(D9,'Foundation Depth Table'!$K$5:$K$2314,0))) ->  | BB1: =IF(E9="","",INDEX('Foundation Depth Table'!$L$5:$L$2314,MATCH(E9,'Foundation Depth Table'!$K$5:$K$2314,0))) ->  | BC1: =IF(F9="","",INDEX('Foundation Depth Table'!$L$5:$L$2314,MATCH(F9,'Foundation Depth Table'!$K$5:$K$2314,0))) ->  | BD1: =IF(G9="","",INDEX('Foundation Depth Table'!$L$5:$L$2314,MATCH(G9,'Foundation Depth Table'!$K$5:$K$2314,0))) ->  | BE1: =IF(H9="","",INDEX('Foundation Depth Table'!$L$5:$L$2314,MATCH(H9,'Foundation Depth Table'!$K$5:$K$2314,0))) ->  | BF1: =IF(I9="","",INDEX('Foundation Depth Table'!$L$5:$L$2314,MATCH(I9,'Foundation Depth Table'!$K$5:$K$2314,0))) ->  | BG1: =IF(J9="","",INDEX('Foundation Depth Table'!$L$5:$L$2314,MATCH(J9,'Foundation Depth Table'!$K$5:$K$2314,0))) -> 
A2: =MID(CELL("filename",A2),FIND("]",CELL("filename", A2))+1,20) -> B-049-1-23 | C2: =SUMPRODUCT(MAX(($A18:$A42<>"")*(ROW(A18:A42)))) -> 27 | D2: =INDIRECT("C"&C2) -> 654.9 | E2: =IF(F2=0,"At Grade =",IF(F2>0, "Fill (ft) =", "Cut (ft) =")) -> Fill (ft) = | F2: =IFERROR(ROUND((G5), 2),"") ->  | G2: =IF(H2="","","Rock Elev. (ft)=") ->  | H2: =IF(OR(I2=0,I2="",NOT(ISNUMBER(I2))),"",I2) ->  | I2: =IFERROR(ROUND(INDEX('Foundation Design'!G3:G100,MATCH(A2,'Foundation Design'!A3:A100,0)),2),"") -> 0 | S2: Consistency | T2: Properties for Cohesive Soils N60 Range (bpf) | W2: γwet (pcf) | Z2: N60 Range | AC2: γwet | AL2: =IF(AL1=0,"",($F$3-$F$4)-(AL1-1)*2.5) ->  | AM2: =IF(OR(AM1=0,AM1=1),"",($F$3-$F$4)-(AM1-1)*2.5) ->  | AO2: =AO1/2.5 ->  | AV2: A-1-b | AW2: Granular | AX2: =INDEX('Foundation Depth Table'!AA5:AA74,MATCH(A9,'Foundation Depth Table'!Z5:Z74,0)) ->  | AY2: =IF(B9="","",INDEX('Foundation Depth Table'!$E$5:$E$4274,MATCH(B9,'Foundation Depth Table'!$D$5:$D$4274,0))) ->  | AZ2: =IF(C9="","",INDEX('Foundation Depth Table'!$E$5:$E$4274,MATCH(C9,'Foundation Depth Table'!$D$5:$D$4274,0))) ->  | BA2: =IF(D9="","",INDEX('Foundation Depth Table'!$E$5:$E$4274,MATCH(D9,'Foundation Depth Table'!$D$5:$D$4274,0))) ->  | BB2: =IF(E9="","",INDEX('Foundation Depth Table'!$E$5:$E$4274,MATCH(E9,'Foundation Depth Table'!$D$5:$D$4274,0))) ->  | BC2: =IF(F9="","",INDEX('Foundation Depth Table'!$E$5:$E$4274,MATCH(F9,'Foundation Depth Table'!$D$5:$D$4274,0))) ->  | BD2: =IF(G9="","",INDEX('Foundation Depth Table'!$E$5:$E$4274,MATCH(G9,'Foundation Depth Table'!$D$5:$D$4274,0))) ->  | BE2: =IF(H9="","",INDEX('Foundation Depth Table'!$E$5:$E$4274,MATCH(H9,'Foundation Depth Table'!$D$5:$D$4274,0))) ->  | BF2: =IF(I9="","",INDEX('Foundation Depth Table'!$E$5:$E$4274,MATCH(I9,'Foundation Depth Table'!$D$5:$D$4274,0))) ->  | BG2: =IF(J9="","",INDEX('Foundation Depth Table'!$E$5:$E$4274,MATCH(J9,'Foundation Depth Table'!$D$5:$D$4274,0))) -> 
A3: =MATCH(TRUE,INDEX((Q18:Q42<>0),0),0)+17 -> 18 | C3: =F3+ROUNDUP(INDIRECT("C"&C2)/2.5,0) ->  | E3: Shaft Top Elev. (ft) = | F3: =IFERROR(ROUND(INDEX('Foundation Design'!E3:E100,MATCH(A2,'Foundation Design'!A3:A100,0)),2),"") ->  | G3: =IF(H2="","","Rock UCS (psi)=") ->  | H3: =IF(H2="","",IFERROR(INDEX('Foundation Design'!H3:H100,MATCH(A2,'Foundation Design'!A3:A100,0)),"")) ->  | S3: Pudding | T3: 0 | U3: - | V3: 0 | W3: 100 | Y3: Density | Z3: bpf | AC3: pcf | AO3: =ROUNDDOWN(AO2,0) ->  | AV3: A-2-4 | AW3: Granular | AX3: =IFERROR($F$3-AX1,"") ->  | BA3: =IFERROR($F$3-BA1,"") ->  | BB3: =IFERROR($F$3-BB1,"") -> 
A4: =ROUNDUP(G5/2.5,0) ->  | C4: =ROUNDUP((F3-INDIRECT("C"&C2))/2.5,0) ->  | E4: Boring Top Elev. (ft) = | F4: =IFERROR(ROUND(INDEX('Foundation Design'!D3:D100,MATCH(A2,'Foundation Design'!A3:A100,0)),2),"") -> 679.9 | G4: Ex. Ground Elev.= | H4: =IFERROR(ROUND(INDEX('Foundation Design'!F3:F100,MATCH(A2,'Foundation Design'!A3:A100,0)),2),"") -> 0 | S4: Very Soft | T4: 1 | U4: - | V4: 1 | W4: 105 | Y4: Undensified | Z4: 0 | AA4: - | AC4: 110 | AO4: =AO1-2.5*AO3 ->  | AV4: A-2-5 | AW4: Granular | AX4: =$F$3-AX2 ->  | AY4: =$F$3-AY2 -> 
A5: =IF(MOD(F2,2.5)=0,2.5,F2-(A4-1)*2.5) ->  | E5: Post Spacing (ft) = | F5: =IFERROR(ROUND(INDEX('Foundation Design'!I3:I100,MATCH(A1,'Foundation Design'!A3:A100,0)),0),"") ->  | G5: =F3-H4 ->  | H5: =IFERROR(IF(INDIRECT("B"&MATCH(H4,INDIRECT("B18:B"&$C$2),-1))>H4,MATCH(H4,INDIRECT("B18:B"&$C$2),-1)+1,MATCH(H4,INDIRECT("B18:B"&$C$2),-1))+17,"") -> 27 | S5: V.Soft-Soft | T5: 2 | U5: - | V5: 2 | W5: 108 | Y5: Very Loose | Z5: 1 | AA5: - | AB5: 2 | AC5: 115 | AV5: A-2-6 | AW5: Granular | AX5: =IFERROR(MATCH(AX3,INDIRECT("B18:B"&$C$2),-1)+17,"") -> 
A6: =H5-17 -> 10 | E6: Barrier Height (ft) = | F6: =IFERROR(ROUND(INDEX('Foundation Design'!J3:J100,MATCH(A2,'Foundation Design'!A3:A100,0)),0),"") ->  | G6: =F4-H4 -> 679.9 | H6: =IFERROR(IF(INDIRECT("B"&MATCH(F3,INDIRECT("B18:B"&$C$2),-1))>F3,MATCH(F3,INDIRECT("B18:B"&$C$2),-1)+1,MATCH(F3,INDIRECT("B18:B"&$C$2),-1))+17,"") ->  | S6: Soft | T6: 3 | U6: - | V6: 3 | W6: 110 | Y6: V.Loose-Loose | Z6: 3 | AA6: - | AB6: 5 | AC6: 118 | AV6: A-2-7 | AW6: Granular
E7: Transverse Slope = | F7: =IFERROR(INDEX('Foundation Design'!L3:L100,MATCH(A2,'Foundation Design'!A3:A100,0)),"") ->  | G7: =VLOOKUP(H7,'Foundation Depth Table'!Q5:R484,2,) ->  | H7: =F5&"-"&F6 -> - | S7: Soft-M.Stiff | T7: 4 | U7: - | V7: 4 | W7: 112 | Y7: Loose | Z7: 6 | AA7: - | AB7: 8 | AC7: 120 | AV7: A-3 | AW7: Granular | AX7: =IFERROR(COUNTIF(INDIRECT("S18:S"&AX6),"Cohesive"),"") -> 
A8: =IF($H$2="",AX16,AX26) ->  | K8: 2.116216624 | S8: Medium Stiff | T8: 5 | U8: - | V8: 6 | W8: 115 | Y8: Loose-M.Dense | Z8: 9 | AA8: - | AB8: 14 | AC8: 122 | AV8: A-3a | AW8: Granular | AX8: =IFERROR(COUNTIF(INDIRECT("S"&$A$3&":S"&AX6),"Granular"),"") -> 
A9: =IFERROR($G$7&"-"&IF($F$7="Level",0,$F$7),"") ->  | B9: =IFERROR(IF(A16="","",$G$7&"-"&IF($F$7="Level",0,$F$7)&"-"&A$16),"") ->  | C9: =IFERROR(IF(B16="","",$G$7&"-"&IF($F$7="Level",0,$F$7)&"-"&B$16),"") ->  | S9: M.Stiff-Stiff | T9: 7 | U9: - | V9: 9 | W9: 118 | Y9: Medium Dense | Z9: 15 | AA9: - | AB9: 24 | AC9: 125 | AV9: A-4a P | AW9: Cohesive | AX9: =IFERROR(COUNTIF(INDIRECT("S18:S"&AX5),"Cohesive"),"") -> 
A10: Foundation Depth (ft) | S10: Stiff | T10: 10 | U10: - | V10: 13 | W10: 120 | Y10: M.Dense-Dense | Z10: 25 | AA10: - | AB10: 34 | AC10: 128 | AV10: A-4a NP | AW10: Granular | AX10: =IFERROR(COUNTIF(INDIRECT("S18:S"&AX5),"Granular"),"") -> 
A11: Trial 01 | B11: Trial 02 | C11: Trial 03 | D11: Trial 04 | E11: Trial 05 | F11: Trial 06 | G11: Trial 07 | H11: Trial 08 | I11: Trial 09 | J11: Trial 10 | S11: Stiff-V.Stiff | T11: 14 | U11: - | V11: 19 | W11: 122 | Y11: Dense | Z11: 35 | AA11: - | AB11: 44 | AC11: 130 | AV11: A-4b P | AW11: Cohesive | AX11: =IF(AX9>AX10,"C","G") -> G | AY11: =IF(AY9>AY10,"C","G") -> G | AZ11: G | BA11: G | BB11: G | BC11: G | BD11: G | BE11: G | BF11: G | BG11: G
A12: =IFERROR(IF(OR(A8="",A8=100),"N/A",A8),"N/A") -> N/A | B12: =IFERROR(IF(B8="","",IF(B8=100,"N/A",B8)),"N/A") ->  | C12: =IFERROR(IF(C8="","",IF(C8=100,"N/A",C8)),"N/A") ->  | S12: Very Stiff | T12: 20 | U12: - | V12: 27 | W12: 125 | Y12: Dense-V.Dense | Z12: 45 | AA12: - | AB12: 54 | AC12: 132 | AV12: A-4b NP | AW12: Granular | AX12: =IF(AX11="C",AX1,AX2) ->  | AY12: =IF(AY11="C",AY1,AY2) -> 
A13: =IFERROR($F$3-A12,"") ->  | B13: =IFERROR($F$3-B12,"") ->  | S13: V.Stiff-Hard | T13: 28 | U13: - | V13: 35 | W13: 128 | Y13: Very Dense | Z13: 55 | AA13: - | AB13: 64 | AC13: 135 | AV13: A-5 | AW13: Cohesive | AX13: =IF(AX11="C",AX9,AX7) ->  | AY13: =IF(COUNTIF($AX12:AY12,AY12)>1,"",IF(AY11="C",AY9,AY7)) ->  | AZ13: =IF(COUNTIF($AX12:AZ12,AZ12)>1,"",IF(AZ11="C",AZ9,AZ7)) ->  | BA13: =IF(COUNTIF($AX12:BA12,BA12)>1,"",IF(BA11="C",BA9,BA7)) ->  | BB13: =IF(COUNTIF($AX12:BB12,BB12)>1,"",IF(BB11="C",BB9,BB7)) ->  | BC13: =IF(COUNTIF($AX12:BC12,BC12)>1,"",IF(BC11="C",BC9,BC7)) ->  | BD13: =IF(COUNTIF($AX12:BD12,BD12)>1,"",IF(BD11="C",BD9,BD7)) ->  | BE13: =IF(COUNTIF($AX12:BE12,BE12)>1,"",IF(BE11="C",BE9,BE7)) ->  | BF13: =IF(COUNTIF($AX12:BF12,BF12)>1,"",IF(BF11="C",BF9,BF7)) ->  | BG13: =IF(COUNTIF($AX12:BG12,BG12)>1,"",IF(BG11="C",BG9,BG7)) -> 
A14: =AX13 ->  | B14: =AY13 ->  | S14: Hard | T14: 36 | U14: - | V14: 43 | W14: 130 | Y14: Fully Dense | Z14: 65 | AA14: + | AC14: 140 | AV14: A-6a | AW14: Cohesive | AX14: =IF(AX11="C",AX10,AX8) ->  | AY14: =IF(COUNTIF($AX12:AY12,AY12)>1,"",IF(AY11="C",AY10,AY8)) ->  | AZ14: =IF(COUNTIF($AX12:AZ12,AZ12)>1,"",IF(AZ11="C",AZ10,AZ8)) ->  | BA14: =IF(COUNTIF($AX12:BA12,BA12)>1,"",IF(BA11="C",BA10,BA8)) ->  | BB14: =IF(COUNTIF($AX12:BB12,BB12)>1,"",IF(BB11="C",BB10,BB8)) ->  | BC14: =IF(COUNTIF($AX12:BC12,BC12)>1,"",IF(BC11="C",BC10,BC8)) ->  | BD14: =IF(COUNTIF($AX12:BD12,BD12)>1,"",IF(BD11="C",BD10,BD8)) ->  | BE14: =IF(COUNTIF($AX12:BE12,BE12)>1,"",IF(BE11="C",BE10,BE8)) ->  | BF14: =IF(COUNTIF($AX12:BF12,BF12)>1,"",IF(BF11="C",BF10,BF8)) ->  | BG14: =IF(COUNTIF($AX12:BG12,BG12)>1,"",IF(BG11="C",BG10,BG8)) -> 
A15: =AX14 ->  | S15: Hard-V.Hard | T15: 44 | U15: - | V15: 51 | W15: 135 | AV15: A-6b | AW15: Cohesive | AX15: =IFERROR(IF(AX11="C",CORREL(INDIRECT("Q" & $A$3 &":Q"&AX5),INDIRECT("R" & $A$3 &":R"&AX5)),CORREL(INDIRECT("Q" & $A$3 &":Q"&AX6),INDIRECT("R" & $A$3 &":R"&AX6))),0) -> 0 | AY15: =IF(AY14="","",IFERROR(IF(AY11="C",CORREL(INDIRECT("Q" & $A$3 &":Q"&AY5),INDIRECT("R" & $A$3 &":R"&AY5)),CORREL(INDIRECT("Q" & $A$3 &":Q"&AY6),INDIRECT("R" & $A$3 &":R"&AY6))),0)) ->  | AZ15: =IF(AZ14="","",IFERROR(IF(AZ11="C",CORREL(INDIRECT("Q" & $A$3 &":Q"&AZ5),INDIRECT("R" & $A$3 &":R"&AZ5)),CORREL(INDIRECT("Q" & $A$3 &":Q"&AZ6),INDIRECT("R" & $A$3 &":R"&AZ6))),0)) -> 
A16: =IF(A15="","",ROUND(IF(AX15<0.75,MIN(INDIRECT("R18:R"&AX17)),AVERAGE(INDIRECT("R18:R"&AX17))),0)) ->  | S16: Very Hard | T16: 52 | U16: + | W16: 140 | AV16: A-7-5 | AW16: Cohesive | AX16: =AX12 ->  | AY16: =IF(COUNTIF($AX12:AY12,AY12)>1,"",AY12) ->  | AZ16: =IF(COUNTIF($AX12:AZ12,AZ12)>1,"",AZ12) ->  | BA16: =IF(COUNTIF($AX12:BA12,BA12)>1,"",BA12) ->  | BB16: =IF(COUNTIF($AX12:BB12,BB12)>1,"",BB12) ->  | BC16: =IF(COUNTIF($AX12:BC12,BC12)>1,"",BC12) ->  | BD16: =IF(COUNTIF($AX12:BD12,BD12)>1,"",BD12) ->  | BE16: =IF(COUNTIF($AX12:BE12,BE12)>1,"",BE12) ->  | BF16: =IF(COUNTIF($AX12:BF12,BF12)>1,"",BF12) ->  | BG16: =IF(COUNTIF($AX12:BG12,BG12)>1,"",BG12) -> 
A17: Layer No. | B17: Top Elev. (ft) | C17: Bottom Elev. (ft) | D17: Layer Depth (ft) | E17: Soil Class | F17: Soil Type | G17: N60 (bpf) | H17: CN | I17: N160 (bpf) | J17: Adj. N160 (bpf) | L17: γtot. (pcf) | M17: γsat. (pcf) | N17: γ′ (eff.) (pcf) | O17: σv (psf) | P17: σ′v (psf) | Q17: Depth Cut Fill (ft) | R17: N60 Cut Fill (bpf) | S17: Soil Class | T17: B=Ex G Depth Level | U17: B=Ex G N60 Level | V17: Soil Type | W17: B=Ex G Depth Fill | X17: B=Ex G N60 Fill | Y17: Soil Type | Z17: B=Ex G Depth Cut | AA17: B=Ex G N60 Cut | AB17: Soil Type | AC17: B>Ex G Depth Level | AD17: B>Ex G N60 Level | AE17: Soil Type | AF17: B>Ex G Depth Fill | AG17: B>Ex G N60 Fill | AH17: Soil Type | AI17: B>Ex G Depth Cut | AJ17: B>Ex G N60 Cut | AK17: Soil Type | AL17: B<Ex G Depth Level | AM17: B<Ex G N60 Level | AN17: Soil Type | AO17: B<Ex G Depth Fill | AP17: B<Ex G N60 Fill | AQ17: Soil Type | AR17: B<Ex G Depth Cut | AS17: B<Ex G N60 Cut | AT17: Soil Type | AV17: A-7-6 | AW17: Cohesive | AX17: =IF(AX16<>"",IF(AX11="C",AX5,AX6),"") ->  | AY17: =IF(AY16<>"",IF(AY11="C",AY5,AY6),"") -> 
A18: =IF(D18="","",ROW()-17) -> 1 | B18: =IF(A18="","",$F$4) -> 679.9 | C18: =IFERROR(IF(D18="","",$B$18-D18),"") -> 676.9 | D18: 3 | E18: A-6b | F18: =_xlfn.IFNA(INDEX($AW$1:$AW$21,MATCH($E18,$AV$1:$AV$21,0)),"") -> Cohesive | G18: 12 | H18: =IFERROR(IF($E18="","",IF(0.77*LOG(40/(P18/1000))>2,2,(0.77*LOG(40/(P18/1000))))),"") -> 2 | I18: =IF(OR($E18="",H18="",E18="Rock"),"",IF(F18="Cohesive",G18,G18*H18)) -> 12 | J18: =IF(OR(F18="",I18=""),"",IF(F18="Cohesive",IF(G18>32,32,ROUND(G18,0)),IF(F18="Granular",IF(I18>60,60,ROUND(I18,0))))) -> 12 | L18: =IF(OR($E18="Rock",$E18=""),"",IF(F18="Cohesive",INDIRECT("W"&MATCH(G18,$T$3:$T$16)+2),INDIRECT("AC"&MATCH(G18,$Z$4:$Z$14)+3))) -> 120 | M18: =IF(OR($E18="Rock",$E18=""),"",IF(L18>0,L18-62.4,"")) -> 57.6 | N18: =IFERROR(IF($E18="","",IF($F$4<C18,L18,IF(B18<$F$4,M18,(((B18-$F$4)*L18)+(($F$4-C18)*M18))/(B18-C18)))),"") -> 57.6 | O18: =IFERROR(IF($E18="","",((B18-C18))*N18),"") -> 172.8 | P18: =IFERROR(IF($E18="","",O18/2),"") -> 86.4 | Q18: =IFERROR(IF(AND(T18="",W18="",Z18="",AC18="",AF18="",AI18="",AL18="",AO18="",AR18=""),"",MAX(T18,W18,Z18,AC18,AF18,AI18,AL18,AO18,AR18)),"") ->  | R18: 20 | S18: =IFERROR(V18&Y18&AB18&AE18&AH18&AK18&AN18&AQ18&AT18,"") -> Cohesive | T18: =IF($G$6=0,IF(AND(A18<>"",$F$2=0),D18, ""),"") ->  | U18: =IF(T18="","",J18) ->  | V18: =IF(T18="","",F18) ->  | W18: =IF($G$6=0,IF(AND(A18<>"",$F$2>0),A5, ""),"") ->  | X18: =IF(W18="","",IF(ROW()<$H$5+$A$4,20,INDIRECT("J"&ROW()-$A$4))) ->  | Y18: =IF(W18="","",IF(ROW()<$H$5+$A$4,"Cohesive",INDIRECT("F"&ROW()-$A$4))) ->  | Z18: =IF($G$6=0,IF(AND(A18<>"",$F$2<0),IF($F$3-C18<=0,"",$F$3-C18), ""),"") ->  | AA18: =IF($G$6=0,IF(AND(A18<>"",$F$2<0),IF($F$3-C18<=0,"",J18), ""),"") ->  | AB18: =IF($G$6=0,IF(AND(A18<>"",$F$2<0),IF($F$3-C18<=0,"",F18), ""),"") ->  | AC18: =IF($G$6>0,IF(AND(A18<>"",$F$2=0),IF($F$3-C18<=0,"",$F$3-C18), ""),"") ->  | AD18: =IF(AC18="","",J18) ->  | AE18: =IF(AC18="","",F18) ->  | AF18: =IF($G$6>0,IF(AND(A18<>"",$F$2>0),A5, ""),"") ->  | AG18: =IF($G$6>0,IF(AND(A18<>"",$F$2>0),20, ""),"") -> 20 | AH18: =IF($G$6>0,IF(AND(A18<>"",$F$2>0),"Cohesive", ""),"") -> Cohesive | AI18: =IF($G$6>0,IF(AND(A18<>"",$F$2<0),IF($F$3-C18<=0,"",$F$3-C18), ""),"") ->  | AJ18: =IF(AI18="","",J18) ->  | AK18: =IF(AI18="","",F18) ->  | AL18: =IF($G$6<0,IF($F$2=0,AL2, ""),"") ->  | AM18: =IF(AL18<>"",J18,"") ->  | AN18: =IF(AM18<>"",F18,"") ->  | AO18: =IF($G$6<0,IF($F$2>0,A5, ""),"") ->  | AP18: =IF(AO18="", "",20) ->  | AQ18: =IF(AO18="", "","Cohesive") ->  | AR18: =IF(AND($F$2<0,$G$6<0),IF($F$2<0,IF(ROW()<$H$6,IF($F$3-C18<=0,"",$F$3-C18),IF(ROW()=$H$6,$F$3-INDIRECT("C"&$H$6)))),"") ->  | AS18: =IF($G$6<0,IF($F$2<0,IF(ROW()<$H$6,IF($F$3-C18<=0,"",J18),IF(ROW()=$H$6,INDIRECT("J"&$H$6))),""),"") ->  | AT18: =IF($G$6<0,IF($F$2<0,IF(ROW()<$H$6,IF($F$3-C18<=0,"",F18),IF(ROW()=$H$6,INDIRECT("F"&$H$6))),""),"") ->  | AV18: A-8a NP | AW18: Granular | AX18: =IF(AX16<>"",IF(AX11="C",AX3,AX4),"") ->  | AY18: =IF(AY16<>"",IF(AY11="C",AY3,AY4),"") -> 
A19: =IF(D19="","",ROW()-17) -> 2 | B19: =IF(D19="","",C18) -> 676.9 | C19: =IFERROR(IF(D19="","",$B$18-D19),"") -> 674.4 | D19: 5.5 | E19: A-6b | F19: Cohesive | G19: 15 | H19: =IFERROR(IF($E19="","",IF((0.77*LOG(40/(P19/1000)))>2,2,(0.77*LOG(40/(P19/1000))))),"") -> 1.700803624 | I19: =IF(OR($E19="",H19="",E19="Rock"),"",IF(F19="Cohesive",G19,G19*H19)) -> 15 | J19: =IF(OR(F19="",I19=""),"",IF(F19="Cohesive",IF(G19>32,32,ROUND(G19,0)),IF(F19="Granular",IF(I19>60,60,ROUND(I19,0))))) -> 15 | L19: =IF(OR($E19="Rock",$E19=""),"",IF(F19="Cohesive",INDIRECT("W"&MATCH(G19,$T$3:$T$16)+2),INDIRECT("AC"&MATCH(G19,$Z$4:$Z$14)+3))) -> 122 | M19: =IF(OR($E19="Rock",$E19=""),"",IF(L19>0,L19-62.4,"")) -> 59.6 | N19: =IFERROR(IF($E19="","",IF($F$4<C19,L19,IF(B19<$F$4,M19,(((B19-$F$4)*L19)+(($F$4-C19)*M19))/(B19-C19)))),"") -> 59.6 | O19: =IFERROR(IF($E19="","",((B19-C19))*N19),"") -> 149 | P19: =IFERROR(IF($E19="","",SUM($O$17:O18)+O19/2),"") -> 247.3 | T19: =IF($G$6=0,IF(AND(A19<>"",$F$2=0),D19, ""),"") ->  | U19: =IF(T19="","",J19) ->  | V19: =IF(T19="","",F19) ->  | W19: =IFERROR(IF($G$6=0,IF($F$2>0,IF(ROW()<$H$5+$A$4,2.5+W18,$F$3-INDIRECT("C"&ROW()-$A$4)),""),""),"") ->  | X19: =IF(W19="","",IF(ROW()<$H$5+$A$4,20,INDIRECT("J"&ROW()-$A$4))) ->  | Y19: =IF(W19="","",IF(ROW()<$H$5+$A$4,"Cohesive",INDIRECT("F"&ROW()-$A$4))) ->  | Z19: =IF($G$6=0,IF(AND(A19<>"",$F$2<0),IF($F$3-C19<=0,"",$F$3-C19), ""),"") ->  | AA19: =IF($G$6=0,IF(AND(A19<>"",$F$2<0),IF($F$3-C19<=0,"",J19), ""),"") ->  | AB19: =IF($G$6=0,IF(AND(A19<>"",$F$2<0),IF($F$3-C19<=0,"",F19), ""),"") ->  | AC19: =IF($G$6>0,IF(AND(A19<>"",$F$2=0),IF($F$3-C19<=0,"",$F$3-C19), ""),"") ->  | AD19: =IF(AC19="","",J19) ->  | AE19: =IF(AC19="","",F19) ->  | AF19: =IF($G$6>0,IF($F$2>0,IF(ROW()<=$H$5+$A$4,2.5+AF18,IF(ROW()>$A$4+$C$2,"",$F$3-INDIRECT("C"&ROW()-$A$4))), ""),"") ->  | AG19: =IF(AF19="","",IF(ROW()<$H$5+$A$4,20,INDIRECT("J"&ROW()-$H$5-$A$4+19))) ->  | AH19: =IF(AF19="","",IF(ROW()<=$H$5+$A$4,"Cohesive",INDIRECT("F"&ROW()-$H$5-$A$4+17))) ->  | AI19: =IF($G$6>0,IF(AND(A19<>"",$F$2<0),IF($F$3-C19<=0,"",$F$3-C19), ""),"") ->  | AJ19: =IF(AI19="","",J19) ->  | AK19: =IF(AI19="","",F19) ->  | AL19: =IF($G$6<0,IF($F$2=0,IF(ROW()<=18+$AL$1,2.5+AL18,IF(ROW()>$AL$1+$C$2,"",INDIRECT("D"&ROW()-$AL$1))), ""),"") ->  | AM19: =IF($G$6<0,IF($F$2=0,IF(ROW()<=18+$AL$1,AM18,IF(ROW()>$AL$1+$C$2,"",INDIRECT("J"&ROW()-$AL$1))), ""),"") ->  | AN19: =IF($G$6<0,IF($F$2=0,IF(ROW()<=18+$AL$1,AN18,IF(ROW()>$AL$1+$C$2,"",INDIRECT("F"&ROW()-$AL$1))), ""),"") ->  | AO19: =IF(AO18="","",IF(ROW()<=18+$A$4,AO18+2.5,IF(ROW()>=$C$2+$A$4,"",AO18+INDIRECT("D"&ROW()-$A$4+1)-INDIRECT("D"&ROW()-$A$4)))) ->  | AP19: =IF(AO18="","",IF(ROW()<=18+$A$4,20,IF(ROW()>=$C$2+$A$4,"",INDIRECT("J"&ROW()-$A$4-1)))) ->  | AQ19: =IF(AO18="","",IF(ROW()<=18+$A$4,"Cohesive",IF(ROW()>=$C$2+$A$4,"",INDIRECT("F"&ROW()-$A$4-1)))) ->  | AR19: =IFERROR(IF(AND($F$2<0,$G$6<0),IF(ROW()<=$C$2,$F$3-INDIRECT("C"&IF($H$6="",18,$H$6)+ROW()-18),""),""),"") ->  | AS19: =IF(AND($F$2<0,$G$6<0),IF(ROW()<=$C$2,INDIRECT("J"&IF($H$6="",18,$H$6)+ROW()-18),""),"") ->  | AT19: =IF(AND($F$2<0,$G$6<0),IF(ROW()<=$C$2,INDIRECT("F"&IF($H$6="",18,$H$6)+ROW()-18),""),"") ->  | AV19: A-8a P | AW19: Cohesive | AX19: =H2 ->  | AY19: =$AX$19 ->  | AZ19: =$AX$19 -> 
A20: 3 | B20: =IF(D20="","",C19) -> 674.4 | C20: 671.9 | D20: 8 | E20: A-6b | F20: Cohesive | G20: 24 | H20: 1.539958202 | I20: 24 | J20: 24 | L20: =IF(OR($E20="Rock",$E20=""),"",IF(F20="Cohesive",INDIRECT("W"&MATCH(G20,$T$3:$T$16)+2),INDIRECT("AC"&MATCH(G20,$Z$4:$Z$14)+3))) -> 125 | M20: =IF(OR($E20="Rock",$E20=""),"",IF(L20>0,L20-62.4,"")) -> 62.6 | N20: =IFERROR(IF($E20="","",IF($F$4<C20,L20,IF(B20<$F$4,M20,(((B20-$F$4)*L20)+(($F$4-C20)*M20))/(B20-C20)))),"") -> 62.6 | O20: =IFERROR(IF($E20="","",((B20-C20))*N20),"") -> 156.5 | P20: =IFERROR(IF($E20="","",SUM($O$17:O19)+O20/2),"") -> 400.05 | AL20: =IF($G$6<0,IF($F$2=0,IF(ROW()<=18+$AL$1,2.5+AL19,IF(ROW()>$AL$1+$C$2,"",INDIRECT("D"&ROW()-$AL$1))), ""),"") ->  | AM20: =IF($G$6<0,IF($F$2=0,IF(ROW()<=18+$AL$1,AM19,IF(ROW()>$AL$1+$C$2,"",INDIRECT("J"&ROW()-$AL$1))), ""),"") ->  | AN20: =IF($G$6<0,IF($F$2=0,IF(ROW()<=18+$AL$1,AN19,IF(ROW()>$AL$1+$C$2,"",INDIRECT("F"&ROW()-$AL$1))), ""),"") ->  | AP20: =IF(AO19="","",IF(ROW()<=18+$A$4,20,IF(ROW()>=$C$2+$A$4,"",INDIRECT("J"&ROW()-$A$4-1)))) ->  | AQ20: =IF(AO19="","",IF(ROW()<=18+$A$4,"Cohesive",IF(ROW()>=$C$2+$A$4,"",INDIRECT("F"&ROW()-$A$4-1)))) ->  | AR20: =IFERROR(IF(AND($F$2<0,$G$6<0),IF(ROW()<=$C$2,$F$3-INDIRECT("C"&IF($H$6="",18,$H$6)+ROW()-18),""),""),"") ->  | AS20: =IF(AND($F$2<0,$G$6<0),IF(ROW()<=$C$2,INDIRECT("J"&IF($H$6="",18,$H$6)+ROW()-18),""),"") ->  | AT20: =IF(AND($F$2<0,$G$6<0),IF(ROW()<=$C$2,INDIRECT("F"&IF($H$6="",18,$H$6)+ROW()-18),""),"") ->  | AV20: A-8b NP | AW20: Granular | AX20: =IF(H3>=7500,3,5) -> 3 | AY20: =$AX$20 -> 3 | AZ20: =$AX$20 -> 3 | BA20: 3 | BB20: 3 | BC20: 3 | BD20: 3 | BE20: 3 | BF20: 3 | BG20: 3
A21: 4 | B21: 671.9 | C21: 669.4 | D21: 10.5 | E21: A-6b | F21: Cohesive | G21: 17 | H21: 1.431808807 | I21: 17 | J21: 17 | L21: 122 | M21: 59.6 | N21: 59.6 | O21: 149 | P21: =IFERROR(IF($E21="","",SUM($O$17:O20)+O21/2),"") -> 552.8 | AV21: A-8b P | AW21: Cohesive | AX21: =IFERROR(AX19-AX20,"") ->  | AY21: =AY19-AY20 -> 
A22: 5 | B22: 669.4 | C22: 666.9 | D22: 13 | E22: A-6a | F22: Cohesive | G22: 17 | H22: 1.352001903 | I22: 17 | J22: 17 | L22: 122 | M22: 59.6 | N22: 59.6 | O22: 149 | P22: =IFERROR(IF($E22="","",SUM($O$17:O21)+O22/2),"") -> 701.8 | AV22: Rock | AW22: Rock | AX22: =IF(AX18="","",IF(AX19>AX18,IF(AX18<AX21,AX21,AX18),AX18)) ->  | AY22: =IF(AY18="","",IF(AY19>AY18,IF(AY18<AY21,AY21,AY18),AY18)) -> 
A23: 6 | B23: 666.9 | C23: 664.4 | D23: 15.5 | E23: A-6a | F23: Cohesive | G23: 19 | H23: 1.287619033 | I23: 19 | J23: 19 | L23: 122 | M23: 59.6 | N23: 59.6 | O23: 149 | P23: =IFERROR(IF($E23="","",SUM($O$17:O22)+O23/2),"") -> 850.8 | AX23: =IF(AX22="","",$F$3-AX22) ->  | AY23: =IF(AY22="","",$F$3-AY22) -> 
A24: 7 | B24: 664.4 | C24: 661.9 | D24: 18 | E24: A-6a | F24: Cohesive | G24: 29 | H24: 1.231153891 | I24: 29 | J24: 29 | L24: 128 | M24: 65.6 | N24: 65.6 | O24: 164 | P24: =IFERROR(IF($E24="","",SUM($O$17:O23)+O24/2),"") -> 1007.3 | AF24: =IF($G$6>0,IF($F$2>0,IF(ROW()<=$H$5+$A$4,2.5+AF23,IF(ROW()>$A$4+$C$2,"",$F$3-INDIRECT("C"&ROW()-$A$4))), ""),"") ->  | AH24: =IF(AF24="","",IF(ROW()<=$H$5+$A$4,"Cohesive",INDIRECT("F"&ROW()-$H$5-$A$4+17))) ->  | AX24: =IFERROR(AX23/0.5,"") ->  | AY24: =IFERROR(AY23/0.5,"") ->  | AZ24: =IFERROR(AZ23/0.5,"") -> 
A25: 8 | B25: 661.9 | C25: 659.4 | D25: 20.5 | E25: A-6a | F25: Cohesive | G25: 29 | H25: 1.180711723 | I25: 29 | J25: 29 | L25: 128 | M25: 65.6 | N25: 65.6 | O25: 164 | P25: =IFERROR(IF($E25="","",SUM($O$17:O24)+O25/2),"") -> 1171.3 | AF25: =IF($G$6>0,IF($F$2>0,IF(ROW()<=$H$5+$A$4,2.5+AF24,IF(ROW()>$A$4+$C$2,"",$F$3-INDIRECT("C"&ROW()-$A$4))), ""),"") ->  | AH25: =IF(AF25="","",IF(ROW()<=$H$5+$A$4,"Cohesive",INDIRECT("F"&ROW()-$H$5-$A$4+17))) ->  | AX25: =IFERROR(ROUNDUP(AX24,0),"") ->  | AY25: =IFERROR(ROUNDUP(AY24,0),"") ->  | AZ25: =IFERROR(ROUNDUP(AZ24,0),"") -> 
A26: 9 | B26: 659.4 | C26: 656.9 | D26: 23 | E26: A-4a P | F26: Cohesive | G26: 42 | H26: 1.136264976 | I26: 42 | J26: 32 | L26: 130 | M26: 67.6 | N26: 67.6 | O26: 169 | P26: =IFERROR(IF($E26="","",SUM($O$17:O25)+O26/2),"") -> 1337.8 | AX26: =IFERROR(IF(AX18="","",AX25*0.5),"") ->  | AY26: =IFERROR(IF(AY18="","",AY25*0.5),"") -> 
A27: 10 | B27: 656.9 | C27: 654.9 | D27: 25 | E27: A-4a P | F27: Cohesive | G27: 65 | H27: 1.098018218 | I27: 65 | J27: =IF(OR(F27="",I27=""),"",IF(F27="Cohesive",IF(G27>32,32,ROUND(G27,0)),IF(F27="Granular",IF(I27>60,60,ROUND(I27,0))))) -> 32 | L27: 140 | M27: 77.6 | N27: 77.6 | O27: 155.2 | P27: =IFERROR(IF($E27="","",SUM($O$17:O26)+O27/2),"") -> 1499.9
J28: =IF(OR(F28="",I28=""),"",IF(F28="Cohesive",IF(G28>32,32,ROUND(G28,0)),IF(F28="Granular",IF(I28>60,60,ROUND(I28,0))))) ->  | P28: =IFERROR(IF($E28="","",SUM($O$17:O27)+O28/2),"") -> 
P29: =IFERROR(IF($E29="","",SUM($O$17:O28)+O29/2),"") -> 
P30: =IFERROR(IF($E30="","",SUM($O$17:O29)+O30/2),"") ->  | W30: =IFERROR(IF($G$6=0,IF($F$2>0,IF(ROW()<$H$5+$A$4,2.5+W29,$F$3-INDIRECT("C"&ROW()-$A$4)),""),""),"") -> 
P31: =IFERROR(IF($E31="","",SUM($O$17:O30)+O31/2),"") ->  | W31: =IFERROR(IF($G$6=0,IF($F$2>0,IF(ROW()<$H$5+$A$4,2.5+W30,$F$3-INDIRECT("C"&ROW()-$A$4)),""),""),"") ->  | AO31: =IF(AO30="","",IF(ROW()<=18+$A$4,AO30+2.5,IF(ROW()>=$C$2+$A$4,"",AO30+INDIRECT("D"&ROW()-$A$4+1)-INDIRECT("D"&ROW()-$A$4)))) -> 
P32: =IFERROR(IF($E32="","",SUM($O$17:O31)+O32/2),"") ->  | AO32: =IF(AO31="","",IF(ROW()<=18+$A$4,AO31+2.5,IF(ROW()>=$C$2+$A$4,"",AO31+INDIRECT("D"&ROW()-$A$4+1)-INDIRECT("D"&ROW()-$A$4)))) -> 
P33: =IFERROR(IF($E33="","",SUM($O$17:O32)+O33/2),"") ->  | AG33: =IF(AF33="","",IF(ROW()<$H$5+$A$4,20,INDIRECT("J"&ROW()-$H$5-$A$4+19))) -> 
P34: =IFERROR(IF($E34="","",SUM($O$17:O33)+O34/2),"") ->  | AG34: =IF(AF34="","",IF(ROW()<$H$5+$A$4,20,INDIRECT("J"&ROW()-$H$5-$A$4+19))) -> 
P35: =IFERROR(IF($E35="","",SUM($O$17:O34)+O35/2),"") -> 
P36: =IFERROR(IF($E36="","",SUM($O$17:O35)+O36/2),"") -> 
P37: =IFERROR(IF($E37="","",SUM($O$17:O36)+O37/2),"") -> 
P38: =IFERROR(IF($E38="","",SUM($O$17:O37)+O38/2),"") -> 
P39: =IFERROR(IF($E39="","",SUM($O$17:O38)+O39/2),"") -> 
P40: =IFERROR(IF($E40="","",SUM($O$17:O39)+O40/2),"") -> 
P41: =IFERROR(IF($E41="","",SUM($O$17:O40)+O41/2),"") -> 
P42: =IFERROR(IF($E42="","",SUM($O$17:O41)+O42/2),"") -> 
AR43: =IFERROR(IF(ROW()<=$C$2,$F$3-INDIRECT("C"&IF($H$6="",18,$H$6)+ROW()-18),""),"") ->  | AS43: =IF(AR42="","",IF(ROW()<=$C$2,INDIRECT("J"&IF($H$6="",18,$H$6)+ROW()-18),"")) ->  | AT43: =IF(AR42="","",IF(ROW()<=$C$2,INDIRECT("F"&IF($H$6="",18,$H$6)+ROW()-18),"")) -> 
S195: =V195&Y195&AB195&AE195&AH195&AK195&AN195&AQ195&AT195 -> 

Sheet B-049-2-23
A1: =MID(CELL("filename",A1),FIND("]",CELL("filename", A1))+1,20) -> B-049-2-23 | Q1: 7 | R1: 8 | S1: 9 | T1: 10 | Y1: Properties for Granular Soils | AL1: =ROUNDUP(($F$3-$F$4)/2.5,0) ->  | AM1: =ROUNDUP(($F$3-$F$4)/2.5,0) ->  | AO1: =F2 ->  | AV1: A-1-a | AW1: Granular | AX1: =INDEX('Foundation Depth Table'!AB5:AB119,MATCH(A9,'Foundation Depth Table'!Z5:Z74,0)) ->  | AY1: =IF(B9="","",INDEX('Foundation Depth Table'!$L$5:$L$2314,MATCH(B9,'Foundation Depth Table'!$K$5:$K$2314,0))) ->  | AZ1: =IF(C9="","",INDEX('Foundation Depth Table'!$L$5:$L$2314,MATCH(C9,'Foundation Depth Table'!$K$5:$K$2314,0))) ->  | BA1: =IF(D9="","",INDEX('Foundation Depth Table'!$L$5:$L$2314,MATCH(D9,'Foundation Depth Table'!$K$5:$K$2314,0))) ->  | BB1: =IF(E9="","",INDEX('Foundation Depth Table'!$L$5:$L$2314,MATCH(E9,'Foundation Depth Table'!$K$5:$K$2314,0))) ->  | BC1: =IF(F9="","",INDEX('Foundation Depth Table'!$L$5:$L$2314,MATCH(F9,'Foundation Depth Table'!$K$5:$K$2314,0))) ->  | BD1: =IF(G9="","",INDEX('Foundation Depth Table'!$L$5:$L$2314,MATCH(G9,'Foundation Depth Table'!$K$5:$K$2314,0))) ->  | BE1: =IF(H9="","",INDEX('Foundation Depth Table'!$L$5:$L$2314,MATCH(H9,'Foundation Depth Table'!$K$5:$K$2314,0))) ->  | BF1: =IF(I9="","",INDEX('Foundation Depth Table'!$L$5:$L$2314,MATCH(I9,'Foundation Depth Table'!$K$5:$K$2314,0))) ->  | BG1: =IF(J9="","",INDEX('Foundation Depth Table'!$L$5:$L$2314,MATCH(J9,'Foundation Depth Table'!$K$5:$K$2314,0))) -> 
A2: =MID(CELL("filename",A2),FIND("]",CELL("filename", A2))+1,20) -> B-049-2-23 | C2: =SUMPRODUCT(MAX(($A18:$A42<>"")*(ROW(A18:A42)))) -> 27 | D2: =INDIRECT("C"&C2) -> 656.7 | E2: =IF(F2=0,"At Grade =",IF(F2>0, "Fill (ft) =", "Cut (ft) =")) -> Fill (ft) = | F2: =IFERROR(ROUND((G5), 2),"") ->  | G2: =IF(H2="","","Rock Elev. (ft)=") ->  | H2: =IF(OR(I2=0,I2="",NOT(ISNUMBER(I2))),"",I2) ->  | I2: =IFERROR(ROUND(INDEX('Foundation Design'!G3:G100,MATCH(A2,'Foundation Design'!A3:A100,0)),2),"") -> 0 | S2: Consistency | T2: Properties for Cohesive Soils N60 Range (bpf) | W2: γwet (pcf) | Z2: N60 Range | AC2: γwet | AL2: =IF(AL1=0,"",($F$3-$F$4)-(AL1-1)*2.5) ->  | AM2: =IF(OR(AM1=0,AM1=1),"",($F$3-$F$4)-(AM1-1)*2.5) ->  | AO2: =AO1/2.5 ->  | AV2: A-1-b | AW2: Granular | AX2: =INDEX('Foundation Depth Table'!AA5:AA74,MATCH(A9,'Foundation Depth Table'!Z5:Z74,0)) ->  | AY2: =IF(B9="","",INDEX('Foundation Depth Table'!$E$5:$E$4274,MATCH(B9,'Foundation Depth Table'!$D$5:$D$4274,0))) ->  | AZ2: =IF(C9="","",INDEX('Foundation Depth Table'!$E$5:$E$4274,MATCH(C9,'Foundation Depth Table'!$D$5:$D$4274,0))) ->  | BA2: =IF(D9="","",INDEX('Foundation Depth Table'!$E$5:$E$4274,MATCH(D9,'Foundation Depth Table'!$D$5:$D$4274,0))) ->  | BB2: =IF(E9="","",INDEX('Foundation Depth Table'!$E$5:$E$4274,MATCH(E9,'Foundation Depth Table'!$D$5:$D$4274,0))) ->  | BC2: =IF(F9="","",INDEX('Foundation Depth Table'!$E$5:$E$4274,MATCH(F9,'Foundation Depth Table'!$D$5:$D$4274,0))) ->  | BD2: =IF(G9="","",INDEX('Foundation Depth Table'!$E$5:$E$4274,MATCH(G9,'Foundation Depth Table'!$D$5:$D$4274,0))) ->  | BE2: =IF(H9="","",INDEX('Foundation Depth Table'!$E$5:$E$4274,MATCH(H9,'Foundation Depth Table'!$D$5:$D$4274,0))) ->  | BF2: =IF(I9="","",INDEX('Foundation Depth Table'!$E$5:$E$4274,MATCH(I9,'Foundation Depth Table'!$D$5:$D$4274,0))) ->  | BG2: =IF(J9="","",INDEX('Foundation Depth Table'!$E$5:$E$4274,MATCH(J9,'Foundation Depth Table'!$D$5:$D$4274,0))) -> 
A3: =MATCH(TRUE,INDEX((Q18:Q42<>0),0),0)+17 -> 18 | C3: =F3+ROUNDUP(INDIRECT("C"&C2)/2.5,0) ->  | E3: Shaft Top Elev. (ft) = | F3: =IFERROR(ROUND(INDEX('Foundation Design'!E3:E100,MATCH(A2,'Foundation Design'!A3:A100,0)),2),"") ->  | G3: =IF(H2="","","Rock UCS (psi)=") ->  | H3: =IF(H2="","",IFERROR(INDEX('Foundation Design'!H3:H100,MATCH(A2,'Foundation Design'!A3:A100,0)),"")) ->  | S3: Pudding | T3: 0 | U3: - | V3: 0 | W3: 100 | Y3: Density | Z3: bpf | AC3: pcf | AO3: =ROUNDDOWN(AO2,0) ->  | AV3: A-2-4 | AW3: Granular | AX3: =IFERROR($F$3-AX1,"") ->  | BA3: =IFERROR($F$3-BA1,"") ->  | BB3: =IFERROR($F$3-BB1,"") -> 
A4: =ROUNDUP(G5/2.5,0) ->  | C4: =ROUNDUP((F3-INDIRECT("C"&C2))/2.5,0) ->  | E4: Boring Top Elev. (ft) = | F4: =IFERROR(ROUND(INDEX('Foundation Design'!D3:D100,MATCH(A2,'Foundation Design'!A3:A100,0)),2),"") -> 681.7 | G4: Ex. Ground Elev.= | H4: =IFERROR(ROUND(INDEX('Foundation Design'!F3:F100,MATCH(A2,'Foundation Design'!A3:A100,0)),2),"") -> 0 | S4: Very Soft | T4: 1 | U4: - | V4: 1 | W4: 105 | Y4: Undensified | Z4: 0 | AA4: - | AC4: 110 | AO4: =AO1-2.5*AO3 ->  | AV4: A-2-5 | AW4: Granular | AX4: =$F$3-AX2 ->  | AY4: =$F$3-AY2 -> 
A5: =IF(MOD(F2,2.5)=0,2.5,F2-(A4-1)*2.5) ->  | E5: Post Spacing (ft) = | F5: =IFERROR(ROUND(INDEX('Foundation Design'!I3:I100,MATCH(A1,'Foundation Design'!A3:A100,0)),0),"") ->  | G5: =F3-H4 ->  | H5: =IFERROR(IF(INDIRECT("B"&MATCH(H4,INDIRECT("B18:B"&$C$2),-1))>H4,MATCH(H4,INDIRECT("B18:B"&$C$2),-1)+1,MATCH(H4,INDIRECT("B18:B"&$C$2),-1))+17,"") -> 27 | S5: V.Soft-Soft | T5: 2 | U5: - | V5: 2 | W5: 108 | Y5: Very Loose | Z5: 1 | AA5: - | AB5: 2 | AC5: 115 | AV5: A-2-6 | AW5: Granular | AX5: =IFERROR(MATCH(AX3,INDIRECT("B18:B"&$C$2),-1)+17,"") -> 
A6: =H5-17 -> 10 | E6: Barrier Height (ft) = | F6: =IFERROR(ROUND(INDEX('Foundation Design'!J3:J100,MATCH(A2,'Foundation Design'!A3:A100,0)),0),"") ->  | G6: =F4-H4 -> 681.7 | H6: =IFERROR(IF(INDIRECT("B"&MATCH(F3,INDIRECT("B18:B"&$C$2),-1))>F3,MATCH(F3,INDIRECT("B18:B"&$C$2),-1)+1,MATCH(F3,INDIRECT("B18:B"&$C$2),-1))+17,"") ->  | S6: Soft | T6: 3 | U6: - | V6: 3 | W6: 110 | Y6: V.Loose-Loose | Z6: 3 | AA6: - | AB6: 5 | AC6: 118 | AV6: A-2-7 | AW6: Granular
E7: Transverse Slope = | F7: =IFERROR(INDEX('Foundation Design'!L3:L100,MATCH(A2,'Foundation Design'!A3:A100,0)),"") ->  | G7: =VLOOKUP(H7,'Foundation Depth Table'!Q5:R484,2,) ->  | H7: =F5&"-"&F6 -> - | S7: Soft-M.Stiff | T7: 4 | U7: - | V7: 4 | W7: 112 | Y7: Loose | Z7: 6 | AA7: - | AB7: 8 | AC7: 120 | AV7: A-3 | AW7: Granular | AX7: =IFERROR(COUNTIF(INDIRECT("S18:S"&AX6),"Cohesive"),"") -> 
A8: =IF($H$2="",AX16,AX26) ->  | K8: 2.116216624 | S8: Medium Stiff | T8: 5 | U8: - | V8: 6 | W8: 115 | Y8: Loose-M.Dense | Z8: 9 | AA8: - | AB8: 14 | AC8: 122 | AV8: A-3a | AW8: Granular | AX8: =IFERROR(COUNTIF(INDIRECT("S"&$A$3&":S"&AX6),"Granular"),"") -> 
A9: =IFERROR($G$7&"-"&IF($F$7="Level",0,$F$7),"") ->  | B9: =IFERROR(IF(A16="","",$G$7&"-"&IF($F$7="Level",0,$F$7)&"-"&A$16),"") ->  | C9: =IFERROR(IF(B16="","",$G$7&"-"&IF($F$7="Level",0,$F$7)&"-"&B$16),"") ->  | S9: M.Stiff-Stiff | T9: 7 | U9: - | V9: 9 | W9: 118 | Y9: Medium Dense | Z9: 15 | AA9: - | AB9: 24 | AC9: 125 | AV9: A-4a P | AW9: Cohesive | AX9: =IFERROR(COUNTIF(INDIRECT("S18:S"&AX5),"Cohesive"),"") -> 
A10: Foundation Depth (ft) | S10: Stiff | T10: 10 | U10: - | V10: 13 | W10: 120 | Y10: M.Dense-Dense | Z10: 25 | AA10: - | AB10: 34 | AC10: 128 | AV10: A-4a NP | AW10: Granular | AX10: =IFERROR(COUNTIF(INDIRECT("S18:S"&AX5),"Granular"),"") -> 
A11: Trial 01 | B11: Trial 02 | C11: Trial 03 | D11: Trial 04 | E11: Trial 05 | F11: Trial 06 | G11: Trial 07 | H11: Trial 08 | I11: Trial 09 | J11: Trial 10 | S11: Stiff-V.Stiff | T11: 14 | U11: - | V11: 19 | W11: 122 | Y11: Dense | Z11: 35 | AA11: - | AB11: 44 | AC11: 130 | AV11: A-4b P | AW11: Cohesive | AX11: =IF(AX9>AX10,"C","G") -> G | AY11: =IF(AY9>AY10,"C","G") -> G | AZ11: G | BA11: G | BB11: G | BC11: G | BD11: G | BE11: G | BF11: G | BG11: G
A12: =IFERROR(IF(OR(A8="",A8=100),"N/A",A8),"N/A") -> N/A | B12: =IFERROR(IF(B8="","",IF(B8=100,"N/A",B8)),"N/A") ->  | C12: =IFERROR(IF(C8="","",IF(C8=100,"N/A",C8)),"N/A") ->  | S12: Very Stiff | T12: 20 | U12: - | V12: 27 | W12: 125 | Y12: Dense-V.Dense | Z12: 45 | AA12: - | AB12: 54 | AC12: 132 | AV12: A-4b NP | AW12: Granular | AX12: =IF(AX11="C",AX1,AX2) ->  | AY12: =IF(AY11="C",AY1,AY2) -> 
A13: =IFERROR($F$3-A12,"") ->  | B13: =IFERROR($F$3-B12,"") ->  | S13: V.Stiff-Hard | T13: 28 | U13: - | V13: 35 | W13: 128 | Y13: Very Dense | Z13: 55 | AA13: - | AB13: 64 | AC13: 135 | AV13: A-5 | AW13: Cohesive | AX13: =IF(AX11="C",AX9,AX7) ->  | AY13: =IF(COUNTIF($AX12:AY12,AY12)>1,"",IF(AY11="C",AY9,AY7)) ->  | AZ13: =IF(COUNTIF($AX12:AZ12,AZ12)>1,"",IF(AZ11="C",AZ9,AZ7)) ->  | BA13: =IF(COUNTIF($AX12:BA12,BA12)>1,"",IF(BA11="C",BA9,BA7)) ->  | BB13: =IF(COUNTIF($AX12:BB12,BB12)>1,"",IF(BB11="C",BB9,BB7)) ->  | BC13: =IF(COUNTIF($AX12:BC12,BC12)>1,"",IF(BC11="C",BC9,BC7)) ->  | BD13: =IF(COUNTIF($AX12:BD12,BD12)>1,"",IF(BD11="C",BD9,BD7)) ->  | BE13: =IF(COUNTIF($AX12:BE12,BE12)>1,"",IF(BE11="C",BE9,BE7)) ->  | BF13: =IF(COUNTIF($AX12:BF12,BF12)>1,"",IF(BF11="C",BF9,BF7)) ->  | BG13: =IF(COUNTIF($AX12:BG12,BG12)>1,"",IF(BG11="C",BG9,BG7)) -> 
A14: =AX13 ->  | B14: =AY13 ->  | S14: Hard | T14: 36 | U14: - | V14: 43 | W14: 130 | Y14: Fully Dense | Z14: 65 | AA14: + | AC14: 140 | AV14: A-6a | AW14: Cohesive | AX14: =IF(AX11="C",AX10,AX8) ->  | AY14: =IF(COUNTIF($AX12:AY12,AY12)>1,"",IF(AY11="C",AY10,AY8)) ->  | AZ14: =IF(COUNTIF($AX12:AZ12,AZ12)>1,"",IF(AZ11="C",AZ10,AZ8)) ->  | BA14: =IF(COUNTIF($AX12:BA12,BA12)>1,"",IF(BA11="C",BA10,BA8)) ->  | BB14: =IF(COUNTIF($AX12:BB12,BB12)>1,"",IF(BB11="C",BB10,BB8)) ->  | BC14: =IF(COUNTIF($AX12:BC12,BC12)>1,"",IF(BC11="C",BC10,BC8)) ->  | BD14: =IF(COUNTIF($AX12:BD12,BD12)>1,"",IF(BD11="C",BD10,BD8)) ->  | BE14: =IF(COUNTIF($AX12:BE12,BE12)>1,"",IF(BE11="C",BE10,BE8)) ->  | BF14: =IF(COUNTIF($AX12:BF12,BF12)>1,"",IF(BF11="C",BF10,BF8)) ->  | BG14: =IF(COUNTIF($AX12:BG12,BG12)>1,"",IF(BG11="C",BG10,BG8)) -> 
A15: =AX14 ->  | S15: Hard-V.Hard | T15: 44 | U15: - | V15: 51 | W15: 135 | AV15: A-6b | AW15: Cohesive | AX15: =IFERROR(IF(AX11="C",CORREL(INDIRECT("Q" & $A$3 &":Q"&AX5),INDIRECT("R" & $A$3 &":R"&AX5)),CORREL(INDIRECT("Q" & $A$3 &":Q"&AX6),INDIRECT("R" & $A$3 &":R"&AX6))),0) -> 0 | AY15: =IF(AY14="","",IFERROR(IF(AY11="C",CORREL(INDIRECT("Q" & $A$3 &":Q"&AY5),INDIRECT("R" & $A$3 &":R"&AY5)),CORREL(INDIRECT("Q" & $A$3 &":Q"&AY6),INDIRECT("R" & $A$3 &":R"&AY6))),0)) ->  | AZ15: =IF(AZ14="","",IFERROR(IF(AZ11="C",CORREL(INDIRECT("Q" & $A$3 &":Q"&AZ5),INDIRECT("R" & $A$3 &":R"&AZ5)),CORREL(INDIRECT("Q" & $A$3 &":Q"&AZ6),INDIRECT("R" & $A$3 &":R"&AZ6))),0)) -> 
A16: =IF(A15="","",ROUND(IF(AX15<0.75,MIN(INDIRECT("R18:R"&AX17)),AVERAGE(INDIRECT("R18:R"&AX17))),0)) ->  | S16: Very Hard | T16: 52 | U16: + | W16: 140 | AV16: A-7-5 | AW16: Cohesive | AX16: =AX12 ->  | AY16: =IF(COUNTIF($AX12:AY12,AY12)>1,"",AY12) ->  | AZ16: =IF(COUNTIF($AX12:AZ12,AZ12)>1,"",AZ12) ->  | BA16: =IF(COUNTIF($AX12:BA12,BA12)>1,"",BA12) ->  | BB16: =IF(COUNTIF($AX12:BB12,BB12)>1,"",BB12) ->  | BC16: =IF(COUNTIF($AX12:BC12,BC12)>1,"",BC12) ->  | BD16: =IF(COUNTIF($AX12:BD12,BD12)>1,"",BD12) ->  | BE16: =IF(COUNTIF($AX12:BE12,BE12)>1,"",BE12) ->  | BF16: =IF(COUNTIF($AX12:BF12,BF12)>1,"",BF12) ->  | BG16: =IF(COUNTIF($AX12:BG12,BG12)>1,"",BG12) -> 
A17: Layer No. | B17: Top Elev. (ft) | C17: Bottom Elev. (ft) | D17: Layer Depth (ft) | E17: Soil Class | F17: Soil Type | G17: N60 (bpf) | H17: CN | I17: N160 (bpf) | J17: Adj. N160 (bpf) | L17: γtot. (pcf) | M17: γsat. (pcf) | N17: γ′ (eff.) (pcf) | O17: σv (psf) | P17: σ′v (psf) | Q17: Depth Cut Fill (ft) | R17: N60 Cut Fill (bpf) | S17: Soil Class | T17: B=Ex G Depth Level | U17: B=Ex G N60 Level | V17: Soil Type | W17: B=Ex G Depth Fill | X17: B=Ex G N60 Fill | Y17: Soil Type | Z17: B=Ex G Depth Cut | AA17: B=Ex G N60 Cut | AB17: Soil Type | AC17: B>Ex G Depth Level | AD17: B>Ex G N60 Level | AE17: Soil Type | AF17: B>Ex G Depth Fill | AG17: B>Ex G N60 Fill | AH17: Soil Type | AI17: B>Ex G Depth Cut | AJ17: B>Ex G N60 Cut | AK17: Soil Type | AL17: B<Ex G Depth Level | AM17: B<Ex G N60 Level | AN17: Soil Type | AO17: B<Ex G Depth Fill | AP17: B<Ex G N60 Fill | AQ17: Soil Type | AR17: B<Ex G Depth Cut | AS17: B<Ex G N60 Cut | AT17: Soil Type | AV17: A-7-6 | AW17: Cohesive | AX17: =IF(AX16<>"",IF(AX11="C",AX5,AX6),"") ->  | AY17: =IF(AY16<>"",IF(AY11="C",AY5,AY6),"") -> 
A18: =IF(D18="","",ROW()-17) -> 1 | B18: =IF(A18="","",$F$4) -> 681.7 | C18: =IFERROR(IF(D18="","",$B$18-D18),"") -> 678.7 | D18: 3 | E18: A-6b | F18: =_xlfn.IFNA(INDEX($AW$1:$AW$21,MATCH($E18,$AV$1:$AV$21,0)),"") -> Cohesive | G18: 15 | H18: =IFERROR(IF($E18="","",IF(0.77*LOG(40/(P18/1000))>2,2,(0.77*LOG(40/(P18/1000))))),"") -> 2 | I18: =IF(OR($E18="",H18="",E18="Rock"),"",IF(F18="Cohesive",G18,G18*H18)) -> 15 | J18: =IF(OR(F18="",I18=""),"",IF(F18="Cohesive",IF(G18>32,32,ROUND(G18,0)),IF(F18="Granular",IF(I18>60,60,ROUND(I18,0))))) -> 15 | L18: =IF(OR($E18="Rock",$E18=""),"",IF(F18="Cohesive",INDIRECT("W"&MATCH(G18,$T$3:$T$16)+2),INDIRECT("AC"&MATCH(G18,$Z$4:$Z$14)+3))) -> 122 | M18: =IF(OR($E18="Rock",$E18=""),"",IF(L18>0,L18-62.4,"")) -> 59.6 | N18: =IFERROR(IF($E18="","",IF($F$4<C18,L18,IF(B18<$F$4,M18,(((B18-$F$4)*L18)+(($F$4-C18)*M18))/(B18-C18)))),"") -> 59.6 | O18: =IFERROR(IF($E18="","",((B18-C18))*N18),"") -> 178.8 | P18: =IFERROR(IF($E18="","",O18/2),"") -> 89.4 | Q18: =IFERROR(IF(AND(T18="",W18="",Z18="",AC18="",AF18="",AI18="",AL18="",AO18="",AR18=""),"",MAX(T18,W18,Z18,AC18,AF18,AI18,AL18,AO18,AR18)),"") ->  | R18: 20 | S18: =IFERROR(V18&Y18&AB18&AE18&AH18&AK18&AN18&AQ18&AT18,"") -> Cohesive | T18: =IF($G$6=0,IF(AND(A18<>"",$F$2=0),D18, ""),"") ->  | U18: =IF(T18="","",J18) ->  | V18: =IF(T18="","",F18) ->  | W18: =IF($G$6=0,IF(AND(A18<>"",$F$2>0),A5, ""),"") ->  | X18: =IF(W18="","",IF(ROW()<$H$5+$A$4,20,INDIRECT("J"&ROW()-$A$4))) ->  | Y18: =IF(W18="","",IF(ROW()<$H$5+$A$4,"Cohesive",INDIRECT("F"&ROW()-$A$4))) ->  | Z18: =IF($G$6=0,IF(AND(A18<>"",$F$2<0),IF($F$3-C18<=0,"",$F$3-C18), ""),"") ->  | AA18: =IF($G$6=0,IF(AND(A18<>"",$F$2<0),IF($F$3-C18<=0,"",J18), ""),"") ->  | AB18: =IF($G$6=0,IF(AND(A18<>"",$F$2<0),IF($F$3-C18<=0,"",F18), ""),"") ->  | AC18: =IF($G$6>0,IF(AND(A18<>"",$F$2=0),IF($F$3-C18<=0,"",$F$3-C18), ""),"") ->  | AD18: =IF(AC18="","",J18) ->  | AE18: =IF(AC18="","",F18) ->  | AF18: =IF($G$6>0,IF(AND(A18<>"",$F$2>0),A5, ""),"") ->  | AG18: =IF($G$6>0,IF(AND(A18<>"",$F$2>0),20, ""),"") -> 20 | AH18: =IF($G$6>0,IF(AND(A18<>"",$F$2>0),"Cohesive", ""),"") -> Cohesive | AI18: =IF($G$6>0,IF(AND(A18<>"",$F$2<0),IF($F$3-C18<=0,"",$F$3-C18), ""),"") ->  | AJ18: =IF(AI18="","",J18) ->  | AK18: =IF(AI18="","",F18) ->  | AL18: =IF($G$6<0,IF($F$2=0,AL2, ""),"") ->  | AM18: =IF(AL18<>"",J18,"") ->  | AN18: =IF(AM18<>"",F18,"") ->  | AO18: =IF($G$6<0,IF($F$2>0,A5, ""),"") ->  | AP18: =IF(AO18="", "",20) ->  | AQ18: =IF(AO18="", "","Cohesive") ->  | AR18: =IF(AND($F$2<0,$G$6<0),IF($F$2<0,IF(ROW()<$H$6,IF($F$3-C18<=0,"",$F$3-C18),IF(ROW()=$H$6,$F$3-INDIRECT("C"&$H$6)))),"") ->  | AS18: =IF($G$6<0,IF($F$2<0,IF(ROW()<$H$6,IF($F$3-C18<=0,"",J18),IF(ROW()=$H$6,INDIRECT("J"&$H$6))),""),"") ->  | AT18: =IF($G$6<0,IF($F$2<0,IF(ROW()<$H$6,IF($F$3-C18<=0,"",F18),IF(ROW()=$H$6,INDIRECT("F"&$H$6))),""),"") ->  | AV18: A-8a NP | AW18: Granular | AX18: =IF(AX16<>"",IF(AX11="C",AX3,AX4),"") ->  | AY18: =IF(AY16<>"",IF(AY11="C",AY3,AY4),"") -> 
A19: =IF(D19="","",ROW()-17) -> 2 | B19: =IF(D19="","",C18) -> 678.7 | C19: =IFERROR(IF(D19="","",$B$18-D19),"") -> 676.2 | D19: 5.5 | E19: A-6b | F19: Cohesive | G19: 14 | H19: =IFERROR(IF($E19="","",IF((0.77*LOG(40/(P19/1000)))>2,2,(0.77*LOG(40/(P19/1000))))),"") -> 1.692787097 | I19: =IF(OR($E19="",H19="",E19="Rock"),"",IF(F19="Cohesive",G19,G19*H19)) -> 14 | J19: =IF(OR(F19="",I19=""),"",IF(F19="Cohesive",IF(G19>32,32,ROUND(G19,0)),IF(F19="Granular",IF(I19>60,60,ROUND(I19,0))))) -> 14 | L19: =IF(OR($E19="Rock",$E19=""),"",IF(F19="Cohesive",INDIRECT("W"&MATCH(G19,$T$3:$T$16)+2),INDIRECT("AC"&MATCH(G19,$Z$4:$Z$14)+3))) -> 122 | M19: =IF(OR($E19="Rock",$E19=""),"",IF(L19>0,L19-62.4,"")) -> 59.6 | N19: =IFERROR(IF($E19="","",IF($F$4<C19,L19,IF(B19<$F$4,M19,(((B19-$F$4)*L19)+(($F$4-C19)*M19))/(B19-C19)))),"") -> 59.6 | O19: =IFERROR(IF($E19="","",((B19-C19))*N19),"") -> 149 | P19: =IFERROR(IF($E19="","",SUM($O$17:O18)+O19/2),"") -> 253.3 | T19: =IF($G$6=0,IF(AND(A19<>"",$F$2=0),D19, ""),"") ->  | U19: =IF(T19="","",J19) ->  | V19: =IF(T19="","",F19) ->  | W19: =IFERROR(IF($G$6=0,IF($F$2>0,IF(ROW()<$H$5+$A$4,2.5+W18,$F$3-INDIRECT("C"&ROW()-$A$4)),""),""),"") ->  | X19: =IF(W19="","",IF(ROW()<$H$5+$A$4,20,INDIRECT("J"&ROW()-$A$4))) ->  | Y19: =IF(W19="","",IF(ROW()<$H$5+$A$4,"Cohesive",INDIRECT("F"&ROW()-$A$4))) ->  | Z19: =IF($G$6=0,IF(AND(A19<>"",$F$2<0),IF($F$3-C19<=0,"",$F$3-C19), ""),"") ->  | AA19: =IF($G$6=0,IF(AND(A19<>"",$F$2<0),IF($F$3-C19<=0,"",J19), ""),"") ->  | AB19: =IF($G$6=0,IF(AND(A19<>"",$F$2<0),IF($F$3-C19<=0,"",F19), ""),"") ->  | AC19: =IF($G$6>0,IF(AND(A19<>"",$F$2=0),IF($F$3-C19<=0,"",$F$3-C19), ""),"") ->  | AD19: =IF(AC19="","",J19) ->  | AE19: =IF(AC19="","",F19) ->  | AF19: =IF($G$6>0,IF($F$2>0,IF(ROW()<=$H$5+$A$4,2.5+AF18,IF(ROW()>$A$4+$C$2,"",$F$3-INDIRECT("C"&ROW()-$A$4))), ""),"") ->  | AG19: =IF(AF19="","",IF(ROW()<$H$5+$A$4,20,INDIRECT("J"&ROW()-$H$5-$A$4+19))) ->  | AH19: =IF(AF19="","",IF(ROW()<=$H$5+$A$4,"Cohesive",INDIRECT("F"&ROW()-$H$5-$A$4+17))) ->  | AI19: =IF($G$6>0,IF(AND(A19<>"",$F$2<0),IF($F$3-C19<=0,"",$F$3-C19), ""),"") ->  | AJ19: =IF(AI19="","",J19) ->  | AK19: =IF(AI19="","",F19) ->  | AL19: =IF($G$6<0,IF($F$2=0,IF(ROW()<=18+$AL$1,2.5+AL18,IF(ROW()>$AL$1+$C$2,"",INDIRECT("D"&ROW()-$AL$1))), ""),"") ->  | AM19: =IF($G$6<0,IF($F$2=0,IF(ROW()<=18+$AL$1,AM18,IF(ROW()>$AL$1+$C$2,"",INDIRECT("J"&ROW()-$AL$1))), ""),"") ->  | AN19: =IF($G$6<0,IF($F$2=0,IF(ROW()<=18+$AL$1,AN18,IF(ROW()>$AL$1+$C$2,"",INDIRECT("F"&ROW()-$AL$1))), ""),"") ->  | AO19: =IF(AO18="","",IF(ROW()<=18+$A$4,AO18+2.5,IF(ROW()>=$C$2+$A$4,"",AO18+INDIRECT("D"&ROW()-$A$4+1)-INDIRECT("D"&ROW()-$A$4)))) ->  | AP19: =IF(AO18="","",IF(ROW()<=18+$A$4,20,IF(ROW()>=$C$2+$A$4,"",INDIRECT("J"&ROW()-$A$4-1)))) ->  | AQ19: =IF(AO18="","",IF(ROW()<=18+$A$4,"Cohesive",IF(ROW()>=$C$2+$A$4,"",INDIRECT("F"&ROW()-$A$4-1)))) ->  | AR19: =IFERROR(IF(AND($F$2<0,$G$6<0),IF(ROW()<=$C$2,$F$3-INDIRECT("C"&IF($H$6="",18,$H$6)+ROW()-18),""),""),"") ->  | AS19: =IF(AND($F$2<0,$G$6<0),IF(ROW()<=$C$2,INDIRECT("J"&IF($H$6="",18,$H$6)+ROW()-18),""),"") ->  | AT19: =IF(AND($F$2<0,$G$6<0),IF(ROW()<=$C$2,INDIRECT("F"&IF($H$6="",18,$H$6)+ROW()-18),""),"") ->  | AV19: A-8a P | AW19: Cohesive | AX19: =H2 ->  | AY19: =$AX$19 ->  | AZ19: =$AX$19 -> 
A20: 3 | B20: =IF(D20="","",C19) -> 676.2 | C20: 673.7 | D20: 8 | E20: A-6b | F20: Cohesive | G20: 19 | H20: 1.538082668 | I20: 19 | J20: 19 | L20: =IF(OR($E20="Rock",$E20=""),"",IF(F20="Cohesive",INDIRECT("W"&MATCH(G20,$T$3:$T$16)+2),INDIRECT("AC"&MATCH(G20,$Z$4:$Z$14)+3))) -> 122 | M20: =IF(OR($E20="Rock",$E20=""),"",IF(L20>0,L20-62.4,"")) -> 59.6 | N20: =IFERROR(IF($E20="","",IF($F$4<C20,L20,IF(B20<$F$4,M20,(((B20-$F$4)*L20)+(($F$4-C20)*M20))/(B20-C20)))),"") -> 59.6 | O20: =IFERROR(IF($E20="","",((B20-C20))*N20),"") -> 149 | P20: =IFERROR(IF($E20="","",SUM($O$17:O19)+O20/2),"") -> 402.3 | AL20: =IF($G$6<0,IF($F$2=0,IF(ROW()<=18+$AL$1,2.5+AL19,IF(ROW()>$AL$1+$C$2,"",INDIRECT("D"&ROW()-$AL$1))), ""),"") ->  | AM20: =IF($G$6<0,IF($F$2=0,IF(ROW()<=18+$AL$1,AM19,IF(ROW()>$AL$1+$C$2,"",INDIRECT("J"&ROW()-$AL$1))), ""),"") ->  | AN20: =IF($G$6<0,IF($F$2=0,IF(ROW()<=18+$AL$1,AN19,IF(ROW()>$AL$1+$C$2,"",INDIRECT("F"&ROW()-$AL$1))), ""),"") ->  | AP20: =IF(AO19="","",IF(ROW()<=18+$A$4,20,IF(ROW()>=$C$2+$A$4,"",INDIRECT("J"&ROW()-$A$4-1)))) ->  | AQ20: =IF(AO19="","",IF(ROW()<=18+$A$4,"Cohesive",IF(ROW()>=$C$2+$A$4,"",INDIRECT("F"&ROW()-$A$4-1)))) ->  | AR20: =IFERROR(IF(AND($F$2<0,$G$6<0),IF(ROW()<=$C$2,$F$3-INDIRECT("C"&IF($H$6="",18,$H$6)+ROW()-18),""),""),"") ->  | AS20: =IF(AND($F$2<0,$G$6<0),IF(ROW()<=$C$2,INDIRECT("J"&IF($H$6="",18,$H$6)+ROW()-18),""),"") ->  | AT20: =IF(AND($F$2<0,$G$6<0),IF(ROW()<=$C$2,INDIRECT("F"&IF($H$6="",18,$H$6)+ROW()-18),""),"") ->  | AV20: A-8b NP | AW20: Granular | AX20: =IF(H3>=7500,3,5) -> 3 | AY20: =$AX$20 -> 3 | AZ20: =$AX$20 -> 3 | BA20: 3 | BB20: 3 | BC20: 3 | BD20: 3 | BE20: 3 | BF20: 3 | BG20: 3
A21: 4 | B21: 673.7 | C21: 671.2 | D21: 10.5 | E21: A-4a P | F21: Cohesive | G21: 26 | H21: 1.430450471 | I21: 26 | J21: 26 | L21: 125 | M21: 62.6 | N21: 62.6 | O21: 156.5 | P21: =IFERROR(IF($E21="","",SUM($O$17:O20)+O21/2),"") -> 555.05 | AV21: A-8b P | AW21: Cohesive | AX21: =IFERROR(AX19-AX20,"") ->  | AY21: =AY19-AY20 -> 
A22: 5 | B22: 671.2 | C22: 668.7 | D22: 13 | E22: A-4a P | F22: Cohesive | G22: 18 | H22: 1.349155063 | I22: 18 | J22: 18 | L22: 122 | M22: 59.6 | N22: 59.6 | O22: 149 | P22: =IFERROR(IF($E22="","",SUM($O$17:O21)+O22/2),"") -> 707.8 | AV22: Rock | AW22: Rock | AX22: =IF(AX18="","",IF(AX19>AX18,IF(AX18<AX21,AX21,AX18),AX18)) ->  | AY22: =IF(AY18="","",IF(AY19>AY18,IF(AY18<AY21,AY21,AY18),AY18)) -> 
A23: 6 | B23: 668.7 | C23: 666.2 | D23: 15.5 | E23: A-4a P | F23: Cohesive | G23: 11 | H23: 1.28624618 | I23: 11 | J23: 11 | L23: 120 | M23: 57.6 | N23: 57.6 | O23: 144 | P23: =IFERROR(IF($E23="","",SUM($O$17:O22)+O23/2),"") -> 854.3 | AX23: =IF(AX22="","",$F$3-AX22) ->  | AY23: =IF(AY22="","",$F$3-AY22) -> 
A24: 7 | B24: 666.2 | C24: 663.7 | D24: 18 | E24: A-6a | F24: Cohesive | G24: 22 | H24: 1.232068094 | I24: 22 | J24: 22 | L24: 125 | M24: 62.6 | N24: 62.6 | O24: 156.5 | P24: =IFERROR(IF($E24="","",SUM($O$17:O23)+O24/2),"") -> 1004.55 | AF24: =IF($G$6>0,IF($F$2>0,IF(ROW()<=$H$5+$A$4,2.5+AF23,IF(ROW()>$A$4+$C$2,"",$F$3-INDIRECT("C"&ROW()-$A$4))), ""),"") ->  | AH24: =IF(AF24="","",IF(ROW()<=$H$5+$A$4,"Cohesive",INDIRECT("F"&ROW()-$H$5-$A$4+17))) ->  | AX24: =IFERROR(AX23/0.5,"") ->  | AY24: =IFERROR(AY23/0.5,"") ->  | AZ24: =IFERROR(AZ23/0.5,"") -> 
A25: 8 | B25: 663.7 | C25: 661.2 | D25: 20.5 | E25: A-6a | F25: Cohesive | G25: 25 | H25: 1.183650983 | I25: 25 | J25: 25 | L25: 125 | M25: 62.6 | N25: 62.6 | O25: 156.5 | P25: =IFERROR(IF($E25="","",SUM($O$17:O24)+O25/2),"") -> 1161.05 | AF25: =IF($G$6>0,IF($F$2>0,IF(ROW()<=$H$5+$A$4,2.5+AF24,IF(ROW()>$A$4+$C$2,"",$F$3-INDIRECT("C"&ROW()-$A$4))), ""),"") ->  | AH25: =IF(AF25="","",IF(ROW()<=$H$5+$A$4,"Cohesive",INDIRECT("F"&ROW()-$H$5-$A$4+17))) ->  | AX25: =IFERROR(ROUNDUP(AX24,0),"") ->  | AY25: =IFERROR(ROUNDUP(AY24,0),"") ->  | AZ25: =IFERROR(ROUNDUP(AZ24,0),"") -> 
A26: 9 | B26: 661.2 | C26: 658.7 | D26: 23 | E26: A-2-4 | F26: Granular | G26: 92 | H26: 1.136640138 | I26: 104.5708927 | J26: 60 | L26: 140 | M26: 77.6 | N26: 77.6 | O26: 194 | P26: =IFERROR(IF($E26="","",SUM($O$17:O25)+O26/2),"") -> 1336.3 | AX26: =IFERROR(IF(AX18="","",AX25*0.5),"") ->  | AY26: =IFERROR(IF(AY18="","",AY25*0.5),"") -> 
A27: 10 | B27: 658.7 | C27: 656.7 | D27: 25 | E27: A-2-4 | F27: Granular | G27: 76 | H27: 1.095574688 | I27: 83.26367629 | J27: =IF(OR(F27="",I27=""),"",IF(F27="Cohesive",IF(G27>32,32,ROUND(G27,0)),IF(F27="Granular",IF(I27>60,60,ROUND(I27,0))))) -> 60 | L27: 140 | M27: 77.6 | N27: 77.6 | O27: 155.2 | P27: =IFERROR(IF($E27="","",SUM($O$17:O26)+O27/2),"") -> 1510.9
J28: =IF(OR(F28="",I28=""),"",IF(F28="Cohesive",IF(G28>32,32,ROUND(G28,0)),IF(F28="Granular",IF(I28>60,60,ROUND(I28,0))))) ->  | P28: =IFERROR(IF($E28="","",SUM($O$17:O27)+O28/2),"") -> 
P29: =IFERROR(IF($E29="","",SUM($O$17:O28)+O29/2),"") -> 
P30: =IFERROR(IF($E30="","",SUM($O$17:O29)+O30/2),"") ->  | W30: =IFERROR(IF($G$6=0,IF($F$2>0,IF(ROW()<$H$5+$A$4,2.5+W29,$F$3-INDIRECT("C"&ROW()-$A$4)),""),""),"") -> 
P31: =IFERROR(IF($E31="","",SUM($O$17:O30)+O31/2),"") ->  | W31: =IFERROR(IF($G$6=0,IF($F$2>0,IF(ROW()<$H$5+$A$4,2.5+W30,$F$3-INDIRECT("C"&ROW()-$A$4)),""),""),"") ->  | AO31: =IF(AO30="","",IF(ROW()<=18+$A$4,AO30+2.5,IF(ROW()>=$C$2+$A$4,"",AO30+INDIRECT("D"&ROW()-$A$4+1)-INDIRECT("D"&ROW()-$A$4)))) -> 
P32: =IFERROR(IF($E32="","",SUM($O$17:O31)+O32/2),"") ->  | AO32: =IF(AO31="","",IF(ROW()<=18+$A$4,AO31+2.5,IF(ROW()>=$C$2+$A$4,"",AO31+INDIRECT("D"&ROW()-$A$4+1)-INDIRECT("D"&ROW()-$A$4)))) -> 
P33: =IFERROR(IF($E33="","",SUM($O$17:O32)+O33/2),"") ->  | AG33: =IF(AF33="","",IF(ROW()<$H$5+$A$4,20,INDIRECT("J"&ROW()-$H$5-$A$4+19))) -> 
P34: =IFERROR(IF($E34="","",SUM($O$17:O33)+O34/2),"") ->  | AG34: =IF(AF34="","",IF(ROW()<$H$5+$A$4,20,INDIRECT("J"&ROW()-$H$5-$A$4+19))) -> 
P35: =IFERROR(IF($E35="","",SUM($O$17:O34)+O35/2),"") -> 
P36: =IFERROR(IF($E36="","",SUM($O$17:O35)+O36/2),"") -> 
P37: =IFERROR(IF($E37="","",SUM($O$17:O36)+O37/2),"") -> 
P38: =IFERROR(IF($E38="","",SUM($O$17:O37)+O38/2),"") -> 
P39: =IFERROR(IF($E39="","",SUM($O$17:O38)+O39/2),"") -> 
P40: =IFERROR(IF($E40="","",SUM($O$17:O39)+O40/2),"") -> 
P41: =IFERROR(IF($E41="","",SUM($O$17:O40)+O41/2),"") -> 
P42: =IFERROR(IF($E42="","",SUM($O$17:O41)+O42/2),"") -> 
AR43: =IFERROR(IF(ROW()<=$C$2,$F$3-INDIRECT("C"&IF($H$6="",18,$H$6)+ROW()-18),""),"") ->  | AS43: =IF(AR42="","",IF(ROW()<=$C$2,INDIRECT("J"&IF($H$6="",18,$H$6)+ROW()-18),"")) ->  | AT43: =IF(AR42="","",IF(ROW()<=$C$2,INDIRECT("F"&IF($H$6="",18,$H$6)+ROW()-18),"")) -> 
S195: =V195&Y195&AB195&AE195&AH195&AK195&AN195&AQ195&AT195 -> 

Sheet B-050-1-23
A1: =MID(CELL("filename",A1),FIND("]",CELL("filename", A1))+1,20) -> B-050-1-23 | Q1: 7 | R1: 8 | S1: 9 | T1: 10 | Y1: Properties for Granular Soils | AL1: =ROUNDUP(($F$3-$F$4)/2.5,0) ->  | AM1: =ROUNDUP(($F$3-$F$4)/2.5,0) ->  | AO1: =F2 ->  | AV1: A-1-a | AW1: Granular | AX1: =INDEX('Foundation Depth Table'!AB5:AB119,MATCH(A9,'Foundation Depth Table'!Z5:Z74,0)) ->  | AY1: =IF(B9="","",INDEX('Foundation Depth Table'!$L$5:$L$2314,MATCH(B9,'Foundation Depth Table'!$K$5:$K$2314,0))) ->  | AZ1: =IF(C9="","",INDEX('Foundation Depth Table'!$L$5:$L$2314,MATCH(C9,'Foundation Depth Table'!$K$5:$K$2314,0))) ->  | BA1: =IF(D9="","",INDEX('Foundation Depth Table'!$L$5:$L$2314,MATCH(D9,'Foundation Depth Table'!$K$5:$K$2314,0))) ->  | BB1: =IF(E9="","",INDEX('Foundation Depth Table'!$L$5:$L$2314,MATCH(E9,'Foundation Depth Table'!$K$5:$K$2314,0))) ->  | BC1: =IF(F9="","",INDEX('Foundation Depth Table'!$L$5:$L$2314,MATCH(F9,'Foundation Depth Table'!$K$5:$K$2314,0))) ->  | BD1: =IF(G9="","",INDEX('Foundation Depth Table'!$L$5:$L$2314,MATCH(G9,'Foundation Depth Table'!$K$5:$K$2314,0))) ->  | BE1: =IF(H9="","",INDEX('Foundation Depth Table'!$L$5:$L$2314,MATCH(H9,'Foundation Depth Table'!$K$5:$K$2314,0))) ->  | BF1: =IF(I9="","",INDEX('Foundation Depth Table'!$L$5:$L$2314,MATCH(I9,'Foundation Depth Table'!$K$5:$K$2314,0))) ->  | BG1: =IF(J9="","",INDEX('Foundation Depth Table'!$L$5:$L$2314,MATCH(J9,'Foundation Depth Table'!$K$5:$K$2314,0))) -> 
A2: =MID(CELL("filename",A2),FIND("]",CELL("filename", A2))+1,20) -> B-050-1-23 | C2: =SUMPRODUCT(MAX(($A18:$A42<>"")*(ROW(A18:A42)))) -> 27 | D2: =INDIRECT("C"&C2) -> 658.6 | E2: =IF(F2=0,"At Grade =",IF(F2>0, "Fill (ft) =", "Cut (ft) =")) -> Fill (ft) = | F2: =IFERROR(ROUND((G5), 2),"") ->  | G2: =IF(H2="","","Rock Elev. (ft)=") ->  | H2: =IF(OR(I2=0,I2="",NOT(ISNUMBER(I2))),"",I2) ->  | I2: =IFERROR(ROUND(INDEX('Foundation Design'!G3:G100,MATCH(A2,'Foundation Design'!A3:A100,0)),2),"") -> 0 | S2: Consistency | T2: Properties for Cohesive Soils N60 Range (bpf) | W2: γwet (pcf) | Z2: N60 Range | AC2: γwet | AL2: =IF(AL1=0,"",($F$3-$F$4)-(AL1-1)*2.5) ->  | AM2: =IF(OR(AM1=0,AM1=1),"",($F$3-$F$4)-(AM1-1)*2.5) ->  | AO2: =AO1/2.5 ->  | AV2: A-1-b | AW2: Granular | AX2: =INDEX('Foundation Depth Table'!AA5:AA74,MATCH(A9,'Foundation Depth Table'!Z5:Z74,0)) ->  | AY2: =IF(B9="","",INDEX('Foundation Depth Table'!$E$5:$E$4274,MATCH(B9,'Foundation Depth Table'!$D$5:$D$4274,0))) ->  | AZ2: =IF(C9="","",INDEX('Foundation Depth Table'!$E$5:$E$4274,MATCH(C9,'Foundation Depth Table'!$D$5:$D$4274,0))) ->  | BA2: =IF(D9="","",INDEX('Foundation Depth Table'!$E$5:$E$4274,MATCH(D9,'Foundation Depth Table'!$D$5:$D$4274,0))) ->  | BB2: =IF(E9="","",INDEX('Foundation Depth Table'!$E$5:$E$4274,MATCH(E9,'Foundation Depth Table'!$D$5:$D$4274,0))) ->  | BC2: =IF(F9="","",INDEX('Foundation Depth Table'!$E$5:$E$4274,MATCH(F9,'Foundation Depth Table'!$D$5:$D$4274,0))) ->  | BD2: =IF(G9="","",INDEX('Foundation Depth Table'!$E$5:$E$4274,MATCH(G9,'Foundation Depth Table'!$D$5:$D$4274,0))) ->  | BE2: =IF(H9="","",INDEX('Foundation Depth Table'!$E$5:$E$4274,MATCH(H9,'Foundation Depth Table'!$D$5:$D$4274,0))) ->  | BF2: =IF(I9="","",INDEX('Foundation Depth Table'!$E$5:$E$4274,MATCH(I9,'Foundation Depth Table'!$D$5:$D$4274,0))) ->  | BG2: =IF(J9="","",INDEX('Foundation Depth Table'!$E$5:$E$4274,MATCH(J9,'Foundation Depth Table'!$D$5:$D$4274,0))) -> 
A3: =MATCH(TRUE,INDEX((Q18:Q42<>0),0),0)+17 -> 18 | C3: =F3+ROUNDUP(INDIRECT("C"&C2)/2.5,0) ->  | E3: Shaft Top Elev. (ft) = | F3: =IFERROR(ROUND(INDEX('Foundation Design'!E3:E100,MATCH(A2,'Foundation Design'!A3:A100,0)),2),"") ->  | G3: =IF(H2="","","Rock UCS (psi)=") ->  | H3: =IF(H2="","",IFERROR(INDEX('Foundation Design'!H3:H100,MATCH(A2,'Foundation Design'!A3:A100,0)),"")) ->  | S3: Pudding | T3: 0 | U3: - | V3: 0 | W3: 100 | Y3: Density | Z3: bpf | AC3: pcf | AO3: =ROUNDDOWN(AO2,0) ->  | AV3: A-2-4 | AW3: Granular | AX3: =IFERROR($F$3-AX1,"") ->  | BA3: =IFERROR($F$3-BA1,"") ->  | BB3: =IFERROR($F$3-BB1,"") -> 
A4: =ROUNDUP(G5/2.5,0) ->  | C4: =ROUNDUP((F3-INDIRECT("C"&C2))/2.5,0) ->  | E4: Boring Top Elev. (ft) = | F4: =IFERROR(ROUND(INDEX('Foundation Design'!D3:D100,MATCH(A2,'Foundation Design'!A3:A100,0)),2),"") -> 683.6 | G4: Ex. Ground Elev.= | H4: =IFERROR(ROUND(INDEX('Foundation Design'!F3:F100,MATCH(A2,'Foundation Design'!A3:A100,0)),2),"") -> 0 | S4: Very Soft | T4: 1 | U4: - | V4: 1 | W4: 105 | Y4: Undensified | Z4: 0 | AA4: - | AC4: 110 | AO4: =AO1-2.5*AO3 ->  | AV4: A-2-5 | AW4: Granular | AX4: =$F$3-AX2 ->  | AY4: =$F$3-AY2 -> 
A5: =IF(MOD(F2,2.5)=0,2.5,F2-(A4-1)*2.5) ->  | E5: Post Spacing (ft) = | F5: =IFERROR(ROUND(INDEX('Foundation Design'!I3:I100,MATCH(A1,'Foundation Design'!A3:A100,0)),0),"") ->  | G5: =F3-H4 ->  | H5: =IFERROR(IF(INDIRECT("B"&MATCH(H4,INDIRECT("B18:B"&$C$2),-1))>H4,MATCH(H4,INDIRECT("B18:B"&$C$2),-1)+1,MATCH(H4,INDIRECT("B18:B"&$C$2),-1))+17,"") -> 27 | S5: V.Soft-Soft | T5: 2 | U5: - | V5: 2 | W5: 108 | Y5: Very Loose | Z5: 1 | AA5: - | AB5: 2 | AC5: 115 | AV5: A-2-6 | AW5: Granular | AX5: =IFERROR(MATCH(AX3,INDIRECT("B18:B"&$C$2),-1)+17,"") -> 
A6: =H5-17 -> 10 | E6: Barrier Height (ft) = | F6: =IFERROR(ROUND(INDEX('Foundation Design'!J3:J100,MATCH(A2,'Foundation Design'!A3:A100,0)),0),"") ->  | G6: =F4-H4 -> 683.6 | H6: =IFERROR(IF(INDIRECT("B"&MATCH(F3,INDIRECT("B18:B"&$C$2),-1))>F3,MATCH(F3,INDIRECT("B18:B"&$C$2),-1)+1,MATCH(F3,INDIRECT("B18:B"&$C$2),-1))+17,"") ->  | S6: Soft | T6: 3 | U6: - | V6: 3 | W6: 110 | Y6: V.Loose-Loose | Z6: 3 | AA6: - | AB6: 5 | AC6: 118 | AV6: A-2-7 | AW6: Granular
E7: Transverse Slope = | F7: =IFERROR(INDEX('Foundation Design'!L3:L100,MATCH(A2,'Foundation Design'!A3:A100,0)),"") ->  | G7: =VLOOKUP(H7,'Foundation Depth Table'!Q5:R484,2,) ->  | H7: =F5&"-"&F6 -> - | S7: Soft-M.Stiff | T7: 4 | U7: - | V7: 4 | W7: 112 | Y7: Loose | Z7: 6 | AA7: - | AB7: 8 | AC7: 120 | AV7: A-3 | AW7: Granular | AX7: =IFERROR(COUNTIF(INDIRECT("S18:S"&AX6),"Cohesive"),"") -> 
A8: =IF($H$2="",AX16,AX26) ->  | K8: 2.116216624 | S8: Medium Stiff | T8: 5 | U8: - | V8: 6 | W8: 115 | Y8: Loose-M.Dense | Z8: 9 | AA8: - | AB8: 14 | AC8: 122 | AV8: A-3a | AW8: Granular | AX8: =IFERROR(COUNTIF(INDIRECT("S"&$A$3&":S"&AX6),"Granular"),"") -> 
A9: =IFERROR($G$7&"-"&IF($F$7="Level",0,$F$7),"") ->  | B9: =IFERROR(IF(A16="","",$G$7&"-"&IF($F$7="Level",0,$F$7)&"-"&A$16),"") ->  | C9: =IFERROR(IF(B16="","",$G$7&"-"&IF($F$7="Level",0,$F$7)&"-"&B$16),"") ->  | S9: M.Stiff-Stiff | T9: 7 | U9: - | V9: 9 | W9: 118 | Y9: Medium Dense | Z9: 15 | AA9: - | AB9: 24 | AC9: 125 | AV9: A-4a P | AW9: Cohesive | AX9: =IFERROR(COUNTIF(INDIRECT("S18:S"&AX5),"Cohesive"),"") -> 
A10: Foundation Depth (ft) | S10: Stiff | T10: 10 | U10: - | V10: 13 | W10: 120 | Y10: M.Dense-Dense | Z10: 25 | AA10: - | AB10: 34 | AC10: 128 | AV10: A-4a NP | AW10: Granular | AX10: =IFERROR(COUNTIF(INDIRECT("S18:S"&AX5),"Granular"),"") -> 
A11: Trial 01 | B11: Trial 02 | C11: Trial 03 | D11: Trial 04 | E11: Trial 05 | F11: Trial 06 | G11: Trial 07 | H11: Trial 08 | I11: Trial 09 | J11: Trial 10 | S11: Stiff-V.Stiff | T11: 14 | U11: - | V11: 19 | W11: 122 | Y11: Dense | Z11: 35 | AA11: - | AB11: 44 | AC11: 130 | AV11: A-4b P | AW11: Cohesive | AX11: =IF(AX9>AX10,"C","G") -> G | AY11: =IF(AY9>AY10,"C","G") -> G | AZ11: G | BA11: G | BB11: G | BC11: G | BD11: G | BE11: G | BF11: G | BG11: G
A12: =IFERROR(IF(OR(A8="",A8=100),"N/A",A8),"N/A") -> N/A | B12: =IFERROR(IF(B8="","",IF(B8=100,"N/A",B8)),"N/A") ->  | C12: =IFERROR(IF(C8="","",IF(C8=100,"N/A",C8)),"N/A") ->  | S12: Very Stiff | T12: 20 | U12: - | V12: 27 | W12: 125 | Y12: Dense-V.Dense | Z12: 45 | AA12: - | AB12: 54 | AC12: 132 | AV12: A-4b NP | AW12: Granular | AX12: =IF(AX11="C",AX1,AX2) ->  | AY12: =IF(AY11="C",AY1,AY2) -> 
A13: =IFERROR($F$3-A12,"") ->  | B13: =IFERROR($F$3-B12,"") ->  | S13: V.Stiff-Hard | T13: 28 | U13: - | V13: 35 | W13: 128 | Y13: Very Dense | Z13: 55 | AA13: - | AB13: 64 | AC13: 135 | AV13: A-5 | AW13: Cohesive | AX13: =IF(AX11="C",AX9,AX7) ->  | AY13: =IF(COUNTIF($AX12:AY12,AY12)>1,"",IF(AY11="C",AY9,AY7)) ->  | AZ13: =IF(COUNTIF($AX12:AZ12,AZ12)>1,"",IF(AZ11="C",AZ9,AZ7)) ->  | BA13: =IF(COUNTIF($AX12:BA12,BA12)>1,"",IF(BA11="C",BA9,BA7)) ->  | BB13: =IF(COUNTIF($AX12:BB12,BB12)>1,"",IF(BB11="C",BB9,BB7)) ->  | BC13: =IF(COUNTIF($AX12:BC12,BC12)>1,"",IF(BC11="C",BC9,BC7)) ->  | BD13: =IF(COUNTIF($AX12:BD12,BD12)>1,"",IF(BD11="C",BD9,BD7)) ->  | BE13: =IF(COUNTIF($AX12:BE12,BE12)>1,"",IF(BE11="C",BE9,BE7)) ->  | BF13: =IF(COUNTIF($AX12:BF12,BF12)>1,"",IF(BF11="C",BF9,BF7)) ->  | BG13: =IF(COUNTIF($AX12:BG12,BG12)>1,"",IF(BG11="C",BG9,BG7)) -> 
A14: =AX13 ->  | B14: =AY13 ->  | S14: Hard | T14: 36 | U14: - | V14: 43 | W14: 130 | Y14: Fully Dense | Z14: 65 | AA14: + | AC14: 140 | AV14: A-6a | AW14: Cohesive | AX14: =IF(AX11="C",AX10,AX8) ->  | AY14: =IF(COUNTIF($AX12:AY12,AY12)>1,"",IF(AY11="C",AY10,AY8)) ->  | AZ14: =IF(COUNTIF($AX12:AZ12,AZ12)>1,"",IF(AZ11="C",AZ10,AZ8)) ->  | BA14: =IF(COUNTIF($AX12:BA12,BA12)>1,"",IF(BA11="C",BA10,BA8)) ->  | BB14: =IF(COUNTIF($AX12:BB12,BB12)>1,"",IF(BB11="C",BB10,BB8)) ->  | BC14: =IF(COUNTIF($AX12:BC12,BC12)>1,"",IF(BC11="C",BC10,BC8)) ->  | BD14: =IF(COUNTIF($AX12:BD12,BD12)>1,"",IF(BD11="C",BD10,BD8)) ->  | BE14: =IF(COUNTIF($AX12:BE12,BE12)>1,"",IF(BE11="C",BE10,BE8)) ->  | BF14: =IF(COUNTIF($AX12:BF12,BF12)>1,"",IF(BF11="C",BF10,BF8)) ->  | BG14: =IF(COUNTIF($AX12:BG12,BG12)>1,"",IF(BG11="C",BG10,BG8)) -> 
A15: =AX14 ->  | S15: Hard-V.Hard | T15: 44 | U15: - | V15: 51 | W15: 135 | AV15: A-6b | AW15: Cohesive | AX15: =IFERROR(IF(AX11="C",CORREL(INDIRECT("Q" & $A$3 &":Q"&AX5),INDIRECT("R" & $A$3 &":R"&AX5)),CORREL(INDIRECT("Q" & $A$3 &":Q"&AX6),INDIRECT("R" & $A$3 &":R"&AX6))),0) -> 0 | AY15: =IF(AY14="","",IFERROR(IF(AY11="C",CORREL(INDIRECT("Q" & $A$3 &":Q"&AY5),INDIRECT("R" & $A$3 &":R"&AY5)),CORREL(INDIRECT("Q" & $A$3 &":Q"&AY6),INDIRECT("R" & $A$3 &":R"&AY6))),0)) ->  | AZ15: =IF(AZ14="","",IFERROR(IF(AZ11="C",CORREL(INDIRECT("Q" & $A$3 &":Q"&AZ5),INDIRECT("R" & $A$3 &":R"&AZ5)),CORREL(INDIRECT("Q" & $A$3 &":Q"&AZ6),INDIRECT("R" & $A$3 &":R"&AZ6))),0)) -> 
A16: =IF(A15="","",ROUND(IF(AX15<0.75,MIN(INDIRECT("R18:R"&AX17)),AVERAGE(INDIRECT("R18:R"&AX17))),0)) ->  | S16: Very Hard | T16: 52 | U16: + | W16: 140 | AV16: A-7-5 | AW16: Cohesive | AX16: =AX12 ->  | AY16: =IF(COUNTIF($AX12:AY12,AY12)>1,"",AY12) ->  | AZ16: =IF(COUNTIF($AX12:AZ12,AZ12)>1,"",AZ12) ->  | BA16: =IF(COUNTIF($AX12:BA12,BA12)>1,"",BA12) ->  | BB16: =IF(COUNTIF($AX12:BB12,BB12)>1,"",BB12) ->  | BC16: =IF(COUNTIF($AX12:BC12,BC12)>1,"",BC12) ->  | BD16: =IF(COUNTIF($AX12:BD12,BD12)>1,"",BD12) ->  | BE16: =IF(COUNTIF($AX12:BE12,BE12)>1,"",BE12) ->  | BF16: =IF(COUNTIF($AX12:BF12,BF12)>1,"",BF12) ->  | BG16: =IF(COUNTIF($AX12:BG12,BG12)>1,"",BG12) -> 
A17: Layer No. | B17: Top Elev. (ft) | C17: Bottom Elev. (ft) | D17: Layer Depth (ft) | E17: Soil Class | F17: Soil Type | G17: N60 (bpf) | H17: CN | I17: N160 (bpf) | J17: Adj. N160 (bpf) | L17: γtot. (pcf) | M17: γsat. (pcf) | N17: γ′ (eff.) (pcf) | O17: σv (psf) | P17: σ′v (psf) | Q17: Depth Cut Fill (ft) | R17: N60 Cut Fill (bpf) | S17: Soil Class | T17: B=Ex G Depth Level | U17: B=Ex G N60 Level | V17: Soil Type | W17: B=Ex G Depth Fill | X17: B=Ex G N60 Fill | Y17: Soil Type | Z17: B=Ex G Depth Cut | AA17: B=Ex G N60 Cut | AB17: Soil Type | AC17: B>Ex G Depth Level | AD17: B>Ex G N60 Level | AE17: Soil Type | AF17: B>Ex G Depth Fill | AG17: B>Ex G N60 Fill | AH17: Soil Type | AI17: B>Ex G Depth Cut | AJ17: B>Ex G N60 Cut | AK17: Soil Type | AL17: B<Ex G Depth Level | AM17: B<Ex G N60 Level | AN17: Soil Type | AO17: B<Ex G Depth Fill | AP17: B<Ex G N60 Fill | AQ17: Soil Type | AR17: B<Ex G Depth Cut | AS17: B<Ex G N60 Cut | AT17: Soil Type | AV17: A-7-6 | AW17: Cohesive | AX17: =IF(AX16<>"",IF(AX11="C",AX5,AX6),"") ->  | AY17: =IF(AY16<>"",IF(AY11="C",AY5,AY6),"") -> 
A18: =IF(D18="","",ROW()-17) -> 1 | B18: =IF(A18="","",$F$4) -> 683.6 | C18: =IFERROR(IF(D18="","",$B$18-D18),"") -> 680.6 | D18: 3 | E18: A-7-6 | F18: =_xlfn.IFNA(INDEX($AW$1:$AW$21,MATCH($E18,$AV$1:$AV$21,0)),"") -> Cohesive | G18: 10 | H18: =IFERROR(IF($E18="","",IF(0.77*LOG(40/(P18/1000))>2,2,(0.77*LOG(40/(P18/1000))))),"") -> 2 | I18: =IF(OR($E18="",H18="",E18="Rock"),"",IF(F18="Cohesive",G18,G18*H18)) -> 10 | J18: =IF(OR(F18="",I18=""),"",IF(F18="Cohesive",IF(G18>32,32,ROUND(G18,0)),IF(F18="Granular",IF(I18>60,60,ROUND(I18,0))))) -> 10 | L18: =IF(OR($E18="Rock",$E18=""),"",IF(F18="Cohesive",INDIRECT("W"&MATCH(G18,$T$3:$T$16)+2),INDIRECT("AC"&MATCH(G18,$Z$4:$Z$14)+3))) -> 120 | M18: =IF(OR($E18="Rock",$E18=""),"",IF(L18>0,L18-62.4,"")) -> 57.6 | N18: =IFERROR(IF($E18="","",IF($F$4<C18,L18,IF(B18<$F$4,M18,(((B18-$F$4)*L18)+(($F$4-C18)*M18))/(B18-C18)))),"") -> 57.6 | O18: =IFERROR(IF($E18="","",((B18-C18))*N18),"") -> 172.8 | P18: =IFERROR(IF($E18="","",O18/2),"") -> 86.4 | Q18: =IFERROR(IF(AND(T18="",W18="",Z18="",AC18="",AF18="",AI18="",AL18="",AO18="",AR18=""),"",MAX(T18,W18,Z18,AC18,AF18,AI18,AL18,AO18,AR18)),"") ->  | R18: 20 | S18: =IFERROR(V18&Y18&AB18&AE18&AH18&AK18&AN18&AQ18&AT18,"") -> Cohesive | T18: =IF($G$6=0,IF(AND(A18<>"",$F$2=0),D18, ""),"") ->  | U18: =IF(T18="","",J18) ->  | V18: =IF(T18="","",F18) ->  | W18: =IF($G$6=0,IF(AND(A18<>"",$F$2>0),A5, ""),"") ->  | X18: =IF(W18="","",IF(ROW()<$H$5+$A$4,20,INDIRECT("J"&ROW()-$A$4))) ->  | Y18: =IF(W18="","",IF(ROW()<$H$5+$A$4,"Cohesive",INDIRECT("F"&ROW()-$A$4))) ->  | Z18: =IF($G$6=0,IF(AND(A18<>"",$F$2<0),IF($F$3-C18<=0,"",$F$3-C18), ""),"") ->  | AA18: =IF($G$6=0,IF(AND(A18<>"",$F$2<0),IF($F$3-C18<=0,"",J18), ""),"") ->  | AB18: =IF($G$6=0,IF(AND(A18<>"",$F$2<0),IF($F$3-C18<=0,"",F18), ""),"") ->  | AC18: =IF($G$6>0,IF(AND(A18<>"",$F$2=0),IF($F$3-C18<=0,"",$F$3-C18), ""),"") ->  | AD18: =IF(AC18="","",J18) ->  | AE18: =IF(AC18="","",F18) ->  | AF18: =IF($G$6>0,IF(AND(A18<>"",$F$2>0),A5, ""),"") ->  | AG18: =IF($G$6>0,IF(AND(A18<>"",$F$2>0),20, ""),"") -> 20 | AH18: =IF($G$6>0,IF(AND(A18<>"",$F$2>0),"Cohesive", ""),"") -> Cohesive | AI18: =IF($G$6>0,IF(AND(A18<>"",$F$2<0),IF($F$3-C18<=0,"",$F$3-C18), ""),"") ->  | AJ18: =IF(AI18="","",J18) ->  | AK18: =IF(AI18="","",F18) ->  | AL18: =IF($G$6<0,IF($F$2=0,AL2, ""),"") ->  | AM18: =IF(AL18<>"",J18,"") ->  | AN18: =IF(AM18<>"",F18,"") ->  | AO18: =IF($G$6<0,IF($F$2>0,A5, ""),"") ->  | AP18: =IF(AO18="", "",20) ->  | AQ18: =IF(AO18="", "","Cohesive") ->  | AR18: =IF(AND($F$2<0,$G$6<0),IF($F$2<0,IF(ROW()<$H$6,IF($F$3-C18<=0,"",$F$3-C18),IF(ROW()=$H$6,$F$3-INDIRECT("C"&$H$6)))),"") ->  | AS18: =IF($G$6<0,IF($F$2<0,IF(ROW()<$H$6,IF($F$3-C18<=0,"",J18),IF(ROW()=$H$6,INDIRECT("J"&$H$6))),""),"") ->  | AT18: =IF($G$6<0,IF($F$2<0,IF(ROW()<$H$6,IF($F$3-C18<=0,"",F18),IF(ROW()=$H$6,INDIRECT("F"&$H$6))),""),"") ->  | AV18: A-8a NP | AW18: Granular | AX18: =IF(AX16<>"",IF(AX11="C",AX3,AX4),"") ->  | AY18: =IF(AY16<>"",IF(AY11="C",AY3,AY4),"") -> 
A19: =IF(D19="","",ROW()-17) -> 2 | B19: =IF(D19="","",C18) -> 680.6 | C19: =IFERROR(IF(D19="","",$B$18-D19),"") -> 678.1 | D19: 5.5 | E19: A-7-6 | F19: Cohesive | G19: 15 | H19: =IFERROR(IF($E19="","",IF((0.77*LOG(40/(P19/1000)))>2,2,(0.77*LOG(40/(P19/1000))))),"") -> 1.700803624 | I19: =IF(OR($E19="",H19="",E19="Rock"),"",IF(F19="Cohesive",G19,G19*H19)) -> 15 | J19: =IF(OR(F19="",I19=""),"",IF(F19="Cohesive",IF(G19>32,32,ROUND(G19,0)),IF(F19="Granular",IF(I19>60,60,ROUND(I19,0))))) -> 15 | L19: =IF(OR($E19="Rock",$E19=""),"",IF(F19="Cohesive",INDIRECT("W"&MATCH(G19,$T$3:$T$16)+2),INDIRECT("AC"&MATCH(G19,$Z$4:$Z$14)+3))) -> 122 | M19: =IF(OR($E19="Rock",$E19=""),"",IF(L19>0,L19-62.4,"")) -> 59.6 | N19: =IFERROR(IF($E19="","",IF($F$4<C19,L19,IF(B19<$F$4,M19,(((B19-$F$4)*L19)+(($F$4-C19)*M19))/(B19-C19)))),"") -> 59.6 | O19: =IFERROR(IF($E19="","",((B19-C19))*N19),"") -> 149 | P19: =IFERROR(IF($E19="","",SUM($O$17:O18)+O19/2),"") -> 247.3 | T19: =IF($G$6=0,IF(AND(A19<>"",$F$2=0),D19, ""),"") ->  | U19: =IF(T19="","",J19) ->  | V19: =IF(T19="","",F19) ->  | W19: =IFERROR(IF($G$6=0,IF($F$2>0,IF(ROW()<$H$5+$A$4,2.5+W18,$F$3-INDIRECT("C"&ROW()-$A$4)),""),""),"") ->  | X19: =IF(W19="","",IF(ROW()<$H$5+$A$4,20,INDIRECT("J"&ROW()-$A$4))) ->  | Y19: =IF(W19="","",IF(ROW()<$H$5+$A$4,"Cohesive",INDIRECT("F"&ROW()-$A$4))) ->  | Z19: =IF($G$6=0,IF(AND(A19<>"",$F$2<0),IF($F$3-C19<=0,"",$F$3-C19), ""),"") ->  | AA19: =IF($G$6=0,IF(AND(A19<>"",$F$2<0),IF($F$3-C19<=0,"",J19), ""),"") ->  | AB19: =IF($G$6=0,IF(AND(A19<>"",$F$2<0),IF($F$3-C19<=0,"",F19), ""),"") ->  | AC19: =IF($G$6>0,IF(AND(A19<>"",$F$2=0),IF($F$3-C19<=0,"",$F$3-C19), ""),"") ->  | AD19: =IF(AC19="","",J19) ->  | AE19: =IF(AC19="","",F19) ->  | AF19: =IF($G$6>0,IF($F$2>0,IF(ROW()<=$H$5+$A$4,2.5+AF18,IF(ROW()>$A$4+$C$2,"",$F$3-INDIRECT("C"&ROW()-$A$4))), ""),"") ->  | AG19: =IF(AF19="","",IF(ROW()<$H$5+$A$4,20,INDIRECT("J"&ROW()-$H$5-$A$4+19))) ->  | AH19: =IF(AF19="","",IF(ROW()<=$H$5+$A$4,"Cohesive",INDIRECT("F"&ROW()-$H$5-$A$4+17))) ->  | AI19: =IF($G$6>0,IF(AND(A19<>"",$F$2<0),IF($F$3-C19<=0,"",$F$3-C19), ""),"") ->  | AJ19: =IF(AI19="","",J19) ->  | AK19: =IF(AI19="","",F19) ->  | AL19: =IF($G$6<0,IF($F$2=0,IF(ROW()<=18+$AL$1,2.5+AL18,IF(ROW()>$AL$1+$C$2,"",INDIRECT("D"&ROW()-$AL$1))), ""),"") ->  | AM19: =IF($G$6<0,IF($F$2=0,IF(ROW()<=18+$AL$1,AM18,IF(ROW()>$AL$1+$C$2,"",INDIRECT("J"&ROW()-$AL$1))), ""),"") ->  | AN19: =IF($G$6<0,IF($F$2=0,IF(ROW()<=18+$AL$1,AN18,IF(ROW()>$AL$1+$C$2,"",INDIRECT("F"&ROW()-$AL$1))), ""),"") ->  | AO19: =IF(AO18="","",IF(ROW()<=18+$A$4,AO18+2.5,IF(ROW()>=$C$2+$A$4,"",AO18+INDIRECT("D"&ROW()-$A$4+1)-INDIRECT("D"&ROW()-$A$4)))) ->  | AP19: =IF(AO18="","",IF(ROW()<=18+$A$4,20,IF(ROW()>=$C$2+$A$4,"",INDIRECT("J"&ROW()-$A$4-1)))) ->  | AQ19: =IF(AO18="","",IF(ROW()<=18+$A$4,"Cohesive",IF(ROW()>=$C$2+$A$4,"",INDIRECT("F"&ROW()-$A$4-1)))) ->  | AR19: =IFERROR(IF(AND($F$2<0,$G$6<0),IF(ROW()<=$C$2,$F$3-INDIRECT("C"&IF($H$6="",18,$H$6)+ROW()-18),""),""),"") ->  | AS19: =IF(AND($F$2<0,$G$6<0),IF(ROW()<=$C$2,INDIRECT("J"&IF($H$6="",18,$H$6)+ROW()-18),""),"") ->  | AT19: =IF(AND($F$2<0,$G$6<0),IF(ROW()<=$C$2,INDIRECT("F"&IF($H$6="",18,$H$6)+ROW()-18),""),"") ->  | AV19: A-8a P | AW19: Cohesive | AX19: =H2 ->  | AY19: =$AX$19 ->  | AZ19: =$AX$19 -> 
A20: 3 | B20: =IF(D20="","",C19) -> 678.1 | C20: 675.6 | D20: 8 | E20: A-7-6 | F20: Cohesive | G20: 25 | H20: 1.539958202 | I20: 25 | J20: 25 | L20: =IF(OR($E20="Rock",$E20=""),"",IF(F20="Cohesive",INDIRECT("W"&MATCH(G20,$T$3:$T$16)+2),INDIRECT("AC"&MATCH(G20,$Z$4:$Z$14)+3))) -> 125 | M20: =IF(OR($E20="Rock",$E20=""),"",IF(L20>0,L20-62.4,"")) -> 62.6 | N20: =IFERROR(IF($E20="","",IF($F$4<C20,L20,IF(B20<$F$4,M20,(((B20-$F$4)*L20)+(($F$4-C20)*M20))/(B20-C20)))),"") -> 62.6 | O20: =IFERROR(IF($E20="","",((B20-C20))*N20),"") -> 156.5 | P20: =IFERROR(IF($E20="","",SUM($O$17:O19)+O20/2),"") -> 400.05 | AL20: =IF($G$6<0,IF($F$2=0,IF(ROW()<=18+$AL$1,2.5+AL19,IF(ROW()>$AL$1+$C$2,"",INDIRECT("D"&ROW()-$AL$1))), ""),"") ->  | AM20: =IF($G$6<0,IF($F$2=0,IF(ROW()<=18+$AL$1,AM19,IF(ROW()>$AL$1+$C$2,"",INDIRECT("J"&ROW()-$AL$1))), ""),"") ->  | AN20: =IF($G$6<0,IF($F$2=0,IF(ROW()<=18+$AL$1,AN19,IF(ROW()>$AL$1+$C$2,"",INDIRECT("F"&ROW()-$AL$1))), ""),"") ->  | AP20: =IF(AO19="","",IF(ROW()<=18+$A$4,20,IF(ROW()>=$C$2+$A$4,"",INDIRECT("J"&ROW()-$A$4-1)))) ->  | AQ20: =IF(AO19="","",IF(ROW()<=18+$A$4,"Cohesive",IF(ROW()>=$C$2+$A$4,"",INDIRECT("F"&ROW()-$A$4-1)))) ->  | AR20: =IFERROR(IF(AND($F$2<0,$G$6<0),IF(ROW()<=$C$2,$F$3-INDIRECT("C"&IF($H$6="",18,$H$6)+ROW()-18),""),""),"") ->  | AS20: =IF(AND($F$2<0,$G$6<0),IF(ROW()<=$C$2,INDIRECT("J"&IF($H$6="",18,$H$6)+ROW()-18),""),"") ->  | AT20: =IF(AND($F$2<0,$G$6<0),IF(ROW()<=$C$2,INDIRECT("F"&IF($H$6="",18,$H$6)+ROW()-18),""),"") ->  | AV20: A-8b NP | AW20: Granular | AX20: =IF(H3>=7500,3,5) -> 3 | AY20: =$AX$20 -> 3 | AZ20: =$AX$20 -> 3 | BA20: 3 | BB20: 3 | BC20: 3 | BD20: 3 | BE20: 3 | BF20: 3 | BG20: 3
A21: 4 | B21: 675.6 | C21: 673.1 | D21: 10.5 | E21: A-7-6 | F21: Cohesive | G21: 33 | H21: 1.427302314 | I21: 33 | J21: 32 | L21: 128 | M21: 65.6 | N21: 65.6 | O21: 164 | P21: =IFERROR(IF($E21="","",SUM($O$17:O20)+O21/2),"") -> 560.3 | AV21: A-8b P | AW21: Cohesive | AX21: =IFERROR(AX19-AX20,"") ->  | AY21: =AY19-AY20 -> 
A22: 5 | B22: 673.1 | C22: 670.6 | D22: 13 | E22: A-6a | F22: Cohesive | G22: 36 | H22: 1.340296706 | I22: 36 | J22: 32 | L22: 130 | M22: 67.6 | N22: 67.6 | O22: 169 | P22: =IFERROR(IF($E22="","",SUM($O$17:O21)+O22/2),"") -> 726.8 | AV22: Rock | AW22: Rock | AX22: =IF(AX18="","",IF(AX19>AX18,IF(AX18<AX21,AX21,AX18),AX18)) ->  | AY22: =IF(AY18="","",IF(AY19>AY18,IF(AY18<AY21,AY21,AY18),AY18)) -> 
A23: 6 | B23: 670.6 | C23: 668.1 | D23: 15.5 | E23: A-6b | F23: Cohesive | G23: 22 | H23: 1.272725013 | I23: 22 | J23: 22 | L23: 125 | M23: 62.6 | N23: 62.6 | O23: 156.5 | P23: =IFERROR(IF($E23="","",SUM($O$17:O22)+O23/2),"") -> 889.55 | AX23: =IF(AX22="","",$F$3-AX22) ->  | AY23: =IF(AY22="","",$F$3-AY22) -> 
A24: 7 | B24: 668.1 | C24: 665.6 | D24: 18 | E24: A-4a P | F24: Cohesive | G24: 22 | H24: 1.218530812 | I24: 22 | J24: 22 | L24: 125 | M24: 62.6 | N24: 62.6 | O24: 156.5 | P24: =IFERROR(IF($E24="","",SUM($O$17:O23)+O24/2),"") -> 1046.05 | AF24: =IF($G$6>0,IF($F$2>0,IF(ROW()<=$H$5+$A$4,2.5+AF23,IF(ROW()>$A$4+$C$2,"",$F$3-INDIRECT("C"&ROW()-$A$4))), ""),"") ->  | AH24: =IF(AF24="","",IF(ROW()<=$H$5+$A$4,"Cohesive",INDIRECT("F"&ROW()-$H$5-$A$4+17))) ->  | AX24: =IFERROR(AX23/0.5,"") ->  | AY24: =IFERROR(AY23/0.5,"") ->  | AZ24: =IFERROR(AZ23/0.5,"") -> 
A25: 8 | B25: 665.6 | C25: 663.1 | D25: 20.5 | E25: A-4a P | F25: Cohesive | G25: 22 | H25: 1.171906773 | I25: 22 | J25: 22 | L25: 125 | M25: 62.6 | N25: 62.6 | O25: 156.5 | P25: =IFERROR(IF($E25="","",SUM($O$17:O24)+O25/2),"") -> 1202.55 | AF25: =IF($G$6>0,IF($F$2>0,IF(ROW()<=$H$5+$A$4,2.5+AF24,IF(ROW()>$A$4+$C$2,"",$F$3-INDIRECT("C"&ROW()-$A$4))), ""),"") ->  | AH25: =IF(AF25="","",IF(ROW()<=$H$5+$A$4,"Cohesive",INDIRECT("F"&ROW()-$H$5-$A$4+17))) ->  | AX25: =IFERROR(ROUNDUP(AX24,0),"") ->  | AY25: =IFERROR(ROUNDUP(AY24,0),"") ->  | AZ25: =IFERROR(ROUNDUP(AZ24,0),"") -> 
A26: 9 | B26: 663.1 | C26: 660.6 | D26: 23 | E26: A-4a P | F26: Cohesive | G26: 25 | H26: 1.130994908 | I26: 25 | J26: 25 | L26: 125 | M26: 62.6 | N26: 62.6 | O26: 156.5 | P26: =IFERROR(IF($E26="","",SUM($O$17:O25)+O26/2),"") -> 1359.05 | AX26: =IFERROR(IF(AX18="","",AX25*0.5),"") ->  | AY26: =IFERROR(IF(AY18="","",AY25*0.5),"") -> 
A27: 10 | B27: 660.6 | C27: 658.6 | D27: 25 | E27: A-4a P | F27: Cohesive | G27: 76 | H27: 1.09469054 | I27: 76 | J27: =IF(OR(F27="",I27=""),"",IF(F27="Cohesive",IF(G27>32,32,ROUND(G27,0)),IF(F27="Granular",IF(I27>60,60,ROUND(I27,0))))) -> 32 | L27: 140 | M27: 77.6 | N27: 77.6 | O27: 155.2 | P27: =IFERROR(IF($E27="","",SUM($O$17:O26)+O27/2),"") -> 1514.9
J28: =IF(OR(F28="",I28=""),"",IF(F28="Cohesive",IF(G28>32,32,ROUND(G28,0)),IF(F28="Granular",IF(I28>60,60,ROUND(I28,0))))) ->  | P28: =IFERROR(IF($E28="","",SUM($O$17:O27)+O28/2),"") -> 
P29: =IFERROR(IF($E29="","",SUM($O$17:O28)+O29/2),"") -> 
P30: =IFERROR(IF($E30="","",SUM($O$17:O29)+O30/2),"") ->  | W30: =IFERROR(IF($G$6=0,IF($F$2>0,IF(ROW()<$H$5+$A$4,2.5+W29,$F$3-INDIRECT("C"&ROW()-$A$4)),""),""),"") -> 
P31: =IFERROR(IF($E31="","",SUM($O$17:O30)+O31/2),"") ->  | W31: =IFERROR(IF($G$6=0,IF($F$2>0,IF(ROW()<$H$5+$A$4,2.5+W30,$F$3-INDIRECT("C"&ROW()-$A$4)),""),""),"") ->  | AO31: =IF(AO30="","",IF(ROW()<=18+$A$4,AO30+2.5,IF(ROW()>=$C$2+$A$4,"",AO30+INDIRECT("D"&ROW()-$A$4+1)-INDIRECT("D"&ROW()-$A$4)))) -> 
P32: =IFERROR(IF($E32="","",SUM($O$17:O31)+O32/2),"") ->  | AO32: =IF(AO31="","",IF(ROW()<=18+$A$4,AO31+2.5,IF(ROW()>=$C$2+$A$4,"",AO31+INDIRECT("D"&ROW()-$A$4+1)-INDIRECT("D"&ROW()-$A$4)))) -> 
P33: =IFERROR(IF($E33="","",SUM($O$17:O32)+O33/2),"") ->  | AG33: =IF(AF33="","",IF(ROW()<$H$5+$A$4,20,INDIRECT("J"&ROW()-$H$5-$A$4+19))) -> 
P34: =IFERROR(IF($E34="","",SUM($O$17:O33)+O34/2),"") ->  | AG34: =IF(AF34="","",IF(ROW()<$H$5+$A$4,20,INDIRECT("J"&ROW()-$H$5-$A$4+19))) -> 
P35: =IFERROR(IF($E35="","",SUM($O$17:O34)+O35/2),"") -> 
P36: =IFERROR(IF($E36="","",SUM($O$17:O35)+O36/2),"") -> 
P37: =IFERROR(IF($E37="","",SUM($O$17:O36)+O37/2),"") -> 
P38: =IFERROR(IF($E38="","",SUM($O$17:O37)+O38/2),"") -> 
P39: =IFERROR(IF($E39="","",SUM($O$17:O38)+O39/2),"") -> 
P40: =IFERROR(IF($E40="","",SUM($O$17:O39)+O40/2),"") -> 
P41: =IFERROR(IF($E41="","",SUM($O$17:O40)+O41/2),"") -> 
P42: =IFERROR(IF($E42="","",SUM($O$17:O41)+O42/2),"") -> 
AR43: =IFERROR(IF(ROW()<=$C$2,$F$3-INDIRECT("C"&IF($H$6="",18,$H$6)+ROW()-18),""),"") ->  | AS43: =IF(AR42="","",IF(ROW()<=$C$2,INDIRECT("J"&IF($H$6="",18,$H$6)+ROW()-18),"")) ->  | AT43: =IF(AR42="","",IF(ROW()<=$C$2,INDIRECT("F"&IF($H$6="",18,$H$6)+ROW()-18),"")) -> 
S195: =V195&Y195&AB195&AE195&AH195&AK195&AN195&AQ195&AT195 -> 

Sheet B-050-2-23
A1: =MID(CELL("filename",A1),FIND("]",CELL("filename", A1))+1,20) -> B-050-2-23 | Q1: 7 | R1: 8 | S1: 9 | T1: 10 | Y1: Properties for Granular Soils | AL1: =ROUNDUP(($F$3-$F$4)/2.5,0) ->  | AM1: =ROUNDUP(($F$3-$F$4)/2.5,0) ->  | AO1: =F2 ->  | AV1: A-1-a | AW1: Granular | AX1: =INDEX('Foundation Depth Table'!AB5:AB119,MATCH(A9,'Foundation Depth Table'!Z5:Z74,0)) ->  | AY1: =IF(B9="","",INDEX('Foundation Depth Table'!$L$5:$L$2314,MATCH(B9,'Foundation Depth Table'!$K$5:$K$2314,0))) ->  | AZ1: =IF(C9="","",INDEX('Foundation Depth Table'!$L$5:$L$2314,MATCH(C9,'Foundation Depth Table'!$K$5:$K$2314,0))) ->  | BA1: =IF(D9="","",INDEX('Foundation Depth Table'!$L$5:$L$2314,MATCH(D9,'Foundation Depth Table'!$K$5:$K$2314,0))) ->  | BB1: =IF(E9="","",INDEX('Foundation Depth Table'!$L$5:$L$2314,MATCH(E9,'Foundation Depth Table'!$K$5:$K$2314,0))) ->  | BC1: =IF(F9="","",INDEX('Foundation Depth Table'!$L$5:$L$2314,MATCH(F9,'Foundation Depth Table'!$K$5:$K$2314,0))) ->  | BD1: =IF(G9="","",INDEX('Foundation Depth Table'!$L$5:$L$2314,MATCH(G9,'Foundation Depth Table'!$K$5:$K$2314,0))) ->  | BE1: =IF(H9="","",INDEX('Foundation Depth Table'!$L$5:$L$2314,MATCH(H9,'Foundation Depth Table'!$K$5:$K$2314,0))) ->  | BF1: =IF(I9="","",INDEX('Foundation Depth Table'!$L$5:$L$2314,MATCH(I9,'Foundation Depth Table'!$K$5:$K$2314,0))) ->  | BG1: =IF(J9="","",INDEX('Foundation Depth Table'!$L$5:$L$2314,MATCH(J9,'Foundation Depth Table'!$K$5:$K$2314,0))) -> 
A2: =MID(CELL("filename",A2),FIND("]",CELL("filename", A2))+1,20) -> B-050-2-23 | C2: =SUMPRODUCT(MAX(($A18:$A42<>"")*(ROW(A18:A42)))) -> 27 | D2: =INDIRECT("C"&C2) -> 660.3 | E2: =IF(F2=0,"At Grade =",IF(F2>0, "Fill (ft) =", "Cut (ft) =")) -> Fill (ft) = | F2: =IFERROR(ROUND((G5), 2),"") ->  | G2: =IF(H2="","","Rock Elev. (ft)=") ->  | H2: =IF(OR(I2=0,I2="",NOT(ISNUMBER(I2))),"",I2) ->  | I2: =IFERROR(ROUND(INDEX('Foundation Design'!G3:G100,MATCH(A2,'Foundation Design'!A3:A100,0)),2),"") -> 0 | S2: Consistency | T2: Properties for Cohesive Soils N60 Range (bpf) | W2: γwet (pcf) | Z2: N60 Range | AC2: γwet | AL2: =IF(AL1=0,"",($F$3-$F$4)-(AL1-1)*2.5) ->  | AM2: =IF(OR(AM1=0,AM1=1),"",($F$3-$F$4)-(AM1-1)*2.5) ->  | AO2: =AO1/2.5 ->  | AV2: A-1-b | AW2: Granular | AX2: =INDEX('Foundation Depth Table'!AA5:AA74,MATCH(A9,'Foundation Depth Table'!Z5:Z74,0)) ->  | AY2: =IF(B9="","",INDEX('Foundation Depth Table'!$E$5:$E$4274,MATCH(B9,'Foundation Depth Table'!$D$5:$D$4274,0))) ->  | AZ2: =IF(C9="","",INDEX('Foundation Depth Table'!$E$5:$E$4274,MATCH(C9,'Foundation Depth Table'!$D$5:$D$4274,0))) ->  | BA2: =IF(D9="","",INDEX('Foundation Depth Table'!$E$5:$E$4274,MATCH(D9,'Foundation Depth Table'!$D$5:$D$4274,0))) ->  | BB2: =IF(E9="","",INDEX('Foundation Depth Table'!$E$5:$E$4274,MATCH(E9,'Foundation Depth Table'!$D$5:$D$4274,0))) ->  | BC2: =IF(F9="","",INDEX('Foundation Depth Table'!$E$5:$E$4274,MATCH(F9,'Foundation Depth Table'!$D$5:$D$4274,0))) ->  | BD2: =IF(G9="","",INDEX('Foundation Depth Table'!$E$5:$E$4274,MATCH(G9,'Foundation Depth Table'!$D$5:$D$4274,0))) ->  | BE2: =IF(H9="","",INDEX('Foundation Depth Table'!$E$5:$E$4274,MATCH(H9,'Foundation Depth Table'!$D$5:$D$4274,0))) ->  | BF2: =IF(I9="","",INDEX('Foundation Depth Table'!$E$5:$E$4274,MATCH(I9,'Foundation Depth Table'!$D$5:$D$4274,0))) ->  | BG2: =IF(J9="","",INDEX('Foundation Depth Table'!$E$5:$E$4274,MATCH(J9,'Foundation Depth Table'!$D$5:$D$4274,0))) -> 
A3: =MATCH(TRUE,INDEX((Q18:Q42<>0),0),0)+17 -> 18 | C3: =F3+ROUNDUP(INDIRECT("C"&C2)/2.5,0) ->  | E3: Shaft Top Elev. (ft) = | F3: =IFERROR(ROUND(INDEX('Foundation Design'!E3:E100,MATCH(A2,'Foundation Design'!A3:A100,0)),2),"") ->  | G3: =IF(H2="","","Rock UCS (psi)=") ->  | H3: =IF(H2="","",IFERROR(INDEX('Foundation Design'!H3:H100,MATCH(A2,'Foundation Design'!A3:A100,0)),"")) ->  | S3: Pudding | T3: 0 | U3: - | V3: 0 | W3: 100 | Y3: Density | Z3: bpf | AC3: pcf | AO3: =ROUNDDOWN(AO2,0) ->  | AV3: A-2-4 | AW3: Granular | AX3: =IFERROR($F$3-AX1,"") ->  | BA3: =IFERROR($F$3-BA1,"") ->  | BB3: =IFERROR($F$3-BB1,"") -> 
A4: =ROUNDUP(G5/2.5,0) ->  | C4: =ROUNDUP((F3-INDIRECT("C"&C2))/2.5,0) ->  | E4: Boring Top Elev. (ft) = | F4: =IFERROR(ROUND(INDEX('Foundation Design'!D3:D100,MATCH(A2,'Foundation Design'!A3:A100,0)),2),"") -> 685.3 | G4: Ex. Ground Elev.= | H4: =IFERROR(ROUND(INDEX('Foundation Design'!F3:F100,MATCH(A2,'Foundation Design'!A3:A100,0)),2),"") -> 0 | S4: Very Soft | T4: 1 | U4: - | V4: 1 | W4: 105 | Y4: Undensified | Z4: 0 | AA4: - | AC4: 110 | AO4: =AO1-2.5*AO3 ->  | AV4: A-2-5 | AW4: Granular | AX4: =$F$3-AX2 ->  | AY4: =$F$3-AY2 -> 
A5: =IF(MOD(F2,2.5)=0,2.5,F2-(A4-1)*2.5) ->  | E5: Post Spacing (ft) = | F5: =IFERROR(ROUND(INDEX('Foundation Design'!I3:I100,MATCH(A1,'Foundation Design'!A3:A100,0)),0),"") ->  | G5: =F3-H4 ->  | H5: =IFERROR(IF(INDIRECT("B"&MATCH(H4,INDIRECT("B18:B"&$C$2),-1))>H4,MATCH(H4,INDIRECT("B18:B"&$C$2),-1)+1,MATCH(H4,INDIRECT("B18:B"&$C$2),-1))+17,"") -> 27 | S5: V.Soft-Soft | T5: 2 | U5: - | V5: 2 | W5: 108 | Y5: Very Loose | Z5: 1 | AA5: - | AB5: 2 | AC5: 115 | AV5: A-2-6 | AW5: Granular | AX5: =IFERROR(MATCH(AX3,INDIRECT("B18:B"&$C$2),-1)+17,"") -> 
A6: =H5-17 -> 10 | E6: Barrier Height (ft) = | F6: =IFERROR(ROUND(INDEX('Foundation Design'!J3:J100,MATCH(A2,'Foundation Design'!A3:A100,0)),0),"") ->  | G6: =F4-H4 -> 685.3 | H6: =IFERROR(IF(INDIRECT("B"&MATCH(F3,INDIRECT("B18:B"&$C$2),-1))>F3,MATCH(F3,INDIRECT("B18:B"&$C$2),-1)+1,MATCH(F3,INDIRECT("B18:B"&$C$2),-1))+17,"") ->  | S6: Soft | T6: 3 | U6: - | V6: 3 | W6: 110 | Y6: V.Loose-Loose | Z6: 3 | AA6: - | AB6: 5 | AC6: 118 | AV6: A-2-7 | AW6: Granular
E7: Transverse Slope = | F7: =IFERROR(INDEX('Foundation Design'!L3:L100,MATCH(A2,'Foundation Design'!A3:A100,0)),"") ->  | G7: =VLOOKUP(H7,'Foundation Depth Table'!Q5:R484,2,) ->  | H7: =F5&"-"&F6 -> - | S7: Soft-M.Stiff | T7: 4 | U7: - | V7: 4 | W7: 112 | Y7: Loose | Z7: 6 | AA7: - | AB7: 8 | AC7: 120 | AV7: A-3 | AW7: Granular | AX7: =IFERROR(COUNTIF(INDIRECT("S18:S"&AX6),"Cohesive"),"") -> 
A8: =IF($H$2="",AX16,AX26) ->  | K8: 2.116216624 | S8: Medium Stiff | T8: 5 | U8: - | V8: 6 | W8: 115 | Y8: Loose-M.Dense | Z8: 9 | AA8: - | AB8: 14 | AC8: 122 | AV8: A-3a | AW8: Granular | AX8: =IFERROR(COUNTIF(INDIRECT("S"&$A$3&":S"&AX6),"Granular"),"") -> 
A9: =IFERROR($G$7&"-"&IF($F$7="Level",0,$F$7),"") ->  | B9: =IFERROR(IF(A16="","",$G$7&"-"&IF($F$7="Level",0,$F$7)&"-"&A$16),"") ->  | C9: =IFERROR(IF(B16="","",$G$7&"-"&IF($F$7="Level",0,$F$7)&"-"&B$16),"") ->  | S9: M.Stiff-Stiff | T9: 7 | U9: - | V9: 9 | W9: 118 | Y9: Medium Dense | Z9: 15 | AA9: - | AB9: 24 | AC9: 125 | AV9: A-4a P | AW9: Cohesive | AX9: =IFERROR(COUNTIF(INDIRECT("S18:S"&AX5),"Cohesive"),"") -> 
A10: Foundation Depth (ft) | S10: Stiff | T10: 10 | U10: - | V10: 13 | W10: 120 | Y10: M.Dense-Dense | Z10: 25 | AA10: - | AB10: 34 | AC10: 128 | AV10: A-4a NP | AW10: Granular | AX10: =IFERROR(COUNTIF(INDIRECT("S18:S"&AX5),"Granular"),"") -> 
A11: Trial 01 | B11: Trial 02 | C11: Trial 03 | D11: Trial 04 | E11: Trial 05 | F11: Trial 06 | G11: Trial 07 | H11: Trial 08 | I11: Trial 09 | J11: Trial 10 | S11: Stiff-V.Stiff | T11: 14 | U11: - | V11: 19 | W11: 122 | Y11: Dense | Z11: 35 | AA11: - | AB11: 44 | AC11: 130 | AV11: A-4b P | AW11: Cohesive | AX11: =IF(AX9>AX10,"C","G") -> G | AY11: =IF(AY9>AY10,"C","G") -> G | AZ11: G | BA11: G | BB11: G | BC11: G | BD11: G | BE11: G | BF11: G | BG11: G
A12: =IFERROR(IF(OR(A8="",A8=100),"N/A",A8),"N/A") -> N/A | B12: =IFERROR(IF(B8="","",IF(B8=100,"N/A",B8)),"N/A") ->  | C12: =IFERROR(IF(C8="","",IF(C8=100,"N/A",C8)),"N/A") ->  | S12: Very Stiff | T12: 20 | U12: - | V12: 27 | W12: 125 | Y12: Dense-V.Dense | Z12: 45 | AA12: - | AB12: 54 | AC12: 132 | AV12: A-4b NP | AW12: Granular | AX12: =IF(AX11="C",AX1,AX2) ->  | AY12: =IF(AY11="C",AY1,AY2) -> 
A13: =IFERROR($F$3-A12,"") ->  | B13: =IFERROR($F$3-B12,"") ->  | S13: V.Stiff-Hard | T13: 28 | U13: - | V13: 35 | W13: 128 | Y13: Very Dense | Z13: 55 | AA13: - | AB13: 64 | AC13: 135 | AV13: A-5 | AW13: Cohesive | AX13: =IF(AX11="C",AX9,AX7) ->  | AY13: =IF(COUNTIF($AX12:AY12,AY12)>1,"",IF(AY11="C",AY9,AY7)) ->  | AZ13: =IF(COUNTIF($AX12:AZ12,AZ12)>1,"",IF(AZ11="C",AZ9,AZ7)) ->  | BA13: =IF(COUNTIF($AX12:BA12,BA12)>1,"",IF(BA11="C",BA9,BA7)) ->  | BB13: =IF(COUNTIF($AX12:BB12,BB12)>1,"",IF(BB11="C",BB9,BB7)) ->  | BC13: =IF(COUNTIF($AX12:BC12,BC12)>1,"",IF(BC11="C",BC9,BC7)) ->  | BD13: =IF(COUNTIF($AX12:BD12,BD12)>1,"",IF(BD11="C",BD9,BD7)) ->  | BE13: =IF(COUNTIF($AX12:BE12,BE12)>1,"",IF(BE11="C",BE9,BE7)) ->  | BF13: =IF(COUNTIF($AX12:BF12,BF12)>1,"",IF(BF11="C",BF9,BF7)) ->  | BG13: =IF(COUNTIF($AX12:BG12,BG12)>1,"",IF(BG11="C",BG9,BG7)) -> 
A14: =AX13 ->  | B14: =AY13 ->  | S14: Hard | T14: 36 | U14: - | V14: 43 | W14: 130 | Y14: Fully Dense | Z14: 65 | AA14: + | AC14: 140 | AV14: A-6a | AW14: Cohesive | AX14: =IF(AX11="C",AX10,AX8) ->  | AY14: =IF(COUNTIF($AX12:AY12,AY12)>1,"",IF(AY11="C",AY10,AY8)) ->  | AZ14: =IF(COUNTIF($AX12:AZ12,AZ12)>1,"",IF(AZ11="C",AZ10,AZ8)) ->  | BA14: =IF(COUNTIF($AX12:BA12,BA12)>1,"",IF(BA11="C",BA10,BA8)) ->  | BB14: =IF(COUNTIF($AX12:BB12,BB12)>1,"",IF(BB11="C",BB10,BB8)) ->  | BC14: =IF(COUNTIF($AX12:BC12,BC12)>1,"",IF(BC11="C",BC10,BC8)) ->  | BD14: =IF(COUNTIF($AX12:BD12,BD12)>1,"",IF(BD11="C",BD10,BD8)) ->  | BE14: =IF(COUNTIF($AX12:BE12,BE12)>1,"",IF(BE11="C",BE10,BE8)) ->  | BF14: =IF(COUNTIF($AX12:BF12,BF12)>1,"",IF(BF11="C",BF10,BF8)) ->  | BG14: =IF(COUNTIF($AX12:BG12,BG12)>1,"",IF(BG11="C",BG10,BG8)) -> 
A15: =AX14 ->  | S15: Hard-V.Hard | T15: 44 | U15: - | V15: 51 | W15: 135 | AV15: A-6b | AW15: Cohesive | AX15: =IFERROR(IF(AX11="C",CORREL(INDIRECT("Q" & $A$3 &":Q"&AX5),INDIRECT("R" & $A$3 &":R"&AX5)),CORREL(INDIRECT("Q" & $A$3 &":Q"&AX6),INDIRECT("R" & $A$3 &":R"&AX6))),0) -> 0 | AY15: =IF(AY14="","",IFERROR(IF(AY11="C",CORREL(INDIRECT("Q" & $A$3 &":Q"&AY5),INDIRECT("R" & $A$3 &":R"&AY5)),CORREL(INDIRECT("Q" & $A$3 &":Q"&AY6),INDIRECT("R" & $A$3 &":R"&AY6))),0)) ->  | AZ15: =IF(AZ14="","",IFERROR(IF(AZ11="C",CORREL(INDIRECT("Q" & $A$3 &":Q"&AZ5),INDIRECT("R" & $A$3 &":R"&AZ5)),CORREL(INDIRECT("Q" & $A$3 &":Q"&AZ6),INDIRECT("R" & $A$3 &":R"&AZ6))),0)) -> 
A16: =IF(A15="","",ROUND(IF(AX15<0.75,MIN(INDIRECT("R18:R"&AX17)),AVERAGE(INDIRECT("R18:R"&AX17))),0)) ->  | S16: Very Hard | T16: 52 | U16: + | W16: 140 | AV16: A-7-5 | AW16: Cohesive | AX16: =AX12 ->  | AY16: =IF(COUNTIF($AX12:AY12,AY12)>1,"",AY12) ->  | AZ16: =IF(COUNTIF($AX12:AZ12,AZ12)>1,"",AZ12) ->  | BA16: =IF(COUNTIF($AX12:BA12,BA12)>1,"",BA12) ->  | BB16: =IF(COUNTIF($AX12:BB12,BB12)>1,"",BB12) ->  | BC16: =IF(COUNTIF($AX12:BC12,BC12)>1,"",BC12) ->  | BD16: =IF(COUNTIF($AX12:BD12,BD12)>1,"",BD12) ->  | BE16: =IF(COUNTIF($AX12:BE12,BE12)>1,"",BE12) ->  | BF16: =IF(COUNTIF($AX12:BF12,BF12)>1,"",BF12) ->  | BG16: =IF(COUNTIF($AX12:BG12,BG12)>1,"",BG12) -> 
A17: Layer No. | B17: Top Elev. (ft) | C17: Bottom Elev. (ft) | D17: Layer Depth (ft) | E17: Soil Class | F17: Soil Type | G17: N60 (bpf) | H17: CN | I17: N160 (bpf) | J17: Adj. N160 (bpf) | L17: γtot. (pcf) | M17: γsat. (pcf) | N17: γ′ (eff.) (pcf) | O17: σv (psf) | P17: σ′v (psf) | Q17: Depth Cut Fill (ft) | R17: N60 Cut Fill (bpf) | S17: Soil Class | T17: B=Ex G Depth Level | U17: B=Ex G N60 Level | V17: Soil Type | W17: B=Ex G Depth Fill | X17: B=Ex G N60 Fill | Y17: Soil Type | Z17: B=Ex G Depth Cut | AA17: B=Ex G N60 Cut | AB17: Soil Type | AC17: B>Ex G Depth Level | AD17: B>Ex G N60 Level | AE17: Soil Type | AF17: B>Ex G Depth Fill | AG17: B>Ex G N60 Fill | AH17: Soil Type | AI17: B>Ex G Depth Cut | AJ17: B>Ex G N60 Cut | AK17: Soil Type | AL17: B<Ex G Depth Level | AM17: B<Ex G N60 Level | AN17: Soil Type | AO17: B<Ex G Depth Fill | AP17: B<Ex G N60 Fill | AQ17: Soil Type | AR17: B<Ex G Depth Cut | AS17: B<Ex G N60 Cut | AT17: Soil Type | AV17: A-7-6 | AW17: Cohesive | AX17: =IF(AX16<>"",IF(AX11="C",AX5,AX6),"") ->  | AY17: =IF(AY16<>"",IF(AY11="C",AY5,AY6),"") -> 
A18: =IF(D18="","",ROW()-17) -> 1 | B18: =IF(A18="","",$F$4) -> 685.3 | C18: =IFERROR(IF(D18="","",$B$18-D18),"") -> 682.3 | D18: 3 | E18: A-7-6 | F18: =_xlfn.IFNA(INDEX($AW$1:$AW$21,MATCH($E18,$AV$1:$AV$21,0)),"") -> Cohesive | G18: 11 | H18: =IFERROR(IF($E18="","",IF(0.77*LOG(40/(P18/1000))>2,2,(0.77*LOG(40/(P18/1000))))),"") -> 2 | I18: =IF(OR($E18="",H18="",E18="Rock"),"",IF(F18="Cohesive",G18,G18*H18)) -> 11 | J18: =IF(OR(F18="",I18=""),"",IF(F18="Cohesive",IF(G18>32,32,ROUND(G18,0)),IF(F18="Granular",IF(I18>60,60,ROUND(I18,0))))) -> 11 | L18: =IF(OR($E18="Rock",$E18=""),"",IF(F18="Cohesive",INDIRECT("W"&MATCH(G18,$T$3:$T$16)+2),INDIRECT("AC"&MATCH(G18,$Z$4:$Z$14)+3))) -> 120 | M18: =IF(OR($E18="Rock",$E18=""),"",IF(L18>0,L18-62.4,"")) -> 57.6 | N18: =IFERROR(IF($E18="","",IF($F$4<C18,L18,IF(B18<$F$4,M18,(((B18-$F$4)*L18)+(($F$4-C18)*M18))/(B18-C18)))),"") -> 57.6 | O18: =IFERROR(IF($E18="","",((B18-C18))*N18),"") -> 172.8 | P18: =IFERROR(IF($E18="","",O18/2),"") -> 86.4 | Q18: =IFERROR(IF(AND(T18="",W18="",Z18="",AC18="",AF18="",AI18="",AL18="",AO18="",AR18=""),"",MAX(T18,W18,Z18,AC18,AF18,AI18,AL18,AO18,AR18)),"") ->  | R18: 20 | S18: =IFERROR(V18&Y18&AB18&AE18&AH18&AK18&AN18&AQ18&AT18,"") -> Cohesive | T18: =IF($G$6=0,IF(AND(A18<>"",$F$2=0),D18, ""),"") ->  | U18: =IF(T18="","",J18) ->  | V18: =IF(T18="","",F18) ->  | W18: =IF($G$6=0,IF(AND(A18<>"",$F$2>0),A5, ""),"") ->  | X18: =IF(W18="","",IF(ROW()<$H$5+$A$4,20,INDIRECT("J"&ROW()-$A$4))) ->  | Y18: =IF(W18="","",IF(ROW()<$H$5+$A$4,"Cohesive",INDIRECT("F"&ROW()-$A$4))) ->  | Z18: =IF($G$6=0,IF(AND(A18<>"",$F$2<0),IF($F$3-C18<=0,"",$F$3-C18), ""),"") ->  | AA18: =IF($G$6=0,IF(AND(A18<>"",$F$2<0),IF($F$3-C18<=0,"",J18), ""),"") ->  | AB18: =IF($G$6=0,IF(AND(A18<>"",$F$2<0),IF($F$3-C18<=0,"",F18), ""),"") ->  | AC18: =IF($G$6>0,IF(AND(A18<>"",$F$2=0),IF($F$3-C18<=0,"",$F$3-C18), ""),"") ->  | AD18: =IF(AC18="","",J18) ->  | AE18: =IF(AC18="","",F18) ->  | AF18: =IF($G$6>0,IF(AND(A18<>"",$F$2>0),A5, ""),"") ->  | AG18: =IF($G$6>0,IF(AND(A18<>"",$F$2>0),20, ""),"") -> 20 | AH18: =IF($G$6>0,IF(AND(A18<>"",$F$2>0),"Cohesive", ""),"") -> Cohesive | AI18: =IF($G$6>0,IF(AND(A18<>"",$F$2<0),IF($F$3-C18<=0,"",$F$3-C18), ""),"") ->  | AJ18: =IF(AI18="","",J18) ->  | AK18: =IF(AI18="","",F18) ->  | AL18: =IF($G$6<0,IF($F$2=0,AL2, ""),"") ->  | AM18: =IF(AL18<>"",J18,"") ->  | AN18: =IF(AM18<>"",F18,"") ->  | AO18: =IF($G$6<0,IF($F$2>0,A5, ""),"") ->  | AP18: =IF(AO18="", "",20) ->  | AQ18: =IF(AO18="", "","Cohesive") ->  | AR18: =IF(AND($F$2<0,$G$6<0),IF($F$2<0,IF(ROW()<$H$6,IF($F$3-C18<=0,"",$F$3-C18),IF(ROW()=$H$6,$F$3-INDIRECT("C"&$H$6)))),"") ->  | AS18: =IF($G$6<0,IF($F$2<0,IF(ROW()<$H$6,IF($F$3-C18<=0,"",J18),IF(ROW()=$H$6,INDIRECT("J"&$H$6))),""),"") ->  | AT18: =IF($G$6<0,IF($F$2<0,IF(ROW()<$H$6,IF($F$3-C18<=0,"",F18),IF(ROW()=$H$6,INDIRECT("F"&$H$6))),""),"") ->  | AV18: A-8a NP | AW18: Granular | AX18: =IF(AX16<>"",IF(AX11="C",AX3,AX4),"") ->  | AY18: =IF(AY16<>"",IF(AY11="C",AY3,AY4),"") -> 
A19: =IF(D19="","",ROW()-17) -> 2 | B19: =IF(D19="","",C18) -> 682.3 | C19: =IFERROR(IF(D19="","",$B$18-D19),"") -> 680.3 | D19: 5 | E19: A-7-6 | F19: Cohesive | G19: 14 | H19: =IFERROR(IF($E19="","",IF((0.77*LOG(40/(P19/1000)))>2,2,(0.77*LOG(40/(P19/1000))))),"") -> 1.721584378 | I19: =IF(OR($E19="",H19="",E19="Rock"),"",IF(F19="Cohesive",G19,G19*H19)) -> 14 | J19: =IF(OR(F19="",I19=""),"",IF(F19="Cohesive",IF(G19>32,32,ROUND(G19,0)),IF(F19="Granular",IF(I19>60,60,ROUND(I19,0))))) -> 14 | L19: =IF(OR($E19="Rock",$E19=""),"",IF(F19="Cohesive",INDIRECT("W"&MATCH(G19,$T$3:$T$16)+2),INDIRECT("AC"&MATCH(G19,$Z$4:$Z$14)+3))) -> 122 | M19: =IF(OR($E19="Rock",$E19=""),"",IF(L19>0,L19-62.4,"")) -> 59.6 | N19: =IFERROR(IF($E19="","",IF($F$4<C19,L19,IF(B19<$F$4,M19,(((B19-$F$4)*L19)+(($F$4-C19)*M19))/(B19-C19)))),"") -> 59.6 | O19: =IFERROR(IF($E19="","",((B19-C19))*N19),"") -> 119.2 | P19: =IFERROR(IF($E19="","",SUM($O$17:O18)+O19/2),"") -> 232.4 | T19: =IF($G$6=0,IF(AND(A19<>"",$F$2=0),D19, ""),"") ->  | U19: =IF(T19="","",J19) ->  | V19: =IF(T19="","",F19) ->  | W19: =IFERROR(IF($G$6=0,IF($F$2>0,IF(ROW()<$H$5+$A$4,2.5+W18,$F$3-INDIRECT("C"&ROW()-$A$4)),""),""),"") ->  | X19: =IF(W19="","",IF(ROW()<$H$5+$A$4,20,INDIRECT("J"&ROW()-$A$4))) ->  | Y19: =IF(W19="","",IF(ROW()<$H$5+$A$4,"Cohesive",INDIRECT("F"&ROW()-$A$4))) ->  | Z19: =IF($G$6=0,IF(AND(A19<>"",$F$2<0),IF($F$3-C19<=0,"",$F$3-C19), ""),"") ->  | AA19: =IF($G$6=0,IF(AND(A19<>"",$F$2<0),IF($F$3-C19<=0,"",J19), ""),"") ->  | AB19: =IF($G$6=0,IF(AND(A19<>"",$F$2<0),IF($F$3-C19<=0,"",F19), ""),"") ->  | AC19: =IF($G$6>0,IF(AND(A19<>"",$F$2=0),IF($F$3-C19<=0,"",$F$3-C19), ""),"") ->  | AD19: =IF(AC19="","",J19) ->  | AE19: =IF(AC19="","",F19) ->  | AF19: =IF($G$6>0,IF($F$2>0,IF(ROW()<=$H$5+$A$4,2.5+AF18,IF(ROW()>$A$4+$C$2,"",$F$3-INDIRECT("C"&ROW()-$A$4))), ""),"") ->  | AG19: =IF(AF19="","",IF(ROW()<$H$5+$A$4,20,INDIRECT("J"&ROW()-$H$5-$A$4+19))) ->  | AH19: =IF(AF19="","",IF(ROW()<=$H$5+$A$4,"Cohesive",INDIRECT("F"&ROW()-$H$5-$A$4+17))) ->  | AI19: =IF($G$6>0,IF(AND(A19<>"",$F$2<0),IF($F$3-C19<=0,"",$F$3-C19), ""),"") ->  | AJ19: =IF(AI19="","",J19) ->  | AK19: =IF(AI19="","",F19) ->  | AL19: =IF($G$6<0,IF($F$2=0,IF(ROW()<=18+$AL$1,2.5+AL18,IF(ROW()>$AL$1+$C$2,"",INDIRECT("D"&ROW()-$AL$1))), ""),"") ->  | AM19: =IF($G$6<0,IF($F$2=0,IF(ROW()<=18+$AL$1,AM18,IF(ROW()>$AL$1+$C$2,"",INDIRECT("J"&ROW()-$AL$1))), ""),"") ->  | AN19: =IF($G$6<0,IF($F$2=0,IF(ROW()<=18+$AL$1,AN18,IF(ROW()>$AL$1+$C$2,"",INDIRECT("F"&ROW()-$AL$1))), ""),"") ->  | AO19: =IF(AO18="","",IF(ROW()<=18+$A$4,AO18+2.5,IF(ROW()>=$C$2+$A$4,"",AO18+INDIRECT("D"&ROW()-$A$4+1)-INDIRECT("D"&ROW()-$A$4)))) ->  | AP19: =IF(AO18="","",IF(ROW()<=18+$A$4,20,IF(ROW()>=$C$2+$A$4,"",INDIRECT("J"&ROW()-$A$4-1)))) ->  | AQ19: =IF(AO18="","",IF(ROW()<=18+$A$4,"Cohesive",IF(ROW()>=$C$2+$A$4,"",INDIRECT("F"&ROW()-$A$4-1)))) ->  | AR19: =IFERROR(IF(AND($F$2<0,$G$6<0),IF(ROW()<=$C$2,$F$3-INDIRECT("C"&IF($H$6="",18,$H$6)+ROW()-18),""),""),"") ->  | AS19: =IF(AND($F$2<0,$G$6<0),IF(ROW()<=$C$2,INDIRECT("J"&IF($H$6="",18,$H$6)+ROW()-18),""),"") ->  | AT19: =IF(AND($F$2<0,$G$6<0),IF(ROW()<=$C$2,INDIRECT("F"&IF($H$6="",18,$H$6)+ROW()-18),""),"") ->  | AV19: A-8a P | AW19: Cohesive | AX19: =H2 ->  | AY19: =$AX$19 ->  | AZ19: =$AX$19 -> 
A20: 3 | B20: =IF(D20="","",C19) -> 680.3 | C20: 677.3 | D20: 8 | E20: A-6b | F20: Cohesive | G20: 15 | H20: 1.555923063 | I20: 15 | J20: 15 | L20: =IF(OR($E20="Rock",$E20=""),"",IF(F20="Cohesive",INDIRECT("W"&MATCH(G20,$T$3:$T$16)+2),INDIRECT("AC"&MATCH(G20,$Z$4:$Z$14)+3))) -> 122 | M20: =IF(OR($E20="Rock",$E20=""),"",IF(L20>0,L20-62.4,"")) -> 59.6 | N20: =IFERROR(IF($E20="","",IF($F$4<C20,L20,IF(B20<$F$4,M20,(((B20-$F$4)*L20)+(($F$4-C20)*M20))/(B20-C20)))),"") -> 59.6 | O20: =IFERROR(IF($E20="","",((B20-C20))*N20),"") -> 178.8 | P20: =IFERROR(IF($E20="","",SUM($O$17:O19)+O20/2),"") -> 381.4 | AL20: =IF($G$6<0,IF($F$2=0,IF(ROW()<=18+$AL$1,2.5+AL19,IF(ROW()>$AL$1+$C$2,"",INDIRECT("D"&ROW()-$AL$1))), ""),"") ->  | AM20: =IF($G$6<0,IF($F$2=0,IF(ROW()<=18+$AL$1,AM19,IF(ROW()>$AL$1+$C$2,"",INDIRECT("J"&ROW()-$AL$1))), ""),"") ->  | AN20: =IF($G$6<0,IF($F$2=0,IF(ROW()<=18+$AL$1,AN19,IF(ROW()>$AL$1+$C$2,"",INDIRECT("F"&ROW()-$AL$1))), ""),"") ->  | AP20: =IF(AO19="","",IF(ROW()<=18+$A$4,20,IF(ROW()>=$C$2+$A$4,"",INDIRECT("J"&ROW()-$A$4-1)))) ->  | AQ20: =IF(AO19="","",IF(ROW()<=18+$A$4,"Cohesive",IF(ROW()>=$C$2+$A$4,"",INDIRECT("F"&ROW()-$A$4-1)))) ->  | AR20: =IFERROR(IF(AND($F$2<0,$G$6<0),IF(ROW()<=$C$2,$F$3-INDIRECT("C"&IF($H$6="",18,$H$6)+ROW()-18),""),""),"") ->  | AS20: =IF(AND($F$2<0,$G$6<0),IF(ROW()<=$C$2,INDIRECT("J"&IF($H$6="",18,$H$6)+ROW()-18),""),"") ->  | AT20: =IF(AND($F$2<0,$G$6<0),IF(ROW()<=$C$2,INDIRECT("F"&IF($H$6="",18,$H$6)+ROW()-18),""),"") ->  | AV20: A-8b NP | AW20: Granular | AX20: =IF(H3>=7500,3,5) -> 3 | AY20: =$AX$20 -> 3 | AZ20: =$AX$20 -> 3 | BA20: 3 | BB20: 3 | BC20: 3 | BD20: 3 | BE20: 3 | BF20: 3 | BG20: 3
A21: 4 | B21: 677.3 | C21: 674.8 | D21: 10.5 | E21: A-6b | F21: Cohesive | G21: 19 | H21: 1.43637686 | I21: 19 | J21: 19 | L21: 122 | M21: 59.6 | N21: 59.6 | O21: 149 | P21: =IFERROR(IF($E21="","",SUM($O$17:O20)+O21/2),"") -> 545.3 | AV21: A-8b P | AW21: Cohesive | AX21: =IFERROR(AX19-AX20,"") ->  | AY21: =AY19-AY20 -> 
A22: 5 | B22: 674.8 | C22: 672.3 | D22: 13 | E22: A-6b | F22: Cohesive | G22: 21 | H22: 1.353793564 | I22: 21 | J22: 21 | L22: 125 | M22: 62.6 | N22: 62.6 | O22: 156.5 | P22: =IFERROR(IF($E22="","",SUM($O$17:O21)+O22/2),"") -> 698.05 | AV22: Rock | AW22: Rock | AX22: =IF(AX18="","",IF(AX19>AX18,IF(AX18<AX21,AX21,AX18),AX18)) ->  | AY22: =IF(AY18="","",IF(AY19>AY18,IF(AY18<AY21,AY21,AY18),AY18)) -> 
A23: 6 | B23: 672.3 | C23: 669.8 | D23: 15.5 | E23: A-6b | F23: Cohesive | G23: 14 | H23: 1.287619033 | I23: 14 | J23: 14 | L23: 122 | M23: 59.6 | N23: 59.6 | O23: 149 | P23: =IFERROR(IF($E23="","",SUM($O$17:O22)+O23/2),"") -> 850.8 | AX23: =IF(AX22="","",$F$3-AX22) ->  | AY23: =IF(AY22="","",$F$3-AY22) -> 
A24: 7 | B24: 669.8 | C24: 667.3 | D24: 18 | E24: A-6b | F24: Cohesive | G24: 17 | H24: 1.233653081 | I24: 17 | J24: 17 | L24: 122 | M24: 59.6 | N24: 59.6 | O24: 149 | P24: =IFERROR(IF($E24="","",SUM($O$17:O23)+O24/2),"") -> 999.8 | AF24: =IF($G$6>0,IF($F$2>0,IF(ROW()<=$H$5+$A$4,2.5+AF23,IF(ROW()>$A$4+$C$2,"",$F$3-INDIRECT("C"&ROW()-$A$4))), ""),"") ->  | AH24: =IF(AF24="","",IF(ROW()<=$H$5+$A$4,"Cohesive",INDIRECT("F"&ROW()-$H$5-$A$4+17))) ->  | AX24: =IFERROR(AX23/0.5,"") ->  | AY24: =IFERROR(AY23/0.5,"") ->  | AZ24: =IFERROR(AZ23/0.5,"") -> 
A25: 8 | B25: 667.3 | C25: 664.8 | D25: 20.5 | E25: A-7-6 | F25: Cohesive | G25: 18 | H25: 1.187197985 | I25: 18 | J25: 18 | L25: 122 | M25: 59.6 | N25: 59.6 | O25: 149 | P25: =IFERROR(IF($E25="","",SUM($O$17:O24)+O25/2),"") -> 1148.8 | AF25: =IF($G$6>0,IF($F$2>0,IF(ROW()<=$H$5+$A$4,2.5+AF24,IF(ROW()>$A$4+$C$2,"",$F$3-INDIRECT("C"&ROW()-$A$4))), ""),"") ->  | AH25: =IF(AF25="","",IF(ROW()<=$H$5+$A$4,"Cohesive",INDIRECT("F"&ROW()-$H$5-$A$4+17))) ->  | AX25: =IFERROR(ROUNDUP(AX24,0),"") ->  | AY25: =IFERROR(ROUNDUP(AY24,0),"") ->  | AZ25: =IFERROR(ROUNDUP(AZ24,0),"") -> 
A26: 9 | B26: 664.8 | C26: 662.3 | D26: 23 | E26: A-7-6 | F26: Cohesive | G26: 19 | H26: 1.146416211 | I26: 19 | J26: 19 | L26: 122 | M26: 59.6 | N26: 59.6 | O26: 149 | P26: =IFERROR(IF($E26="","",SUM($O$17:O25)+O26/2),"") -> 1297.8 | AX26: =IFERROR(IF(AX18="","",AX25*0.5),"") ->  | AY26: =IFERROR(IF(AY18="","",AY25*0.5),"") -> 
A27: 10 | B27: 662.3 | C27: 660.3 | D27: 25 | E27: A-7-6 | F27: Cohesive | G27: 29 | H27: 1.112135107 | I27: 29 | J27: =IF(OR(F27="",I27=""),"",IF(F27="Cohesive",IF(G27>32,32,ROUND(G27,0)),IF(F27="Granular",IF(I27>60,60,ROUND(I27,0))))) -> 29 | L27: 128 | M27: 65.6 | N27: 65.6 | O27: 131.2 | P27: =IFERROR(IF($E27="","",SUM($O$17:O26)+O27/2),"") -> 1437.9
J28: =IF(OR(F28="",I28=""),"",IF(F28="Cohesive",IF(G28>32,32,ROUND(G28,0)),IF(F28="Granular",IF(I28>60,60,ROUND(I28,0))))) ->  | P28: =IFERROR(IF($E28="","",SUM($O$17:O27)+O28/2),"") -> 
P29: =IFERROR(IF($E29="","",SUM($O$17:O28)+O29/2),"") -> 
P30: =IFERROR(IF($E30="","",SUM($O$17:O29)+O30/2),"") ->  | W30: =IFERROR(IF($G$6=0,IF($F$2>0,IF(ROW()<$H$5+$A$4,2.5+W29,$F$3-INDIRECT("C"&ROW()-$A$4)),""),""),"") -> 
P31: =IFERROR(IF($E31="","",SUM($O$17:O30)+O31/2),"") ->  | W31: =IFERROR(IF($G$6=0,IF($F$2>0,IF(ROW()<$H$5+$A$4,2.5+W30,$F$3-INDIRECT("C"&ROW()-$A$4)),""),""),"") ->  | AO31: =IF(AO30="","",IF(ROW()<=18+$A$4,AO30+2.5,IF(ROW()>=$C$2+$A$4,"",AO30+INDIRECT("D"&ROW()-$A$4+1)-INDIRECT("D"&ROW()-$A$4)))) -> 
P32: =IFERROR(IF($E32="","",SUM($O$17:O31)+O32/2),"") ->  | AO32: =IF(AO31="","",IF(ROW()<=18+$A$4,AO31+2.5,IF(ROW()>=$C$2+$A$4,"",AO31+INDIRECT("D"&ROW()-$A$4+1)-INDIRECT("D"&ROW()-$A$4)))) -> 
P33: =IFERROR(IF($E33="","",SUM($O$17:O32)+O33/2),"") ->  | AG33: =IF(AF33="","",IF(ROW()<$H$5+$A$4,20,INDIRECT("J"&ROW()-$H$5-$A$4+19))) -> 
P34: =IFERROR(IF($E34="","",SUM($O$17:O33)+O34/2),"") ->  | AG34: =IF(AF34="","",IF(ROW()<$H$5+$A$4,20,INDIRECT("J"&ROW()-$H$5-$A$4+19))) -> 
P35: =IFERROR(IF($E35="","",SUM($O$17:O34)+O35/2),"") -> 
P36: =IFERROR(IF($E36="","",SUM($O$17:O35)+O36/2),"") -> 
P37: =IFERROR(IF($E37="","",SUM($O$17:O36)+O37/2),"") -> 
P38: =IFERROR(IF($E38="","",SUM($O$17:O37)+O38/2),"") -> 
P39: =IFERROR(IF($E39="","",SUM($O$17:O38)+O39/2),"") -> 
P40: =IFERROR(IF($E40="","",SUM($O$17:O39)+O40/2),"") -> 
P41: =IFERROR(IF($E41="","",SUM($O$17:O40)+O41/2),"") -> 
P42: =IFERROR(IF($E42="","",SUM($O$17:O41)+O42/2),"") -> 
AR43: =IFERROR(IF(ROW()<=$C$2,$F$3-INDIRECT("C"&IF($H$6="",18,$H$6)+ROW()-18),""),"") ->  | AS43: =IF(AR42="","",IF(ROW()<=$C$2,INDIRECT("J"&IF($H$6="",18,$H$6)+ROW()-18),"")) ->  | AT43: =IF(AR42="","",IF(ROW()<=$C$2,INDIRECT("F"&IF($H$6="",18,$H$6)+ROW()-18),"")) -> 
S195: =V195&Y195&AB195&AE195&AH195&AK195&AN195&AQ195&AT195 -> 

Sheet B-051-1-23
A1: =MID(CELL("filename",A1),FIND("]",CELL("filename", A1))+1,20) -> B-051-1-23 | Q1: 7 | R1: 8 | S1: 9 | T1: 10 | Y1: Properties for Granular Soils | AL1: =ROUNDUP(($F$3-$F$4)/2.5,0) ->  | AM1: =ROUNDUP(($F$3-$F$4)/2.5,0) ->  | AO1: =F2 ->  | AV1: A-1-a | AW1: Granular | AX1: =INDEX('Foundation Depth Table'!AB5:AB119,MATCH(A9,'Foundation Depth Table'!Z5:Z74,0)) ->  | AY1: =IF(B9="","",INDEX('Foundation Depth Table'!$L$5:$L$2314,MATCH(B9,'Foundation Depth Table'!$K$5:$K$2314,0))) ->  | AZ1: =IF(C9="","",INDEX('Foundation Depth Table'!$L$5:$L$2314,MATCH(C9,'Foundation Depth Table'!$K$5:$K$2314,0))) ->  | BA1: =IF(D9="","",INDEX('Foundation Depth Table'!$L$5:$L$2314,MATCH(D9,'Foundation Depth Table'!$K$5:$K$2314,0))) ->  | BB1: =IF(E9="","",INDEX('Foundation Depth Table'!$L$5:$L$2314,MATCH(E9,'Foundation Depth Table'!$K$5:$K$2314,0))) ->  | BC1: =IF(F9="","",INDEX('Foundation Depth Table'!$L$5:$L$2314,MATCH(F9,'Foundation Depth Table'!$K$5:$K$2314,0))) ->  | BD1: =IF(G9="","",INDEX('Foundation Depth Table'!$L$5:$L$2314,MATCH(G9,'Foundation Depth Table'!$K$5:$K$2314,0))) ->  | BE1: =IF(H9="","",INDEX('Foundation Depth Table'!$L$5:$L$2314,MATCH(H9,'Foundation Depth Table'!$K$5:$K$2314,0))) ->  | BF1: =IF(I9="","",INDEX('Foundation Depth Table'!$L$5:$L$2314,MATCH(I9,'Foundation Depth Table'!$K$5:$K$2314,0))) ->  | BG1: =IF(J9="","",INDEX('Foundation Depth Table'!$L$5:$L$2314,MATCH(J9,'Foundation Depth Table'!$K$5:$K$2314,0))) -> 
A2: =MID(CELL("filename",A2),FIND("]",CELL("filename", A2))+1,20) -> B-051-1-23 | C2: =SUMPRODUCT(MAX(($A18:$A42<>"")*(ROW(A18:A42)))) -> 27 | D2: =INDIRECT("C"&C2) -> 661.7 | E2: =IF(F2=0,"At Grade =",IF(F2>0, "Fill (ft) =", "Cut (ft) =")) -> Fill (ft) = | F2: =IFERROR(ROUND((G5), 2),"") ->  | G2: =IF(H2="","","Rock Elev. (ft)=") ->  | H2: =IF(OR(I2=0,I2="",NOT(ISNUMBER(I2))),"",I2) ->  | I2: =IFERROR(ROUND(INDEX('Foundation Design'!G3:G100,MATCH(A2,'Foundation Design'!A3:A100,0)),2),"") -> 0 | S2: Consistency | T2: Properties for Cohesive Soils N60 Range (bpf) | W2: γwet (pcf) | Z2: N60 Range | AC2: γwet | AL2: =IF(AL1=0,"",($F$3-$F$4)-(AL1-1)*2.5) ->  | AM2: =IF(OR(AM1=0,AM1=1),"",($F$3-$F$4)-(AM1-1)*2.5) ->  | AO2: =AO1/2.5 ->  | AV2: A-1-b | AW2: Granular | AX2: =INDEX('Foundation Depth Table'!AA5:AA74,MATCH(A9,'Foundation Depth Table'!Z5:Z74,0)) ->  | AY2: =IF(B9="","",INDEX('Foundation Depth Table'!$E$5:$E$4274,MATCH(B9,'Foundation Depth Table'!$D$5:$D$4274,0))) ->  | AZ2: =IF(C9="","",INDEX('Foundation Depth Table'!$E$5:$E$4274,MATCH(C9,'Foundation Depth Table'!$D$5:$D$4274,0))) ->  | BA2: =IF(D9="","",INDEX('Foundation Depth Table'!$E$5:$E$4274,MATCH(D9,'Foundation Depth Table'!$D$5:$D$4274,0))) ->  | BB2: =IF(E9="","",INDEX('Foundation Depth Table'!$E$5:$E$4274,MATCH(E9,'Foundation Depth Table'!$D$5:$D$4274,0))) ->  | BC2: =IF(F9="","",INDEX('Foundation Depth Table'!$E$5:$E$4274,MATCH(F9,'Foundation Depth Table'!$D$5:$D$4274,0))) ->  | BD2: =IF(G9="","",INDEX('Foundation Depth Table'!$E$5:$E$4274,MATCH(G9,'Foundation Depth Table'!$D$5:$D$4274,0))) ->  | BE2: =IF(H9="","",INDEX('Foundation Depth Table'!$E$5:$E$4274,MATCH(H9,'Foundation Depth Table'!$D$5:$D$4274,0))) ->  | BF2: =IF(I9="","",INDEX('Foundation Depth Table'!$E$5:$E$4274,MATCH(I9,'Foundation Depth Table'!$D$5:$D$4274,0))) ->  | BG2: =IF(J9="","",INDEX('Foundation Depth Table'!$E$5:$E$4274,MATCH(J9,'Foundation Depth Table'!$D$5:$D$4274,0))) -> 
A3: =MATCH(TRUE,INDEX((Q18:Q42<>0),0),0)+17 -> 18 | C3: =F3+ROUNDUP(INDIRECT("C"&C2)/2.5,0) ->  | E3: Shaft Top Elev. (ft) = | F3: =IFERROR(ROUND(INDEX('Foundation Design'!E3:E100,MATCH(A2,'Foundation Design'!A3:A100,0)),2),"") ->  | G3: =IF(H2="","","Rock UCS (psi)=") ->  | H3: =IF(H2="","",IFERROR(INDEX('Foundation Design'!H3:H100,MATCH(A2,'Foundation Design'!A3:A100,0)),"")) ->  | S3: Pudding | T3: 0 | U3: - | V3: 0 | W3: 100 | Y3: Density | Z3: bpf | AC3: pcf | AO3: =ROUNDDOWN(AO2,0) ->  | AV3: A-2-4 | AW3: Granular | AX3: =IFERROR($F$3-AX1,"") ->  | BA3: =IFERROR($F$3-BA1,"") ->  | BB3: =IFERROR($F$3-BB1,"") -> 
A4: =ROUNDUP(G5/2.5,0) ->  | C4: =ROUNDUP((F3-INDIRECT("C"&C2))/2.5,0) ->  | E4: Boring Top Elev. (ft) = | F4: =IFERROR(ROUND(INDEX('Foundation Design'!D3:D100,MATCH(A2,'Foundation Design'!A3:A100,0)),2),"") -> 686.7 | G4: Ex. Ground Elev.= | H4: =IFERROR(ROUND(INDEX('Foundation Design'!F3:F100,MATCH(A2,'Foundation Design'!A3:A100,0)),2),"") -> 0 | S4: Very Soft | T4: 1 | U4: - | V4: 1 | W4: 105 | Y4: Undensified | Z4: 0 | AA4: - | AC4: 110 | AO4: =AO1-2.5*AO3 ->  | AV4: A-2-5 | AW4: Granular | AX4: =$F$3-AX2 ->  | AY4: =$F$3-AY2 -> 
A5: =IF(MOD(F2,2.5)=0,2.5,F2-(A4-1)*2.5) ->  | E5: Post Spacing (ft) = | F5: =IFERROR(ROUND(INDEX('Foundation Design'!I3:I100,MATCH(A1,'Foundation Design'!A3:A100,0)),0),"") ->  | G5: =F3-H4 ->  | H5: =IFERROR(IF(INDIRECT("B"&MATCH(H4,INDIRECT("B18:B"&$C$2),-1))>H4,MATCH(H4,INDIRECT("B18:B"&$C$2),-1)+1,MATCH(H4,INDIRECT("B18:B"&$C$2),-1))+17,"") -> 27 | S5: V.Soft-Soft | T5: 2 | U5: - | V5: 2 | W5: 108 | Y5: Very Loose | Z5: 1 | AA5: - | AB5: 2 | AC5: 115 | AV5: A-2-6 | AW5: Granular | AX5: =IFERROR(MATCH(AX3,INDIRECT("B18:B"&$C$2),-1)+17,"") -> 
A6: =H5-17 -> 10 | E6: Barrier Height (ft) = | F6: =IFERROR(ROUND(INDEX('Foundation Design'!J3:J100,MATCH(A2,'Foundation Design'!A3:A100,0)),0),"") ->  | G6: =F4-H4 -> 686.7 | H6: =IFERROR(IF(INDIRECT("B"&MATCH(F3,INDIRECT("B18:B"&$C$2),-1))>F3,MATCH(F3,INDIRECT("B18:B"&$C$2),-1)+1,MATCH(F3,INDIRECT("B18:B"&$C$2),-1))+17,"") ->  | S6: Soft | T6: 3 | U6: - | V6: 3 | W6: 110 | Y6: V.Loose-Loose | Z6: 3 | AA6: - | AB6: 5 | AC6: 118 | AV6: A-2-7 | AW6: Granular
E7: Transverse Slope = | F7: =IFERROR(INDEX('Foundation Design'!L3:L100,MATCH(A2,'Foundation Design'!A3:A100,0)),"") ->  | G7: =VLOOKUP(H7,'Foundation Depth Table'!Q5:R484,2,) ->  | H7: =F5&"-"&F6 -> - | S7: Soft-M.Stiff | T7: 4 | U7: - | V7: 4 | W7: 112 | Y7: Loose | Z7: 6 | AA7: - | AB7: 8 | AC7: 120 | AV7: A-3 | AW7: Granular | AX7: =IFERROR(COUNTIF(INDIRECT("S18:S"&AX6),"Cohesive"),"") -> 
A8: =IF($H$2="",AX16,AX26) ->  | K8: 2.116216624 | S8: Medium Stiff | T8: 5 | U8: - | V8: 6 | W8: 115 | Y8: Loose-M.Dense | Z8: 9 | AA8: - | AB8: 14 | AC8: 122 | AV8: A-3a | AW8: Granular | AX8: =IFERROR(COUNTIF(INDIRECT("S"&$A$3&":S"&AX6),"Granular"),"") -> 
A9: =IFERROR($G$7&"-"&IF($F$7="Level",0,$F$7),"") ->  | B9: =IFERROR(IF(A16="","",$G$7&"-"&IF($F$7="Level",0,$F$7)&"-"&A$16),"") ->  | C9: =IFERROR(IF(B16="","",$G$7&"-"&IF($F$7="Level",0,$F$7)&"-"&B$16),"") ->  | S9: M.Stiff-Stiff | T9: 7 | U9: - | V9: 9 | W9: 118 | Y9: Medium Dense | Z9: 15 | AA9: - | AB9: 24 | AC9: 125 | AV9: A-4a P | AW9: Cohesive | AX9: =IFERROR(COUNTIF(INDIRECT("S18:S"&AX5),"Cohesive"),"") -> 
A10: Foundation Depth (ft) | S10: Stiff | T10: 10 | U10: - | V10: 13 | W10: 120 | Y10: M.Dense-Dense | Z10: 25 | AA10: - | AB10: 34 | AC10: 128 | AV10: A-4a NP | AW10: Granular | AX10: =IFERROR(COUNTIF(INDIRECT("S18:S"&AX5),"Granular"),"") -> 
A11: Trial 01 | B11: Trial 02 | C11: Trial 03 | D11: Trial 04 | E11: Trial 05 | F11: Trial 06 | G11: Trial 07 | H11: Trial 08 | I11: Trial 09 | J11: Trial 10 | S11: Stiff-V.Stiff | T11: 14 | U11: - | V11: 19 | W11: 122 | Y11: Dense | Z11: 35 | AA11: - | AB11: 44 | AC11: 130 | AV11: A-4b P | AW11: Cohesive | AX11: =IF(AX9>AX10,"C","G") -> G | AY11: =IF(AY9>AY10,"C","G") -> G | AZ11: G | BA11: G | BB11: G | BC11: G | BD11: G | BE11: G | BF11: G | BG11: G
A12: =IFERROR(IF(OR(A8="",A8=100),"N/A",A8),"N/A") -> N/A | B12: =IFERROR(IF(B8="","",IF(B8=100,"N/A",B8)),"N/A") ->  | C12: =IFERROR(IF(C8="","",IF(C8=100,"N/A",C8)),"N/A") ->  | S12: Very Stiff | T12: 20 | U12: - | V12: 27 | W12: 125 | Y12: Dense-V.Dense | Z12: 45 | AA12: - | AB12: 54 | AC12: 132 | AV12: A-4b NP | AW12: Granular | AX12: =IF(AX11="C",AX1,AX2) ->  | AY12: =IF(AY11="C",AY1,AY2) -> 
A13: =IFERROR($F$3-A12,"") ->  | B13: =IFERROR($F$3-B12,"") ->  | S13: V.Stiff-Hard | T13: 28 | U13: - | V13: 35 | W13: 128 | Y13: Very Dense | Z13: 55 | AA13: - | AB13: 64 | AC13: 135 | AV13: A-5 | AW13: Cohesive | AX13: =IF(AX11="C",AX9,AX7) ->  | AY13: =IF(COUNTIF($AX12:AY12,AY12)>1,"",IF(AY11="C",AY9,AY7)) ->  | AZ13: =IF(COUNTIF($AX12:AZ12,AZ12)>1,"",IF(AZ11="C",AZ9,AZ7)) ->  | BA13: =IF(COUNTIF($AX12:BA12,BA12)>1,"",IF(BA11="C",BA9,BA7)) ->  | BB13: =IF(COUNTIF($AX12:BB12,BB12)>1,"",IF(BB11="C",BB9,BB7)) ->  | BC13: =IF(COUNTIF($AX12:BC12,BC12)>1,"",IF(BC11="C",BC9,BC7)) ->  | BD13: =IF(COUNTIF($AX12:BD12,BD12)>1,"",IF(BD11="C",BD9,BD7)) ->  | BE13: =IF(COUNTIF($AX12:BE12,BE12)>1,"",IF(BE11="C",BE9,BE7)) ->  | BF13: =IF(COUNTIF($AX12:BF12,BF12)>1,"",IF(BF11="C",BF9,BF7)) ->  | BG13: =IF(COUNTIF($AX12:BG12,BG12)>1,"",IF(BG11="C",BG9,BG7)) -> 
A14: =AX13 ->  | B14: =AY13 ->  | S14: Hard | T14: 36 | U14: - | V14: 43 | W14: 130 | Y14: Fully Dense | Z14: 65 | AA14: + | AC14: 140 | AV14: A-6a | AW14: Cohesive | AX14: =IF(AX11="C",AX10,AX8) ->  | AY14: =IF(COUNTIF($AX12:AY12,AY12)>1,"",IF(AY11="C",AY10,AY8)) ->  | AZ14: =IF(COUNTIF($AX12:AZ12,AZ12)>1,"",IF(AZ11="C",AZ10,AZ8)) ->  | BA14: =IF(COUNTIF($AX12:BA12,BA12)>1,"",IF(BA11="C",BA10,BA8)) ->  | BB14: =IF(COUNTIF($AX12:BB12,BB12)>1,"",IF(BB11="C",BB10,BB8)) ->  | BC14: =IF(COUNTIF($AX12:BC12,BC12)>1,"",IF(BC11="C",BC10,BC8)) ->  | BD14: =IF(COUNTIF($AX12:BD12,BD12)>1,"",IF(BD11="C",BD10,BD8)) ->  | BE14: =IF(COUNTIF($AX12:BE12,BE12)>1,"",IF(BE11="C",BE10,BE8)) ->  | BF14: =IF(COUNTIF($AX12:BF12,BF12)>1,"",IF(BF11="C",BF10,BF8)) ->  | BG14: =IF(COUNTIF($AX12:BG12,BG12)>1,"",IF(BG11="C",BG10,BG8)) -> 
A15: =AX14 ->  | S15: Hard-V.Hard | T15: 44 | U15: - | V15: 51 | W15: 135 | AV15: A-6b | AW15: Cohesive | AX15: =IFERROR(IF(AX11="C",CORREL(INDIRECT("Q" & $A$3 &":Q"&AX5),INDIRECT("R" & $A$3 &":R"&AX5)),CORREL(INDIRECT("Q" & $A$3 &":Q"&AX6),INDIRECT("R" & $A$3 &":R"&AX6))),0) -> 0 | AY15: =IF(AY14="","",IFERROR(IF(AY11="C",CORREL(INDIRECT("Q" & $A$3 &":Q"&AY5),INDIRECT("R" & $A$3 &":R"&AY5)),CORREL(INDIRECT("Q" & $A$3 &":Q"&AY6),INDIRECT("R" & $A$3 &":R"&AY6))),0)) ->  | AZ15: =IF(AZ14="","",IFERROR(IF(AZ11="C",CORREL(INDIRECT("Q" & $A$3 &":Q"&AZ5),INDIRECT("R" & $A$3 &":R"&AZ5)),CORREL(INDIRECT("Q" & $A$3 &":Q"&AZ6),INDIRECT("R" & $A$3 &":R"&AZ6))),0)) -> 
A16: =IF(A15="","",ROUND(IF(AX15<0.75,MIN(INDIRECT("R18:R"&AX17)),AVERAGE(INDIRECT("R18:R"&AX17))),0)) ->  | S16: Very Hard | T16: 52 | U16: + | W16: 140 | AV16: A-7-5 | AW16: Cohesive | AX16: =AX12 ->  | AY16: =IF(COUNTIF($AX12:AY12,AY12)>1,"",AY12) ->  | AZ16: =IF(COUNTIF($AX12:AZ12,AZ12)>1,"",AZ12) ->  | BA16: =IF(COUNTIF($AX12:BA12,BA12)>1,"",BA12) ->  | BB16: =IF(COUNTIF($AX12:BB12,BB12)>1,"",BB12) ->  | BC16: =IF(COUNTIF($AX12:BC12,BC12)>1,"",BC12) ->  | BD16: =IF(COUNTIF($AX12:BD12,BD12)>1,"",BD12) ->  | BE16: =IF(COUNTIF($AX12:BE12,BE12)>1,"",BE12) ->  | BF16: =IF(COUNTIF($AX12:BF12,BF12)>1,"",BF12) ->  | BG16: =IF(COUNTIF($AX12:BG12,BG12)>1,"",BG12) -> 
A17: Layer No. | B17: Top Elev. (ft) | C17: Bottom Elev. (ft) | D17: Layer Depth (ft) | E17: Soil Class | F17: Soil Type | G17: N60 (bpf) | H17: CN | I17: N160 (bpf) | J17: Adj. N160 (bpf) | L17: γtot. (pcf) | M17: γsat. (pcf) | N17: γ′ (eff.) (pcf) | O17: σv (psf) | P17: σ′v (psf) | Q17: Depth Cut Fill (ft) | R17: N60 Cut Fill (bpf) | S17: Soil Class | T17: B=Ex G Depth Level | U17: B=Ex G N60 Level | V17: Soil Type | W17: B=Ex G Depth Fill | X17: B=Ex G N60 Fill | Y17: Soil Type | Z17: B=Ex G Depth Cut | AA17: B=Ex G N60 Cut | AB17: Soil Type | AC17: B>Ex G Depth Level | AD17: B>Ex G N60 Level | AE17: Soil Type | AF17: B>Ex G Depth Fill | AG17: B>Ex G N60 Fill | AH17: Soil Type | AI17: B>Ex G Depth Cut | AJ17: B>Ex G N60 Cut | AK17: Soil Type | AL17: B<Ex G Depth Level | AM17: B<Ex G N60 Level | AN17: Soil Type | AO17: B<Ex G Depth Fill | AP17: B<Ex G N60 Fill | AQ17: Soil Type | AR17: B<Ex G Depth Cut | AS17: B<Ex G N60 Cut | AT17: Soil Type | AV17: A-7-6 | AW17: Cohesive | AX17: =IF(AX16<>"",IF(AX11="C",AX5,AX6),"") ->  | AY17: =IF(AY16<>"",IF(AY11="C",AY5,AY6),"") -> 
A18: =IF(D18="","",ROW()-17) -> 1 | B18: =IF(A18="","",$F$4) -> 686.7 | C18: =IFERROR(IF(D18="","",$B$18-D18),"") -> 683.7 | D18: 3 | E18: A-7-6 | F18: =_xlfn.IFNA(INDEX($AW$1:$AW$21,MATCH($E18,$AV$1:$AV$21,0)),"") -> Cohesive | G18: 10 | H18: =IFERROR(IF($E18="","",IF(0.77*LOG(40/(P18/1000))>2,2,(0.77*LOG(40/(P18/1000))))),"") -> 2 | I18: =IF(OR($E18="",H18="",E18="Rock"),"",IF(F18="Cohesive",G18,G18*H18)) -> 10 | J18: =IF(OR(F18="",I18=""),"",IF(F18="Cohesive",IF(G18>32,32,ROUND(G18,0)),IF(F18="Granular",IF(I18>60,60,ROUND(I18,0))))) -> 10 | L18: =IF(OR($E18="Rock",$E18=""),"",IF(F18="Cohesive",INDIRECT("W"&MATCH(G18,$T$3:$T$16)+2),INDIRECT("AC"&MATCH(G18,$Z$4:$Z$14)+3))) -> 120 | M18: =IF(OR($E18="Rock",$E18=""),"",IF(L18>0,L18-62.4,"")) -> 57.6 | N18: =IFERROR(IF($E18="","",IF($F$4<C18,L18,IF(B18<$F$4,M18,(((B18-$F$4)*L18)+(($F$4-C18)*M18))/(B18-C18)))),"") -> 57.6 | O18: =IFERROR(IF($E18="","",((B18-C18))*N18),"") -> 172.8 | P18: =IFERROR(IF($E18="","",O18/2),"") -> 86.4 | Q18: =IFERROR(IF(AND(T18="",W18="",Z18="",AC18="",AF18="",AI18="",AL18="",AO18="",AR18=""),"",MAX(T18,W18,Z18,AC18,AF18,AI18,AL18,AO18,AR18)),"") ->  | R18: 20 | S18: =IFERROR(V18&Y18&AB18&AE18&AH18&AK18&AN18&AQ18&AT18,"") -> Cohesive | T18: =IF($G$6=0,IF(AND(A18<>"",$F$2=0),D18, ""),"") ->  | U18: =IF(T18="","",J18) ->  | V18: =IF(T18="","",F18) ->  | W18: =IF($G$6=0,IF(AND(A18<>"",$F$2>0),A5, ""),"") ->  | X18: =IF(W18="","",IF(ROW()<$H$5+$A$4,20,INDIRECT("J"&ROW()-$A$4))) ->  | Y18: =IF(W18="","",IF(ROW()<$H$5+$A$4,"Cohesive",INDIRECT("F"&ROW()-$A$4))) ->  | Z18: =IF($G$6=0,IF(AND(A18<>"",$F$2<0),IF($F$3-C18<=0,"",$F$3-C18), ""),"") ->  | AA18: =IF($G$6=0,IF(AND(A18<>"",$F$2<0),IF($F$3-C18<=0,"",J18), ""),"") ->  | AB18: =IF($G$6=0,IF(AND(A18<>"",$F$2<0),IF($F$3-C18<=0,"",F18), ""),"") ->  | AC18: =IF($G$6>0,IF(AND(A18<>"",$F$2=0),IF($F$3-C18<=0,"",$F$3-C18), ""),"") ->  | AD18: =IF(AC18="","",J18) ->  | AE18: =IF(AC18="","",F18) ->  | AF18: =IF($G$6>0,IF(AND(A18<>"",$F$2>0),A5, ""),"") ->  | AG18: =IF($G$6>0,IF(AND(A18<>"",$F$2>0),20, ""),"") -> 20 | AH18: =IF($G$6>0,IF(AND(A18<>"",$F$2>0),"Cohesive", ""),"") -> Cohesive | AI18: =IF($G$6>0,IF(AND(A18<>"",$F$2<0),IF($F$3-C18<=0,"",$F$3-C18), ""),"") ->  | AJ18: =IF(AI18="","",J18) ->  | AK18: =IF(AI18="","",F18) ->  | AL18: =IF($G$6<0,IF($F$2=0,AL2, ""),"") ->  | AM18: =IF(AL18<>"",J18,"") ->  | AN18: =IF(AM18<>"",F18,"") ->  | AO18: =IF($G$6<0,IF($F$2>0,A5, ""),"") ->  | AP18: =IF(AO18="", "",20) ->  | AQ18: =IF(AO18="", "","Cohesive") ->  | AR18: =IF(AND($F$2<0,$G$6<0),IF($F$2<0,IF(ROW()<$H$6,IF($F$3-C18<=0,"",$F$3-C18),IF(ROW()=$H$6,$F$3-INDIRECT("C"&$H$6)))),"") ->  | AS18: =IF($G$6<0,IF($F$2<0,IF(ROW()<$H$6,IF($F$3-C18<=0,"",J18),IF(ROW()=$H$6,INDIRECT("J"&$H$6))),""),"") ->  | AT18: =IF($G$6<0,IF($F$2<0,IF(ROW()<$H$6,IF($F$3-C18<=0,"",F18),IF(ROW()=$H$6,INDIRECT("F"&$H$6))),""),"") ->  | AV18: A-8a NP | AW18: Granular | AX18: =IF(AX16<>"",IF(AX11="C",AX3,AX4),"") ->  | AY18: =IF(AY16<>"",IF(AY11="C",AY3,AY4),"") -> 
A19: =IF(D19="","",ROW()-17) -> 2 | B19: =IF(D19="","",C18) -> 683.7 | C19: =IFERROR(IF(D19="","",$B$18-D19),"") -> 681.2 | D19: 5.5 | E19: A-7-6 | F19: Cohesive | G19: 10 | H19: =IFERROR(IF($E19="","",IF((0.77*LOG(40/(P19/1000)))>2,2,(0.77*LOG(40/(P19/1000))))),"") -> 1.704201405 | I19: =IF(OR($E19="",H19="",E19="Rock"),"",IF(F19="Cohesive",G19,G19*H19)) -> 10 | J19: =IF(OR(F19="",I19=""),"",IF(F19="Cohesive",IF(G19>32,32,ROUND(G19,0)),IF(F19="Granular",IF(I19>60,60,ROUND(I19,0))))) -> 10 | L19: =IF(OR($E19="Rock",$E19=""),"",IF(F19="Cohesive",INDIRECT("W"&MATCH(G19,$T$3:$T$16)+2),INDIRECT("AC"&MATCH(G19,$Z$4:$Z$14)+3))) -> 120 | M19: =IF(OR($E19="Rock",$E19=""),"",IF(L19>0,L19-62.4,"")) -> 57.6 | N19: =IFERROR(IF($E19="","",IF($F$4<C19,L19,IF(B19<$F$4,M19,(((B19-$F$4)*L19)+(($F$4-C19)*M19))/(B19-C19)))),"") -> 57.6 | O19: =IFERROR(IF($E19="","",((B19-C19))*N19),"") -> 144 | P19: =IFERROR(IF($E19="","",SUM($O$17:O18)+O19/2),"") -> 244.8 | T19: =IF($G$6=0,IF(AND(A19<>"",$F$2=0),D19, ""),"") ->  | U19: =IF(T19="","",J19) ->  | V19: =IF(T19="","",F19) ->  | W19: =IFERROR(IF($G$6=0,IF($F$2>0,IF(ROW()<$H$5+$A$4,2.5+W18,$F$3-INDIRECT("C"&ROW()-$A$4)),""),""),"") ->  | X19: =IF(W19="","",IF(ROW()<$H$5+$A$4,20,INDIRECT("J"&ROW()-$A$4))) ->  | Y19: =IF(W19="","",IF(ROW()<$H$5+$A$4,"Cohesive",INDIRECT("F"&ROW()-$A$4))) ->  | Z19: =IF($G$6=0,IF(AND(A19<>"",$F$2<0),IF($F$3-C19<=0,"",$F$3-C19), ""),"") ->  | AA19: =IF($G$6=0,IF(AND(A19<>"",$F$2<0),IF($F$3-C19<=0,"",J19), ""),"") ->  | AB19: =IF($G$6=0,IF(AND(A19<>"",$F$2<0),IF($F$3-C19<=0,"",F19), ""),"") ->  | AC19: =IF($G$6>0,IF(AND(A19<>"",$F$2=0),IF($F$3-C19<=0,"",$F$3-C19), ""),"") ->  | AD19: =IF(AC19="","",J19) ->  | AE19: =IF(AC19="","",F19) ->  | AF19: =IF($G$6>0,IF($F$2>0,IF(ROW()<=$H$5+$A$4,2.5+AF18,IF(ROW()>$A$4+$C$2,"",$F$3-INDIRECT("C"&ROW()-$A$4))), ""),"") ->  | AG19: =IF(AF19="","",IF(ROW()<$H$5+$A$4,20,INDIRECT("J"&ROW()-$H$5-$A$4+19))) ->  | AH19: =IF(AF19="","",IF(ROW()<=$H$5+$A$4,"Cohesive",INDIRECT("F"&ROW()-$H$5-$A$4+17))) ->  | AI19: =IF($G$6>0,IF(AND(A19<>"",$F$2<0),IF($F$3-C19<=0,"",$F$3-C19), ""),"") ->  | AJ19: =IF(AI19="","",J19) ->  | AK19: =IF(AI19="","",F19) ->  | AL19: =IF($G$6<0,IF($F$2=0,IF(ROW()<=18+$AL$1,2.5+AL18,IF(ROW()>$AL$1+$C$2,"",INDIRECT("D"&ROW()-$AL$1))), ""),"") ->  | AM19: =IF($G$6<0,IF($F$2=0,IF(ROW()<=18+$AL$1,AM18,IF(ROW()>$AL$1+$C$2,"",INDIRECT("J"&ROW()-$AL$1))), ""),"") ->  | AN19: =IF($G$6<0,IF($F$2=0,IF(ROW()<=18+$AL$1,AN18,IF(ROW()>$AL$1+$C$2,"",INDIRECT("F"&ROW()-$AL$1))), ""),"") ->  | AO19: =IF(AO18="","",IF(ROW()<=18+$A$4,AO18+2.5,IF(ROW()>=$C$2+$A$4,"",AO18+INDIRECT("D"&ROW()-$A$4+1)-INDIRECT("D"&ROW()-$A$4)))) ->  | AP19: =IF(AO18="","",IF(ROW()<=18+$A$4,20,IF(ROW()>=$C$2+$A$4,"",INDIRECT("J"&ROW()-$A$4-1)))) ->  | AQ19: =IF(AO18="","",IF(ROW()<=18+$A$4,"Cohesive",IF(ROW()>=$C$2+$A$4,"",INDIRECT("F"&ROW()-$A$4-1)))) ->  | AR19: =IFERROR(IF(AND($F$2<0,$G$6<0),IF(ROW()<=$C$2,$F$3-INDIRECT("C"&IF($H$6="",18,$H$6)+ROW()-18),""),""),"") ->  | AS19: =IF(AND($F$2<0,$G$6<0),IF(ROW()<=$C$2,INDIRECT("J"&IF($H$6="",18,$H$6)+ROW()-18),""),"") ->  | AT19: =IF(AND($F$2<0,$G$6<0),IF(ROW()<=$C$2,INDIRECT("F"&IF($H$6="",18,$H$6)+ROW()-18),""),"") ->  | AV19: A-8a P | AW19: Cohesive | AX19: =H2 ->  | AY19: =$AX$19 ->  | AZ19: =$AX$19 -> 
A20: 3 | B20: =IF(D20="","",C19) -> 681.2 | C20: 678.7 | D20: 8 | E20: A-7-6 | F20: Cohesive | G20: 12 | H20: 1.549496976 | I20: 12 | J20: 12 | L20: =IF(OR($E20="Rock",$E20=""),"",IF(F20="Cohesive",INDIRECT("W"&MATCH(G20,$T$3:$T$16)+2),INDIRECT("AC"&MATCH(G20,$Z$4:$Z$14)+3))) -> 120 | M20: =IF(OR($E20="Rock",$E20=""),"",IF(L20>0,L20-62.4,"")) -> 57.6 | N20: =IFERROR(IF($E20="","",IF($F$4<C20,L20,IF(B20<$F$4,M20,(((B20-$F$4)*L20)+(($F$4-C20)*M20))/(B20-C20)))),"") -> 57.6 | O20: =IFERROR(IF($E20="","",((B20-C20))*N20),"") -> 144 | P20: =IFERROR(IF($E20="","",SUM($O$17:O19)+O20/2),"") -> 388.8 | AL20: =IF($G$6<0,IF($F$2=0,IF(ROW()<=18+$AL$1,2.5+AL19,IF(ROW()>$AL$1+$C$2,"",INDIRECT("D"&ROW()-$AL$1))), ""),"") ->  | AM20: =IF($G$6<0,IF($F$2=0,IF(ROW()<=18+$AL$1,AM19,IF(ROW()>$AL$1+$C$2,"",INDIRECT("J"&ROW()-$AL$1))), ""),"") ->  | AN20: =IF($G$6<0,IF($F$2=0,IF(ROW()<=18+$AL$1,AN19,IF(ROW()>$AL$1+$C$2,"",INDIRECT("F"&ROW()-$AL$1))), ""),"") ->  | AP20: =IF(AO19="","",IF(ROW()<=18+$A$4,20,IF(ROW()>=$C$2+$A$4,"",INDIRECT("J"&ROW()-$A$4-1)))) ->  | AQ20: =IF(AO19="","",IF(ROW()<=18+$A$4,"Cohesive",IF(ROW()>=$C$2+$A$4,"",INDIRECT("F"&ROW()-$A$4-1)))) ->  | AR20: =IFERROR(IF(AND($F$2<0,$G$6<0),IF(ROW()<=$C$2,$F$3-INDIRECT("C"&IF($H$6="",18,$H$6)+ROW()-18),""),""),"") ->  | AS20: =IF(AND($F$2<0,$G$6<0),IF(ROW()<=$C$2,INDIRECT("J"&IF($H$6="",18,$H$6)+ROW()-18),""),"") ->  | AT20: =IF(AND($F$2<0,$G$6<0),IF(ROW()<=$C$2,INDIRECT("F"&IF($H$6="",18,$H$6)+ROW()-18),""),"") ->  | AV20: A-8b NP | AW20: Granular | AX20: =IF(H3>=7500,3,5) -> 3 | AY20: =$AX$20 -> 3 | AZ20: =$AX$20 -> 3 | BA20: 3 | BB20: 3 | BC20: 3 | BD20: 3 | BE20: 3 | BF20: 3 | BG20: 3
A21: 4 | B21: 678.7 | C21: 676.2 | D21: 10.5 | E21: A-7-6 | F21: Cohesive | G21: 11 | H21: 1.444131747 | I21: 11 | J21: 11 | L21: 120 | M21: 57.6 | N21: 57.6 | O21: 144 | P21: =IFERROR(IF($E21="","",SUM($O$17:O20)+O21/2),"") -> 532.8 | AV21: A-8b P | AW21: Cohesive | AX21: =IFERROR(AX19-AX20,"") ->  | AY21: =AY19-AY20 -> 
A22: 5 | B22: 676.2 | C22: 673.7 | D22: 13 | E22: A-6b | F22: Cohesive | G22: 29 | H22: 1.359226873 | I22: 29 | J22: 29 | L22: 128 | M22: 65.6 | N22: 65.6 | O22: 164 | P22: =IFERROR(IF($E22="","",SUM($O$17:O21)+O22/2),"") -> 686.8 | AV22: Rock | AW22: Rock | AX22: =IF(AX18="","",IF(AX19>AX18,IF(AX18<AX21,AX21,AX18),AX18)) ->  | AY22: =IF(AY18="","",IF(AY19>AY18,IF(AY18<AY21,AY21,AY18),AY18)) -> 
A23: 6 | B23: 673.7 | C23: 671.2 | D23: 15.5 | E23: A-6b | F23: Cohesive | G23: 26 | H23: 1.289096227 | I23: 26 | J23: 26 | L23: 125 | M23: 62.6 | N23: 62.6 | O23: 156.5 | P23: =IFERROR(IF($E23="","",SUM($O$17:O22)+O23/2),"") -> 847.05 | AX23: =IF(AX22="","",$F$3-AX22) ->  | AY23: =IF(AY22="","",$F$3-AY22) -> 
A24: 7 | B24: 671.2 | C24: 668.7 | D24: 18 | E24: A-6a | F24: Cohesive | G24: 19 | H24: 1.233653081 | I24: 19 | J24: 19 | L24: 122 | M24: 59.6 | N24: 59.6 | O24: 149 | P24: =IFERROR(IF($E24="","",SUM($O$17:O23)+O24/2),"") -> 999.8 | AF24: =IF($G$6>0,IF($F$2>0,IF(ROW()<=$H$5+$A$4,2.5+AF23,IF(ROW()>$A$4+$C$2,"",$F$3-INDIRECT("C"&ROW()-$A$4))), ""),"") ->  | AH24: =IF(AF24="","",IF(ROW()<=$H$5+$A$4,"Cohesive",INDIRECT("F"&ROW()-$H$5-$A$4+17))) ->  | AX24: =IFERROR(AX23/0.5,"") ->  | AY24: =IFERROR(AY23/0.5,"") ->  | AZ24: =IFERROR(AZ23/0.5,"") -> 
A25: 8 | B25: 668.7 | C25: 666.2 | D25: 20.5 | E25: A-6a | F25: Cohesive | G25: 19 | H25: 1.187197985 | I25: 19 | J25: 19 | L25: 122 | M25: 59.6 | N25: 59.6 | O25: 149 | P25: =IFERROR(IF($E25="","",SUM($O$17:O24)+O25/2),"") -> 1148.8 | AF25: =IF($G$6>0,IF($F$2>0,IF(ROW()<=$H$5+$A$4,2.5+AF24,IF(ROW()>$A$4+$C$2,"",$F$3-INDIRECT("C"&ROW()-$A$4))), ""),"") ->  | AH25: =IF(AF25="","",IF(ROW()<=$H$5+$A$4,"Cohesive",INDIRECT("F"&ROW()-$H$5-$A$4+17))) ->  | AX25: =IFERROR(ROUNDUP(AX24,0),"") ->  | AY25: =IFERROR(ROUNDUP(AY24,0),"") ->  | AZ25: =IFERROR(ROUNDUP(AZ24,0),"") -> 
A26: 9 | B26: 666.2 | C26: 663.7 | D26: 23 | E26: A-6a | F26: Cohesive | G26: 17 | H26: 1.146416211 | I26: 17 | J26: 17 | L26: 122 | M26: 59.6 | N26: 59.6 | O26: 149 | P26: =IFERROR(IF($E26="","",SUM($O$17:O25)+O26/2),"") -> 1297.8 | AX26: =IFERROR(IF(AX18="","",AX25*0.5),"") ->  | AY26: =IFERROR(IF(AY18="","",AY25*0.5),"") -> 
A27: 10 | B27: 663.7 | C27: 661.7 | D27: 25 | E27: A-6a | F27: Cohesive | G27: 21 | H27: 1.112833534 | I27: 21 | J27: =IF(OR(F27="",I27=""),"",IF(F27="Cohesive",IF(G27>32,32,ROUND(G27,0)),IF(F27="Granular",IF(I27>60,60,ROUND(I27,0))))) -> 21 | L27: 125 | M27: 62.6 | N27: 62.6 | O27: 125.2 | P27: =IFERROR(IF($E27="","",SUM($O$17:O26)+O27/2),"") -> 1434.9
J28: =IF(OR(F28="",I28=""),"",IF(F28="Cohesive",IF(G28>32,32,ROUND(G28,0)),IF(F28="Granular",IF(I28>60,60,ROUND(I28,0))))) ->  | P28: =IFERROR(IF($E28="","",SUM($O$17:O27)+O28/2),"") -> 
P29: =IFERROR(IF($E29="","",SUM($O$17:O28)+O29/2),"") -> 
P30: =IFERROR(IF($E30="","",SUM($O$17:O29)+O30/2),"") ->  | W30: =IFERROR(IF($G$6=0,IF($F$2>0,IF(ROW()<$H$5+$A$4,2.5+W29,$F$3-INDIRECT("C"&ROW()-$A$4)),""),""),"") -> 
P31: =IFERROR(IF($E31="","",SUM($O$17:O30)+O31/2),"") ->  | W31: =IFERROR(IF($G$6=0,IF($F$2>0,IF(ROW()<$H$5+$A$4,2.5+W30,$F$3-INDIRECT("C"&ROW()-$A$4)),""),""),"") ->  | AO31: =IF(AO30="","",IF(ROW()<=18+$A$4,AO30+2.5,IF(ROW()>=$C$2+$A$4,"",AO30+INDIRECT("D"&ROW()-$A$4+1)-INDIRECT("D"&ROW()-$A$4)))) -> 
P32: =IFERROR(IF($E32="","",SUM($O$17:O31)+O32/2),"") ->  | AO32: =IF(AO31="","",IF(ROW()<=18+$A$4,AO31+2.5,IF(ROW()>=$C$2+$A$4,"",AO31+INDIRECT("D"&ROW()-$A$4+1)-INDIRECT("D"&ROW()-$A$4)))) -> 
P33: =IFERROR(IF($E33="","",SUM($O$17:O32)+O33/2),"") ->  | AG33: =IF(AF33="","",IF(ROW()<$H$5+$A$4,20,INDIRECT("J"&ROW()-$H$5-$A$4+19))) -> 
P34: =IFERROR(IF($E34="","",SUM($O$17:O33)+O34/2),"") ->  | AG34: =IF(AF34="","",IF(ROW()<$H$5+$A$4,20,INDIRECT("J"&ROW()-$H$5-$A$4+19))) -> 
P35: =IFERROR(IF($E35="","",SUM($O$17:O34)+O35/2),"") -> 
P36: =IFERROR(IF($E36="","",SUM($O$17:O35)+O36/2),"") -> 
P37: =IFERROR(IF($E37="","",SUM($O$17:O36)+O37/2),"") -> 
P38: =IFERROR(IF($E38="","",SUM($O$17:O37)+O38/2),"") -> 
P39: =IFERROR(IF($E39="","",SUM($O$17:O38)+O39/2),"") -> 
P40: =IFERROR(IF($E40="","",SUM($O$17:O39)+O40/2),"") -> 
P41: =IFERROR(IF($E41="","",SUM($O$17:O40)+O41/2),"") -> 
P42: =IFERROR(IF($E42="","",SUM($O$17:O41)+O42/2),"") -> 
AR43: =IFERROR(IF(ROW()<=$C$2,$F$3-INDIRECT("C"&IF($H$6="",18,$H$6)+ROW()-18),""),"") ->  | AS43: =IF(AR42="","",IF(ROW()<=$C$2,INDIRECT("J"&IF($H$6="",18,$H$6)+ROW()-18),"")) ->  | AT43: =IF(AR42="","",IF(ROW()<=$C$2,INDIRECT("F"&IF($H$6="",18,$H$6)+ROW()-18),"")) -> 
S195: =V195&Y195&AB195&AE195&AH195&AK195&AN195&AQ195&AT195 -> 

Sheet B-051-2-23
A1: =MID(CELL("filename",A1),FIND("]",CELL("filename", A1))+1,20) -> B-051-2-23 | Q1: 7 | R1: 8 | S1: 9 | T1: 10 | Y1: Properties for Granular Soils | AL1: =ROUNDUP(($F$3-$F$4)/2.5,0) ->  | AM1: =ROUNDUP(($F$3-$F$4)/2.5,0) ->  | AO1: =F2 ->  | AV1: A-1-a | AW1: Granular | AX1: =INDEX('Foundation Depth Table'!AB5:AB119,MATCH(A9,'Foundation Depth Table'!Z5:Z74,0)) ->  | AY1: =IF(B9="","",INDEX('Foundation Depth Table'!$L$5:$L$2314,MATCH(B9,'Foundation Depth Table'!$K$5:$K$2314,0))) ->  | AZ1: =IF(C9="","",INDEX('Foundation Depth Table'!$L$5:$L$2314,MATCH(C9,'Foundation Depth Table'!$K$5:$K$2314,0))) ->  | BA1: =IF(D9="","",INDEX('Foundation Depth Table'!$L$5:$L$2314,MATCH(D9,'Foundation Depth Table'!$K$5:$K$2314,0))) ->  | BB1: =IF(E9="","",INDEX('Foundation Depth Table'!$L$5:$L$2314,MATCH(E9,'Foundation Depth Table'!$K$5:$K$2314,0))) ->  | BC1: =IF(F9="","",INDEX('Foundation Depth Table'!$L$5:$L$2314,MATCH(F9,'Foundation Depth Table'!$K$5:$K$2314,0))) ->  | BD1: =IF(G9="","",INDEX('Foundation Depth Table'!$L$5:$L$2314,MATCH(G9,'Foundation Depth Table'!$K$5:$K$2314,0))) ->  | BE1: =IF(H9="","",INDEX('Foundation Depth Table'!$L$5:$L$2314,MATCH(H9,'Foundation Depth Table'!$K$5:$K$2314,0))) ->  | BF1: =IF(I9="","",INDEX('Foundation Depth Table'!$L$5:$L$2314,MATCH(I9,'Foundation Depth Table'!$K$5:$K$2314,0))) ->  | BG1: =IF(J9="","",INDEX('Foundation Depth Table'!$L$5:$L$2314,MATCH(J9,'Foundation Depth Table'!$K$5:$K$2314,0))) -> 
A2: =MID(CELL("filename",A2),FIND("]",CELL("filename", A2))+1,20) -> B-051-2-23 | C2: =SUMPRODUCT(MAX(($A18:$A42<>"")*(ROW(A18:A42)))) -> 27 | D2: =INDIRECT("C"&C2) -> 662.6 | E2: =IF(F2=0,"At Grade =",IF(F2>0, "Fill (ft) =", "Cut (ft) =")) -> Fill (ft) = | F2: =IFERROR(ROUND((G5), 2),"") ->  | G2: =IF(H2="","","Rock Elev. (ft)=") ->  | H2: =IF(OR(I2=0,I2="",NOT(ISNUMBER(I2))),"",I2) ->  | I2: =IFERROR(ROUND(INDEX('Foundation Design'!G3:G100,MATCH(A2,'Foundation Design'!A3:A100,0)),2),"") -> 0 | S2: Consistency | T2: Properties for Cohesive Soils N60 Range (bpf) | W2: γwet (pcf) | Z2: N60 Range | AC2: γwet | AL2: =IF(AL1=0,"",($F$3-$F$4)-(AL1-1)*2.5) ->  | AM2: =IF(OR(AM1=0,AM1=1),"",($F$3-$F$4)-(AM1-1)*2.5) ->  | AO2: =AO1/2.5 ->  | AV2: A-1-b | AW2: Granular | AX2: =INDEX('Foundation Depth Table'!AA5:AA74,MATCH(A9,'Foundation Depth Table'!Z5:Z74,0)) ->  | AY2: =IF(B9="","",INDEX('Foundation Depth Table'!$E$5:$E$4274,MATCH(B9,'Foundation Depth Table'!$D$5:$D$4274,0))) ->  | AZ2: =IF(C9="","",INDEX('Foundation Depth Table'!$E$5:$E$4274,MATCH(C9,'Foundation Depth Table'!$D$5:$D$4274,0))) ->  | BA2: =IF(D9="","",INDEX('Foundation Depth Table'!$E$5:$E$4274,MATCH(D9,'Foundation Depth Table'!$D$5:$D$4274,0))) ->  | BB2: =IF(E9="","",INDEX('Foundation Depth Table'!$E$5:$E$4274,MATCH(E9,'Foundation Depth Table'!$D$5:$D$4274,0))) ->  | BC2: =IF(F9="","",INDEX('Foundation Depth Table'!$E$5:$E$4274,MATCH(F9,'Foundation Depth Table'!$D$5:$D$4274,0))) ->  | BD2: =IF(G9="","",INDEX('Foundation Depth Table'!$E$5:$E$4274,MATCH(G9,'Foundation Depth Table'!$D$5:$D$4274,0))) ->  | BE2: =IF(H9="","",INDEX('Foundation Depth Table'!$E$5:$E$4274,MATCH(H9,'Foundation Depth Table'!$D$5:$D$4274,0))) ->  | BF2: =IF(I9="","",INDEX('Foundation Depth Table'!$E$5:$E$4274,MATCH(I9,'Foundation Depth Table'!$D$5:$D$4274,0))) ->  | BG2: =IF(J9="","",INDEX('Foundation Depth Table'!$E$5:$E$4274,MATCH(J9,'Foundation Depth Table'!$D$5:$D$4274,0))) -> 
A3: =MATCH(TRUE,INDEX((Q18:Q42<>0),0),0)+17 -> 18 | C3: =F3+ROUNDUP(INDIRECT("C"&C2)/2.5,0) ->  | E3: Shaft Top Elev. (ft) = | F3: =IFERROR(ROUND(INDEX('Foundation Design'!E3:E100,MATCH(A2,'Foundation Design'!A3:A100,0)),2),"") ->  | G3: =IF(H2="","","Rock UCS (psi)=") ->  | H3: =IF(H2="","",IFERROR(INDEX('Foundation Design'!H3:H100,MATCH(A2,'Foundation Design'!A3:A100,0)),"")) ->  | S3: Pudding | T3: 0 | U3: - | V3: 0 | W3: 100 | Y3: Density | Z3: bpf | AC3: pcf | AO3: =ROUNDDOWN(AO2,0) ->  | AV3: A-2-4 | AW3: Granular | AX3: =IFERROR($F$3-AX1,"") ->  | BA3: =IFERROR($F$3-BA1,"") ->  | BB3: =IFERROR($F$3-BB1,"") -> 
A4: =ROUNDUP(G5/2.5,0) ->  | C4: =ROUNDUP((F3-INDIRECT("C"&C2))/2.5,0) ->  | E4: Boring Top Elev. (ft) = | F4: =IFERROR(ROUND(INDEX('Foundation Design'!D3:D100,MATCH(A2,'Foundation Design'!A3:A100,0)),2),"") -> 687.6 | G4: Ex. Ground Elev.= | H4: =IFERROR(ROUND(INDEX('Foundation Design'!F3:F100,MATCH(A2,'Foundation Design'!A3:A100,0)),2),"") -> 0 | S4: Very Soft | T4: 1 | U4: - | V4: 1 | W4: 105 | Y4: Undensified | Z4: 0 | AA4: - | AC4: 110 | AO4: =AO1-2.5*AO3 ->  | AV4: A-2-5 | AW4: Granular | AX4: =$F$3-AX2 ->  | AY4: =$F$3-AY2 -> 
A5: =IF(MOD(F2,2.5)=0,2.5,F2-(A4-1)*2.5) ->  | E5: Post Spacing (ft) = | F5: =IFERROR(ROUND(INDEX('Foundation Design'!I3:I100,MATCH(A1,'Foundation Design'!A3:A100,0)),0),"") ->  | G5: =F3-H4 ->  | H5: =IFERROR(IF(INDIRECT("B"&MATCH(H4,INDIRECT("B18:B"&$C$2),-1))>H4,MATCH(H4,INDIRECT("B18:B"&$C$2),-1)+1,MATCH(H4,INDIRECT("B18:B"&$C$2),-1))+17,"") -> 27 | S5: V.Soft-Soft | T5: 2 | U5: - | V5: 2 | W5: 108 | Y5: Very Loose | Z5: 1 | AA5: - | AB5: 2 | AC5: 115 | AV5: A-2-6 | AW5: Granular | AX5: =IFERROR(MATCH(AX3,INDIRECT("B18:B"&$C$2),-1)+17,"") -> 
A6: =H5-17 -> 10 | E6: Barrier Height (ft) = | F6: =IFERROR(ROUND(INDEX('Foundation Design'!J3:J100,MATCH(A2,'Foundation Design'!A3:A100,0)),0),"") ->  | G6: =F4-H4 -> 687.6 | H6: =IFERROR(IF(INDIRECT("B"&MATCH(F3,INDIRECT("B18:B"&$C$2),-1))>F3,MATCH(F3,INDIRECT("B18:B"&$C$2),-1)+1,MATCH(F3,INDIRECT("B18:B"&$C$2),-1))+17,"") ->  | S6: Soft | T6: 3 | U6: - | V6: 3 | W6: 110 | Y6: V.Loose-Loose | Z6: 3 | AA6: - | AB6: 5 | AC6: 118 | AV6: A-2-7 | AW6: Granular
E7: Transverse Slope = | F7: =IFERROR(INDEX('Foundation Design'!L3:L100,MATCH(A2,'Foundation Design'!A3:A100,0)),"") ->  | G7: =VLOOKUP(H7,'Foundation Depth Table'!Q5:R484,2,) ->  | H7: =F5&"-"&F6 -> - | S7: Soft-M.Stiff | T7: 4 | U7: - | V7: 4 | W7: 112 | Y7: Loose | Z7: 6 | AA7: - | AB7: 8 | AC7: 120 | AV7: A-3 | AW7: Granular | AX7: =IFERROR(COUNTIF(INDIRECT("S18:S"&AX6),"Cohesive"),"") -> 
A8: =IF($H$2="",AX16,AX26) ->  | K8: 2.116216624 | S8: Medium Stiff | T8: 5 | U8: - | V8: 6 | W8: 115 | Y8: Loose-M.Dense | Z8: 9 | AA8: - | AB8: 14 | AC8: 122 | AV8: A-3a | AW8: Granular | AX8: =IFERROR(COUNTIF(INDIRECT("S"&$A$3&":S"&AX6),"Granular"),"") -> 
A9: =IFERROR($G$7&"-"&IF($F$7="Level",0,$F$7),"") ->  | B9: =IFERROR(IF(A16="","",$G$7&"-"&IF($F$7="Level",0,$F$7)&"-"&A$16),"") ->  | C9: =IFERROR(IF(B16="","",$G$7&"-"&IF($F$7="Level",0,$F$7)&"-"&B$16),"") ->  | S9: M.Stiff-Stiff | T9: 7 | U9: - | V9: 9 | W9: 118 | Y9: Medium Dense | Z9: 15 | AA9: - | AB9: 24 | AC9: 125 | AV9: A-4a P | AW9: Cohesive | AX9: =IFERROR(COUNTIF(INDIRECT("S18:S"&AX5),"Cohesive"),"") -> 
A10: Foundation Depth (ft) | S10: Stiff | T10: 10 | U10: - | V10: 13 | W10: 120 | Y10: M.Dense-Dense | Z10: 25 | AA10: - | AB10: 34 | AC10: 128 | AV10: A-4a NP | AW10: Granular | AX10: =IFERROR(COUNTIF(INDIRECT("S18:S"&AX5),"Granular"),"") -> 
A11: Trial 01 | B11: Trial 02 | C11: Trial 03 | D11: Trial 04 | E11: Trial 05 | F11: Trial 06 | G11: Trial 07 | H11: Trial 08 | I11: Trial 09 | J11: Trial 10 | S11: Stiff-V.Stiff | T11: 14 | U11: - | V11: 19 | W11: 122 | Y11: Dense | Z11: 35 | AA11: - | AB11: 44 | AC11: 130 | AV11: A-4b P | AW11: Cohesive | AX11: =IF(AX9>AX10,"C","G") -> G | AY11: =IF(AY9>AY10,"C","G") -> G | AZ11: G | BA11: G | BB11: G | BC11: G | BD11: G | BE11: G | BF11: G | BG11: G
A12: =IFERROR(IF(OR(A8="",A8=100),"N/A",A8),"N/A") -> N/A | B12: =IFERROR(IF(B8="","",IF(B8=100,"N/A",B8)),"N/A") ->  | C12: =IFERROR(IF(C8="","",IF(C8=100,"N/A",C8)),"N/A") ->  | S12: Very Stiff | T12: 20 | U12: - | V12: 27 | W12: 125 | Y12: Dense-V.Dense | Z12: 45 | AA12: - | AB12: 54 | AC12: 132 | AV12: A-4b NP | AW12: Granular | AX12: =IF(AX11="C",AX1,AX2) ->  | AY12: =IF(AY11="C",AY1,AY2) -> 
A13: =IFERROR($F$3-A12,"") ->  | B13: =IFERROR($F$3-B12,"") ->  | S13: V.Stiff-Hard | T13: 28 | U13: - | V13: 35 | W13: 128 | Y13: Very Dense | Z13: 55 | AA13: - | AB13: 64 | AC13: 135 | AV13: A-5 | AW13: Cohesive | AX13: =IF(AX11="C",AX9,AX7) ->  | AY13: =IF(COUNTIF($AX12:AY12,AY12)>1,"",IF(AY11="C",AY9,AY7)) ->  | AZ13: =IF(COUNTIF($AX12:AZ12,AZ12)>1,"",IF(AZ11="C",AZ9,AZ7)) ->  | BA13: =IF(COUNTIF($AX12:BA12,BA12)>1,"",IF(BA11="C",BA9,BA7)) ->  | BB13: =IF(COUNTIF($AX12:BB12,BB12)>1,"",IF(BB11="C",BB9,BB7)) ->  | BC13: =IF(COUNTIF($AX12:BC12,BC12)>1,"",IF(BC11="C",BC9,BC7)) ->  | BD13: =IF(COUNTIF($AX12:BD12,BD12)>1,"",IF(BD11="C",BD9,BD7)) ->  | BE13: =IF(COUNTIF($AX12:BE12,BE12)>1,"",IF(BE11="C",BE9,BE7)) ->  | BF13: =IF(COUNTIF($AX12:BF12,BF12)>1,"",IF(BF11="C",BF9,BF7)) ->  | BG13: =IF(COUNTIF($AX12:BG12,BG12)>1,"",IF(BG11="C",BG9,BG7)) -> 
A14: =AX13 ->  | B14: =AY13 ->  | S14: Hard | T14: 36 | U14: - | V14: 43 | W14: 130 | Y14: Fully Dense | Z14: 65 | AA14: + | AC14: 140 | AV14: A-6a | AW14: Cohesive | AX14: =IF(AX11="C",AX10,AX8) ->  | AY14: =IF(COUNTIF($AX12:AY12,AY12)>1,"",IF(AY11="C",AY10,AY8)) ->  | AZ14: =IF(COUNTIF($AX12:AZ12,AZ12)>1,"",IF(AZ11="C",AZ10,AZ8)) ->  | BA14: =IF(COUNTIF($AX12:BA12,BA12)>1,"",IF(BA11="C",BA10,BA8)) ->  | BB14: =IF(COUNTIF($AX12:BB12,BB12)>1,"",IF(BB11="C",BB10,BB8)) ->  | BC14: =IF(COUNTIF($AX12:BC12,BC12)>1,"",IF(BC11="C",BC10,BC8)) ->  | BD14: =IF(COUNTIF($AX12:BD12,BD12)>1,"",IF(BD11="C",BD10,BD8)) ->  | BE14: =IF(COUNTIF($AX12:BE12,BE12)>1,"",IF(BE11="C",BE10,BE8)) ->  | BF14: =IF(COUNTIF($AX12:BF12,BF12)>1,"",IF(BF11="C",BF10,BF8)) ->  | BG14: =IF(COUNTIF($AX12:BG12,BG12)>1,"",IF(BG11="C",BG10,BG8)) -> 
A15: =AX14 ->  | S15: Hard-V.Hard | T15: 44 | U15: - | V15: 51 | W15: 135 | AV15: A-6b | AW15: Cohesive | AX15: =IFERROR(IF(AX11="C",CORREL(INDIRECT("Q" & $A$3 &":Q"&AX5),INDIRECT("R" & $A$3 &":R"&AX5)),CORREL(INDIRECT("Q" & $A$3 &":Q"&AX6),INDIRECT("R" & $A$3 &":R"&AX6))),0) -> 0 | AY15: =IF(AY14="","",IFERROR(IF(AY11="C",CORREL(INDIRECT("Q" & $A$3 &":Q"&AY5),INDIRECT("R" & $A$3 &":R"&AY5)),CORREL(INDIRECT("Q" & $A$3 &":Q"&AY6),INDIRECT("R" & $A$3 &":R"&AY6))),0)) ->  | AZ15: =IF(AZ14="","",IFERROR(IF(AZ11="C",CORREL(INDIRECT("Q" & $A$3 &":Q"&AZ5),INDIRECT("R" & $A$3 &":R"&AZ5)),CORREL(INDIRECT("Q" & $A$3 &":Q"&AZ6),INDIRECT("R" & $A$3 &":R"&AZ6))),0)) -> 
A16: =IF(A15="","",ROUND(IF(AX15<0.75,MIN(INDIRECT("R18:R"&AX17)),AVERAGE(INDIRECT("R18:R"&AX17))),0)) ->  | S16: Very Hard | T16: 52 | U16: + | W16: 140 | AV16: A-7-5 | AW16: Cohesive | AX16: =AX12 ->  | AY16: =IF(COUNTIF($AX12:AY12,AY12)>1,"",AY12) ->  | AZ16: =IF(COUNTIF($AX12:AZ12,AZ12)>1,"",AZ12) ->  | BA16: =IF(COUNTIF($AX12:BA12,BA12)>1,"",BA12) ->  | BB16: =IF(COUNTIF($AX12:BB12,BB12)>1,"",BB12) ->  | BC16: =IF(COUNTIF($AX12:BC12,BC12)>1,"",BC12) ->  | BD16: =IF(COUNTIF($AX12:BD12,BD12)>1,"",BD12) ->  | BE16: =IF(COUNTIF($AX12:BE12,BE12)>1,"",BE12) ->  | BF16: =IF(COUNTIF($AX12:BF12,BF12)>1,"",BF12) ->  | BG16: =IF(COUNTIF($AX12:BG12,BG12)>1,"",BG12) -> 
A17: Layer No. | B17: Top Elev. (ft) | C17: Bottom Elev. (ft) | D17: Layer Depth (ft) | E17: Soil Class | F17: Soil Type | G17: N60 (bpf) | H17: CN | I17: N160 (bpf) | J17: Adj. N160 (bpf) | L17: γtot. (pcf) | M17: γsat. (pcf) | N17: γ′ (eff.) (pcf) | O17: σv (psf) | P17: σ′v (psf) | Q17: Depth Cut Fill (ft) | R17: N60 Cut Fill (bpf) | S17: Soil Class | T17: B=Ex G Depth Level | U17: B=Ex G N60 Level | V17: Soil Type | W17: B=Ex G Depth Fill | X17: B=Ex G N60 Fill | Y17: Soil Type | Z17: B=Ex G Depth Cut | AA17: B=Ex G N60 Cut | AB17: Soil Type | AC17: B>Ex G Depth Level | AD17: B>Ex G N60 Level | AE17: Soil Type | AF17: B>Ex G Depth Fill | AG17: B>Ex G N60 Fill | AH17: Soil Type | AI17: B>Ex G Depth Cut | AJ17: B>Ex G N60 Cut | AK17: Soil Type | AL17: B<Ex G Depth Level | AM17: B<Ex G N60 Level | AN17: Soil Type | AO17: B<Ex G Depth Fill | AP17: B<Ex G N60 Fill | AQ17: Soil Type | AR17: B<Ex G Depth Cut | AS17: B<Ex G N60 Cut | AT17: Soil Type | AV17: A-7-6 | AW17: Cohesive | AX17: =IF(AX16<>"",IF(AX11="C",AX5,AX6),"") ->  | AY17: =IF(AY16<>"",IF(AY11="C",AY5,AY6),"") -> 
